Workbook

Sheet INPUTS
C2: color de las celdas a completar:
B6: Inputs
C9: Período Procesado
C10: 2020-09-01 | D10: a | E10: 2021-08-31
C11: Días | D11: =E10-C10+1 -> 365
C12: Semanas | D12: =D11/7 -> 52.14285714
B15: a) | C15: Datos de Compra
C17: Para el período de procesamiento
C18: Energía Operada (kWh) | E18: =SUMPRODUCT([2]Energ_operada!$B$17:$B$66,[2]Energ_operada!$C$17:$C$66)*1000 -> 4424368769 | J18: =E18/D12 -> 84850907.9
C19: Potencia Máxima Promedio Semanal (kW) | E19: =MAX([3]Curva_semana!$C$2:$C$673)*1000 -> 623340.1915
J20: ='Cálculo de Pérdidas'!K11+'Cálculo de Pérdidas'!K12 -> 84850907.9
B21: b) | C21: Alumbrado público
C23: Para el período de procesamiento
C24: Energía Facturada AP (kWh) | E24: =SUMPRODUCT([2]Info_AP!$C$14:$C$49,[2]Info_AP!$D$14:$D$49)*1000 -> 82328018.77
C25: Energía Semanal(KWh) | E25: =E24/D12 -> 1578893.511
C26: Hora de Encendido (Ej: 18:15) | E26: 18:00:00
C27: Hora de Apagado (Ej: 06:30) | E27: 06:00:00
B30: c) | C30: Pérdidas de Energía (%)
C31: % Pérdidas No Técnicas de BT | E31: =[2]Balance!$F$17 -> 0.06887107883
C32: % Pérdidas Técnicas de BT | E32: =[2]Balance!$F$19 -> 0.02254140932
C33: % Pérdidas Técnicas de MT | E33: =[2]Balance!$F$20 -> 0.04157625019
C34: % Pérdidas Técnicas de AT | E34: =[2]Balance!$F$21 -> 0.007700810604
B38: d) | C38: Datos para el cálculo de errores
C40: Duración total de la campaña | D40: 24 | E40: semanas
C41: Nivel de confianza | D41: 0.95 | E41: => Z = | F41: =NORMSINV(1-(1-D41)/2) -> 1.959963985

Sheet Balance de Potencia
H2: CURVAS DE CARGA POR CATEGORIA Y NIVEL DE TENSIÓN | BY2: CAT. INTEGRADAS | DA2: CURVAS DE CARGA- PROMEDIO POR ESTRATO | LM2: Columnas Auxiliares
A3: Fila Auxiliar
B5: Día de la Semana | C5: Hora | D5: PRV | E5: Aux(BT) | F5: Aux(MT) | G5: Aux(AT) | H5: =IF([4]DATOS!$N$5="BT",[4]DATOS!$B$5,"") -> BTS_R | I5: =IF([4]DATOS!$N$15="BT",[4]DATOS!$B$15,"") -> BTS_O | J5: =IF([4]DATOS!$N$25="BT",[4]DATOS!$B$25,"") -> BTD | K5: =IF([4]DATOS!$N$35="BT",[4]DATOS!$B$35,"") -> BTH | L5: =IF([4]DATOS!$N$45="BT",[4]DATOS!$B$45,"") -> ABTD | M5: =IF([4]DATOS!$N$55="BT",[4]DATOS!$B$55,"") ->  | N5: =IF([4]DATOS!$N$65="BT",[4]DATOS!$B$65,"") ->  | O5: =IF([4]DATOS!$N$75="BT",[4]DATOS!$B$75,"") ->  | P5: =IF([4]DATOS!$N$85="BT",[4]DATOS!$B$85,"") ->  | Q5: =IF([4]DATOS!$N$95="BT",[4]DATOS!$B$95,"") ->  | R5: =IF([4]DATOS!$N$105="BT",[4]DATOS!$B$105,"") ->  | S5: =IF([4]DATOS!$N$115="BT",[4]DATOS!$B$115,"") ->  | T5: =IF([4]DATOS!$N$125="BT",[4]DATOS!$B$125,"") ->  | U5: =IF([4]DATOS!$N$135="BT",[4]DATOS!$B$135,"") ->  | V5: =IF([4]DATOS!$N$145="BT",[4]DATOS!$B$145,"") ->  | W5: =IF([4]DATOS!$N$155="BT",[4]DATOS!$B$155,"") ->  | X5: =IF([4]DATOS!$N$165="BT",[4]DATOS!$B$165,"") ->  | Y5: =IF([4]DATOS!$N$175="BT",[4]DATOS!$B$175,"") ->  | Z5: =IF([4]DATOS!$N$185="BT",[4]DATOS!$B$185,"") ->  | AA5: =IF([4]DATOS!$N$195="BT",[4]DATOS!$B$195,"") ->  | AB5: AP | AC5: PNT (BT) | AD5: PT (BT) | AE5: TOTAL BT | AF5: =IF([4]DATOS!$N$5="MT",[4]DATOS!$B$5,"") ->  | AG5: =IF([4]DATOS!$N$15="MT",[4]DATOS!$B$15,"") ->  | AH5: =IF([4]DATOS!$N$25="MT",[4]DATOS!$B$25,"") ->  | AI5: =IF([4]DATOS!$N$35="MT",[4]DATOS!$B$35,"") ->  | AJ5: =IF([4]DATOS!$N$45="MT",[4]DATOS!$B$45,"") ->  | AK5: =IF([4]DATOS!$N$55="MT",[4]DATOS!$B$55,"") ->  | AL5: =IF([4]DATOS!$N$65="MT",[4]DATOS!$B$65,"") -> MTD | AM5: =IF([4]DATOS!$N$75="MT",[4]DATOS!$B$75,"") -> MTH | AN5: =IF([4]DATOS!$N$85="MT",[4]DATOS!$B$85,"") -> AMTD | AO5: =IF([4]DATOS!$N$95="MT",[4]DATOS!$B$95,"") ->  | AP5: =IF([4]DATOS!$N$105="MT",[4]DATOS!$B$105,"") ->  | AQ5: =IF([4]DATOS!$N$115="MT",[4]DATOS!$B$115,"") ->  | AR5: =IF([4]DATOS!$N$125="MT",[4]DATOS!$B$125,"") ->  | AS5: =IF([4]DATOS!$N$135="MT",[4]DATOS!$B$135,"") ->  | AT5: =IF([4]DATOS!$N$145="MT",[4]DATOS!$B$145,"") ->  | AU5: =IF([4]DATOS!$N$155="MT",[4]DATOS!$B$155,"") ->  | AV5: =IF([4]DATOS!$N$165="MT",[4]DATOS!$B$165,"") ->  | AW5: =IF([4]DATOS!$N$175="MT",[4]DATOS!$B$175,"") ->  | AX5: =IF([4]DATOS!$N$185="MT",[4]DATOS!$B$185,"") ->  | AY5: =IF([4]DATOS!$N$195="MT",[4]DATOS!$B$195,"") ->  | AZ5: PT (MT) | BA5: TOTAL MT | BB5: =IF([4]DATOS!$N$5="AT",[4]DATOS!$B$5,"") ->  | BC5: =IF([4]DATOS!$N$15="AT",[4]DATOS!$B$15,"") ->  | BD5: =IF([4]DATOS!$N$25="AT",[4]DATOS!$B$25,"") ->  | BE5: =IF([4]DATOS!$N$35="AT",[4]DATOS!$B$35,"") ->  | BF5: =IF([4]DATOS!$N$45="AT",[4]DATOS!$B$45,"") ->  | BG5: =IF([4]DATOS!$N$55="AT",[4]DATOS!$B$55,"") ->  | BH5: =IF([4]DATOS!$N$65="AT",[4]DATOS!$B$65,"") ->  | BI5: =IF([4]DATOS!$N$75="AT",[4]DATOS!$B$75,"") ->  | BJ5: =IF([4]DATOS!$N$85="AT",[4]DATOS!$B$85,"") ->  | BK5: =IF([4]DATOS!$N$95="AT",[4]DATOS!$B$95,"") ->  | BL5: =IF([4]DATOS!$N$105="AT",[4]DATOS!$B$105,"") -> ATD | BM5: =IF([4]DATOS!$N$115="AT",[4]DATOS!$B$115,"") -> ATH | BN5: =IF([4]DATOS!$N$125="AT",[4]DATOS!$B$125,"") ->  | BO5: =IF([4]DATOS!$N$135="AT",[4]DATOS!$B$135,"") ->  | BP5: =IF([4]DATOS!$N$145="AT",[4]DATOS!$B$145,"") -> EDEMET | BQ5: =IF([4]DATOS!$N$155="AT",[4]DATOS!$B$155,"") ->  | BR5: =IF([4]DATOS!$N$165="AT",[4]DATOS!$B$165,"") ->  | BS5: =IF([4]DATOS!$N$175="AT",[4]DATOS!$B$175,"") ->  | BT5: =IF([4]DATOS!$N$185="AT",[4]DATOS!$B$185,"") ->  | BU5: =IF([4]DATOS!$N$195="AT",[4]DATOS!$B$195,"") ->  | BV5: PT (AT) | BW5: TOTAL AT | BY5: BTS | CA5: BTD | CC5: =[4]DATOS!$B$5 -> BTS_R | CD5: =[4]DATOS!$B$15 -> BTS_O | CE5: =[4]DATOS!$B$25 -> BTD | CF5: =[4]DATOS!$B$35 -> BTH | CG5: =[4]DATOS!$B$45 -> ABTD | CH5: =[4]DATOS!$B$55 -> 0 | CI5: =[4]DATOS!$B$65 -> MTD | CJ5: =[4]DATOS!$B$75 -> MTH | CK5: =[4]DATOS!$B$85 -> AMTD | CL5: =[4]DATOS!$B$95 -> 0 | CM5: =[4]DATOS!$B$105 -> ATD | CN5: =[4]DATOS!$B$115 -> ATH | CO5: =[4]DATOS!$B$125 -> 0 | CP5: =[4]DATOS!$B$135 -> 0 | CQ5: =[4]DATOS!$B$145 -> EDEMET | CR5: =[4]DATOS!$B$155 -> 0 | CS5: =[4]DATOS!$B$165 -> 0 | CT5: =[4]DATOS!$B$175 -> 0 | CU5: =[4]DATOS!$B$185 -> 0 | CV5: =[4]DATOS!$B$195 -> 0 | DA5: =DA720 -> BTS_R | DL5: =DL720 -> BTS_O | DW5: =DW720 -> BTD | EH5: =EH720 -> BTH | ES5: =ES720 -> ABTD | FD5: =FD720 -> 0 | FO5: =FO720 -> MTD | FZ5: =FZ720 -> MTH | GK5: =GK720 -> AMTD | GV5: =GV720 -> 0 | HG5: =HG720 -> ATD | HR5: =HR720 -> ATH | IC5: =IC720 -> 0 | IN5: =IN720 -> 0 | IY5: =IY720 -> EDEMET | JJ5: =JJ720 -> 0 | JU5: =JU720 -> 0 | KF5: =KF720 -> 0 | KQ5: =KQ720 -> 0 | LB5: =LB720 -> 0 | LM5: Día de la Semana | LN5: Hora
E6: aux | F6: aux | G6: aux | AB6: AP | AC6: PNT (BT) | AD6: PT (BT) | AZ6: PT (BT) | BV6: PT (BT) | BY6: BTDP | CA6: BTDFP | CY6: Columna Auxiliar | DA6: 1 | DB6: 2 | DC6: 3 | DD6: 4 | DE6: 5 | DF6: 6 | DG6: 7 | DH6: 8 | DI6: 9 | DJ6: 10 | DL6: 1 | DM6: 2 | DN6: 3 | DO6: 4 | DP6: 5 | DQ6: 6 | DR6: 7 | DS6: 8 | DT6: 9 | DU6: 10 | DW6: 1 | DX6: 2 | DY6: 3 | DZ6: 4 | EA6: 5 | EB6: 6 | EC6: 7 | ED6: 8 | EE6: 9 | EF6: 10 | EH6: 1 | EI6: 2 | EJ6: 3 | EK6: 4 | EL6: 5 | EM6: 6 | EN6: 7 | EO6: 8 | EP6: 9 | EQ6: 10 | ES6: 1 | ET6: 2 | EU6: 3 | EV6: 4 | EW6: 5 | EX6: 6 | EY6: 7 | EZ6: 8 | FA6: 9 | FB6: 10 | FD6: 1 | FE6: 2 | FF6: 3 | FG6: 4 | FH6: 5 | FI6: 6 | FJ6: 7 | FK6: 8 | FL6: 9 | FM6: 10 | FO6: 1 | FP6: 2 | FQ6: 3 | FR6: 4 | FS6: 5 | FT6: 6 | FU6: 7 | FV6: 8 | FW6: 9 | FX6: 10 | FZ6: 1 | GA6: 2 | GB6: 3 | GC6: 4 | GD6: 5 | GE6: 6 | GF6: 7 | GG6: 8 | GH6: 9 | GI6: 10 | GK6: 1 | GL6: 2 | GM6: 3 | GN6: 4 | GO6: 5 | GP6: 6 | GQ6: 7 | GR6: 8 | GS6: 9 | GT6: 10 | GV6: 1 | GW6: 2 | GX6: 3 | GY6: 4 | GZ6: 5 | HA6: 6 | HB6: 7 | HC6: 8 | HD6: 9 | HE6: 10 | HG6: 1 | HH6: 2 | HI6: 3 | HJ6: 4 | HK6: 5 | HL6: 6 | HM6: 7 | HN6: 8 | HO6: 9 | HP6: 10 | HR6: 1 | HS6: 2 | HT6: 3 | HU6: 4 | HV6: 5 | HW6: 6 | HX6: 7 | HY6: 8 | HZ6: 9 | IA6: 10 | IC6: 1 | ID6: 2 | IE6: 3 | IF6: 4 | IG6: 5 | IH6: 6 | II6: 7 | IJ6: 8 | IK6: 9 | IL6: 10 | IN6: 1 | IO6: 2 | IP6: 3 | IQ6: 4 | IR6: 5 | IS6: 6 | IT6: 7 | IU6: 8 | IV6: 9 | IW6: 10 | IY6: 1 | IZ6: 2 | JA6: 3 | JB6: 4 | JC6: 5 | JD6: 6 | JE6: 7 | JF6: 8 | JG6: 9 | JH6: 10 | JJ6: 1 | JK6: 2 | JL6: 3 | JM6: 4 | JN6: 5 | JO6: 6 | JP6: 7 | JQ6: 8 | JR6: 9 | JS6: 10 | JU6: 1 | JV6: 2 | JW6: 3 | JX6: 4 | JY6: 5 | JZ6: 6 | KA6: 7 | KB6: 8 | KC6: 9 | KD6: 10 | KF6: 1 | KG6: 2 | KH6: 3 | KI6: 4 | KJ6: 5 | KK6: 6 | KL6: 7 | KM6: 8 | KN6: 9 | KO6: 10 | KQ6: 1 | KR6: 2 | KS6: 3 | KT6: 4 | KU6: 5 | KV6: 6 | KW6: 7 | KX6: 8 | KY6: 9 | KZ6: 10 | LB6: 1 | LC6: 2 | LD6: 3 | LE6: 4 | LF6: 5 | LG6: 6 | LH6: 7 | LI6: 8 | LJ6: 9 | LK6: 10
B7: Domingo | C7: 00:00:00 | D7: V | E7: =AE7 -> 301334.2133 | F7: =BA7 -> 380957.2705 | G7: =BW7 -> 444246.8464 | H7: =IF(H$5="","",SUMPRODUCT(($DA7:$LK7)*($DA$714:$LK$714)*($DA$720:$LK$720=H$5))*AVERAGEIFS($DA$732:$LK$732,$DA$720:$LK$720,H$5)/SUMPRODUCT(($DA$679:$LK$679)*($DA$714:$LK$714)*($DA$720:$LK$720=H$5))) -> 189982.7233 | I7: =IF(I$5="","",SUMPRODUCT(($DA7:$LK7)*($DA$714:$LK$714)*($DA$720:$LK$720=I$5))*AVERAGEIFS($DA$732:$LK$732,$DA$720:$LK$720,I$5)/SUMPRODUCT(($DA$679:$LK$679)*($DA$714:$LK$714)*($DA$720:$LK$720=I$5))) -> 22809.35767 | J7: 35716.6887 | K7: 893.791198 | L7: 8.368443039e-06 | AB7: =IF(AND($C7>INPUTS!$E$27,$C7<INPUTS!$E$26),0,INPUTS!$E$25/7/(24*(1-INPUTS!$E$26+INPUTS!$E$27))) -> 18796.35132 | AC7: ='Cálculo de Pérdidas'!S9 -> 26983.98006 | AD7: ='Cálculo de Pérdidas'!O9 -> 6151.32109 | AE7: =SUM(H7:AD7) -> 301334.2133 | AF7: =IF(AF$5="","",SUMPRODUCT(($DA7:$LK7)*($DA$715:$LK$715)*($DA$720:$LK$720=AF$5))*AVERAGEIFS($DA$732:$LK$732,$DA$720:$LK$720,AF$5)/SUMPRODUCT(($DA$679:$LK$679)*($DA$715:$LK$715)*($DA$720:$LK$720=AF$5))) ->  | AL7: =IF(AL$5="","",SUMPRODUCT(($DA7:$LK7)*($DA$715:$LK$715)*($DA$720:$LK$720=AL$5))*AVERAGEIFS($DA$732:$LK$732,$DA$720:$LK$720,AL$5)/SUMPRODUCT(($DA$679:$LK$679)*($DA$715:$LK$715)*($DA$720:$LK$720=AL$5))) -> 51553.9845 | AM7: =IF(AM$5="","",SUMPRODUCT(($DA7:$LK7)*($DA$715:$LK$715)*($DA$720:$LK$720=AM$5))*AVERAGEIFS($DA$732:$LK$732,$DA$720:$LK$720,AM$5)/SUMPRODUCT(($DA$679:$LK$679)*($DA$715:$LK$715)*($DA$720:$LK$720=AM$5))) -> 14121.80872 | AN7: 5.913396933e-06 | AZ7: ='Cálculo de Pérdidas'!P9 -> 13947.26394 | BA7: =SUM(AE7:AZ7) -> 380957.2705 | BB7: =IF(BB$5="","",SUMPRODUCT(($DA7:$LK7)*($DA$716:$LK$716)*($DA$720:$LK$720=BB$5))*AVERAGEIFS($DA$732:$LK$732,$DA$720:$LK$720,BB$5)/SUMPRODUCT(($DA$679:$LK$679)*($DA$716:$LK$716)*($DA$720:$LK$720=BB$5))) ->  | BC7: =IF(BC$5="","",SUMPRODUCT(($DA7:$LK7)*($DA$716:$LK$716)*($DA$720:$LK$720=BC$5))*AVERAGEIFS($DA$732:$LK$732,$DA$720:$LK$720,BC$5)/SUMPRODUCT(($DA$679:$LK$679)*($DA$716:$LK$716)*($DA$720:$LK$720=BC$5))) ->  | BL7: 8248.286543 | BM7: 27833.80354 | BP7: 24255.84909 | BS7: =IF(BS$5="","",SUMPRODUCT(($DA7:$LK7)*($DA$716:$LK$716)*($DA$720:$LK$720=BS$5))*AVERAGEIFS($DA$732:$LK$732,$DA$720:$LK$720,BS$5)/SUMPRODUCT(($DA$679:$LK$679)*($DA$716:$LK$716)*($DA$720:$LK$720=BS$5))) ->  | BV7: ='Cálculo de Pérdidas'!Q9 -> 2951.636746 | BW7: =SUM(BA7:BV7) -> 444246.8464 | BY7: =I7+H7 -> 212792.081 | CA7: =J7+K7 -> 36610.4799 | CC7: =IF(CC$5="","",SUMIF($H$5:$BW$5,CC$5,$H7:$BW7)) -> 189982.7233 | CD7: 22809.35767 | CE7: 35716.6887 | CF7: 893.791198 | CG7: 8.368443039e-06 | CH7: 0 | CI7: 51553.9845 | CJ7: 14121.80872 | CK7: 5.913396933e-06 | CL7: 0 | CM7: =IF(CM$5="","",SUMIF($H$5:$BW$5,CM$5,$H7:$BW7)) -> 8248.286543 | CN7: 27833.80354 | CO7: 0 | CP7: 0 | CQ7: 24255.84909 | CR7: 0 | CS7: 0 | CT7: 0 | CU7: 0 | CV7: 0 | DA7: =[5]Salidas_balance!C7 -> 0.053690625 | DB7: =[5]Salidas_balance!D7 -> 0.1691316456 | DC7: =[5]Salidas_balance!E7 -> 0.3833323529 | DD7: =[5]Salidas_balance!F7 -> 0.485468 | DE7: =[5]Salidas_balance!G7 -> 0.9017 | DF7: =[5]Salidas_balance!H7 -> 2.1196 | DG7: =[5]Salidas_balance!I7 -> 4.427384615 | DH7: =[5]Salidas_balance!J7 -> 8.603883333 | DI7: =[5]Salidas_balance!K7 -> 15.61306364 | DJ7: =[5]Salidas_balance!L7 -> 0 | DL7: =[5]Salidas_balance!N7 -> 0.1321625 | DM7: =[5]Salidas_balance!O7 -> 0.4062428571 | DN7: =[5]Salidas_balance!P7 -> 0.57668 | DO7: =[5]Salidas_balance!Q7 -> 0.7089666667 | DP7: =[5]Salidas_balance!R7 -> 1.254526667 | DQ7: =[5]Salidas_balance!S7 -> 2.8749625 | DR7: =[5]Salidas_balance!T7 -> 2.9727 | DS7: =[5]Salidas_balance!U7 -> 8.678227778 | DT7: =[5]Salidas_balance!V7 -> 30.366875 | DU7: =[5]Salidas_balance!W7 -> 0 | DW7: =[5]Salidas_balance!Y7 -> 2.212653125 | DX7: =[5]Salidas_balance!Z7 -> 2.998482353 | DY7: =[5]Salidas_balance!AA7 -> 4.683990476 | DZ7: =[5]Salidas_balance!AB7 -> 7.4802 | EA7: =[5]Salidas_balance!AC7 -> 14.66028663 | EB7: =[5]Salidas_balance!AD7 -> 27.01311302 | EC7: =[5]Salidas_balance!AE7 -> 42.121 | ED7: =[5]Salidas_balance!AF7 -> 26.21666667 | EE7: =[5]Salidas_balance!AG7 -> 249.8336364 | EF7: =[5]Salidas_balance!AH7 -> 0 | EH7: =[5]Salidas_balance!AJ7 -> 11.80144242 | EI7: =[5]Salidas_balance!AK7 -> 0 | EJ7: =[5]Salidas_balance!AL7 -> 0 | EK7: =[5]Salidas_balance!AM7 -> 0 | EL7: =[5]Salidas_balance!AN7 -> 0 | EM7: =[5]Salidas_balance!AO7 -> 0 | EN7: =[5]Salidas_balance!AP7 -> 0 | EO7: =[5]Salidas_balance!AQ7 -> 0 | EP7: =[5]Salidas_balance!AR7 -> 0 | EQ7: =[5]Salidas_balance!AS7 -> 0 | ES7: =[5]Salidas_balance!AU7 -> 31.2977931 | ET7: =[5]Salidas_balance!AV7 -> 0 | EU7: =[5]Salidas_balance!AW7 -> 0 | EV7: =[5]Salidas_balance!AX7 -> 0 | EW7: =[5]Salidas_balance!AY7 -> 0 | EX7: =[5]Salidas_balance!AZ7 -> 0 | EY7: =[5]Salidas_balance!BA7 -> 0 | EZ7: =[5]Salidas_balance!BB7 -> 0 | FA7: =[5]Salidas_balance!BC7 -> 0 | FB7: =[5]Salidas_balance!BD7 -> 0 | FD7: =[5]Salidas_balance!BF7 -> 0 | FE7: =[5]Salidas_balance!BG7 -> 0 | FF7: =[5]Salidas_balance!BH7 -> 0 | FG7: =[5]Salidas_balance!BI7 -> 0 | FH7: =[5]Salidas_balance!BJ7 -> 0 | FI7: =[5]Salidas_balance!BK7 -> 0 | FJ7: =[5]Salidas_balance!BL7 -> 0 | FK7: =[5]Salidas_balance!BM7 -> 0 | FL7: =[5]Salidas_balance!BN7 -> 0 | FM7: =[5]Salidas_balance!BO7 -> 0 | FO7: =[5]Salidas_balance!BQ7 -> 4.405485714 | FP7: =[5]Salidas_balance!BR7 -> 20.61305556 | FQ7: =[5]Salidas_balance!BS7 -> 40.875 | FR7: =[5]Salidas_balance!BT7 -> 41.46053333 | FS7: =[5]Salidas_balance!BU7 -> 123.654 | FT7: =[5]Salidas_balance!BV7 -> 80.09788889 | FU7: =[5]Salidas_balance!BW7 -> 191.954 | FV7: =[5]Salidas_balance!BX7 -> 357.039 | FW7: =[5]Salidas_balance!BY7 -> 1086.507857 | FX7: =[5]Salidas_balance!BZ7 -> 0 | FZ7: =[5]Salidas_balance!CB7 -> 216.6690524 | GA7: =[5]Salidas_balance!CC7 -> 0 | GB7: =[5]Salidas_balance!CD7 -> 0 | GC7: =[5]Salidas_balance!CE7 -> 0 | GD7: =[5]Salidas_balance!CF7 -> 0 | GE7: =[5]Salidas_balance!CG7 -> 0 | GF7: =[5]Salidas_balance!CH7 -> 0 | GG7: =[5]Salidas_balance!CI7 -> 0 | GH7: =[5]Salidas_balance!CJ7 -> 0 | GI7: =[5]Salidas_balance!CK7 -> 0 | GK7: =[5]Salidas_balance!CM7 -> 46.151 | GL7: =[5]Salidas_balance!CN7 -> 0 | GM7: =[5]Salidas_balance!CO7 -> 0 | GN7: =[5]Salidas_balance!CP7 -> 0 | GO7: =[5]Salidas_balance!CQ7 -> 0 | GP7: =[5]Salidas_balance!CR7 -> 0 | GQ7: =[5]Salidas_balance!CS7 -> 0 | GR7: =[5]Salidas_balance!CT7 -> 0 | GS7: =[5]Salidas_balance!CU7 -> 0 | GT7: =[5]Salidas_balance!CV7 -> 0 | GV7: =[5]Salidas_balance!CX7 -> 0 | GW7: =[5]Salidas_balance!CY7 -> 0 | GX7: =[5]Salidas_balance!CZ7 -> 0 | GY7: =[5]Salidas_balance!DA7 -> 0 | GZ7: =[5]Salidas_balance!DB7 -> 0 | HA7: =[5]Salidas_balance!DC7 -> 0 | HB7: =[5]Salidas_balance!DD7 -> 0 | HC7: =[5]Salidas_balance!DE7 -> 0 | HD7: =[5]Salidas_balance!DF7 -> 0 | HE7: =[5]Salidas_balance!DG7 -> 0 | HG7: =[5]Salidas_balance!DI7 -> 8466.884423 | HH7: =[5]Salidas_balance!DJ7 -> 0 | HI7: =[5]Salidas_balance!DK7 -> 0 | HJ7: =[5]Salidas_balance!DL7 -> 0 | HK7: =[5]Salidas_balance!DM7 -> 0 | HL7: =[5]Salidas_balance!DN7 -> 0 | HM7: =[5]Salidas_balance!DO7 -> 0 | HN7: =[5]Salidas_balance!DP7 -> 0 | HO7: =[5]Salidas_balance!DQ7 -> 0 | HP7: =[5]Salidas_balance!DR7 -> 0 | HR7: =[5]Salidas_balance!DT7 -> 1802.405333 | HS7: =[5]Salidas_balance!DU7 -> 0 | HT7: =[5]Salidas_balance!DV7 -> 0 | HU7: =[5]Salidas_balance!DW7 -> 0 | HV7: =[5]Salidas_balance!DX7 -> 0 | HW7: =[5]Salidas_balance!DY7 -> 0 | HX7: =[5]Salidas_balance!DZ7 -> 0 | HY7: =[5]Salidas_balance!EA7 -> 0 | HZ7: =[5]Salidas_balance!EB7 -> 0 | IA7: =[5]Salidas_balance!EC7 -> 0 | IC7: =[5]Salidas_balance!EE7 -> 0 | ID7: =[5]Salidas_balance!EF7 -> 0 | IE7: =[5]Salidas_balance!EG7 -> 0 | IF7: =[5]Salidas_balance!EH7 -> 0 | IG7: =[5]Salidas_balance!EI7 -> 0 | IH7: =[5]Salidas_balance!EJ7 -> 0 | II7: =[5]Salidas_balance!EK7 -> 0 | IJ7: =[5]Salidas_balance!EL7 -> 0 | IK7: =[5]Salidas_balance!EM7 -> 0 | IL7: =[5]Salidas_balance!EN7 -> 0 | IN7: =[5]Salidas_balance!EP7 -> 0 | IO7: =[5]Salidas_balance!EQ7 -> 0 | IP7: =[5]Salidas_balance!ER7 -> 0 | IQ7: =[5]Salidas_balance!ES7 -> 0 | IR7: =[5]Salidas_balance!ET7 -> 0 | IS7: =[5]Salidas_balance!EU7 -> 0 | IT7: =[5]Salidas_balance!EV7 -> 0 | IU7: =[5]Salidas_balance!EW7 -> 0 | IV7: =[5]Salidas_balance!EX7 -> 0 | IW7: =[5]Salidas_balance!EY7 -> 0 | IY7: =[5]Salidas_balance!FA7 -> 24148.34154 | IZ7: =[5]Salidas_balance!FB7 -> 0 | JA7: =[5]Salidas_balance!FC7 -> 0 | JB7: =[5]Salidas_balance!FD7 -> 0 | JC7: =[5]Salidas_balance!FE7 -> 0 | JD7: =[5]Salidas_balance!FF7 -> 0 | JE7: =[5]Salidas_balance!FG7 -> 0 | JF7: =[5]Salidas_balance!FH7 -> 0 | JG7: =[5]Salidas_balance!FI7 -> 0 | JH7: =[5]Salidas_balance!FJ7 -> 0 | JJ7: =[5]Salidas_balance!FL7 -> 0 | JK7: =[5]Salidas_balance!FM7 -> 0 | JL7: =[5]Salidas_balance!FN7 -> 0 | JM7: =[5]Salidas_balance!FO7 -> 0 | JN7: =[5]Salidas_balance!FP7 -> 0 | JO7: =[5]Salidas_balance!FQ7 -> 0 | JP7: =[5]Salidas_balance!FR7 -> 0 | JQ7: =[5]Salidas_balance!FS7 -> 0 | JR7: =[5]Salidas_balance!FT7 -> 0 | JS7: =[5]Salidas_balance!FU7 -> 0 | JU7: =[5]Salidas_balance!FW7 -> 0 | JV7: =[5]Salidas_balance!FX7 -> 0 | JW7: =[5]Salidas_balance!FY7 -> 0 | JX7: =[5]Salidas_balance!FZ7 -> 0 | JY7: =[5]Salidas_balance!GA7 -> 0 | JZ7: =[5]Salidas_balance!GB7 -> 0 | KA7: =[5]Salidas_balance!GC7 -> 0 | KB7: =[5]Salidas_balance!GD7 -> 0 | KC7: =[5]Salidas_balance!GE7 -> 0 | KD7: =[5]Salidas_balance!GF7 -> 0 | KF7: =[5]Salidas_balance!GH7 -> 0 | KG7: =[5]Salidas_balance!GI7 -> 0 | KH7: =[5]Salidas_balance!GJ7 -> 0 | KI7: =[5]Salidas_balance!GK7 -> 0 | KJ7: =[5]Salidas_balance!GL7 -> 0 | KK7: =[5]Salidas_balance!GM7 -> 0 | KL7: =[5]Salidas_balance!GN7 -> 0 | KM7: =[5]Salidas_balance!GO7 -> 0 | KN7: =[5]Salidas_balance!GP7 -> 0 | KO7: =[5]Salidas_balance!GQ7 -> 0 | KQ7: =[5]Salidas_balance!GS7 -> 0 | KR7: =[5]Salidas_balance!GT7 -> 0 | KS7: =[5]Salidas_balance!GU7 -> 0 | KT7: =[5]Salidas_balance!GV7 -> 0 | KU7: =[5]Salidas_balance!GW7 -> 0 | KV7: =[5]Salidas_balance!GX7 -> 0 | KW7: =[5]Salidas_balance!GY7 -> 0 | KX7: =[5]Salidas_balance!GZ7 -> 0 | KY7: =[5]Salidas_balance!HA7 -> 0 | KZ7: =[5]Salidas_balance!HB7 -> 0 | LB7: =[5]Salidas_balance!HD7 -> 0 | LC7: =[5]Salidas_balance!HE7 -> 0 | LD7: =[5]Salidas_balance!HF7 -> 0 | LE7: =[5]Salidas_balance!HG7 -> 0 | LF7: =[5]Salidas_balance!HH7 -> 0 | LG7: =[5]Salidas_balance!HI7 -> 0 | LH7: =[5]Salidas_balance!HJ7 -> 0 | LI7: =[5]Salidas_balance!HK7 -> 0 | LJ7: =[5]Salidas_balance!HL7 -> 0 | LK7: =[5]Salidas_balance!HM7 -> 0 | LM7: Domingo | LN7: 00:00:00
B8: Domingo | C8: 00:15:00 | D8: V | E8: =AE8 -> 301049.5266 | F8: =BA8 -> 379827.3812 | G8: =BW8 -> 442869.6995 | H8: =IF(H$5="","",SUMPRODUCT(($DA8:$LK8)*($DA$714:$LK$714)*($DA$720:$LK$720=H$5))*AVERAGEIFS($DA$732:$LK$732,$DA$720:$LK$720,H$5)/SUMPRODUCT(($DA$679:$LK$679)*($DA$714:$LK$714)*($DA$720:$LK$720=H$5))) -> 190592.0005 | I8: 22119.34569 | J8: 35375.5102 | K8: 877.7379711 | L8: 8.414045372e-06 | AB8: =IF(AND($C8>INPUTS!$E$27,$C8<INPUTS!$E$26),0,INPUTS!$E$25/7/(24*(1-INPUTS!$E$26+INPUTS!$E$27))) -> 18796.35132 | AC8: ='Cálculo de Pérdidas'!S10 -> 27157.33357 | AD8: ='Cálculo de Pérdidas'!O10 -> 6131.247384 | AE8: =SUM(H8:AD8) -> 301049.5266 | AL8: =IF(AL$5="","",SUMPRODUCT(($DA8:$LK8)*($DA$715:$LK$715)*($DA$720:$LK$720=AL$5))*AVERAGEIFS($DA$732:$LK$732,$DA$720:$LK$720,AL$5)/SUMPRODUCT(($DA$679:$LK$679)*($DA$715:$LK$715)*($DA$720:$LK$720=AL$5))) -> 50778.41856 | AM8: 14131.877 | AN8: 5.896424438e-06 | AZ8: ='Cálculo de Pérdidas'!P10 -> 13867.55907 | BA8: =SUM(AE8:AZ8) -> 379827.3812 | BB8: =IF(BB$5="","",SUMPRODUCT(($DA8:$LK8)*($DA$716:$LK$716)*($DA$720:$LK$720=BB$5))*AVERAGEIFS($DA$732:$LK$732,$DA$720:$LK$720,BB$5)/SUMPRODUCT(($DA$679:$LK$679)*($DA$716:$LK$716)*($DA$720:$LK$720=BB$5))) ->  | BL8: 8062.979326 | BM8: 28135.5723 | BP8: 23910.28136 | BV8: ='Cálculo de Pérdidas'!Q10 -> 2933.485249 | BW8: =SUM(BA8:BV8) -> 442869.6995 | BY8: =I8+H8 -> 212711.3462 | CA8: =J8+K8 -> 36253.24817 | CC8: 190592.0005 | CD8: 22119.34569 | CE8: 35375.5102 | CF8: 877.7379711 | CG8: 8.414045372e-06 | CH8: 0 | CI8: 50778.41856 | CJ8: 14131.877 | CK8: 5.896424438e-06 | CL8: 0 | CM8: 8062.979326 | CN8: 28135.5723 | CO8: 0 | CP8: 0 | CQ8: 23910.28136 | CR8: 0 | CS8: 0 | CT8: 0 | CU8: 0 | CV8: 0 | DA8: =[5]Salidas_balance!C8 -> 0.054790625 | DB8: =[5]Salidas_balance!D8 -> 0.1704075949 | DC8: =[5]Salidas_balance!E8 -> 0.3840352941 | DD8: =[5]Salidas_balance!F8 -> 0.452232 | DE8: =[5]Salidas_balance!G8 -> 0.982 | DF8: =[5]Salidas_balance!H8 -> 2.12345625 | DG8: =[5]Salidas_balance!I8 -> 4.438823077 | DH8: =[5]Salidas_balance!J8 -> 8.861525 | DI8: =[5]Salidas_balance!K8 -> 15.08539091 | DJ8: =[5]Salidas_balance!L8 -> 0 | DL8: =[5]Salidas_balance!N8 -> 0.13898125 | DM8: =[5]Salidas_balance!O8 -> 0.424052381 | DN8: =[5]Salidas_balance!P8 -> 0.5818333333 | DO8: =[5]Salidas_balance!Q8 -> 0.6953142857 | DP8: =[5]Salidas_balance!R8 -> 1.291646667 | DQ8: =[5]Salidas_balance!S8 -> 2.47236875 | DR8: =[5]Salidas_balance!T8 -> 2.765644444 | DS8: =[5]Salidas_balance!U8 -> 8.510755556 | DT8: =[5]Salidas_balance!V8 -> 30.480625 | DU8: =[5]Salidas_balance!W8 -> 0 | DW8: =[5]Salidas_balance!Y8 -> 2.1728 | DX8: =[5]Salidas_balance!Z8 -> 2.877358824 | DY8: =[5]Salidas_balance!AA8 -> 4.693538095 | DZ8: =[5]Salidas_balance!AB8 -> 7.552638462 | EA8: =[5]Salidas_balance!AC8 -> 14.63097339 | EB8: =[5]Salidas_balance!AD8 -> 26.47621249 | EC8: =[5]Salidas_balance!AE8 -> 41.522 | ED8: =[5]Salidas_balance!AF8 -> 25.61866667 | EE8: =[5]Salidas_balance!AG8 -> 251.9994545 | EF8: =[5]Salidas_balance!AH8 -> 0 | EH8: =[5]Salidas_balance!AJ8 -> 11.58947879 | EI8: =[5]Salidas_balance!AK8 -> 0 | EJ8: =[5]Salidas_balance!AL8 -> 0 | EK8: =[5]Salidas_balance!AM8 -> 0 | EL8: =[5]Salidas_balance!AN8 -> 0 | EM8: =[5]Salidas_balance!AO8 -> 0 | EN8: =[5]Salidas_balance!AP8 -> 0 | EO8: =[5]Salidas_balance!AQ8 -> 0 | EP8: =[5]Salidas_balance!AR8 -> 0 | EQ8: =[5]Salidas_balance!AS8 -> 0 | ES8: =[5]Salidas_balance!AU8 -> 31.46834483 | ET8: =[5]Salidas_balance!AV8 -> 0 | EU8: =[5]Salidas_balance!AW8 -> 0 | EV8: =[5]Salidas_balance!AX8 -> 0 | EW8: =[5]Salidas_balance!AY8 -> 0 | EX8: =[5]Salidas_balance!AZ8 -> 0 | EY8: =[5]Salidas_balance!BA8 -> 0 | EZ8: =[5]Salidas_balance!BB8 -> 0 | FA8: =[5]Salidas_balance!BC8 -> 0 | FB8: =[5]Salidas_balance!BD8 -> 0 | FD8: =[5]Salidas_balance!BF8 -> 0 | FE8: =[5]Salidas_balance!BG8 -> 0 | FF8: =[5]Salidas_balance!BH8 -> 0 | FG8: =[5]Salidas_balance!BI8 -> 0 | FH8: =[5]Salidas_balance!BJ8 -> 0 | FI8: =[5]Salidas_balance!BK8 -> 0 | FJ8: =[5]Salidas_balance!BL8 -> 0 | FK8: =[5]Salidas_balance!BM8 -> 0 | FL8: =[5]Salidas_balance!BN8 -> 0 | FM8: =[5]Salidas_balance!BO8 -> 0 | FO8: =[5]Salidas_balance!BQ8 -> 4.340311429 | FP8: =[5]Salidas_balance!BR8 -> 20.91055556 | FQ8: =[5]Salidas_balance!BS8 -> 39.5455 | FR8: =[5]Salidas_balance!BT8 -> 41.54406667 | FS8: =[5]Salidas_balance!BU8 -> 121.935 | FT8: =[5]Salidas_balance!BV8 -> 74.54611111 | FU8: =[5]Salidas_balance!BW8 -> 183.173 | FV8: =[5]Salidas_balance!BX8 -> 357.401 | FW8: =[5]Salidas_balance!BY8 -> 1080.231786 | FX8: =[5]Salidas_balance!BZ8 -> 0 | FZ8: =[5]Salidas_balance!CB8 -> 216.8235286 | GA8: =[5]Salidas_balance!CC8 -> 0 | GB8: =[5]Salidas_balance!CD8 -> 0 | GC8: =[5]Salidas_balance!CE8 -> 0 | GD8: =[5]Salidas_balance!CF8 -> 0 | GE8: =[5]Salidas_balance!CG8 -> 0 | GF8: =[5]Salidas_balance!CH8 -> 0 | GG8: =[5]Salidas_balance!CI8 -> 0 | GH8: =[5]Salidas_balance!CJ8 -> 0 | GI8: =[5]Salidas_balance!CK8 -> 0 | GK8: =[5]Salidas_balance!CM8 -> 46.01853846 | GL8: =[5]Salidas_balance!CN8 -> 0 | GM8: =[5]Salidas_balance!CO8 -> 0 | GN8: =[5]Salidas_balance!CP8 -> 0 | GO8: =[5]Salidas_balance!CQ8 -> 0 | GP8: =[5]Salidas_balance!CR8 -> 0 | GQ8: =[5]Salidas_balance!CS8 -> 0 | GR8: =[5]Salidas_balance!CT8 -> 0 | GS8: =[5]Salidas_balance!CU8 -> 0 | GT8: =[5]Salidas_balance!CV8 -> 0 | GV8: =[5]Salidas_balance!CX8 -> 0 | GW8: =[5]Salidas_balance!CY8 -> 0 | GX8: =[5]Salidas_balance!CZ8 -> 0 | GY8: =[5]Salidas_balance!DA8 -> 0 | GZ8: =[5]Salidas_balance!DB8 -> 0 | HA8: =[5]Salidas_balance!DC8 -> 0 | HB8: =[5]Salidas_balance!DD8 -> 0 | HC8: =[5]Salidas_balance!DE8 -> 0 | HD8: =[5]Salidas_balance!DF8 -> 0 | HE8: =[5]Salidas_balance!DG8 -> 0 | HG8: =[5]Salidas_balance!DI8 -> 8276.666154 | HH8: =[5]Salidas_balance!DJ8 -> 0 | HI8: =[5]Salidas_balance!DK8 -> 0 | HJ8: =[5]Salidas_balance!DL8 -> 0 | HK8: =[5]Salidas_balance!DM8 -> 0 | HL8: =[5]Salidas_balance!DN8 -> 0 | HM8: =[5]Salidas_balance!DO8 -> 0 | HN8: =[5]Salidas_balance!DP8 -> 0 | HO8: =[5]Salidas_balance!DQ8 -> 0 | HP8: =[5]Salidas_balance!DR8 -> 0 | HR8: =[5]Salidas_balance!DT8 -> 1821.946667 | HS8: =[5]Salidas_balance!DU8 -> 0 | HT8: =[5]Salidas_balance!DV8 -> 0 | HU8: =[5]Salidas_balance!DW8 -> 0 | HV8: =[5]Salidas_balance!DX8 -> 0 | HW8: =[5]Salidas_balance!DY8 -> 0 | HX8: =[5]Salidas_balance!DZ8 -> 0 | HY8: =[5]Salidas_balance!EA8 -> 0 | HZ8: =[5]Salidas_balance!EB8 -> 0 | IA8: =[5]Salidas_balance!EC8 -> 0 | IC8: =[5]Salidas_balance!EE8 -> 0 | ID8: =[5]Salidas_balance!EF8 -> 0 | IE8: =[5]Salidas_balance!EG8 -> 0 | IF8: =[5]Salidas_balance!EH8 -> 0 | IG8: =[5]Salidas_balance!EI8 -> 0 | IH8: =[5]Salidas_balance!EJ8 -> 0 | II8: =[5]Salidas_balance!EK8 -> 0 | IJ8: =[5]Salidas_balance!EL8 -> 0 | IK8: =[5]Salidas_balance!EM8 -> 0 | IL8: =[5]Salidas_balance!EN8 -> 0 | IN8: =[5]Salidas_balance!EP8 -> 0 | IO8: =[5]Salidas_balance!EQ8 -> 0 | IP8: =[5]Salidas_balance!ER8 -> 0 | IQ8: =[5]Salidas_balance!ES8 -> 0 | IR8: =[5]Salidas_balance!ET8 -> 0 | IS8: =[5]Salidas_balance!EU8 -> 0 | IT8: =[5]Salidas_balance!EV8 -> 0 | IU8: =[5]Salidas_balance!EW8 -> 0 | IV8: =[5]Salidas_balance!EX8 -> 0 | IW8: =[5]Salidas_balance!EY8 -> 0 | IY8: =[5]Salidas_balance!FA8 -> 23804.30544 | IZ8: =[5]Salidas_balance!FB8 -> 0 | JA8: =[5]Salidas_balance!FC8 -> 0 | JB8: =[5]Salidas_balance!FD8 -> 0 | JC8: =[5]Salidas_balance!FE8 -> 0 | JD8: =[5]Salidas_balance!FF8 -> 0 | JE8: =[5]Salidas_balance!FG8 -> 0 | JF8: =[5]Salidas_balance!FH8 -> 0 | JG8: =[5]Salidas_balance!FI8 -> 0 | JH8: =[5]Salidas_balance!FJ8 -> 0 | JJ8: =[5]Salidas_balance!FL8 -> 0 | JK8: =[5]Salidas_balance!FM8 -> 0 | JL8: =[5]Salidas_balance!FN8 -> 0 | JM8: =[5]Salidas_balance!FO8 -> 0 | JN8: =[5]Salidas_balance!FP8 -> 0 | JO8: =[5]Salidas_balance!FQ8 -> 0 | JP8: =[5]Salidas_balance!FR8 -> 0 | JQ8: =[5]Salidas_balance!FS8 -> 0 | JR8: =[5]Salidas_balance!FT8 -> 0 | JS8: =[5]Salidas_balance!FU8 -> 0 | JU8: =[5]Salidas_balance!FW8 -> 0 | JV8: =[5]Salidas_balance!FX8 -> 0 | JW8: =[5]Salidas_balance!FY8 -> 0 | JX8: =[5]Salidas_balance!FZ8 -> 0 | JY8: =[5]Salidas_balance!GA8 -> 0 | JZ8: =[5]Salidas_balance!GB8 -> 0 | KA8: =[5]Salidas_balance!GC8 -> 0 | KB8: =[5]Salidas_balance!GD8 -> 0 | KC8: =[5]Salidas_balance!GE8 -> 0 | KD8: =[5]Salidas_balance!GF8 -> 0 | KF8: =[5]Salidas_balance!GH8 -> 0 | KG8: =[5]Salidas_balance!GI8 -> 0 | KH8: =[5]Salidas_balance!GJ8 -> 0 | KI8: =[5]Salidas_balance!GK8 -> 0 | KJ8: =[5]Salidas_balance!GL8 -> 0 | KK8: =[5]Salidas_balance!GM8 -> 0 | KL8: =[5]Salidas_balance!GN8 -> 0 | KM8: =[5]Salidas_balance!GO8 -> 0 | KN8: =[5]Salidas_balance!GP8 -> 0 | KO8: =[5]Salidas_balance!GQ8 -> 0 | KQ8: =[5]Salidas_balance!GS8 -> 0 | KR8: =[5]Salidas_balance!GT8 -> 0 | KS8: =[5]Salidas_balance!GU8 -> 0 | KT8: =[5]Salidas_balance!GV8 -> 0 | KU8: =[5]Salidas_balance!GW8 -> 0 | KV8: =[5]Salidas_balance!GX8 -> 0 | KW8: =[5]Salidas_balance!GY8 -> 0 | KX8: =[5]Salidas_balance!GZ8 -> 0 | KY8: =[5]Salidas_balance!HA8 -> 0 | KZ8: =[5]Salidas_balance!HB8 -> 0 | LB8: =[5]Salidas_balance!HD8 -> 0 | LC8: =[5]Salidas_balance!HE8 -> 0 | LD8: =[5]Salidas_balance!HF8 -> 0 | LE8: =[5]Salidas_balance!HG8 -> 0 | LF8: =[5]Salidas_balance!HH8 -> 0 | LG8: =[5]Salidas_balance!HI8 -> 0 | LH8: =[5]Salidas_balance!HJ8 -> 0 | LI8: =[5]Salidas_balance!HK8 -> 0 | LJ8: =[5]Salidas_balance!HL8 -> 0 | LK8: =[5]Salidas_balance!HM8 -> 0 | LM8: Domingo | LN8: 00:15:00
B9: Domingo | C9: 00:30:00 | D9: V | E9: 297181.9223 | F9: 375222.878 | G9: 438062.9357 | H9: 188602.9069 | I9: 21211.51198 | J9: 35124.80484 | K9: 865.5141049 | L9: 8.414746096e-06 | AB9: =IF(AND($C9>INPUTS!$E$27,$C9<INPUTS!$E$26),0,INPUTS!$E$25/7/(24*(1-INPUTS!$E$26+INPUTS!$E$27))) -> 18796.35132 | AC9: ='Cálculo de Pérdidas'!S11 -> 26593.44212 | AD9: ='Cálculo de Pérdidas'!O11 -> 5987.391107 | AE9: 297181.9223 | AL9: 50509.96293 | AM9: 13986.04812 | AN9: 5.874415388e-06 | AZ9: ='Cálculo de Pérdidas'!P11 -> 13544.94461 | BA9: 375222.878 | BL9: 8176.363415 | BM9: 27883.24041 | BP9: 23909.89121 | BV9: ='Cálculo de Pérdidas'!Q11 -> 2870.562673 | BW9: 438062.9357 | BY9: 209814.4188 | CA9: 35990.31895 | CC9: 188602.9069 | CD9: 21211.51198 | CE9: 35124.80484 | CF9: 865.5141049 | CG9: 8.414746096e-06 | CH9: 0 | CI9: 50509.96293 | CJ9: 13986.04812 | CK9: 5.874415388e-06 | CL9: 0 | CM9: 8176.363415 | CN9: 27883.24041 | CO9: 0 | CP9: 0 | CQ9: 23909.89121 | CR9: 0 | CS9: 0 | CT9: 0 | CU9: 0 | CV9: 0 | DA9: =[5]Salidas_balance!C9 -> 0.054121875 | DB9: =[5]Salidas_balance!D9 -> 0.166956962 | DC9: =[5]Salidas_balance!E9 -> 0.40675 | DD9: =[5]Salidas_balance!F9 -> 0.419876 | DE9: =[5]Salidas_balance!G9 -> 0.9800285714 | DF9: =[5]Salidas_balance!H9 -> 2.078375 | DG9: =[5]Salidas_balance!I9 -> 4.384276923 | DH9: =[5]Salidas_balance!J9 -> 8.711733333 | DI9: =[5]Salidas_balance!K9 -> 14.61786364 | DJ9: =[5]Salidas_balance!L9 -> 0 | DL9: =[5]Salidas_balance!N9 -> 0.1183958333 | DM9: =[5]Salidas_balance!O9 -> 0.3472261905 | DN9: =[5]Salidas_balance!P9 -> 0.5803 | DO9: =[5]Salidas_balance!Q9 -> 0.6624714286 | DP9: =[5]Salidas_balance!R9 -> 1.309333333 | DQ9: =[5]Salidas_balance!S9 -> 2.40163125 | DR9: =[5]Salidas_balance!T9 -> 2.798266667 | DS9: =[5]Salidas_balance!U9 -> 8.392244444 | DT9: =[5]Salidas_balance!V9 -> 30.771875 | DU9: =[5]Salidas_balance!W9 -> 0 | DW9: =[5]Salidas_balance!Y9 -> 2.16220625 | DX9: =[5]Salidas_balance!Z9 -> 2.791188235 | DY9: =[5]Salidas_balance!AA9 -> 4.690471429 | DZ9: =[5]Salidas_balance!AB9 -> 7.343853846 | EA9: =[5]Salidas_balance!AC9 -> 14.79450005 | EB9: =[5]Salidas_balance!AD9 -> 26.30802542 | EC9: =[5]Salidas_balance!AE9 -> 41.44 | ED9: =[5]Salidas_balance!AF9 -> 25.324 | EE9: =[5]Salidas_balance!AG9 -> 250.3825455 | EF9: =[5]Salidas_balance!AH9 -> 0 | EH9: =[5]Salidas_balance!AJ9 -> 11.42807727 | EI9: =[5]Salidas_balance!AK9 -> 0 | EJ9: =[5]Salidas_balance!AL9 -> 0 | EK9: =[5]Salidas_balance!AM9 -> 0 | EL9: =[5]Salidas_balance!AN9 -> 0 | EM9: =[5]Salidas_balance!AO9 -> 0 | EN9: =[5]Salidas_balance!AP9 -> 0 | EO9: =[5]Salidas_balance!AQ9 -> 0 | EP9: =[5]Salidas_balance!AR9 -> 0 | EQ9: =[5]Salidas_balance!AS9 -> 0 | ES9: =[5]Salidas_balance!AU9 -> 31.47096552 | ET9: =[5]Salidas_balance!AV9 -> 0 | EU9: =[5]Salidas_balance!AW9 -> 0 | EV9: =[5]Salidas_balance!AX9 -> 0 | EW9: =[5]Salidas_balance!AY9 -> 0 | EX9: =[5]Salidas_balance!AZ9 -> 0 | EY9: =[5]Salidas_balance!BA9 -> 0 | EZ9: =[5]Salidas_balance!BB9 -> 0 | FA9: =[5]Salidas_balance!BC9 -> 0 | FB9: =[5]Salidas_balance!BD9 -> 0 | FD9: =[5]Salidas_balance!BF9 -> 0 | FE9: =[5]Salidas_balance!BG9 -> 0 | FF9: =[5]Salidas_balance!BH9 -> 0 | FG9: =[5]Salidas_balance!BI9 -> 0 | FH9: =[5]Salidas_balance!BJ9 -> 0 | FI9: =[5]Salidas_balance!BK9 -> 0 | FJ9: =[5]Salidas_balance!BL9 -> 0 | FK9: =[5]Salidas_balance!BM9 -> 0 | FL9: =[5]Salidas_balance!BN9 -> 0 | FM9: =[5]Salidas_balance!BO9 -> 0 | FO9: =[5]Salidas_balance!BQ9 -> 4.328161905 | FP9: =[5]Salidas_balance!BR9 -> 20.79466667 | FQ9: =[5]Salidas_balance!BS9 -> 38.3735 | FR9: =[5]Salidas_balance!BT9 -> 41.4246 | FS9: =[5]Salidas_balance!BU9 -> 122.022 | FT9: =[5]Salidas_balance!BV9 -> 69.59166667 | FU9: =[5]Salidas_balance!BW9 -> 191.641 | FV9: =[5]Salidas_balance!BX9 -> 353.851 | FW9: =[5]Salidas_balance!BY9 -> 1071.714286 | FX9: =[5]Salidas_balance!BZ9 -> 0 | FZ9: =[5]Salidas_balance!CB9 -> 214.5860952 | GA9: =[5]Salidas_balance!CC9 -> 0 | GB9: =[5]Salidas_balance!CD9 -> 0 | GC9: =[5]Salidas_balance!CE9 -> 0 | GD9: =[5]Salidas_balance!CF9 -> 0 | GE9: =[5]Salidas_balance!CG9 -> 0 | GF9: =[5]Salidas_balance!CH9 -> 0 | GG9: =[5]Salidas_balance!CI9 -> 0 | GH9: =[5]Salidas_balance!CJ9 -> 0 | GI9: =[5]Salidas_balance!CK9 -> 0 | GK9: =[5]Salidas_balance!CM9 -> 45.84676923 | GL9: =[5]Salidas_balance!CN9 -> 0 | GM9: =[5]Salidas_balance!CO9 -> 0 | GN9: =[5]Salidas_balance!CP9 -> 0 | GO9: =[5]Salidas_balance!CQ9 -> 0 | GP9: =[5]Salidas_balance!CR9 -> 0 | GQ9: =[5]Salidas_balance!CS9 -> 0 | GR9: =[5]Salidas_balance!CT9 -> 0 | GS9: =[5]Salidas_balance!CU9 -> 0 | GT9: =[5]Salidas_balance!CV9 -> 0 | GV9: =[5]Salidas_balance!CX9 -> 0 | GW9: =[5]Salidas_balance!CY9 -> 0 | GX9: =[5]Salidas_balance!CZ9 -> 0 | GY9: =[5]Salidas_balance!DA9 -> 0 | GZ9: =[5]Salidas_balance!DB9 -> 0 | HA9: =[5]Salidas_balance!DC9 -> 0 | HB9: =[5]Salidas_balance!DD9 -> 0 | HC9: =[5]Salidas_balance!DE9 -> 0 | HD9: =[5]Salidas_balance!DF9 -> 0 | HE9: =[5]Salidas_balance!DG9 -> 0 | HG9: =[5]Salidas_balance!DI9 -> 8393.055173 | HH9: =[5]Salidas_balance!DJ9 -> 0 | HI9: =[5]Salidas_balance!DK9 -> 0 | HJ9: =[5]Salidas_balance!DL9 -> 0 | HK9: =[5]Salidas_balance!DM9 -> 0 | HL9: =[5]Salidas_balance!DN9 -> 0 | HM9: =[5]Salidas_balance!DO9 -> 0 | HN9: =[5]Salidas_balance!DP9 -> 0 | HO9: =[5]Salidas_balance!DQ9 -> 0 | HP9: =[5]Salidas_balance!DR9 -> 0 | HR9: =[5]Salidas_balance!DT9 -> 1805.606667 | HS9: =[5]Salidas_balance!DU9 -> 0 | HT9: =[5]Salidas_balance!DV9 -> 0 | HU9: =[5]Salidas_balance!DW9 -> 0 | HV9: =[5]Salidas_balance!DX9 -> 0 | HW9: =[5]Salidas_balance!DY9 -> 0 | HX9: =[5]Salidas_balance!DZ9 -> 0 | HY9: =[5]Salidas_balance!EA9 -> 0 | HZ9: =[5]Salidas_balance!EB9 -> 0 | IA9: =[5]Salidas_balance!EC9 -> 0 | IC9: =[5]Salidas_balance!EE9 -> 0 | ID9: =[5]Salidas_balance!EF9 -> 0 | IE9: =[5]Salidas_balance!EG9 -> 0 | IF9: =[5]Salidas_balance!EH9 -> 0 | IG9: =[5]Salidas_balance!EI9 -> 0 | IH9: =[5]Salidas_balance!EJ9 -> 0 | II9: =[5]Salidas_balance!EK9 -> 0 | IJ9: =[5]Salidas_balance!EL9 -> 0 | IK9: =[5]Salidas_balance!EM9 -> 0 | IL9: =[5]Salidas_balance!EN9 -> 0 | IN9: =[5]Salidas_balance!EP9 -> 0 | IO9: =[5]Salidas_balance!EQ9 -> 0 | IP9: =[5]Salidas_balance!ER9 -> 0 | IQ9: =[5]Salidas_balance!ES9 -> 0 | IR9: =[5]Salidas_balance!ET9 -> 0 | IS9: =[5]Salidas_balance!EU9 -> 0 | IT9: =[5]Salidas_balance!EV9 -> 0 | IU9: =[5]Salidas_balance!EW9 -> 0 | IV9: =[5]Salidas_balance!EX9 -> 0 | IW9: =[5]Salidas_balance!EY9 -> 0 | IY9: =[5]Salidas_balance!FA9 -> 23803.91702 | IZ9: =[5]Salidas_balance!FB9 -> 0 | JA9: =[5]Salidas_balance!FC9 -> 0 | JB9: =[5]Salidas_balance!FD9 -> 0 | JC9: =[5]Salidas_balance!FE9 -> 0 | JD9: =[5]Salidas_balance!FF9 -> 0 | JE9: =[5]Salidas_balance!FG9 -> 0 | JF9: =[5]Salidas_balance!FH9 -> 0 | JG9: =[5]Salidas_balance!FI9 -> 0 | JH9: =[5]Salidas_balance!FJ9 -> 0 | JJ9: =[5]Salidas_balance!FL9 -> 0 | JK9: =[5]Salidas_balance!FM9 -> 0 | JL9: =[5]Salidas_balance!FN9 -> 0 | JM9: =[5]Salidas_balance!FO9 -> 0 | JN9: =[5]Salidas_balance!FP9 -> 0 | JO9: =[5]Salidas_balance!FQ9 -> 0 | JP9: =[5]Salidas_balance!FR9 -> 0 | JQ9: =[5]Salidas_balance!FS9 -> 0 | JR9: =[5]Salidas_balance!FT9 -> 0 | JS9: =[5]Salidas_balance!FU9 -> 0 | JU9: =[5]Salidas_balance!FW9 -> 0 | JV9: =[5]Salidas_balance!FX9 -> 0 | JW9: =[5]Salidas_balance!FY9 -> 0 | JX9: =[5]Salidas_balance!FZ9 -> 0 | JY9: =[5]Salidas_balance!GA9 -> 0 | JZ9: =[5]Salidas_balance!GB9 -> 0 | KA9: =[5]Salidas_balance!GC9 -> 0 | KB9: =[5]Salidas_balance!GD9 -> 0 | KC9: =[5]Salidas_balance!GE9 -> 0 | KD9: =[5]Salidas_balance!GF9 -> 0 | KF9: =[5]Salidas_balance!GH9 -> 0 | KG9: =[5]Salidas_balance!GI9 -> 0 | KH9: =[5]Salidas_balance!GJ9 -> 0 | KI9: =[5]Salidas_balance!GK9 -> 0 | KJ9: =[5]Salidas_balance!GL9 -> 0 | KK9: =[5]Salidas_balance!GM9 -> 0 | KL9: =[5]Salidas_balance!GN9 -> 0 | KM9: =[5]Salidas_balance!GO9 -> 0 | KN9: =[5]Salidas_balance!GP9 -> 0 | KO9: =[5]Salidas_balance!GQ9 -> 0 | KQ9: =[5]Salidas_balance!GS9 -> 0 | KR9: =[5]Salidas_balance!GT9 -> 0 | KS9: =[5]Salidas_balance!GU9 -> 0 | KT9: =[5]Salidas_balance!GV9 -> 0 | KU9: =[5]Salidas_balance!GW9 -> 0 | KV9: =[5]Salidas_balance!GX9 -> 0 | KW9: =[5]Salidas_balance!GY9 -> 0 | KX9: =[5]Salidas_balance!GZ9 -> 0 | KY9: =[5]Salidas_balance!HA9 -> 0 | KZ9: =[5]Salidas_balance!HB9 -> 0 | LB9: =[5]Salidas_balance!HD9 -> 0 | LC9: =[5]Salidas_balance!HE9 -> 0 | LD9: =[5]Salidas_balance!HF9 -> 0 | LE9: =[5]Salidas_balance!HG9 -> 0 | LF9: =[5]Salidas_balance!HH9 -> 0 | LG9: =[5]Salidas_balance!HI9 -> 0 | LH9: =[5]Salidas_balance!HJ9 -> 0 | LI9: =[5]Salidas_balance!HK9 -> 0 | LJ9: =[5]Salidas_balance!HL9 -> 0 | LK9: =[5]Salidas_balance!HM9 -> 0 | LM9: Domingo | LN9: 00:30:00
B10: Domingo | C10: 00:45:00 | D10: V | E10: 295351.3587 | F10: 373250.0576 | G10: 435660.2686 | H10: 187468.9338 | I10: 21177.97108 | J10: 34867.52755 | K10: 843.8479403 | L10: 8.272204229e-06 | AB10: =IF(AND($C10>INPUTS!$E$27,$C10<INPUTS!$E$26),0,INPUTS!$E$25/7/(24*(1-INPUTS!$E$26+INPUTS!$E$27))) -> 18796.35132 | AC10: ='Cálculo de Pérdidas'!S12 -> 26274.61787 | AD10: ='Cálculo de Pérdidas'!O12 -> 5922.109178 | AE10: 295351.3587 | AL10: 50463.42934 | AM10: 14027.46925 | AN10: 5.845092987e-06 | AZ10: ='Cálculo de Pérdidas'!P12 -> 13407.80032 | BA10: 373250.0576 | BL10: 8114.508346 | BM10: 27554.33387 | BP10: 23902.0056 | BV10: ='Cálculo de Pérdidas'!Q12 -> 2839.363143 | BW10: 435660.2686 | BY10: 208646.9049 | CA10: 35711.37549 | CC10: 187468.9338 | CD10: 21177.97108 | CE10: 34867.52755 | CF10: 843.8479403 | CG10: 8.272204229e-06 | CH10: 0 | CI10: 50463.42934 | CJ10: 14027.46925 | CK10: 5.845092987e-06 | CL10: 0 | CM10: 8114.508346 | CN10: 27554.33387 | CO10: 0 | CP10: 0 | CQ10: 23902.0056 | CR10: 0 | CS10: 0 | CT10: 0 | CU10: 0 | CV10: 0 | DA10: =[5]Salidas_balance!C10 -> 0.0561625 | DB10: =[5]Salidas_balance!D10 -> 0.1668708861 | DC10: =[5]Salidas_balance!E10 -> 0.3975882353 | DD10: =[5]Salidas_balance!F10 -> 0.429636 | DE10: =[5]Salidas_balance!G10 -> 0.9403428571 | DF10: =[5]Salidas_balance!H10 -> 2.07398125 | DG10: =[5]Salidas_balance!I10 -> 4.434869231 | DH10: =[5]Salidas_balance!J10 -> 8.744316667 | DI10: =[5]Salidas_balance!K10 -> 14.71267273 | DJ10: =[5]Salidas_balance!L10 -> 0 | DL10: =[5]Salidas_balance!N10 -> 0.1325166667 | DM10: =[5]Salidas_balance!O10 -> 0.3463285714 | DN10: =[5]Salidas_balance!P10 -> 0.59108 | DO10: =[5]Salidas_balance!Q10 -> 0.7057 | DP10: =[5]Salidas_balance!R10 -> 1.229586667 | DQ10: =[5]Salidas_balance!S10 -> 2.53894375 | DR10: =[5]Salidas_balance!T10 -> 2.472555556 | DS10: =[5]Salidas_balance!U10 -> 8.255088889 | DT10: =[5]Salidas_balance!V10 -> 31.0195 | DU10: =[5]Salidas_balance!W10 -> 0 | DW10: =[5]Salidas_balance!Y10 -> 2.175825 | DX10: =[5]Salidas_balance!Z10 -> 2.773894118 | DY10: =[5]Salidas_balance!AA10 -> 4.678528571 | DZ10: =[5]Salidas_balance!AB10 -> 7.319661538 | EA10: =[5]Salidas_balance!AC10 -> 14.33152663 | EB10: =[5]Salidas_balance!AD10 -> 26.43134394 | EC10: =[5]Salidas_balance!AE10 -> 39.879 | ED10: =[5]Salidas_balance!AF10 -> 26.734 | EE10: =[5]Salidas_balance!AG10 -> 250.8267273 | EF10: =[5]Salidas_balance!AH10 -> 0 | EH10: =[5]Salidas_balance!AJ10 -> 11.14200152 | EI10: =[5]Salidas_balance!AK10 -> 0 | EJ10: =[5]Salidas_balance!AL10 -> 0 | EK10: =[5]Salidas_balance!AM10 -> 0 | EL10: =[5]Salidas_balance!AN10 -> 0 | EM10: =[5]Salidas_balance!AO10 -> 0 | EN10: =[5]Salidas_balance!AP10 -> 0 | EO10: =[5]Salidas_balance!AQ10 -> 0 | EP10: =[5]Salidas_balance!AR10 -> 0 | EQ10: =[5]Salidas_balance!AS10 -> 0 | ES10: =[5]Salidas_balance!AU10 -> 30.93786207 | ET10: =[5]Salidas_balance!AV10 -> 0 | EU10: =[5]Salidas_balance!AW10 -> 0 | EV10: =[5]Salidas_balance!AX10 -> 0 | EW10: =[5]Salidas_balance!AY10 -> 0 | EX10: =[5]Salidas_balance!AZ10 -> 0 | EY10: =[5]Salidas_balance!BA10 -> 0 | EZ10: =[5]Salidas_balance!BB10 -> 0 | FA10: =[5]Salidas_balance!BC10 -> 0 | FB10: =[5]Salidas_balance!BD10 -> 0 | FD10: =[5]Salidas_balance!BF10 -> 0 | FE10: =[5]Salidas_balance!BG10 -> 0 | FF10: =[5]Salidas_balance!BH10 -> 0 | FG10: =[5]Salidas_balance!BI10 -> 0 | FH10: =[5]Salidas_balance!BJ10 -> 0 | FI10: =[5]Salidas_balance!BK10 -> 0 | FJ10: =[5]Salidas_balance!BL10 -> 0 | FK10: =[5]Salidas_balance!BM10 -> 0 | FL10: =[5]Salidas_balance!BN10 -> 0 | FM10: =[5]Salidas_balance!BO10 -> 0 | FO10: =[5]Salidas_balance!BQ10 -> 4.31426 | FP10: =[5]Salidas_balance!BR10 -> 20.62472222 | FQ10: =[5]Salidas_balance!BS10 -> 38.092 | FR10: =[5]Salidas_balance!BT10 -> 42.47646667 | FS10: =[5]Salidas_balance!BU10 -> 120.397 | FT10: =[5]Salidas_balance!BV10 -> 71.65122222 | FU10: =[5]Salidas_balance!BW10 -> 186.827 | FV10: =[5]Salidas_balance!BX10 -> 353.322 | FW10: =[5]Salidas_balance!BY10 -> 1079.067857 | FX10: =[5]Salidas_balance!BZ10 -> 0 | FZ10: =[5]Salidas_balance!CB10 -> 215.2216143 | GA10: =[5]Salidas_balance!CC10 -> 0 | GB10: =[5]Salidas_balance!CD10 -> 0 | GC10: =[5]Salidas_balance!CE10 -> 0 | GD10: =[5]Salidas_balance!CF10 -> 0 | GE10: =[5]Salidas_balance!CG10 -> 0 | GF10: =[5]Salidas_balance!CH10 -> 0 | GG10: =[5]Salidas_balance!CI10 -> 0 | GH10: =[5]Salidas_balance!CJ10 -> 0 | GI10: =[5]Salidas_balance!CK10 -> 0 | GK10: =[5]Salidas_balance!CM10 -> 45.61792308 | GL10: =[5]Salidas_balance!CN10 -> 0 | GM10: =[5]Salidas_balance!CO10 -> 0 | GN10: =[5]Salidas_balance!CP10 -> 0 | GO10: =[5]Salidas_balance!CQ10 -> 0 | GP10: =[5]Salidas_balance!CR10 -> 0 | GQ10: =[5]Salidas_balance!CS10 -> 0 | GR10: =[5]Salidas_balance!CT10 -> 0 | GS10: =[5]Salidas_balance!CU10 -> 0 | GT10: =[5]Salidas_balance!CV10 -> 0 | GV10: =[5]Salidas_balance!CX10 -> 0 | GW10: =[5]Salidas_balance!CY10 -> 0 | GX10: =[5]Salidas_balance!CZ10 -> 0 | GY10: =[5]Salidas_balance!DA10 -> 0 | GZ10: =[5]Salidas_balance!DB10 -> 0 | HA10: =[5]Salidas_balance!DC10 -> 0 | HB10: =[5]Salidas_balance!DD10 -> 0 | HC10: =[5]Salidas_balance!DE10 -> 0 | HD10: =[5]Salidas_balance!DF10 -> 0 | HE10: =[5]Salidas_balance!DG10 -> 0 | HG10: =[5]Salidas_balance!DI10 -> 8329.560808 | HH10: =[5]Salidas_balance!DJ10 -> 0 | HI10: =[5]Salidas_balance!DK10 -> 0 | HJ10: =[5]Salidas_balance!DL10 -> 0 | HK10: =[5]Salidas_balance!DM10 -> 0 | HL10: =[5]Salidas_balance!DN10 -> 0 | HM10: =[5]Salidas_balance!DO10 -> 0 | HN10: =[5]Salidas_balance!DP10 -> 0 | HO10: =[5]Salidas_balance!DQ10 -> 0 | HP10: =[5]Salidas_balance!DR10 -> 0 | HR10: =[5]Salidas_balance!DT10 -> 1784.308 | HS10: =[5]Salidas_balance!DU10 -> 0 | HT10: =[5]Salidas_balance!DV10 -> 0 | HU10: =[5]Salidas_balance!DW10 -> 0 | HV10: =[5]Salidas_balance!DX10 -> 0 | HW10: =[5]Salidas_balance!DY10 -> 0 | HX10: =[5]Salidas_balance!DZ10 -> 0 | HY10: =[5]Salidas_balance!EA10 -> 0 | HZ10: =[5]Salidas_balance!EB10 -> 0 | IA10: =[5]Salidas_balance!EC10 -> 0 | IC10: =[5]Salidas_balance!EE10 -> 0 | ID10: =[5]Salidas_balance!EF10 -> 0 | IE10: =[5]Salidas_balance!EG10 -> 0 | IF10: =[5]Salidas_balance!EH10 -> 0 | IG10: =[5]Salidas_balance!EI10 -> 0 | IH10: =[5]Salidas_balance!EJ10 -> 0 | II10: =[5]Salidas_balance!EK10 -> 0 | IJ10: =[5]Salidas_balance!EL10 -> 0 | IK10: =[5]Salidas_balance!EM10 -> 0 | IL10: =[5]Salidas_balance!EN10 -> 0 | IN10: =[5]Salidas_balance!EP10 -> 0 | IO10: =[5]Salidas_balance!EQ10 -> 0 | IP10: =[5]Salidas_balance!ER10 -> 0 | IQ10: =[5]Salidas_balance!ES10 -> 0 | IR10: =[5]Salidas_balance!ET10 -> 0 | IS10: =[5]Salidas_balance!EU10 -> 0 | IT10: =[5]Salidas_balance!EV10 -> 0 | IU10: =[5]Salidas_balance!EW10 -> 0 | IV10: =[5]Salidas_balance!EX10 -> 0 | IW10: =[5]Salidas_balance!EY10 -> 0 | IY10: =[5]Salidas_balance!FA10 -> 23796.06637 | IZ10: =[5]Salidas_balance!FB10 -> 0 | JA10: =[5]Salidas_balance!FC10 -> 0 | JB10: =[5]Salidas_balance!FD10 -> 0 | JC10: =[5]Salidas_balance!FE10 -> 0 | JD10: =[5]Salidas_balance!FF10 -> 0 | JE10: =[5]Salidas_balance!FG10 -> 0 | JF10: =[5]Salidas_balance!FH10 -> 0 | JG10: =[5]Salidas_balance!FI10 -> 0 | JH10: =[5]Salidas_balance!FJ10 -> 0 | JJ10: =[5]Salidas_balance!FL10 -> 0 | JK10: =[5]Salidas_balance!FM10 -> 0 | JL10: =[5]Salidas_balance!FN10 -> 0 | JM10: =[5]Salidas_balance!FO10 -> 0 | JN10: =[5]Salidas_balance!FP10 -> 0 | JO10: =[5]Salidas_balance!FQ10 -> 0 | JP10: =[5]Salidas_balance!FR10 -> 0 | JQ10: =[5]Salidas_balance!FS10 -> 0 | JR10: =[5]Salidas_balance!FT10 -> 0 | JS10: =[5]Salidas_balance!FU10 -> 0 | JU10: =[5]Salidas_balance!FW10 -> 0 | JV10: =[5]Salidas_balance!FX10 -> 0 | JW10: =[5]Salidas_balance!FY10 -> 0 | JX10: =[5]Salidas_balance!FZ10 -> 0 | JY10: =[5]Salidas_balance!GA10 -> 0 | JZ10: =[5]Salidas_balance!GB10 -> 0 | KA10: =[5]Salidas_balance!GC10 -> 0 | KB10: =[5]Salidas_balance!GD10 -> 0 | KC10: =[5]Salidas_balance!GE10 -> 0 | KD10: =[5]Salidas_balance!GF10 -> 0 | KF10: =[5]Salidas_balance!GH10 -> 0 | KG10: =[5]Salidas_balance!GI10 -> 0 | KH10: =[5]Salidas_balance!GJ10 -> 0 | KI10: =[5]Salidas_balance!GK10 -> 0 | KJ10: =[5]Salidas_balance!GL10 -> 0 | KK10: =[5]Salidas_balance!GM10 -> 0 | KL10: =[5]Salidas_balance!GN10 -> 0 | KM10: =[5]Salidas_balance!GO10 -> 0 | KN10: =[5]Salidas_balance!GP10 -> 0 | KO10: =[5]Salidas_balance!GQ10 -> 0 | KQ10: =[5]Salidas_balance!GS10 -> 0 | KR10: =[5]Salidas_balance!GT10 -> 0 | KS10: =[5]Salidas_balance!GU10 -> 0 | KT10: =[5]Salidas_balance!GV10 -> 0 | KU10: =[5]Salidas_balance!GW10 -> 0 | KV10: =[5]Salidas_balance!GX10 -> 0 | KW10: =[5]Salidas_balance!GY10 -> 0 | KX10: =[5]Salidas_balance!GZ10 -> 0 | KY10: =[5]Salidas_balance!HA10 -> 0 | KZ10: =[5]Salidas_balance!HB10 -> 0 | LB10: =[5]Salidas_balance!HD10 -> 0 | LC10: =[5]Salidas_balance!HE10 -> 0 | LD10: =[5]Salidas_balance!HF10 -> 0 | LE10: =[5]Salidas_balance!HG10 -> 0 | LF10: =[5]Salidas_balance!HH10 -> 0 | LG10: =[5]Salidas_balance!HI10 -> 0 | LH10: =[5]Salidas_balance!HJ10 -> 0 | LI10: =[5]Salidas_balance!HK10 -> 0 | LJ10: =[5]Salidas_balance!HL10 -> 0 | LK10: =[5]Salidas_balance!HM10 -> 0 | LM10: Domingo | LN10: 00:45:00
B11: Domingo | C11: 01:00:00 | D11: V | E11: 287888.1932 | F11: 364585.0524 | G11: 427107.2993 | H11: 182026.3124 | I11: 21246.15404 | J11: 34548.23605 | K11: 831.9026898 | L11: 8.324537194e-06 | AB11: =IF(AND($C11>INPUTS!$E$27,$C11<INPUTS!$E$26),0,INPUTS!$E$25/7/(24*(1-INPUTS!$E$26+INPUTS!$E$27))) -> 18796.35132 | AC11: ='Cálculo de Pérdidas'!S13 -> 24771.14787 | AD11: ='Cálculo de Pérdidas'!O13 -> 5668.088791 | AE11: 287888.1932 | AL11: 49889.17324 | AM11: 13994.54718 | AN11: 5.817081469e-06 | AZ11: ='Cálculo de Pérdidas'!P13 -> 12813.13881 | BA11: 364585.0524 | BL11: 8209.438318 | BM11: 27522.71774 | BP11: 24060.42516 | BV11: ='Cálculo de Pérdidas'!Q13 -> 2729.665657 | BW11: 427107.2993 | BY11: 203272.4665 | CA11: 35380.13874 | CC11: 182026.3124 | CD11: 21246.15404 | CE11: 34548.23605 | CF11: 831.9026898 | CG11: 8.324537194e-06 | CH11: 0 | CI11: 49889.17324 | CJ11: 13994.54718 | CK11: 5.817081469e-06 | CL11: 0 | CM11: 8209.438318 | CN11: 27522.71774 | CO11: 0 | CP11: 0 | CQ11: 24060.42516 | CR11: 0 | CS11: 0 | CT11: 0 | CU11: 0 | CV11: 0 | DA11: =[5]Salidas_balance!C11 -> 0.05591875 | DB11: =[5]Salidas_balance!D11 -> 0.1573734177 | DC11: =[5]Salidas_balance!E11 -> 0.3758764706 | DD11: =[5]Salidas_balance!F11 -> 0.41856 | DE11: =[5]Salidas_balance!G11 -> 0.9449142857 | DF11: =[5]Salidas_balance!H11 -> 2.03428125 | DG11: =[5]Salidas_balance!I11 -> 4.303146154 | DH11: =[5]Salidas_balance!J11 -> 8.397975 | DI11: =[5]Salidas_balance!K11 -> 14.41067273 | DJ11: =[5]Salidas_balance!L11 -> 0 | DL11: =[5]Salidas_balance!N11 -> 0.1183791667 | DM11: =[5]Salidas_balance!O11 -> 0.3349642857 | DN11: =[5]Salidas_balance!P11 -> 0.5918466667 | DO11: =[5]Salidas_balance!Q11 -> 0.721552381 | DP11: =[5]Salidas_balance!R11 -> 1.198306667 | DQ11: =[5]Salidas_balance!S11 -> 2.56619375 | DR11: =[5]Salidas_balance!T11 -> 2.617411111 | DS11: =[5]Salidas_balance!U11 -> 8.448011111 | DT11: =[5]Salidas_balance!V11 -> 31.811 | DU11: =[5]Salidas_balance!W11 -> 0 | DW11: =[5]Salidas_balance!Y11 -> 2.21661875 | DX11: =[5]Salidas_balance!Z11 -> 2.987 | DY11: =[5]Salidas_balance!AA11 -> 4.657990476 | DZ11: =[5]Salidas_balance!AB11 -> 7.103015385 | EA11: =[5]Salidas_balance!AC11 -> 14.57218667 | EB11: =[5]Salidas_balance!AD11 -> 26.59575647 | EC11: =[5]Salidas_balance!AE11 -> 36.951 | ED11: =[5]Salidas_balance!AF11 -> 25.33533333 | EE11: =[5]Salidas_balance!AG11 -> 248.5070909 | EF11: =[5]Salidas_balance!AH11 -> 0 | EH11: =[5]Salidas_balance!AJ11 -> 10.98427879 | EI11: =[5]Salidas_balance!AK11 -> 0 | EJ11: =[5]Salidas_balance!AL11 -> 0 | EK11: =[5]Salidas_balance!AM11 -> 0 | EL11: =[5]Salidas_balance!AN11 -> 0 | EM11: =[5]Salidas_balance!AO11 -> 0 | EN11: =[5]Salidas_balance!AP11 -> 0 | EO11: =[5]Salidas_balance!AQ11 -> 0 | EP11: =[5]Salidas_balance!AR11 -> 0 | EQ11: =[5]Salidas_balance!AS11 -> 0 | ES11: =[5]Salidas_balance!AU11 -> 31.13358621 | ET11: =[5]Salidas_balance!AV11 -> 0 | EU11: =[5]Salidas_balance!AW11 -> 0 | EV11: =[5]Salidas_balance!AX11 -> 0 | EW11: =[5]Salidas_balance!AY11 -> 0 | EX11: =[5]Salidas_balance!AZ11 -> 0 | EY11: =[5]Salidas_balance!BA11 -> 0 | EZ11: =[5]Salidas_balance!BB11 -> 0 | FA11: =[5]Salidas_balance!BC11 -> 0 | FB11: =[5]Salidas_balance!BD11 -> 0 | FD11: =[5]Salidas_balance!BF11 -> 0 | FE11: =[5]Salidas_balance!BG11 -> 0 | FF11: =[5]Salidas_balance!BH11 -> 0 | FG11: =[5]Salidas_balance!BI11 -> 0 | FH11: =[5]Salidas_balance!BJ11 -> 0 | FI11: =[5]Salidas_balance!BK11 -> 0 | FJ11: =[5]Salidas_balance!BL11 -> 0 | FK11: =[5]Salidas_balance!BM11 -> 0 | FL11: =[5]Salidas_balance!BN11 -> 0 | FM11: =[5]Salidas_balance!BO11 -> 0 | FO11: =[5]Salidas_balance!BQ11 -> 4.214890476 | FP11: =[5]Salidas_balance!BR11 -> 20.48277778 | FQ11: =[5]Salidas_balance!BS11 -> 37.7635 | FR11: =[5]Salidas_balance!BT11 -> 40.88046667 | FS11: =[5]Salidas_balance!BU11 -> 122.433 | FT11: =[5]Salidas_balance!BV11 -> 69.63444444 | FU11: =[5]Salidas_balance!BW11 -> 182.898 | FV11: =[5]Salidas_balance!BX11 -> 349.827 | FW11: =[5]Salidas_balance!BY11 -> 1063.695357 | FX11: =[5]Salidas_balance!BZ11 -> 0 | FZ11: =[5]Salidas_balance!CB11 -> 214.7164952 | GA11: =[5]Salidas_balance!CC11 -> 0 | GB11: =[5]Salidas_balance!CD11 -> 0 | GC11: =[5]Salidas_balance!CE11 -> 0 | GD11: =[5]Salidas_balance!CF11 -> 0 | GE11: =[5]Salidas_balance!CG11 -> 0 | GF11: =[5]Salidas_balance!CH11 -> 0 | GG11: =[5]Salidas_balance!CI11 -> 0 | GH11: =[5]Salidas_balance!CJ11 -> 0 | GI11: =[5]Salidas_balance!CK11 -> 0 | GK11: =[5]Salidas_balance!CM11 -> 45.39930769 | GL11: =[5]Salidas_balance!CN11 -> 0 | GM11: =[5]Salidas_balance!CO11 -> 0 | GN11: =[5]Salidas_balance!CP11 -> 0 | GO11: =[5]Salidas_balance!CQ11 -> 0 | GP11: =[5]Salidas_balance!CR11 -> 0 | GQ11: =[5]Salidas_balance!CS11 -> 0 | GR11: =[5]Salidas_balance!CT11 -> 0 | GS11: =[5]Salidas_balance!CU11 -> 0 | GT11: =[5]Salidas_balance!CV11 -> 0 | GV11: =[5]Salidas_balance!CX11 -> 0 | GW11: =[5]Salidas_balance!CY11 -> 0 | GX11: =[5]Salidas_balance!CZ11 -> 0 | GY11: =[5]Salidas_balance!DA11 -> 0 | GZ11: =[5]Salidas_balance!DB11 -> 0 | HA11: =[5]Salidas_balance!DC11 -> 0 | HB11: =[5]Salidas_balance!DD11 -> 0 | HC11: =[5]Salidas_balance!DE11 -> 0 | HD11: =[5]Salidas_balance!DF11 -> 0 | HE11: =[5]Salidas_balance!DG11 -> 0 | HG11: =[5]Salidas_balance!DI11 -> 8427.006635 | HH11: =[5]Salidas_balance!DJ11 -> 0 | HI11: =[5]Salidas_balance!DK11 -> 0 | HJ11: =[5]Salidas_balance!DL11 -> 0 | HK11: =[5]Salidas_balance!DM11 -> 0 | HL11: =[5]Salidas_balance!DN11 -> 0 | HM11: =[5]Salidas_balance!DO11 -> 0 | HN11: =[5]Salidas_balance!DP11 -> 0 | HO11: =[5]Salidas_balance!DQ11 -> 0 | HP11: =[5]Salidas_balance!DR11 -> 0 | HR11: =[5]Salidas_balance!DT11 -> 1782.260667 | HS11: =[5]Salidas_balance!DU11 -> 0 | HT11: =[5]Salidas_balance!DV11 -> 0 | HU11: =[5]Salidas_balance!DW11 -> 0 | HV11: =[5]Salidas_balance!DX11 -> 0 | HW11: =[5]Salidas_balance!DY11 -> 0 | HX11: =[5]Salidas_balance!DZ11 -> 0 | HY11: =[5]Salidas_balance!EA11 -> 0 | HZ11: =[5]Salidas_balance!EB11 -> 0 | IA11: =[5]Salidas_balance!EC11 -> 0 | IC11: =[5]Salidas_balance!EE11 -> 0 | ID11: =[5]Salidas_balance!EF11 -> 0 | IE11: =[5]Salidas_balance!EG11 -> 0 | IF11: =[5]Salidas_balance!EH11 -> 0 | IG11: =[5]Salidas_balance!EI11 -> 0 | IH11: =[5]Salidas_balance!EJ11 -> 0 | II11: =[5]Salidas_balance!EK11 -> 0 | IJ11: =[5]Salidas_balance!EL11 -> 0 | IK11: =[5]Salidas_balance!EM11 -> 0 | IL11: =[5]Salidas_balance!EN11 -> 0 | IN11: =[5]Salidas_balance!EP11 -> 0 | IO11: =[5]Salidas_balance!EQ11 -> 0 | IP11: =[5]Salidas_balance!ER11 -> 0 | IQ11: =[5]Salidas_balance!ES11 -> 0 | IR11: =[5]Salidas_balance!ET11 -> 0 | IS11: =[5]Salidas_balance!EU11 -> 0 | IT11: =[5]Salidas_balance!EV11 -> 0 | IU11: =[5]Salidas_balance!EW11 -> 0 | IV11: =[5]Salidas_balance!EX11 -> 0 | IW11: =[5]Salidas_balance!EY11 -> 0 | IY11: =[5]Salidas_balance!FA11 -> 23953.78377 | IZ11: =[5]Salidas_balance!FB11 -> 0 | JA11: =[5]Salidas_balance!FC11 -> 0 | JB11: =[5]Salidas_balance!FD11 -> 0 | JC11: =[5]Salidas_balance!FE11 -> 0 | JD11: =[5]Salidas_balance!FF11 -> 0 | JE11: =[5]Salidas_balance!FG11 -> 0 | JF11: =[5]Salidas_balance!FH11 -> 0 | JG11: =[5]Salidas_balance!FI11 -> 0 | JH11: =[5]Salidas_balance!FJ11 -> 0 | JJ11: =[5]Salidas_balance!FL11 -> 0 | JK11: =[5]Salidas_balance!FM11 -> 0 | JL11: =[5]Salidas_balance!FN11 -> 0 | JM11: =[5]Salidas_balance!FO11 -> 0 | JN11: =[5]Salidas_balance!FP11 -> 0 | JO11: =[5]Salidas_balance!FQ11 -> 0 | JP11: =[5]Salidas_balance!FR11 -> 0 | JQ11: =[5]Salidas_balance!FS11 -> 0 | JR11: =[5]Salidas_balance!FT11 -> 0 | JS11: =[5]Salidas_balance!FU11 -> 0 | JU11: =[5]Salidas_balance!FW11 -> 0 | JV11: =[5]Salidas_balance!FX11 -> 0 | JW11: =[5]Salidas_balance!FY11 -> 0 | JX11: =[5]Salidas_balance!FZ11 -> 0 | JY11: =[5]Salidas_balance!GA11 -> 0 | JZ11: =[5]Salidas_balance!GB11 -> 0 | KA11: =[5]Salidas_balance!GC11 -> 0 | KB11: =[5]Salidas_balance!GD11 -> 0 | KC11: =[5]Salidas_balance!GE11 -> 0 | KD11: =[5]Salidas_balance!GF11 -> 0 | KF11: =[5]Salidas_balance!GH11 -> 0 | KG11: =[5]Salidas_balance!GI11 -> 0 | KH11: =[5]Salidas_balance!GJ11 -> 0 | KI11: =[5]Salidas_balance!GK11 -> 0 | KJ11: =[5]Salidas_balance!GL11 -> 0 | KK11: =[5]Salidas_balance!GM11 -> 0 | KL11: =[5]Salidas_balance!GN11 -> 0 | KM11: =[5]Salidas_balance!GO11 -> 0 | KN11: =[5]Salidas_balance!GP11 -> 0 | KO11: =[5]Salidas_balance!GQ11 -> 0 | KQ11: =[5]Salidas_balance!GS11 -> 0 | KR11: =[5]Salidas_balance!GT11 -> 0 | KS11: =[5]Salidas_balance!GU11 -> 0 | KT11: =[5]Salidas_balance!GV11 -> 0 | KU11: =[5]Salidas_balance!GW11 -> 0 | KV11: =[5]Salidas_balance!GX11 -> 0 | KW11: =[5]Salidas_balance!GY11 -> 0 | KX11: =[5]Salidas_balance!GZ11 -> 0 | KY11: =[5]Salidas_balance!HA11 -> 0 | KZ11: =[5]Salidas_balance!HB11 -> 0 | LB11: =[5]Salidas_balance!HD11 -> 0 | LC11: =[5]Salidas_balance!HE11 -> 0 | LD11: =[5]Salidas_balance!HF11 -> 0 | LE11: =[5]Salidas_balance!HG11 -> 0 | LF11: =[5]Salidas_balance!HH11 -> 0 | LG11: =[5]Salidas_balance!HI11 -> 0 | LH11: =[5]Salidas_balance!HJ11 -> 0 | LI11: =[5]Salidas_balance!HK11 -> 0 | LJ11: =[5]Salidas_balance!HL11 -> 0 | LK11: =[5]Salidas_balance!HM11 -> 0 | LM11: Domingo | LN11: 01:00:00
B12: Domingo | C12: 01:15:00 | D12: V | E12: 286183.3176 | F12: 363158.5761 | G12: 425380.5831 | H12: 181062.7313 | I12: 21141.43191 | J12: 34241.60131 | K12: 824.2458046 | L12: 8.274011358e-06 | AB12: =IF(AND($C12>INPUTS!$E$27,$C12<INPUTS!$E$26),0,INPUTS!$E$25/7/(24*(1-INPUTS!$E$26+INPUTS!$E$27))) -> 18796.35132 | AC12: ='Cálculo de Pérdidas'!S14 -> 24509.58312 | AD12: ='Cálculo de Pérdidas'!O14 -> 5607.372853 | AE12: 286183.3176 | AL12: 50137.54125 | AM12: 14121.269 | AN12: 5.761748373e-06 | AZ12: ='Cálculo de Pérdidas'!P14 -> 12716.44818 | BA12: 363158.5761 | BL12: 8382.895042 | BM12: 27303.22709 | BP12: 23828.1067 | BV12: ='Cálculo de Pérdidas'!Q14 -> 2707.77824 | BW12: 425380.5831 | BY12: 202204.1632 | CA12: 35065.84711 | CC12: 181062.7313 | CD12: 21141.43191 | CE12: 34241.60131 | CF12: 824.2458046 | CG12: 8.274011358e-06 | CH12: 0 | CI12: 50137.54125 | CJ12: 14121.269 | CK12: 5.761748373e-06 | CL12: 0 | CM12: 8382.895042 | CN12: 27303.22709 | CO12: 0 | CP12: 0 | CQ12: 23828.1067 | CR12: 0 | CS12: 0 | CT12: 0 | CU12: 0 | CV12: 0 | DA12: =[5]Salidas_balance!C12 -> 0.054984375 | DB12: =[5]Salidas_balance!D12 -> 0.1574025316 | DC12: =[5]Salidas_balance!E12 -> 0.3746911765 | DD12: =[5]Salidas_balance!F12 -> 0.423456 | DE12: =[5]Salidas_balance!G12 -> 0.9254571429 | DF12: =[5]Salidas_balance!H12 -> 2.010175 | DG12: =[5]Salidas_balance!I12 -> 4.257761538 | DH12: =[5]Salidas_balance!J12 -> 8.500783333 | DI12: =[5]Salidas_balance!K12 -> 14.25080909 | DJ12: =[5]Salidas_balance!L12 -> 0 | DL12: =[5]Salidas_balance!N12 -> 0.12721875 | DM12: =[5]Salidas_balance!O12 -> 0.347402381 | DN12: =[5]Salidas_balance!P12 -> 0.6011 | DO12: =[5]Salidas_balance!Q12 -> 0.7031619048 | DP12: =[5]Salidas_balance!R12 -> 1.13304 | DQ12: =[5]Salidas_balance!S12 -> 2.67014375 | DR12: =[5]Salidas_balance!T12 -> 2.461233333 | DS12: =[5]Salidas_balance!U12 -> 8.302855556 | DT12: =[5]Salidas_balance!V12 -> 29.73775 | DU12: =[5]Salidas_balance!W12 -> 0 | DW12: =[5]Salidas_balance!Y12 -> 2.241878125 | DX12: =[5]Salidas_balance!Z12 -> 2.722976471 | DY12: =[5]Salidas_balance!AA12 -> 4.677604762 | DZ12: =[5]Salidas_balance!AB12 -> 7.473169231 | EA12: =[5]Salidas_balance!AC12 -> 14.17402665 | EB12: =[5]Salidas_balance!AD12 -> 26.46925647 | EC12: =[5]Salidas_balance!AE12 -> 35.383 | ED12: =[5]Salidas_balance!AF12 -> 25.48866667 | EE12: =[5]Salidas_balance!AG12 -> 249.422 | EF12: =[5]Salidas_balance!AH12 -> 0 | EH12: =[5]Salidas_balance!AJ12 -> 10.88317879 | EI12: =[5]Salidas_balance!AK12 -> 0 | EJ12: =[5]Salidas_balance!AL12 -> 0 | EK12: =[5]Salidas_balance!AM12 -> 0 | EL12: =[5]Salidas_balance!AN12 -> 0 | EM12: =[5]Salidas_balance!AO12 -> 0 | EN12: =[5]Salidas_balance!AP12 -> 0 | EO12: =[5]Salidas_balance!AQ12 -> 0 | EP12: =[5]Salidas_balance!AR12 -> 0 | EQ12: =[5]Salidas_balance!AS12 -> 0 | ES12: =[5]Salidas_balance!AU12 -> 30.94462069 | ET12: =[5]Salidas_balance!AV12 -> 0 | EU12: =[5]Salidas_balance!AW12 -> 0 | EV12: =[5]Salidas_balance!AX12 -> 0 | EW12: =[5]Salidas_balance!AY12 -> 0 | EX12: =[5]Salidas_balance!AZ12 -> 0 | EY12: =[5]Salidas_balance!BA12 -> 0 | EZ12: =[5]Salidas_balance!BB12 -> 0 | FA12: =[5]Salidas_balance!BC12 -> 0 | FB12: =[5]Salidas_balance!BD12 -> 0 | FD12: =[5]Salidas_balance!BF12 -> 0 | FE12: =[5]Salidas_balance!BG12 -> 0 | FF12: =[5]Salidas_balance!BH12 -> 0 | FG12: =[5]Salidas_balance!BI12 -> 0 | FH12: =[5]Salidas_balance!BJ12 -> 0 | FI12: =[5]Salidas_balance!BK12 -> 0 | FJ12: =[5]Salidas_balance!BL12 -> 0 | FK12: =[5]Salidas_balance!BM12 -> 0 | FL12: =[5]Salidas_balance!BN12 -> 0 | FM12: =[5]Salidas_balance!BO12 -> 0 | FO12: =[5]Salidas_balance!BQ12 -> 4.260302857 | FP12: =[5]Salidas_balance!BR12 -> 20.43261111 | FQ12: =[5]Salidas_balance!BS12 -> 38.7485 | FR12: =[5]Salidas_balance!BT12 -> 42.1456 | FS12: =[5]Salidas_balance!BU12 -> 121.305 | FT12: =[5]Salidas_balance!BV12 -> 72.34811111 | FU12: =[5]Salidas_balance!BW12 -> 185.782 | FV12: =[5]Salidas_balance!BX12 -> 345.993 | FW12: =[5]Salidas_balance!BY12 -> 1067.862857 | FX12: =[5]Salidas_balance!BZ12 -> 0 | FZ12: =[5]Salidas_balance!CB12 -> 216.6607714 | GA12: =[5]Salidas_balance!CC12 -> 0 | GB12: =[5]Salidas_balance!CD12 -> 0 | GC12: =[5]Salidas_balance!CE12 -> 0 | GD12: =[5]Salidas_balance!CF12 -> 0 | GE12: =[5]Salidas_balance!CG12 -> 0 | GF12: =[5]Salidas_balance!CH12 -> 0 | GG12: =[5]Salidas_balance!CI12 -> 0 | GH12: =[5]Salidas_balance!CJ12 -> 0 | GI12: =[5]Salidas_balance!CK12 -> 0 | GK12: =[5]Salidas_balance!CM12 -> 44.96746154 | GL12: =[5]Salidas_balance!CN12 -> 0 | GM12: =[5]Salidas_balance!CO12 -> 0 | GN12: =[5]Salidas_balance!CP12 -> 0 | GO12: =[5]Salidas_balance!CQ12 -> 0 | GP12: =[5]Salidas_balance!CR12 -> 0 | GQ12: =[5]Salidas_balance!CS12 -> 0 | GR12: =[5]Salidas_balance!CT12 -> 0 | GS12: =[5]Salidas_balance!CU12 -> 0 | GT12: =[5]Salidas_balance!CV12 -> 0 | GV12: =[5]Salidas_balance!CX12 -> 0 | GW12: =[5]Salidas_balance!CY12 -> 0 | GX12: =[5]Salidas_balance!CZ12 -> 0 | GY12: =[5]Salidas_balance!DA12 -> 0 | GZ12: =[5]Salidas_balance!DB12 -> 0 | HA12: =[5]Salidas_balance!DC12 -> 0 | HB12: =[5]Salidas_balance!DD12 -> 0 | HC12: =[5]Salidas_balance!DE12 -> 0 | HD12: =[5]Salidas_balance!DF12 -> 0 | HE12: =[5]Salidas_balance!DG12 -> 0 | HG12: =[5]Salidas_balance!DI12 -> 8605.060346 | HH12: =[5]Salidas_balance!DJ12 -> 0 | HI12: =[5]Salidas_balance!DK12 -> 0 | HJ12: =[5]Salidas_balance!DL12 -> 0 | HK12: =[5]Salidas_balance!DM12 -> 0 | HL12: =[5]Salidas_balance!DN12 -> 0 | HM12: =[5]Salidas_balance!DO12 -> 0 | HN12: =[5]Salidas_balance!DP12 -> 0 | HO12: =[5]Salidas_balance!DQ12 -> 0 | HP12: =[5]Salidas_balance!DR12 -> 0 | HR12: =[5]Salidas_balance!DT12 -> 1768.047333 | HS12: =[5]Salidas_balance!DU12 -> 0 | HT12: =[5]Salidas_balance!DV12 -> 0 | HU12: =[5]Salidas_balance!DW12 -> 0 | HV12: =[5]Salidas_balance!DX12 -> 0 | HW12: =[5]Salidas_balance!DY12 -> 0 | HX12: =[5]Salidas_balance!DZ12 -> 0 | HY12: =[5]Salidas_balance!EA12 -> 0 | HZ12: =[5]Salidas_balance!EB12 -> 0 | IA12: =[5]Salidas_balance!EC12 -> 0 | IC12: =[5]Salidas_balance!EE12 -> 0 | ID12: =[5]Salidas_balance!EF12 -> 0 | IE12: =[5]Salidas_balance!EG12 -> 0 | IF12: =[5]Salidas_balance!EH12 -> 0 | IG12: =[5]Salidas_balance!EI12 -> 0 | IH12: =[5]Salidas_balance!EJ12 -> 0 | II12: =[5]Salidas_balance!EK12 -> 0 | IJ12: =[5]Salidas_balance!EL12 -> 0 | IK12: =[5]Salidas_balance!EM12 -> 0 | IL12: =[5]Salidas_balance!EN12 -> 0 | IN12: =[5]Salidas_balance!EP12 -> 0 | IO12: =[5]Salidas_balance!EQ12 -> 0 | IP12: =[5]Salidas_balance!ER12 -> 0 | IQ12: =[5]Salidas_balance!ES12 -> 0 | IR12: =[5]Salidas_balance!ET12 -> 0 | IS12: =[5]Salidas_balance!EU12 -> 0 | IT12: =[5]Salidas_balance!EV12 -> 0 | IU12: =[5]Salidas_balance!EW12 -> 0 | IV12: =[5]Salidas_balance!EX12 -> 0 | IW12: =[5]Salidas_balance!EY12 -> 0 | IY12: =[5]Salidas_balance!FA12 -> 23722.495 | IZ12: =[5]Salidas_balance!FB12 -> 0 | JA12: =[5]Salidas_balance!FC12 -> 0 | JB12: =[5]Salidas_balance!FD12 -> 0 | JC12: =[5]Salidas_balance!FE12 -> 0 | JD12: =[5]Salidas_balance!FF12 -> 0 | JE12: =[5]Salidas_balance!FG12 -> 0 | JF12: =[5]Salidas_balance!FH12 -> 0 | JG12: =[5]Salidas_balance!FI12 -> 0 | JH12: =[5]Salidas_balance!FJ12 -> 0 | JJ12: =[5]Salidas_balance!FL12 -> 0 | JK12: =[5]Salidas_balance!FM12 -> 0 | JL12: =[5]Salidas_balance!FN12 -> 0 | JM12: =[5]Salidas_balance!FO12 -> 0 | JN12: =[5]Salidas_balance!FP12 -> 0 | JO12: =[5]Salidas_balance!FQ12 -> 0 | JP12: =[5]Salidas_balance!FR12 -> 0 | JQ12: =[5]Salidas_balance!FS12 -> 0 | JR12: =[5]Salidas_balance!FT12 -> 0 | JS12: =[5]Salidas_balance!FU12 -> 0 | JU12: =[5]Salidas_balance!FW12 -> 0 | JV12: =[5]Salidas_balance!FX12 -> 0 | JW12: =[5]Salidas_balance!FY12 -> 0 | JX12: =[5]Salidas_balance!FZ12 -> 0 | JY12: =[5]Salidas_balance!GA12 -> 0 | JZ12: =[5]Salidas_balance!GB12 -> 0 | KA12: =[5]Salidas_balance!GC12 -> 0 | KB12: =[5]Salidas_balance!GD12 -> 0 | KC12: =[5]Salidas_balance!GE12 -> 0 | KD12: =[5]Salidas_balance!GF12 -> 0 | KF12: =[5]Salidas_balance!GH12 -> 0 | KG12: =[5]Salidas_balance!GI12 -> 0 | KH12: =[5]Salidas_balance!GJ12 -> 0 | KI12: =[5]Salidas_balance!GK12 -> 0 | KJ12: =[5]Salidas_balance!GL12 -> 0 | KK12: =[5]Salidas_balance!GM12 -> 0 | KL12: =[5]Salidas_balance!GN12 -> 0 | KM12: =[5]Salidas_balance!GO12 -> 0 | KN12: =[5]Salidas_balance!GP12 -> 0 | KO12: =[5]Salidas_balance!GQ12 -> 0 | KQ12: =[5]Salidas_balance!GS12 -> 0 | KR12: =[5]Salidas_balance!GT12 -> 0 | KS12: =[5]Salidas_balance!GU12 -> 0 | KT12: =[5]Salidas_balance!GV12 -> 0 | KU12: =[5]Salidas_balance!GW12 -> 0 | KV12: =[5]Salidas_balance!GX12 -> 0 | KW12: =[5]Salidas_balance!GY12 -> 0 | KX12: =[5]Salidas_balance!GZ12 -> 0 | KY12: =[5]Salidas_balance!HA12 -> 0 | KZ12: =[5]Salidas_balance!HB12 -> 0 | LB12: =[5]Salidas_balance!HD12 -> 0 | LC12: =[5]Salidas_balance!HE12 -> 0 | LD12: =[5]Salidas_balance!HF12 -> 0 | LE12: =[5]Salidas_balance!HG12 -> 0 | LF12: =[5]Salidas_balance!HH12 -> 0 | LG12: =[5]Salidas_balance!HI12 -> 0 | LH12: =[5]Salidas_balance!HJ12 -> 0 | LI12: =[5]Salidas_balance!HK12 -> 0 | LJ12: =[5]Salidas_balance!HL12 -> 0 | LK12: =[5]Salidas_balance!HM12 -> 0 | LM12: Domingo | LN12: 01:15:00
B13: Domingo | C13: 01:30:00 | D13: V | E13: 281321.1261 | F13: 357993.5619 | G13: 419811.7533 | H13: 177571.4181 | I13: 21308.85233 | J13: 33806.64837 | K13: 820.5652762 | L13: 8.222305356e-06 | AB13: =IF(AND($C13>INPUTS!$E$27,$C13<INPUTS!$E$26),0,INPUTS!$E$25/7/(24*(1-INPUTS!$E$26+INPUTS!$E$27))) -> 18796.35132 | AC13: ='Cálculo de Pérdidas'!S15 -> 23573.49174 | AD13: ='Cálculo de Pérdidas'!O15 -> 5443.798956 | AE13: 281321.1261 | AL13: 50193.23909 | AM13: 14109.98906 | AN13: 5.619827951e-06 | AZ13: ='Cálculo de Pérdidas'!P15 -> 12369.20772 | BA13: 357993.5619 | BL13: 8224.277789 | BM13: 27321.63465 | BP13: 23634.497 | BV13: ='Cálculo de Pérdidas'!Q15 -> 2637.781935 | BW13: 419811.7533 | BY13: 198880.2704 | CA13: 34627.21365 | CC13: 177571.4181 | CD13: 21308.85233 | CE13: 33806.64837 | CF13: 820.5652762 | CG13: 8.222305356e-06 | CH13: 0 | CI13: 50193.23909 | CJ13: 14109.98906 | CK13: 5.619827951e-06 | CL13: 0 | CM13: 8224.277789 | CN13: 27321.63465 | CO13: 0 | CP13: 0 | CQ13: 23634.497 | CR13: 0 | CS13: 0 | CT13: 0 | CU13: 0 | CV13: 0 | DA13: =[5]Salidas_balance!C13 -> 0.061190625 | DB13: =[5]Salidas_balance!D13 -> 0.1574151899 | DC13: =[5]Salidas_balance!E13 -> 0.3725147059 | DD13: =[5]Salidas_balance!F13 -> 0.397324 | DE13: =[5]Salidas_balance!G13 -> 0.8962428571 | DF13: =[5]Salidas_balance!H13 -> 1.97093125 | DG13: =[5]Salidas_balance!I13 -> 4.247630769 | DH13: =[5]Salidas_balance!J13 -> 8.546008333 | DI13: =[5]Salidas_balance!K13 -> 13.98184545 | DJ13: =[5]Salidas_balance!L13 -> 0 | DL13: =[5]Salidas_balance!N13 -> 0.1231083333 | DM13: =[5]Salidas_balance!O13 -> 0.3526666667 | DN13: =[5]Salidas_balance!P13 -> 0.5835133333 | DO13: =[5]Salidas_balance!Q13 -> 0.7098238095 | DP13: =[5]Salidas_balance!R13 -> 1.186693333 | DQ13: =[5]Salidas_balance!S13 -> 2.73238125 | DR13: =[5]Salidas_balance!T13 -> 2.4215 | DS13: =[5]Salidas_balance!U13 -> 8.326372222 | DT13: =[5]Salidas_balance!V13 -> 30.269875 | DU13: =[5]Salidas_balance!W13 -> 0 | DW13: =[5]Salidas_balance!Y13 -> 2.20324375 | DX13: =[5]Salidas_balance!Z13 -> 2.560041176 | DY13: =[5]Salidas_balance!AA13 -> 4.738085714 | DZ13: =[5]Salidas_balance!AB13 -> 7.359192308 | EA13: =[5]Salidas_balance!AC13 -> 14.23962001 | EB13: =[5]Salidas_balance!AD13 -> 26.15856294 | EC13: =[5]Salidas_balance!AE13 -> 33.599 | ED13: =[5]Salidas_balance!AF13 -> 26.36466667 | EE13: =[5]Salidas_balance!AG13 -> 248.3630909 | EF13: =[5]Salidas_balance!AH13 -> 0 | EH13: =[5]Salidas_balance!AJ13 -> 10.83458182 | EI13: =[5]Salidas_balance!AK13 -> 0 | EJ13: =[5]Salidas_balance!AL13 -> 0 | EK13: =[5]Salidas_balance!AM13 -> 0 | EL13: =[5]Salidas_balance!AN13 -> 0 | EM13: =[5]Salidas_balance!AO13 -> 0 | EN13: =[5]Salidas_balance!AP13 -> 0 | EO13: =[5]Salidas_balance!AQ13 -> 0 | EP13: =[5]Salidas_balance!AR13 -> 0 | EQ13: =[5]Salidas_balance!AS13 -> 0 | ES13: =[5]Salidas_balance!AU13 -> 30.75124138 | ET13: =[5]Salidas_balance!AV13 -> 0 | EU13: =[5]Salidas_balance!AW13 -> 0 | EV13: =[5]Salidas_balance!AX13 -> 0 | EW13: =[5]Salidas_balance!AY13 -> 0 | EX13: =[5]Salidas_balance!AZ13 -> 0 | EY13: =[5]Salidas_balance!BA13 -> 0 | EZ13: =[5]Salidas_balance!BB13 -> 0 | FA13: =[5]Salidas_balance!BC13 -> 0 | FB13: =[5]Salidas_balance!BD13 -> 0 | FD13: =[5]Salidas_balance!BF13 -> 0 | FE13: =[5]Salidas_balance!BG13 -> 0 | FF13: =[5]Salidas_balance!BH13 -> 0 | FG13: =[5]Salidas_balance!BI13 -> 0 | FH13: =[5]Salidas_balance!BJ13 -> 0 | FI13: =[5]Salidas_balance!BK13 -> 0 | FJ13: =[5]Salidas_balance!BL13 -> 0 | FK13: =[5]Salidas_balance!BM13 -> 0 | FL13: =[5]Salidas_balance!BN13 -> 0 | FM13: =[5]Salidas_balance!BO13 -> 0 | FO13: =[5]Salidas_balance!BQ13 -> 4.186569524 | FP13: =[5]Salidas_balance!BR13 -> 20.68811111 | FQ13: =[5]Salidas_balance!BS13 -> 40.345 | FR13: =[5]Salidas_balance!BT13 -> 41.02606667 | FS13: =[5]Salidas_balance!BU13 -> 121.13 | FT13: =[5]Salidas_balance!BV13 -> 67.42788889 | FU13: =[5]Salidas_balance!BW13 -> 188.418 | FV13: =[5]Salidas_balance!BX13 -> 354.776 | FW13: =[5]Salidas_balance!BY13 -> 1057.605 | FX13: =[5]Salidas_balance!BZ13 -> 0 | FZ13: =[5]Salidas_balance!CB13 -> 216.4877048 | GA13: =[5]Salidas_balance!CC13 -> 0 | GB13: =[5]Salidas_balance!CD13 -> 0 | GC13: =[5]Salidas_balance!CE13 -> 0 | GD13: =[5]Salidas_balance!CF13 -> 0 | GE13: =[5]Salidas_balance!CG13 -> 0 | GF13: =[5]Salidas_balance!CH13 -> 0 | GG13: =[5]Salidas_balance!CI13 -> 0 | GH13: =[5]Salidas_balance!CJ13 -> 0 | GI13: =[5]Salidas_balance!CK13 -> 0 | GK13: =[5]Salidas_balance!CM13 -> 43.85984615 | GL13: =[5]Salidas_balance!CN13 -> 0 | GM13: =[5]Salidas_balance!CO13 -> 0 | GN13: =[5]Salidas_balance!CP13 -> 0 | GO13: =[5]Salidas_balance!CQ13 -> 0 | GP13: =[5]Salidas_balance!CR13 -> 0 | GQ13: =[5]Salidas_balance!CS13 -> 0 | GR13: =[5]Salidas_balance!CT13 -> 0 | GS13: =[5]Salidas_balance!CU13 -> 0 | GT13: =[5]Salidas_balance!CV13 -> 0 | GV13: =[5]Salidas_balance!CX13 -> 0 | GW13: =[5]Salidas_balance!CY13 -> 0 | GX13: =[5]Salidas_balance!CZ13 -> 0 | GY13: =[5]Salidas_balance!DA13 -> 0 | GZ13: =[5]Salidas_balance!DB13 -> 0 | HA13: =[5]Salidas_balance!DC13 -> 0 | HB13: =[5]Salidas_balance!DD13 -> 0 | HC13: =[5]Salidas_balance!DE13 -> 0 | HD13: =[5]Salidas_balance!DF13 -> 0 | HE13: =[5]Salidas_balance!DG13 -> 0 | HG13: =[5]Salidas_balance!DI13 -> 8442.239385 | HH13: =[5]Salidas_balance!DJ13 -> 0 | HI13: =[5]Salidas_balance!DK13 -> 0 | HJ13: =[5]Salidas_balance!DL13 -> 0 | HK13: =[5]Salidas_balance!DM13 -> 0 | HL13: =[5]Salidas_balance!DN13 -> 0 | HM13: =[5]Salidas_balance!DO13 -> 0 | HN13: =[5]Salidas_balance!DP13 -> 0 | HO13: =[5]Salidas_balance!DQ13 -> 0 | HP13: =[5]Salidas_balance!DR13 -> 0 | HR13: =[5]Salidas_balance!DT13 -> 1769.239333 | HS13: =[5]Salidas_balance!DU13 -> 0 | HT13: =[5]Salidas_balance!DV13 -> 0 | HU13: =[5]Salidas_balance!DW13 -> 0 | HV13: =[5]Salidas_balance!DX13 -> 0 | HW13: =[5]Salidas_balance!DY13 -> 0 | HX13: =[5]Salidas_balance!DZ13 -> 0 | HY13: =[5]Salidas_balance!EA13 -> 0 | HZ13: =[5]Salidas_balance!EB13 -> 0 | IA13: =[5]Salidas_balance!EC13 -> 0 | IC13: =[5]Salidas_balance!EE13 -> 0 | ID13: =[5]Salidas_balance!EF13 -> 0 | IE13: =[5]Salidas_balance!EG13 -> 0 | IF13: =[5]Salidas_balance!EH13 -> 0 | IG13: =[5]Salidas_balance!EI13 -> 0 | IH13: =[5]Salidas_balance!EJ13 -> 0 | II13: =[5]Salidas_balance!EK13 -> 0 | IJ13: =[5]Salidas_balance!EL13 -> 0 | IK13: =[5]Salidas_balance!EM13 -> 0 | IL13: =[5]Salidas_balance!EN13 -> 0 | IN13: =[5]Salidas_balance!EP13 -> 0 | IO13: =[5]Salidas_balance!EQ13 -> 0 | IP13: =[5]Salidas_balance!ER13 -> 0 | IQ13: =[5]Salidas_balance!ES13 -> 0 | IR13: =[5]Salidas_balance!ET13 -> 0 | IS13: =[5]Salidas_balance!EU13 -> 0 | IT13: =[5]Salidas_balance!EV13 -> 0 | IU13: =[5]Salidas_balance!EW13 -> 0 | IV13: =[5]Salidas_balance!EX13 -> 0 | IW13: =[5]Salidas_balance!EY13 -> 0 | IY13: =[5]Salidas_balance!FA13 -> 23529.74342 | IZ13: =[5]Salidas_balance!FB13 -> 0 | JA13: =[5]Salidas_balance!FC13 -> 0 | JB13: =[5]Salidas_balance!FD13 -> 0 | JC13: =[5]Salidas_balance!FE13 -> 0 | JD13: =[5]Salidas_balance!FF13 -> 0 | JE13: =[5]Salidas_balance!FG13 -> 0 | JF13: =[5]Salidas_balance!FH13 -> 0 | JG13: =[5]Salidas_balance!FI13 -> 0 | JH13: =[5]Salidas_balance!FJ13 -> 0 | JJ13: =[5]Salidas_balance!FL13 -> 0 | JK13: =[5]Salidas_balance!FM13 -> 0 | JL13: =[5]Salidas_balance!FN13 -> 0 | JM13: =[5]Salidas_balance!FO13 -> 0 | JN13: =[5]Salidas_balance!FP13 -> 0 | JO13: =[5]Salidas_balance!FQ13 -> 0 | JP13: =[5]Salidas_balance!FR13 -> 0 | JQ13: =[5]Salidas_balance!FS13 -> 0 | JR13: =[5]Salidas_balance!FT13 -> 0 | JS13: =[5]Salidas_balance!FU13 -> 0 | JU13: =[5]Salidas_balance!FW13 -> 0 | JV13: =[5]Salidas_balance!FX13 -> 0 | JW13: =[5]Salidas_balance!FY13 -> 0 | JX13: =[5]Salidas_balance!FZ13 -> 0 | JY13: =[5]Salidas_balance!GA13 -> 0 | JZ13: =[5]Salidas_balance!GB13 -> 0 | KA13: =[5]Salidas_balance!GC13 -> 0 | KB13: =[5]Salidas_balance!GD13 -> 0 | KC13: =[5]Salidas_balance!GE13 -> 0 | KD13: =[5]Salidas_balance!GF13 -> 0 | KF13: =[5]Salidas_balance!GH13 -> 0 | KG13: =[5]Salidas_balance!GI13 -> 0 | KH13: =[5]Salidas_balance!GJ13 -> 0 | KI13: =[5]Salidas_balance!GK13 -> 0 | KJ13: =[5]Salidas_balance!GL13 -> 0 | KK13: =[5]Salidas_balance!GM13 -> 0 | KL13: =[5]Salidas_balance!GN13 -> 0 | KM13: =[5]Salidas_balance!GO13 -> 0 | KN13: =[5]Salidas_balance!GP13 -> 0 | KO13: =[5]Salidas_balance!GQ13 -> 0 | KQ13: =[5]Salidas_balance!GS13 -> 0 | KR13: =[5]Salidas_balance!GT13 -> 0 | KS13: =[5]Salidas_balance!GU13 -> 0 | KT13: =[5]Salidas_balance!GV13 -> 0 | KU13: =[5]Salidas_balance!GW13 -> 0 | KV13: =[5]Salidas_balance!GX13 -> 0 | KW13: =[5]Salidas_balance!GY13 -> 0 | KX13: =[5]Salidas_balance!GZ13 -> 0 | KY13: =[5]Salidas_balance!HA13 -> 0 | KZ13: =[5]Salidas_balance!HB13 -> 0 | LB13: =[5]Salidas_balance!HD13 -> 0 | LC13: =[5]Salidas_balance!HE13 -> 0 | LD13: =[5]Salidas_balance!HF13 -> 0 | LE13: =[5]Salidas_balance!HG13 -> 0 | LF13: =[5]Salidas_balance!HH13 -> 0 | LG13: =[5]Salidas_balance!HI13 -> 0 | LH13: =[5]Salidas_balance!HJ13 -> 0 | LI13: =[5]Salidas_balance!HK13 -> 0 | LJ13: =[5]Salidas_balance!HL13 -> 0 | LK13: =[5]Salidas_balance!HM13 -> 0 | LM13: Domingo | LN13: 01:30:00
B14: Domingo | C14: 01:45:00 | D14: V | E14: 277683.5014 | F14: 353324.1222 | G14: 415083.5325 | H14: 175164.1769 | I14: 21012.60048 | J14: 33636.12938 | K14: 815.3063458 | L14: 8.360845724e-06 | AB14: =IF(AND($C14>INPUTS!$E$27,$C14<INPUTS!$E$26),0,INPUTS!$E$25/7/(24*(1-INPUTS!$E$26+INPUTS!$E$27))) -> 18796.35132 | AC14: ='Cálculo de Pérdidas'!S16 -> 22938.67747 | AD14: ='Cálculo de Pérdidas'!O16 -> 5320.259527 | AE14: 277683.5014 | AL14: 49566.07418 | AM14: 14015.39819 | AN14: 5.620793865e-06 | AZ14: ='Cálculo de Pérdidas'!P16 -> 12059.14843 | BA14: 353324.1222 | BL14: 8373.840283 | BM14: 27167.85736 | BP14: 23638.65049 | BV14: ='Cálculo de Pérdidas'!Q16 -> 2579.062109 | BW14: 415083.5325 | BY14: 196176.7774 | CA14: 34451.43573 | CC14: 175164.1769 | CD14: 21012.60048 | CE14: 33636.12938 | CF14: 815.3063458 | CG14: 8.360845724e-06 | CH14: 0 | CI14: 49566.07418 | CJ14: 14015.39819 | CK14: 5.620793865e-06 | CL14: 0 | CM14: 8373.840283 | CN14: 27167.85736 | CO14: 0 | CP14: 0 | CQ14: 23638.65049 | CR14: 0 | CS14: 0 | CT14: 0 | CU14: 0 | CV14: 0 | DA14: =[5]Salidas_balance!C14 -> 0.058490625 | DB14: =[5]Salidas_balance!D14 -> 0.153021519 | DC14: =[5]Salidas_balance!E14 -> 0.3561382353 | DD14: =[5]Salidas_balance!F14 -> 0.415796 | DE14: =[5]Salidas_balance!G14 -> 0.8990857143 | DF14: =[5]Salidas_balance!H14 -> 1.91398125 | DG14: =[5]Salidas_balance!I14 -> 4.119138462 | DH14: =[5]Salidas_balance!J14 -> 8.360941667 | DI14: =[5]Salidas_balance!K14 -> 14.14533636 | DJ14: =[5]Salidas_balance!L14 -> 0 | DL14: =[5]Salidas_balance!N14 -> 0.1207354167 | DM14: =[5]Salidas_balance!O14 -> 0.3574738095 | DN14: =[5]Salidas_balance!P14 -> 0.59892 | DO14: =[5]Salidas_balance!Q14 -> 0.6740619048 | DP14: =[5]Salidas_balance!R14 -> 1.097486667 | DQ14: =[5]Salidas_balance!S14 -> 2.7654875 | DR14: =[5]Salidas_balance!T14 -> 2.459644444 | DS14: =[5]Salidas_balance!U14 -> 8.149777778 | DT14: =[5]Salidas_balance!V14 -> 27.490125 | DU14: =[5]Salidas_balance!W14 -> 0 | DW14: =[5]Salidas_balance!Y14 -> 2.217196875 | DX14: =[5]Salidas_balance!Z14 -> 2.601858824 | DY14: =[5]Salidas_balance!AA14 -> 4.597514286 | DZ14: =[5]Salidas_balance!AB14 -> 7.307723077 | EA14: =[5]Salidas_balance!AC14 -> 14.19733998 | EB14: =[5]Salidas_balance!AD14 -> 26.20206905 | EC14: =[5]Salidas_balance!AE14 -> 33.76 | ED14: =[5]Salidas_balance!AF14 -> 25.19666667 | EE14: =[5]Salidas_balance!AG14 -> 249.0958182 | EF14: =[5]Salidas_balance!AH14 -> 0 | EH14: =[5]Salidas_balance!AJ14 -> 10.76514394 | EI14: =[5]Salidas_balance!AK14 -> 0 | EJ14: =[5]Salidas_balance!AL14 -> 0 | EK14: =[5]Salidas_balance!AM14 -> 0 | EL14: =[5]Salidas_balance!AN14 -> 0 | EM14: =[5]Salidas_balance!AO14 -> 0 | EN14: =[5]Salidas_balance!AP14 -> 0 | EO14: =[5]Salidas_balance!AQ14 -> 0 | EP14: =[5]Salidas_balance!AR14 -> 0 | EQ14: =[5]Salidas_balance!AS14 -> 0 | ES14: =[5]Salidas_balance!AU14 -> 31.26937931 | ET14: =[5]Salidas_balance!AV14 -> 0 | EU14: =[5]Salidas_balance!AW14 -> 0 | EV14: =[5]Salidas_balance!AX14 -> 0 | EW14: =[5]Salidas_balance!AY14 -> 0 | EX14: =[5]Salidas_balance!AZ14 -> 0 | EY14: =[5]Salidas_balance!BA14 -> 0 | EZ14: =[5]Salidas_balance!BB14 -> 0 | FA14: =[5]Salidas_balance!BC14 -> 0 | FB14: =[5]Salidas_balance!BD14 -> 0 | FD14: =[5]Salidas_balance!BF14 -> 0 | FE14: =[5]Salidas_balance!BG14 -> 0 | FF14: =[5]Salidas_balance!BH14 -> 0 | FG14: =[5]Salidas_balance!BI14 -> 0 | FH14: =[5]Salidas_balance!BJ14 -> 0 | FI14: =[5]Salidas_balance!BK14 -> 0 | FJ14: =[5]Salidas_balance!BL14 -> 0 | FK14: =[5]Salidas_balance!BM14 -> 0 | FL14: =[5]Salidas_balance!BN14 -> 0 | FM14: =[5]Salidas_balance!BO14 -> 0 | FO14: =[5]Salidas_balance!BQ14 -> 4.092598095 | FP14: =[5]Salidas_balance!BR14 -> 20.02 | FQ14: =[5]Salidas_balance!BS14 -> 38.8165 | FR14: =[5]Salidas_balance!BT14 -> 40.10813333 | FS14: =[5]Salidas_balance!BU14 -> 119.001 | FT14: =[5]Salidas_balance!BV14 -> 70.67666667 | FU14: =[5]Salidas_balance!BW14 -> 188.315 | FV14: =[5]Salidas_balance!BX14 -> 344.568 | FW14: =[5]Salidas_balance!BY14 -> 1052.343929 | FX14: =[5]Salidas_balance!BZ14 -> 0 | FZ14: =[5]Salidas_balance!CB14 -> 215.0364095 | GA14: =[5]Salidas_balance!CC14 -> 0 | GB14: =[5]Salidas_balance!CD14 -> 0 | GC14: =[5]Salidas_balance!CE14 -> 0 | GD14: =[5]Salidas_balance!CF14 -> 0 | GE14: =[5]Salidas_balance!CG14 -> 0 | GF14: =[5]Salidas_balance!CH14 -> 0 | GG14: =[5]Salidas_balance!CI14 -> 0 | GH14: =[5]Salidas_balance!CJ14 -> 0 | GI14: =[5]Salidas_balance!CK14 -> 0 | GK14: =[5]Salidas_balance!CM14 -> 43.86738462 | GL14: =[5]Salidas_balance!CN14 -> 0 | GM14: =[5]Salidas_balance!CO14 -> 0 | GN14: =[5]Salidas_balance!CP14 -> 0 | GO14: =[5]Salidas_balance!CQ14 -> 0 | GP14: =[5]Salidas_balance!CR14 -> 0 | GQ14: =[5]Salidas_balance!CS14 -> 0 | GR14: =[5]Salidas_balance!CT14 -> 0 | GS14: =[5]Salidas_balance!CU14 -> 0 | GT14: =[5]Salidas_balance!CV14 -> 0 | GV14: =[5]Salidas_balance!CX14 -> 0 | GW14: =[5]Salidas_balance!CY14 -> 0 | GX14: =[5]Salidas_balance!CZ14 -> 0 | GY14: =[5]Salidas_balance!DA14 -> 0 | GZ14: =[5]Salidas_balance!DB14 -> 0 | HA14: =[5]Salidas_balance!DC14 -> 0 | HB14: =[5]Salidas_balance!DD14 -> 0 | HC14: =[5]Salidas_balance!DE14 -> 0 | HD14: =[5]Salidas_balance!DF14 -> 0 | HE14: =[5]Salidas_balance!DG14 -> 0 | HG14: =[5]Salidas_balance!DI14 -> 8595.765615 | HH14: =[5]Salidas_balance!DJ14 -> 0 | HI14: =[5]Salidas_balance!DK14 -> 0 | HJ14: =[5]Salidas_balance!DL14 -> 0 | HK14: =[5]Salidas_balance!DM14 -> 0 | HL14: =[5]Salidas_balance!DN14 -> 0 | HM14: =[5]Salidas_balance!DO14 -> 0 | HN14: =[5]Salidas_balance!DP14 -> 0 | HO14: =[5]Salidas_balance!DQ14 -> 0 | HP14: =[5]Salidas_balance!DR14 -> 0 | HR14: =[5]Salidas_balance!DT14 -> 1759.281333 | HS14: =[5]Salidas_balance!DU14 -> 0 | HT14: =[5]Salidas_balance!DV14 -> 0 | HU14: =[5]Salidas_balance!DW14 -> 0 | HV14: =[5]Salidas_balance!DX14 -> 0 | HW14: =[5]Salidas_balance!DY14 -> 0 | HX14: =[5]Salidas_balance!DZ14 -> 0 | HY14: =[5]Salidas_balance!EA14 -> 0 | HZ14: =[5]Salidas_balance!EB14 -> 0 | IA14: =[5]Salidas_balance!EC14 -> 0 | IC14: =[5]Salidas_balance!EE14 -> 0 | ID14: =[5]Salidas_balance!EF14 -> 0 | IE14: =[5]Salidas_balance!EG14 -> 0 | IF14: =[5]Salidas_balance!EH14 -> 0 | IG14: =[5]Salidas_balance!EI14 -> 0 | IH14: =[5]Salidas_balance!EJ14 -> 0 | II14: =[5]Salidas_balance!EK14 -> 0 | IJ14: =[5]Salidas_balance!EL14 -> 0 | IK14: =[5]Salidas_balance!EM14 -> 0 | IL14: =[5]Salidas_balance!EN14 -> 0 | IN14: =[5]Salidas_balance!EP14 -> 0 | IO14: =[5]Salidas_balance!EQ14 -> 0 | IP14: =[5]Salidas_balance!ER14 -> 0 | IQ14: =[5]Salidas_balance!ES14 -> 0 | IR14: =[5]Salidas_balance!ET14 -> 0 | IS14: =[5]Salidas_balance!EU14 -> 0 | IT14: =[5]Salidas_balance!EV14 -> 0 | IU14: =[5]Salidas_balance!EW14 -> 0 | IV14: =[5]Salidas_balance!EX14 -> 0 | IW14: =[5]Salidas_balance!EY14 -> 0 | IY14: =[5]Salidas_balance!FA14 -> 23533.8785 | IZ14: =[5]Salidas_balance!FB14 -> 0 | JA14: =[5]Salidas_balance!FC14 -> 0 | JB14: =[5]Salidas_balance!FD14 -> 0 | JC14: =[5]Salidas_balance!FE14 -> 0 | JD14: =[5]Salidas_balance!FF14 -> 0 | JE14: =[5]Salidas_balance!FG14 -> 0 | JF14: =[5]Salidas_balance!FH14 -> 0 | JG14: =[5]Salidas_balance!FI14 -> 0 | JH14: =[5]Salidas_balance!FJ14 -> 0 | JJ14: =[5]Salidas_balance!FL14 -> 0 | JK14: =[5]Salidas_balance!FM14 -> 0 | JL14: =[5]Salidas_balance!FN14 -> 0 | JM14: =[5]Salidas_balance!FO14 -> 0 | JN14: =[5]Salidas_balance!FP14 -> 0 | JO14: =[5]Salidas_balance!FQ14 -> 0 | JP14: =[5]Salidas_balance!FR14 -> 0 | JQ14: =[5]Salidas_balance!FS14 -> 0 | JR14: =[5]Salidas_balance!FT14 -> 0 | JS14: =[5]Salidas_balance!FU14 -> 0 | JU14: =[5]Salidas_balance!FW14 -> 0 | JV14: =[5]Salidas_balance!FX14 -> 0 | JW14: =[5]Salidas_balance!FY14 -> 0 | JX14: =[5]Salidas_balance!FZ14 -> 0 | JY14: =[5]Salidas_balance!GA14 -> 0 | JZ14: =[5]Salidas_balance!GB14 -> 0 | KA14: =[5]Salidas_balance!GC14 -> 0 | KB14: =[5]Salidas_balance!GD14 -> 0 | KC14: =[5]Salidas_balance!GE14 -> 0 | KD14: =[5]Salidas_balance!GF14 -> 0 | KF14: =[5]Salidas_balance!GH14 -> 0 | KG14: =[5]Salidas_balance!GI14 -> 0 | KH14: =[5]Salidas_balance!GJ14 -> 0 | KI14: =[5]Salidas_balance!GK14 -> 0 | KJ14: =[5]Salidas_balance!GL14 -> 0 | KK14: =[5]Salidas_balance!GM14 -> 0 | KL14: =[5]Salidas_balance!GN14 -> 0 | KM14: =[5]Salidas_balance!GO14 -> 0 | KN14: =[5]Salidas_balance!GP14 -> 0 | KO14: =[5]Salidas_balance!GQ14 -> 0 | KQ14: =[5]Salidas_balance!GS14 -> 0 | KR14: =[5]Salidas_balance!GT14 -> 0 | KS14: =[5]Salidas_balance!GU14 -> 0 | KT14: =[5]Salidas_balance!GV14 -> 0 | KU14: =[5]Salidas_balance!GW14 -> 0 | KV14: =[5]Salidas_balance!GX14 -> 0 | KW14: =[5]Salidas_balance!GY14 -> 0 | KX14: =[5]Salidas_balance!GZ14 -> 0 | KY14: =[5]Salidas_balance!HA14 -> 0 | KZ14: =[5]Salidas_balance!HB14 -> 0 | LB14: =[5]Salidas_balance!HD14 -> 0 | LC14: =[5]Salidas_balance!HE14 -> 0 | LD14: =[5]Salidas_balance!HF14 -> 0 | LE14: =[5]Salidas_balance!HG14 -> 0 | LF14: =[5]Salidas_balance!HH14 -> 0 | LG14: =[5]Salidas_balance!HI14 -> 0 | LH14: =[5]Salidas_balance!HJ14 -> 0 | LI14: =[5]Salidas_balance!HK14 -> 0 | LJ14: =[5]Salidas_balance!HL14 -> 0 | LK14: =[5]Salidas_balance!HM14 -> 0 | LM14: Domingo | LN14: 01:45:00
B15: Domingo | C15: 02:00:00 | D15: V | E15: 278532.5036 | F15: 354900.0189 | G15: 416538.6476 | H15: 176155.7675 | I15: 20906.95901 | J15: 33344.94888 | K15: 784.9897805 | L15: 8.104583846e-06 | AB15: =IF(AND($C15>INPUTS!$E$27,$C15<INPUTS!$E$26),0,INPUTS!$E$25/7/(24*(1-INPUTS!$E$26+INPUTS!$E$27))) -> 18796.35132 | AC15: ='Cálculo de Pérdidas'!S17 -> 23199.12066 | AD15: ='Cálculo de Pérdidas'!O17 -> 5344.366451 | AE15: 278532.5036 | AL15: 50148.3274 | AM15: 14055.80784 | AN15: 5.665777878e-06 | AZ15: ='Cálculo de Pérdidas'!P17 -> 12163.38001 | BA15: 354900.0189 | BL15: 8430.372983 | BM15: 27142.9639 | BP15: 23468.22815 | BV15: ='Cálculo de Pérdidas'!Q17 -> 2597.063667 | BW15: 416538.6476 | BY15: 197062.7265 | CA15: 34129.93866 | CC15: 176155.7675 | CD15: 20906.95901 | CE15: 33344.94888 | CF15: 784.9897805 | CG15: 8.104583846e-06 | CH15: 0 | CI15: 50148.3274 | CJ15: 14055.80784 | CK15: 5.665777878e-06 | CL15: 0 | CM15: 8430.372983 | CN15: 27142.9639 | CO15: 0 | CP15: 0 | CQ15: 23468.22815 | CR15: 0 | CS15: 0 | CT15: 0 | CU15: 0 | CV15: 0 | DA15: =[5]Salidas_balance!C15 -> 0.058084375 | DB15: =[5]Salidas_balance!D15 -> 0.1520708861 | DC15: =[5]Salidas_balance!E15 -> 0.3503352941 | DD15: =[5]Salidas_balance!F15 -> 0.446652 | DE15: =[5]Salidas_balance!G15 -> 0.8842428571 | DF15: =[5]Salidas_balance!H15 -> 1.9394625 | DG15: =[5]Salidas_balance!I15 -> 3.955484615 | DH15: =[5]Salidas_balance!J15 -> 8.328791667 | DI15: =[5]Salidas_balance!K15 -> 13.88057273 | DJ15: =[5]Salidas_balance!L15 -> 0 | DL15: =[5]Salidas_balance!N15 -> 0.125275 | DM15: =[5]Salidas_balance!O15 -> 0.3381119048 | DN15: =[5]Salidas_balance!P15 -> 0.5973333333 | DO15: =[5]Salidas_balance!Q15 -> 0.662247619 | DP15: =[5]Salidas_balance!R15 -> 1.0894 | DQ15: =[5]Salidas_balance!S15 -> 2.7391625 | DR15: =[5]Salidas_balance!T15 -> 2.435955556 | DS15: =[5]Salidas_balance!U15 -> 8.386594444 | DT15: =[5]Salidas_balance!V15 -> 31.419 | DU15: =[5]Salidas_balance!W15 -> 0 | DW15: =[5]Salidas_balance!Y15 -> 2.194959375 | DX15: =[5]Salidas_balance!Z15 -> 2.614617647 | DY15: =[5]Salidas_balance!AA15 -> 4.523371429 | DZ15: =[5]Salidas_balance!AB15 -> 7.330815385 | EA15: =[5]Salidas_balance!AC15 -> 14.03247333 | EB15: =[5]Salidas_balance!AD15 -> 26.28663154 | EC15: =[5]Salidas_balance!AE15 -> 33.232 | ED15: =[5]Salidas_balance!AF15 -> 26.186 | EE15: =[5]Salidas_balance!AG15 -> 228.4907273 | EF15: =[5]Salidas_balance!AH15 -> 0 | EH15: =[5]Salidas_balance!AJ15 -> 10.36485 | EI15: =[5]Salidas_balance!AK15 -> 0 | EJ15: =[5]Salidas_balance!AL15 -> 0 | EK15: =[5]Salidas_balance!AM15 -> 0 | EL15: =[5]Salidas_balance!AN15 -> 0 | EM15: =[5]Salidas_balance!AO15 -> 0 | EN15: =[5]Salidas_balance!AP15 -> 0 | EO15: =[5]Salidas_balance!AQ15 -> 0 | EP15: =[5]Salidas_balance!AR15 -> 0 | EQ15: =[5]Salidas_balance!AS15 -> 0 | ES15: =[5]Salidas_balance!AU15 -> 30.31096552 | ET15: =[5]Salidas_balance!AV15 -> 0 | EU15: =[5]Salidas_balance!AW15 -> 0 | EV15: =[5]Salidas_balance!AX15 -> 0 | EW15: =[5]Salidas_balance!AY15 -> 0 | EX15: =[5]Salidas_balance!AZ15 -> 0 | EY15: =[5]Salidas_balance!BA15 -> 0 | EZ15: =[5]Salidas_balance!BB15 -> 0 | FA15: =[5]Salidas_balance!BC15 -> 0 | FB15: =[5]Salidas_balance!BD15 -> 0 | FD15: =[5]Salidas_balance!BF15 -> 0 | FE15: =[5]Salidas_balance!BG15 -> 0 | FF15: =[5]Salidas_balance!BH15 -> 0 | FG15: =[5]Salidas_balance!BI15 -> 0 | FH15: =[5]Salidas_balance!BJ15 -> 0 | FI15: =[5]Salidas_balance!BK15 -> 0 | FJ15: =[5]Salidas_balance!BL15 -> 0 | FK15: =[5]Salidas_balance!BM15 -> 0 | FL15: =[5]Salidas_balance!BN15 -> 0 | FM15: =[5]Salidas_balance!BO15 -> 0 | FO15: =[5]Salidas_balance!BQ15 -> 4.070647619 | FP15: =[5]Salidas_balance!BR15 -> 20.00172222 | FQ15: =[5]Salidas_balance!BS15 -> 39.8875 | FR15: =[5]Salidas_balance!BT15 -> 40.7246 | FS15: =[5]Salidas_balance!BU15 -> 119.644 | FT15: =[5]Salidas_balance!BV15 -> 74.557 | FU15: =[5]Salidas_balance!BW15 -> 188.538 | FV15: =[5]Salidas_balance!BX15 -> 347.767 | FW15: =[5]Salidas_balance!BY15 -> 1063.486786 | FX15: =[5]Salidas_balance!BZ15 -> 0 | FZ15: =[5]Salidas_balance!CB15 -> 215.6564095 | GA15: =[5]Salidas_balance!CC15 -> 0 | GB15: =[5]Salidas_balance!CD15 -> 0 | GC15: =[5]Salidas_balance!CE15 -> 0 | GD15: =[5]Salidas_balance!CF15 -> 0 | GE15: =[5]Salidas_balance!CG15 -> 0 | GF15: =[5]Salidas_balance!CH15 -> 0 | GG15: =[5]Salidas_balance!CI15 -> 0 | GH15: =[5]Salidas_balance!CJ15 -> 0 | GI15: =[5]Salidas_balance!CK15 -> 0 | GK15: =[5]Salidas_balance!CM15 -> 44.21846154 | GL15: =[5]Salidas_balance!CN15 -> 0 | GM15: =[5]Salidas_balance!CO15 -> 0 | GN15: =[5]Salidas_balance!CP15 -> 0 | GO15: =[5]Salidas_balance!CQ15 -> 0 | GP15: =[5]Salidas_balance!CR15 -> 0 | GQ15: =[5]Salidas_balance!CS15 -> 0 | GR15: =[5]Salidas_balance!CT15 -> 0 | GS15: =[5]Salidas_balance!CU15 -> 0 | GT15: =[5]Salidas_balance!CV15 -> 0 | GV15: =[5]Salidas_balance!CX15 -> 0 | GW15: =[5]Salidas_balance!CY15 -> 0 | GX15: =[5]Salidas_balance!CZ15 -> 0 | GY15: =[5]Salidas_balance!DA15 -> 0 | GZ15: =[5]Salidas_balance!DB15 -> 0 | HA15: =[5]Salidas_balance!DC15 -> 0 | HB15: =[5]Salidas_balance!DD15 -> 0 | HC15: =[5]Salidas_balance!DE15 -> 0 | HD15: =[5]Salidas_balance!DF15 -> 0 | HE15: =[5]Salidas_balance!DG15 -> 0 | HG15: =[5]Salidas_balance!DI15 -> 8653.796558 | HH15: =[5]Salidas_balance!DJ15 -> 0 | HI15: =[5]Salidas_balance!DK15 -> 0 | HJ15: =[5]Salidas_balance!DL15 -> 0 | HK15: =[5]Salidas_balance!DM15 -> 0 | HL15: =[5]Salidas_balance!DN15 -> 0 | HM15: =[5]Salidas_balance!DO15 -> 0 | HN15: =[5]Salidas_balance!DP15 -> 0 | HO15: =[5]Salidas_balance!DQ15 -> 0 | HP15: =[5]Salidas_balance!DR15 -> 0 | HR15: =[5]Salidas_balance!DT15 -> 1757.669333 | HS15: =[5]Salidas_balance!DU15 -> 0 | HT15: =[5]Salidas_balance!DV15 -> 0 | HU15: =[5]Salidas_balance!DW15 -> 0 | HV15: =[5]Salidas_balance!DX15 -> 0 | HW15: =[5]Salidas_balance!DY15 -> 0 | HX15: =[5]Salidas_balance!DZ15 -> 0 | HY15: =[5]Salidas_balance!EA15 -> 0 | HZ15: =[5]Salidas_balance!EB15 -> 0 | IA15: =[5]Salidas_balance!EC15 -> 0 | IC15: =[5]Salidas_balance!EE15 -> 0 | ID15: =[5]Salidas_balance!EF15 -> 0 | IE15: =[5]Salidas_balance!EG15 -> 0 | IF15: =[5]Salidas_balance!EH15 -> 0 | IG15: =[5]Salidas_balance!EI15 -> 0 | IH15: =[5]Salidas_balance!EJ15 -> 0 | II15: =[5]Salidas_balance!EK15 -> 0 | IJ15: =[5]Salidas_balance!EL15 -> 0 | IK15: =[5]Salidas_balance!EM15 -> 0 | IL15: =[5]Salidas_balance!EN15 -> 0 | IN15: =[5]Salidas_balance!EP15 -> 0 | IO15: =[5]Salidas_balance!EQ15 -> 0 | IP15: =[5]Salidas_balance!ER15 -> 0 | IQ15: =[5]Salidas_balance!ES15 -> 0 | IR15: =[5]Salidas_balance!ET15 -> 0 | IS15: =[5]Salidas_balance!EU15 -> 0 | IT15: =[5]Salidas_balance!EV15 -> 0 | IU15: =[5]Salidas_balance!EW15 -> 0 | IV15: =[5]Salidas_balance!EX15 -> 0 | IW15: =[5]Salidas_balance!EY15 -> 0 | IY15: =[5]Salidas_balance!FA15 -> 23364.21152 | IZ15: =[5]Salidas_balance!FB15 -> 0 | JA15: =[5]Salidas_balance!FC15 -> 0 | JB15: =[5]Salidas_balance!FD15 -> 0 | JC15: =[5]Salidas_balance!FE15 -> 0 | JD15: =[5]Salidas_balance!FF15 -> 0 | JE15: =[5]Salidas_balance!FG15 -> 0 | JF15: =[5]Salidas_balance!FH15 -> 0 | JG15: =[5]Salidas_balance!FI15 -> 0 | JH15: =[5]Salidas_balance!FJ15 -> 0 | JJ15: =[5]Salidas_balance!FL15 -> 0 | JK15: =[5]Salidas_balance!FM15 -> 0 | JL15: =[5]Salidas_balance!FN15 -> 0 | JM15: =[5]Salidas_balance!FO15 -> 0 | JN15: =[5]Salidas_balance!FP15 -> 0 | JO15: =[5]Salidas_balance!FQ15 -> 0 | JP15: =[5]Salidas_balance!FR15 -> 0 | JQ15: =[5]Salidas_balance!FS15 -> 0 | JR15: =[5]Salidas_balance!FT15 -> 0 | JS15: =[5]Salidas_balance!FU15 -> 0 | JU15: =[5]Salidas_balance!FW15 -> 0 | JV15: =[5]Salidas_balance!FX15 -> 0 | JW15: =[5]Salidas_balance!FY15 -> 0 | JX15: =[5]Salidas_balance!FZ15 -> 0 | JY15: =[5]Salidas_balance!GA15 -> 0 | JZ15: =[5]Salidas_balance!GB15 -> 0 | KA15: =[5]Salidas_balance!GC15 -> 0 | KB15: =[5]Salidas_balance!GD15 -> 0 | KC15: =[5]Salidas_balance!GE15 -> 0 | KD15: =[5]Salidas_balance!GF15 -> 0 | KF15: =[5]Salidas_balance!GH15 -> 0 | KG15: =[5]Salidas_balance!GI15 -> 0 | KH15: =[5]Salidas_balance!GJ15 -> 0 | KI15: =[5]Salidas_balance!GK15 -> 0 | KJ15: =[5]Salidas_balance!GL15 -> 0 | KK15: =[5]Salidas_balance!GM15 -> 0 | KL15: =[5]Salidas_balance!GN15 -> 0 | KM15: =[5]Salidas_balance!GO15 -> 0 | KN15: =[5]Salidas_balance!GP15 -> 0 | KO15: =[5]Salidas_balance!GQ15 -> 0 | KQ15: =[5]Salidas_balance!GS15 -> 0 | KR15: =[5]Salidas_balance!GT15 -> 0 | KS15: =[5]Salidas_balance!GU15 -> 0 | KT15: =[5]Salidas_balance!GV15 -> 0 | KU15: =[5]Salidas_balance!GW15 -> 0 | KV15: =[5]Salidas_balance!GX15 -> 0 | KW15: =[5]Salidas_balance!GY15 -> 0 | KX15: =[5]Salidas_balance!GZ15 -> 0 | KY15: =[5]Salidas_balance!HA15 -> 0 | KZ15: =[5]Salidas_balance!HB15 -> 0 | LB15: =[5]Salidas_balance!HD15 -> 0 | LC15: =[5]Salidas_balance!HE15 -> 0 | LD15: =[5]Salidas_balance!HF15 -> 0 | LE15: =[5]Salidas_balance!HG15 -> 0 | LF15: =[5]Salidas_balance!HH15 -> 0 | LG15: =[5]Salidas_balance!HI15 -> 0 | LH15: =[5]Salidas_balance!HJ15 -> 0 | LI15: =[5]Salidas_balance!HK15 -> 0 | LJ15: =[5]Salidas_balance!HL15 -> 0 | LK15: =[5]Salidas_balance!HM15 -> 0 | LM15: Domingo | LN15: 02:00:00
B16: Domingo | C16: 02:15:00 | D16: V | E16: 273126.8031 | F16: 348942.9395 | G16: 410194.7499 | H16: 171603.3844 | I16: 21017.43989 | J16: 33744.74249 | K16: 776.7482382 | L16: 8.206575963e-06 | AB16: =IF(AND($C16>INPUTS!$E$27,$C16<INPUTS!$E$26),0,INPUTS!$E$25/7/(24*(1-INPUTS!$E$26+INPUTS!$E$27))) -> 18796.35132 | AC16: ='Cálculo de Pérdidas'!S18 -> 22015.54736 | AD16: ='Cálculo de Pérdidas'!O18 -> 5172.58934 | AE16: 273126.8031 | AL16: 50093.22024 | AM16: 13951.34113 | AN16: 5.71428058e-06 | AZ16: ='Cálculo de Pérdidas'!P18 -> 11771.57504 | BA16: 348942.9395 | BL16: 8326.143956 | BM16: 27085.18803 | BP16: 23321.44361 | BV16: ='Cálculo de Pérdidas'!Q18 -> 2519.034789 | BW16: 410194.7499 | BY16: 192620.8243 | CA16: 34521.49072 | CC16: 171603.3844 | CD16: 21017.43989 | CE16: 33744.74249 | CF16: 776.7482382 | CG16: 8.206575963e-06 | CH16: 0 | CI16: 50093.22024 | CJ16: 13951.34113 | CK16: 5.71428058e-06 | CL16: 0 | CM16: 8326.143956 | CN16: 27085.18803 | CO16: 0 | CP16: 0 | CQ16: 23321.44361 | CR16: 0 | CS16: 0 | CT16: 0 | CU16: 0 | CV16: 0 | DA16: =[5]Salidas_balance!C16 -> 0.062453125 | DB16: =[5]Salidas_balance!D16 -> 0.1501632911 | DC16: =[5]Salidas_balance!E16 -> 0.3540441176 | DD16: =[5]Salidas_balance!F16 -> 0.405012 | DE16: =[5]Salidas_balance!G16 -> 0.8653857143 | DF16: =[5]Salidas_balance!H16 -> 1.91684375 | DG16: =[5]Salidas_balance!I16 -> 3.796684615 | DH16: =[5]Salidas_balance!J16 -> 8.250875 | DI16: =[5]Salidas_balance!K16 -> 13.4549 | DJ16: =[5]Salidas_balance!L16 -> 0 | DL16: =[5]Salidas_balance!N16 -> 0.11149375 | DM16: =[5]Salidas_balance!O16 -> 0.3555380952 | DN16: =[5]Salidas_balance!P16 -> 0.5771466667 | DO16: =[5]Salidas_balance!Q16 -> 0.6701952381 | DP16: =[5]Salidas_balance!R16 -> 1.118713333 | DQ16: =[5]Salidas_balance!S16 -> 2.8042125 | DR16: =[5]Salidas_balance!T16 -> 2.350422222 | DS16: =[5]Salidas_balance!U16 -> 8.537033333 | DT16: =[5]Salidas_balance!V16 -> 28.14525 | DU16: =[5]Salidas_balance!W16 -> 0 | DW16: =[5]Salidas_balance!Y16 -> 2.13058125 | DX16: =[5]Salidas_balance!Z16 -> 2.657141176 | DY16: =[5]Salidas_balance!AA16 -> 4.478066667 | DZ16: =[5]Salidas_balance!AB16 -> 7.305538462 | EA16: =[5]Salidas_balance!AC16 -> 13.63976667 | EB16: =[5]Salidas_balance!AD16 -> 28.16983142 | EC16: =[5]Salidas_balance!AE16 -> 33.098 | ED16: =[5]Salidas_balance!AF16 -> 24.73333333 | EE16: =[5]Salidas_balance!AG16 -> 261.3814545 | EF16: =[5]Salidas_balance!AH16 -> 0 | EH16: =[5]Salidas_balance!AJ16 -> 10.2560303 | EI16: =[5]Salidas_balance!AK16 -> 0 | EJ16: =[5]Salidas_balance!AL16 -> 0 | EK16: =[5]Salidas_balance!AM16 -> 0 | EL16: =[5]Salidas_balance!AN16 -> 0 | EM16: =[5]Salidas_balance!AO16 -> 0 | EN16: =[5]Salidas_balance!AP16 -> 0 | EO16: =[5]Salidas_balance!AQ16 -> 0 | EP16: =[5]Salidas_balance!AR16 -> 0 | EQ16: =[5]Salidas_balance!AS16 -> 0 | ES16: =[5]Salidas_balance!AU16 -> 30.69241379 | ET16: =[5]Salidas_balance!AV16 -> 0 | EU16: =[5]Salidas_balance!AW16 -> 0 | EV16: =[5]Salidas_balance!AX16 -> 0 | EW16: =[5]Salidas_balance!AY16 -> 0 | EX16: =[5]Salidas_balance!AZ16 -> 0 | EY16: =[5]Salidas_balance!BA16 -> 0 | EZ16: =[5]Salidas_balance!BB16 -> 0 | FA16: =[5]Salidas_balance!BC16 -> 0 | FB16: =[5]Salidas_balance!BD16 -> 0 | FD16: =[5]Salidas_balance!BF16 -> 0 | FE16: =[5]Salidas_balance!BG16 -> 0 | FF16: =[5]Salidas_balance!BH16 -> 0 | FG16: =[5]Salidas_balance!BI16 -> 0 | FH16: =[5]Salidas_balance!BJ16 -> 0 | FI16: =[5]Salidas_balance!BK16 -> 0 | FJ16: =[5]Salidas_balance!BL16 -> 0 | FK16: =[5]Salidas_balance!BM16 -> 0 | FL16: =[5]Salidas_balance!BN16 -> 0 | FM16: =[5]Salidas_balance!BO16 -> 0 | FO16: =[5]Salidas_balance!BQ16 -> 4.132109524 | FP16: =[5]Salidas_balance!BR16 -> 20.286 | FQ16: =[5]Salidas_balance!BS16 -> 39.029 | FR16: =[5]Salidas_balance!BT16 -> 39.8216 | FS16: =[5]Salidas_balance!BU16 -> 119.367 | FT16: =[5]Salidas_balance!BV16 -> 75.27411111 | FU16: =[5]Salidas_balance!BW16 -> 186.11 | FV16: =[5]Salidas_balance!BX16 -> 355.287 | FW16: =[5]Salidas_balance!BY16 -> 1055.6425 | FX16: =[5]Salidas_balance!BZ16 -> 0 | FZ16: =[5]Salidas_balance!CB16 -> 214.0535905 | GA16: =[5]Salidas_balance!CC16 -> 0 | GB16: =[5]Salidas_balance!CD16 -> 0 | GC16: =[5]Salidas_balance!CE16 -> 0 | GD16: =[5]Salidas_balance!CF16 -> 0 | GE16: =[5]Salidas_balance!CG16 -> 0 | GF16: =[5]Salidas_balance!CH16 -> 0 | GG16: =[5]Salidas_balance!CI16 -> 0 | GH16: =[5]Salidas_balance!CJ16 -> 0 | GI16: =[5]Salidas_balance!CK16 -> 0 | GK16: =[5]Salidas_balance!CM16 -> 44.597 | GL16: =[5]Salidas_balance!CN16 -> 0 | GM16: =[5]Salidas_balance!CO16 -> 0 | GN16: =[5]Salidas_balance!CP16 -> 0 | GO16: =[5]Salidas_balance!CQ16 -> 0 | GP16: =[5]Salidas_balance!CR16 -> 0 | GQ16: =[5]Salidas_balance!CS16 -> 0 | GR16: =[5]Salidas_balance!CT16 -> 0 | GS16: =[5]Salidas_balance!CU16 -> 0 | GT16: =[5]Salidas_balance!CV16 -> 0 | GV16: =[5]Salidas_balance!CX16 -> 0 | GW16: =[5]Salidas_balance!CY16 -> 0 | GX16: =[5]Salidas_balance!CZ16 -> 0 | GY16: =[5]Salidas_balance!DA16 -> 0 | GZ16: =[5]Salidas_balance!DB16 -> 0 | HA16: =[5]Salidas_balance!DC16 -> 0 | HB16: =[5]Salidas_balance!DD16 -> 0 | HC16: =[5]Salidas_balance!DE16 -> 0 | HD16: =[5]Salidas_balance!DF16 -> 0 | HE16: =[5]Salidas_balance!DG16 -> 0 | HG16: =[5]Salidas_balance!DI16 -> 8546.805231 | HH16: =[5]Salidas_balance!DJ16 -> 0 | HI16: =[5]Salidas_balance!DK16 -> 0 | HJ16: =[5]Salidas_balance!DL16 -> 0 | HK16: =[5]Salidas_balance!DM16 -> 0 | HL16: =[5]Salidas_balance!DN16 -> 0 | HM16: =[5]Salidas_balance!DO16 -> 0 | HN16: =[5]Salidas_balance!DP16 -> 0 | HO16: =[5]Salidas_balance!DQ16 -> 0 | HP16: =[5]Salidas_balance!DR16 -> 0 | HR16: =[5]Salidas_balance!DT16 -> 1753.928 | HS16: =[5]Salidas_balance!DU16 -> 0 | HT16: =[5]Salidas_balance!DV16 -> 0 | HU16: =[5]Salidas_balance!DW16 -> 0 | HV16: =[5]Salidas_balance!DX16 -> 0 | HW16: =[5]Salidas_balance!DY16 -> 0 | HX16: =[5]Salidas_balance!DZ16 -> 0 | HY16: =[5]Salidas_balance!EA16 -> 0 | HZ16: =[5]Salidas_balance!EB16 -> 0 | IA16: =[5]Salidas_balance!EC16 -> 0 | IC16: =[5]Salidas_balance!EE16 -> 0 | ID16: =[5]Salidas_balance!EF16 -> 0 | IE16: =[5]Salidas_balance!EG16 -> 0 | IF16: =[5]Salidas_balance!EH16 -> 0 | IG16: =[5]Salidas_balance!EI16 -> 0 | IH16: =[5]Salidas_balance!EJ16 -> 0 | II16: =[5]Salidas_balance!EK16 -> 0 | IJ16: =[5]Salidas_balance!EL16 -> 0 | IK16: =[5]Salidas_balance!EM16 -> 0 | IL16: =[5]Salidas_balance!EN16 -> 0 | IN16: =[5]Salidas_balance!EP16 -> 0 | IO16: =[5]Salidas_balance!EQ16 -> 0 | IP16: =[5]Salidas_balance!ER16 -> 0 | IQ16: =[5]Salidas_balance!ES16 -> 0 | IR16: =[5]Salidas_balance!ET16 -> 0 | IS16: =[5]Salidas_balance!EU16 -> 0 | IT16: =[5]Salidas_balance!EV16 -> 0 | IU16: =[5]Salidas_balance!EW16 -> 0 | IV16: =[5]Salidas_balance!EX16 -> 0 | IW16: =[5]Salidas_balance!EY16 -> 0 | IY16: =[5]Salidas_balance!FA16 -> 23218.07756 | IZ16: =[5]Salidas_balance!FB16 -> 0 | JA16: =[5]Salidas_balance!FC16 -> 0 | JB16: =[5]Salidas_balance!FD16 -> 0 | JC16: =[5]Salidas_balance!FE16 -> 0 | JD16: =[5]Salidas_balance!FF16 -> 0 | JE16: =[5]Salidas_balance!FG16 -> 0 | JF16: =[5]Salidas_balance!FH16 -> 0 | JG16: =[5]Salidas_balance!FI16 -> 0 | JH16: =[5]Salidas_balance!FJ16 -> 0 | JJ16: =[5]Salidas_balance!FL16 -> 0 | JK16: =[5]Salidas_balance!FM16 -> 0 | JL16: =[5]Salidas_balance!FN16 -> 0 | JM16: =[5]Salidas_balance!FO16 -> 0 | JN16: =[5]Salidas_balance!FP16 -> 0 | JO16: =[5]Salidas_balance!FQ16 -> 0 | JP16: =[5]Salidas_balance!FR16 -> 0 | JQ16: =[5]Salidas_balance!FS16 -> 0 | JR16: =[5]Salidas_balance!FT16 -> 0 | JS16: =[5]Salidas_balance!FU16 -> 0 | JU16: =[5]Salidas_balance!FW16 -> 0 | JV16: =[5]Salidas_balance!FX16 -> 0 | JW16: =[5]Salidas_balance!FY16 -> 0 | JX16: =[5]Salidas_balance!FZ16 -> 0 | JY16: =[5]Salidas_balance!GA16 -> 0 | JZ16: =[5]Salidas_balance!GB16 -> 0 | KA16: =[5]Salidas_balance!GC16 -> 0 | KB16: =[5]Salidas_balance!GD16 -> 0 | KC16: =[5]Salidas_balance!GE16 -> 0 | KD16: =[5]Salidas_balance!GF16 -> 0 | KF16: =[5]Salidas_balance!GH16 -> 0 | KG16: =[5]Salidas_balance!GI16 -> 0 | KH16: =[5]Salidas_balance!GJ16 -> 0 | KI16: =[5]Salidas_balance!GK16 -> 0 | KJ16: =[5]Salidas_balance!GL16 -> 0 | KK16: =[5]Salidas_balance!GM16 -> 0 | KL16: =[5]Salidas_balance!GN16 -> 0 | KM16: =[5]Salidas_balance!GO16 -> 0 | KN16: =[5]Salidas_balance!GP16 -> 0 | KO16: =[5]Salidas_balance!GQ16 -> 0 | KQ16: =[5]Salidas_balance!GS16 -> 0 | KR16: =[5]Salidas_balance!GT16 -> 0 | KS16: =[5]Salidas_balance!GU16 -> 0 | KT16: =[5]Salidas_balance!GV16 -> 0 | KU16: =[5]Salidas_balance!GW16 -> 0 | KV16: =[5]Salidas_balance!GX16 -> 0 | KW16: =[5]Salidas_balance!GY16 -> 0 | KX16: =[5]Salidas_balance!GZ16 -> 0 | KY16: =[5]Salidas_balance!HA16 -> 0 | KZ16: =[5]Salidas_balance!HB16 -> 0 | LB16: =[5]Salidas_balance!HD16 -> 0 | LC16: =[5]Salidas_balance!HE16 -> 0 | LD16: =[5]Salidas_balance!HF16 -> 0 | LE16: =[5]Salidas_balance!HG16 -> 0 | LF16: =[5]Salidas_balance!HH16 -> 0 | LG16: =[5]Salidas_balance!HI16 -> 0 | LH16: =[5]Salidas_balance!HJ16 -> 0 | LI16: =[5]Salidas_balance!HK16 -> 0 | LJ16: =[5]Salidas_balance!HL16 -> 0 | LK16: =[5]Salidas_balance!HM16 -> 0 | LM16: Domingo | LN16: 02:15:00
B17: Domingo | C17: 02:30:00 | D17: V | E17: 271773.178 | F17: 347215.9296 | G17: 408600.795 | H17: 170280.1643 | I17: 20636.84414 | J17: 34474.5906 | K17: 776.2125798 | L17: 8.196950238e-06 | AB17: =IF(AND($C17>INPUTS!$E$27,$C17<INPUTS!$E$26),0,INPUTS!$E$25/7/(24*(1-INPUTS!$E$26+INPUTS!$E$27))) -> 18796.35132 | AC17: ='Cálculo de Pérdidas'!S19 -> 21677.33608 | AD17: ='Cálculo de Pérdidas'!O19 -> 5131.678983 | AE17: 271773.178 | AL17: 49885.76133 | AM17: 13897.88151 | AN17: 5.745948773e-06 | AZ17: ='Cálculo de Pérdidas'!P19 -> 11659.10869 | BA17: 347215.9296 | BL17: 8458.111223 | BM17: 27132.15409 | BP17: 23294.98594 | BV17: ='Cálculo de Pérdidas'!Q19 -> 2499.61422 | BW17: 408600.795 | BY17: 190917.0085 | CA17: 35250.80318 | CC17: 170280.1643 | CD17: 20636.84414 | CE17: 34474.5906 | CF17: 776.2125798 | CG17: 8.196950238e-06 | CH17: 0 | CI17: 49885.76133 | CJ17: 13897.88151 | CK17: 5.745948773e-06 | CL17: 0 | CM17: 8458.111223 | CN17: 27132.15409 | CO17: 0 | CP17: 0 | CQ17: 23294.98594 | CR17: 0 | CS17: 0 | CT17: 0 | CU17: 0 | CV17: 0 | DA17: =[5]Salidas_balance!C17 -> 0.0566375 | DB17: =[5]Salidas_balance!D17 -> 0.153221519 | DC17: =[5]Salidas_balance!E17 -> 0.3593441176 | DD17: =[5]Salidas_balance!F17 -> 0.407708 | DE17: =[5]Salidas_balance!G17 -> 0.8316714286 | DF17: =[5]Salidas_balance!H17 -> 1.8945125 | DG17: =[5]Salidas_balance!I17 -> 3.760807692 | DH17: =[5]Salidas_balance!J17 -> 7.752275 | DI17: =[5]Salidas_balance!K17 -> 13.32943636 | DJ17: =[5]Salidas_balance!L17 -> 0 | DL17: =[5]Salidas_balance!N17 -> 0.1241166667 | DM17: =[5]Salidas_balance!O17 -> 0.3414571429 | DN17: =[5]Salidas_balance!P17 -> 0.57206 | DO17: =[5]Salidas_balance!Q17 -> 0.6532619048 | DP17: =[5]Salidas_balance!R17 -> 1.085533333 | DQ17: =[5]Salidas_balance!S17 -> 2.6804375 | DR17: =[5]Salidas_balance!T17 -> 2.352855556 | DS17: =[5]Salidas_balance!U17 -> 8.414566667 | DT17: =[5]Salidas_balance!V17 -> 30.9545 | DU17: =[5]Salidas_balance!W17 -> 0 | DW17: =[5]Salidas_balance!Y17 -> 2.11035 | DX17: =[5]Salidas_balance!Z17 -> 2.977147059 | DY17: =[5]Salidas_balance!AA17 -> 4.592461905 | DZ17: =[5]Salidas_balance!AB17 -> 7.236946154 | EA17: =[5]Salidas_balance!AC17 -> 13.76441997 | EB17: =[5]Salidas_balance!AD17 -> 30.20952546 | EC17: =[5]Salidas_balance!AE17 -> 32.794 | ED17: =[5]Salidas_balance!AF17 -> 24.57066667 | EE17: =[5]Salidas_balance!AG17 -> 254.4821818 | EF17: =[5]Salidas_balance!AH17 -> 0 | EH17: =[5]Salidas_balance!AJ17 -> 10.24895758 | EI17: =[5]Salidas_balance!AK17 -> 0 | EJ17: =[5]Salidas_balance!AL17 -> 0 | EK17: =[5]Salidas_balance!AM17 -> 0 | EL17: =[5]Salidas_balance!AN17 -> 0 | EM17: =[5]Salidas_balance!AO17 -> 0 | EN17: =[5]Salidas_balance!AP17 -> 0 | EO17: =[5]Salidas_balance!AQ17 -> 0 | EP17: =[5]Salidas_balance!AR17 -> 0 | EQ17: =[5]Salidas_balance!AS17 -> 0 | ES17: =[5]Salidas_balance!AU17 -> 30.65641379 | ET17: =[5]Salidas_balance!AV17 -> 0 | EU17: =[5]Salidas_balance!AW17 -> 0 | EV17: =[5]Salidas_balance!AX17 -> 0 | EW17: =[5]Salidas_balance!AY17 -> 0 | EX17: =[5]Salidas_balance!AZ17 -> 0 | EY17: =[5]Salidas_balance!BA17 -> 0 | EZ17: =[5]Salidas_balance!BB17 -> 0 | FA17: =[5]Salidas_balance!BC17 -> 0 | FB17: =[5]Salidas_balance!BD17 -> 0 | FD17: =[5]Salidas_balance!BF17 -> 0 | FE17: =[5]Salidas_balance!BG17 -> 0 | FF17: =[5]Salidas_balance!BH17 -> 0 | FG17: =[5]Salidas_balance!BI17 -> 0 | FH17: =[5]Salidas_balance!BJ17 -> 0 | FI17: =[5]Salidas_balance!BK17 -> 0 | FJ17: =[5]Salidas_balance!BL17 -> 0 | FK17: =[5]Salidas_balance!BM17 -> 0 | FL17: =[5]Salidas_balance!BN17 -> 0 | FM17: =[5]Salidas_balance!BO17 -> 0 | FO17: =[5]Salidas_balance!BQ17 -> 4.113266667 | FP17: =[5]Salidas_balance!BR17 -> 20.06472222 | FQ17: =[5]Salidas_balance!BS17 -> 38.774 | FR17: =[5]Salidas_balance!BT17 -> 39.2028 | FS17: =[5]Salidas_balance!BU17 -> 120.202 | FT17: =[5]Salidas_balance!BV17 -> 69.06122222 | FU17: =[5]Salidas_balance!BW17 -> 190.201 | FV17: =[5]Salidas_balance!BX17 -> 354.886 | FW17: =[5]Salidas_balance!BY17 -> 1052.7 | FX17: =[5]Salidas_balance!BZ17 -> 0 | FZ17: =[5]Salidas_balance!CB17 -> 213.2333667 | GA17: =[5]Salidas_balance!CC17 -> 0 | GB17: =[5]Salidas_balance!CD17 -> 0 | GC17: =[5]Salidas_balance!CE17 -> 0 | GD17: =[5]Salidas_balance!CF17 -> 0 | GE17: =[5]Salidas_balance!CG17 -> 0 | GF17: =[5]Salidas_balance!CH17 -> 0 | GG17: =[5]Salidas_balance!CI17 -> 0 | GH17: =[5]Salidas_balance!CJ17 -> 0 | GI17: =[5]Salidas_balance!CK17 -> 0 | GK17: =[5]Salidas_balance!CM17 -> 44.84415385 | GL17: =[5]Salidas_balance!CN17 -> 0 | GM17: =[5]Salidas_balance!CO17 -> 0 | GN17: =[5]Salidas_balance!CP17 -> 0 | GO17: =[5]Salidas_balance!CQ17 -> 0 | GP17: =[5]Salidas_balance!CR17 -> 0 | GQ17: =[5]Salidas_balance!CS17 -> 0 | GR17: =[5]Salidas_balance!CT17 -> 0 | GS17: =[5]Salidas_balance!CU17 -> 0 | GT17: =[5]Salidas_balance!CV17 -> 0 | GV17: =[5]Salidas_balance!CX17 -> 0 | GW17: =[5]Salidas_balance!CY17 -> 0 | GX17: =[5]Salidas_balance!CZ17 -> 0 | GY17: =[5]Salidas_balance!DA17 -> 0 | GZ17: =[5]Salidas_balance!DB17 -> 0 | HA17: =[5]Salidas_balance!DC17 -> 0 | HB17: =[5]Salidas_balance!DD17 -> 0 | HC17: =[5]Salidas_balance!DE17 -> 0 | HD17: =[5]Salidas_balance!DF17 -> 0 | HE17: =[5]Salidas_balance!DG17 -> 0 | HG17: =[5]Salidas_balance!DI17 -> 8682.269923 | HH17: =[5]Salidas_balance!DJ17 -> 0 | HI17: =[5]Salidas_balance!DK17 -> 0 | HJ17: =[5]Salidas_balance!DL17 -> 0 | HK17: =[5]Salidas_balance!DM17 -> 0 | HL17: =[5]Salidas_balance!DN17 -> 0 | HM17: =[5]Salidas_balance!DO17 -> 0 | HN17: =[5]Salidas_balance!DP17 -> 0 | HO17: =[5]Salidas_balance!DQ17 -> 0 | HP17: =[5]Salidas_balance!DR17 -> 0 | HR17: =[5]Salidas_balance!DT17 -> 1756.969333 | HS17: =[5]Salidas_balance!DU17 -> 0 | HT17: =[5]Salidas_balance!DV17 -> 0 | HU17: =[5]Salidas_balance!DW17 -> 0 | HV17: =[5]Salidas_balance!DX17 -> 0 | HW17: =[5]Salidas_balance!DY17 -> 0 | HX17: =[5]Salidas_balance!DZ17 -> 0 | HY17: =[5]Salidas_balance!EA17 -> 0 | HZ17: =[5]Salidas_balance!EB17 -> 0 | IA17: =[5]Salidas_balance!EC17 -> 0 | IC17: =[5]Salidas_balance!EE17 -> 0 | ID17: =[5]Salidas_balance!EF17 -> 0 | IE17: =[5]Salidas_balance!EG17 -> 0 | IF17: =[5]Salidas_balance!EH17 -> 0 | IG17: =[5]Salidas_balance!EI17 -> 0 | IH17: =[5]Salidas_balance!EJ17 -> 0 | II17: =[5]Salidas_balance!EK17 -> 0 | IJ17: =[5]Salidas_balance!EL17 -> 0 | IK17: =[5]Salidas_balance!EM17 -> 0 | IL17: =[5]Salidas_balance!EN17 -> 0 | IN17: =[5]Salidas_balance!EP17 -> 0 | IO17: =[5]Salidas_balance!EQ17 -> 0 | IP17: =[5]Salidas_balance!ER17 -> 0 | IQ17: =[5]Salidas_balance!ES17 -> 0 | IR17: =[5]Salidas_balance!ET17 -> 0 | IS17: =[5]Salidas_balance!EU17 -> 0 | IT17: =[5]Salidas_balance!EV17 -> 0 | IU17: =[5]Salidas_balance!EW17 -> 0 | IV17: =[5]Salidas_balance!EX17 -> 0 | IW17: =[5]Salidas_balance!EY17 -> 0 | IY17: =[5]Salidas_balance!FA17 -> 23191.73715 | IZ17: =[5]Salidas_balance!FB17 -> 0 | JA17: =[5]Salidas_balance!FC17 -> 0 | JB17: =[5]Salidas_balance!FD17 -> 0 | JC17: =[5]Salidas_balance!FE17 -> 0 | JD17: =[5]Salidas_balance!FF17 -> 0 | JE17: =[5]Salidas_balance!FG17 -> 0 | JF17: =[5]Salidas_balance!FH17 -> 0 | JG17: =[5]Salidas_balance!FI17 -> 0 | JH17: =[5]Salidas_balance!FJ17 -> 0 | JJ17: =[5]Salidas_balance!FL17 -> 0 | JK17: =[5]Salidas_balance!FM17 -> 0 | JL17: =[5]Salidas_balance!FN17 -> 0 | JM17: =[5]Salidas_balance!FO17 -> 0 | JN17: =[5]Salidas_balance!FP17 -> 0 | JO17: =[5]Salidas_balance!FQ17 -> 0 | JP17: =[5]Salidas_balance!FR17 -> 0 | JQ17: =[5]Salidas_balance!FS17 -> 0 | JR17: =[5]Salidas_balance!FT17 -> 0 | JS17: =[5]Salidas_balance!FU17 -> 0 | JU17: =[5]Salidas_balance!FW17 -> 0 | JV17: =[5]Salidas_balance!FX17 -> 0 | JW17: =[5]Salidas_balance!FY17 -> 0 | JX17: =[5]Salidas_balance!FZ17 -> 0 | JY17: =[5]Salidas_balance!GA17 -> 0 | JZ17: =[5]Salidas_balance!GB17 -> 0 | KA17: =[5]Salidas_balance!GC17 -> 0 | KB17: =[5]Salidas_balance!GD17 -> 0 | KC17: =[5]Salidas_balance!GE17 -> 0 | KD17: =[5]Salidas_balance!GF17 -> 0 | KF17: =[5]Salidas_balance!GH17 -> 0 | KG17: =[5]Salidas_balance!GI17 -> 0 | KH17: =[5]Salidas_balance!GJ17 -> 0 | KI17: =[5]Salidas_balance!GK17 -> 0 | KJ17: =[5]Salidas_balance!GL17 -> 0 | KK17: =[5]Salidas_balance!GM17 -> 0 | KL17: =[5]Salidas_balance!GN17 -> 0 | KM17: =[5]Salidas_balance!GO17 -> 0 | KN17: =[5]Salidas_balance!GP17 -> 0 | KO17: =[5]Salidas_balance!GQ17 -> 0 | KQ17: =[5]Salidas_balance!GS17 -> 0 | KR17: =[5]Salidas_balance!GT17 -> 0 | KS17: =[5]Salidas_balance!GU17 -> 0 | KT17: =[5]Salidas_balance!GV17 -> 0 | KU17: =[5]Salidas_balance!GW17 -> 0 | KV17: =[5]Salidas_balance!GX17 -> 0 | KW17: =[5]Salidas_balance!GY17 -> 0 | KX17: =[5]Salidas_balance!GZ17 -> 0 | KY17: =[5]Salidas_balance!HA17 -> 0 | KZ17: =[5]Salidas_balance!HB17 -> 0 | LB17: =[5]Salidas_balance!HD17 -> 0 | LC17: =[5]Salidas_balance!HE17 -> 0 | LD17: =[5]Salidas_balance!HF17 -> 0 | LE17: =[5]Salidas_balance!HG17 -> 0 | LF17: =[5]Salidas_balance!HH17 -> 0 | LG17: =[5]Salidas_balance!HI17 -> 0 | LH17: =[5]Salidas_balance!HJ17 -> 0 | LI17: =[5]Salidas_balance!HK17 -> 0 | LJ17: =[5]Salidas_balance!HL17 -> 0 | LK17: =[5]Salidas_balance!HM17 -> 0 | LM17: Domingo | LN17: 02:30:00
B18: Domingo | C18: 02:45:00 | D18: V | E18: 272873.7987 | F18: 348138.9545 | G18: 410110.5739 | H18: 171140.2582 | I18: 20811.03492 | J18: 34291.13787 | K18: 770.9723538 | L18: 8.100250426e-06 | AB18: =IF(AND($C18>INPUTS!$E$27,$C18<INPUTS!$E$26),0,INPUTS!$E$25/7/(24*(1-INPUTS!$E$26+INPUTS!$E$27))) -> 18796.35132 | AC18: ='Cálculo de Pérdidas'!S20 -> 21896.87583 | AD18: ='Cálculo de Pérdidas'!O20 -> 5167.168213 | AE18: 272873.7987 | AL18: 49778.32701 | AM18: 13767.67366 | AN18: 5.761472398e-06 | AZ18: ='Cálculo de Pérdidas'!P20 -> 11719.15514 | BA18: 348138.9545 | BL18: 8569.850706 | BM18: 27034.12454 | BP18: 23849.6368 | BV18: ='Cálculo de Pérdidas'!Q20 -> 2518.007343 | BW18: 410110.5739 | BY18: 191951.2931 | CA18: 35062.11022 | CC18: 171140.2582 | CD18: 20811.03492 | CE18: 34291.13787 | CF18: 770.9723538 | CG18: 8.100250426e-06 | CH18: 0 | CI18: 49778.32701 | CJ18: 13767.67366 | CK18: 5.761472398e-06 | CL18: 0 | CM18: 8569.850706 | CN18: 27034.12454 | CO18: 0 | CP18: 0 | CQ18: 23849.6368 | CR18: 0 | CS18: 0 | CT18: 0 | CU18: 0 | CV18: 0 | DA18: =[5]Salidas_balance!C18 -> 0.058628125 | DB18: =[5]Salidas_balance!D18 -> 0.1564746835 | DC18: =[5]Salidas_balance!E18 -> 0.3447911765 | DD18: =[5]Salidas_balance!F18 -> 0.400764 | DE18: =[5]Salidas_balance!G18 -> 0.9294714286 | DF18: =[5]Salidas_balance!H18 -> 1.85799375 | DG18: =[5]Salidas_balance!I18 -> 3.723761538 | DH18: =[5]Salidas_balance!J18 -> 7.602216667 | DI18: =[5]Salidas_balance!K18 -> 14.20312727 | DJ18: =[5]Salidas_balance!L18 -> 0 | DL18: =[5]Salidas_balance!N18 -> 0.1124166667 | DM18: =[5]Salidas_balance!O18 -> 0.3505571429 | DN18: =[5]Salidas_balance!P18 -> 0.5398666667 | DO18: =[5]Salidas_balance!Q18 -> 0.6706904762 | DP18: =[5]Salidas_balance!R18 -> 1.108233333 | DQ18: =[5]Salidas_balance!S18 -> 2.73705625 | DR18: =[5]Salidas_balance!T18 -> 2.420033333 | DS18: =[5]Salidas_balance!U18 -> 8.49825 | DT18: =[5]Salidas_balance!V18 -> 27.959625 | DU18: =[5]Salidas_balance!W18 -> 0 | DW18: =[5]Salidas_balance!Y18 -> 2.104615625 | DX18: =[5]Salidas_balance!Z18 -> 2.663152941 | DY18: =[5]Salidas_balance!AA18 -> 4.637371429 | DZ18: =[5]Salidas_balance!AB18 -> 7.156569231 | EA18: =[5]Salidas_balance!AC18 -> 13.99715336 | EB18: =[5]Salidas_balance!AD18 -> 29.98246255 | EC18: =[5]Salidas_balance!AE18 -> 32.755 | ED18: =[5]Salidas_balance!AF18 -> 25.80133333 | EE18: =[5]Salidas_balance!AG18 -> 252.84 | EF18: =[5]Salidas_balance!AH18 -> 0 | EH18: =[5]Salidas_balance!AJ18 -> 10.17976667 | EI18: =[5]Salidas_balance!AK18 -> 0 | EJ18: =[5]Salidas_balance!AL18 -> 0 | EK18: =[5]Salidas_balance!AM18 -> 0 | EL18: =[5]Salidas_balance!AN18 -> 0 | EM18: =[5]Salidas_balance!AO18 -> 0 | EN18: =[5]Salidas_balance!AP18 -> 0 | EO18: =[5]Salidas_balance!AQ18 -> 0 | EP18: =[5]Salidas_balance!AR18 -> 0 | EQ18: =[5]Salidas_balance!AS18 -> 0 | ES18: =[5]Salidas_balance!AU18 -> 30.29475862 | ET18: =[5]Salidas_balance!AV18 -> 0 | EU18: =[5]Salidas_balance!AW18 -> 0 | EV18: =[5]Salidas_balance!AX18 -> 0 | EW18: =[5]Salidas_balance!AY18 -> 0 | EX18: =[5]Salidas_balance!AZ18 -> 0 | EY18: =[5]Salidas_balance!BA18 -> 0 | EZ18: =[5]Salidas_balance!BB18 -> 0 | FA18: =[5]Salidas_balance!BC18 -> 0 | FB18: =[5]Salidas_balance!BD18 -> 0 | FD18: =[5]Salidas_balance!BF18 -> 0 | FE18: =[5]Salidas_balance!BG18 -> 0 | FF18: =[5]Salidas_balance!BH18 -> 0 | FG18: =[5]Salidas_balance!BI18 -> 0 | FH18: =[5]Salidas_balance!BJ18 -> 0 | FI18: =[5]Salidas_balance!BK18 -> 0 | FJ18: =[5]Salidas_balance!BL18 -> 0 | FK18: =[5]Salidas_balance!BM18 -> 0 | FL18: =[5]Salidas_balance!BN18 -> 0 | FM18: =[5]Salidas_balance!BO18 -> 0 | FO18: =[5]Salidas_balance!BQ18 -> 4.100676191 | FP18: =[5]Salidas_balance!BR18 -> 19.93133333 | FQ18: =[5]Salidas_balance!BS18 -> 39.1075 | FR18: =[5]Salidas_balance!BT18 -> 39.79966667 | FS18: =[5]Salidas_balance!BU18 -> 119.443 | FT18: =[5]Salidas_balance!BV18 -> 67.256 | FU18: =[5]Salidas_balance!BW18 -> 186.278 | FV18: =[5]Salidas_balance!BX18 -> 352.329 | FW18: =[5]Salidas_balance!BY18 -> 1063.395357 | FX18: =[5]Salidas_balance!BZ18 -> 0 | FZ18: =[5]Salidas_balance!CB18 -> 211.2356048 | GA18: =[5]Salidas_balance!CC18 -> 0 | GB18: =[5]Salidas_balance!CD18 -> 0 | GC18: =[5]Salidas_balance!CE18 -> 0 | GD18: =[5]Salidas_balance!CF18 -> 0 | GE18: =[5]Salidas_balance!CG18 -> 0 | GF18: =[5]Salidas_balance!CH18 -> 0 | GG18: =[5]Salidas_balance!CI18 -> 0 | GH18: =[5]Salidas_balance!CJ18 -> 0 | GI18: =[5]Salidas_balance!CK18 -> 0 | GK18: =[5]Salidas_balance!CM18 -> 44.96530769 | GL18: =[5]Salidas_balance!CN18 -> 0 | GM18: =[5]Salidas_balance!CO18 -> 0 | GN18: =[5]Salidas_balance!CP18 -> 0 | GO18: =[5]Salidas_balance!CQ18 -> 0 | GP18: =[5]Salidas_balance!CR18 -> 0 | GQ18: =[5]Salidas_balance!CS18 -> 0 | GR18: =[5]Salidas_balance!CT18 -> 0 | GS18: =[5]Salidas_balance!CU18 -> 0 | GT18: =[5]Salidas_balance!CV18 -> 0 | GV18: =[5]Salidas_balance!CX18 -> 0 | GW18: =[5]Salidas_balance!CY18 -> 0 | GX18: =[5]Salidas_balance!CZ18 -> 0 | GY18: =[5]Salidas_balance!DA18 -> 0 | GZ18: =[5]Salidas_balance!DB18 -> 0 | HA18: =[5]Salidas_balance!DC18 -> 0 | HB18: =[5]Salidas_balance!DD18 -> 0 | HC18: =[5]Salidas_balance!DE18 -> 0 | HD18: =[5]Salidas_balance!DF18 -> 0 | HE18: =[5]Salidas_balance!DG18 -> 0 | HG18: =[5]Salidas_balance!DI18 -> 8796.97075 | HH18: =[5]Salidas_balance!DJ18 -> 0 | HI18: =[5]Salidas_balance!DK18 -> 0 | HJ18: =[5]Salidas_balance!DL18 -> 0 | HK18: =[5]Salidas_balance!DM18 -> 0 | HL18: =[5]Salidas_balance!DN18 -> 0 | HM18: =[5]Salidas_balance!DO18 -> 0 | HN18: =[5]Salidas_balance!DP18 -> 0 | HO18: =[5]Salidas_balance!DQ18 -> 0 | HP18: =[5]Salidas_balance!DR18 -> 0 | HR18: =[5]Salidas_balance!DT18 -> 1750.621333 | HS18: =[5]Salidas_balance!DU18 -> 0 | HT18: =[5]Salidas_balance!DV18 -> 0 | HU18: =[5]Salidas_balance!DW18 -> 0 | HV18: =[5]Salidas_balance!DX18 -> 0 | HW18: =[5]Salidas_balance!DY18 -> 0 | HX18: =[5]Salidas_balance!DZ18 -> 0 | HY18: =[5]Salidas_balance!EA18 -> 0 | HZ18: =[5]Salidas_balance!EB18 -> 0 | IA18: =[5]Salidas_balance!EC18 -> 0 | IC18: =[5]Salidas_balance!EE18 -> 0 | ID18: =[5]Salidas_balance!EF18 -> 0 | IE18: =[5]Salidas_balance!EG18 -> 0 | IF18: =[5]Salidas_balance!EH18 -> 0 | IG18: =[5]Salidas_balance!EI18 -> 0 | IH18: =[5]Salidas_balance!EJ18 -> 0 | II18: =[5]Salidas_balance!EK18 -> 0 | IJ18: =[5]Salidas_balance!EL18 -> 0 | IK18: =[5]Salidas_balance!EM18 -> 0 | IL18: =[5]Salidas_balance!EN18 -> 0 | IN18: =[5]Salidas_balance!EP18 -> 0 | IO18: =[5]Salidas_balance!EQ18 -> 0 | IP18: =[5]Salidas_balance!ER18 -> 0 | IQ18: =[5]Salidas_balance!ES18 -> 0 | IR18: =[5]Salidas_balance!ET18 -> 0 | IS18: =[5]Salidas_balance!EU18 -> 0 | IT18: =[5]Salidas_balance!EV18 -> 0 | IU18: =[5]Salidas_balance!EW18 -> 0 | IV18: =[5]Salidas_balance!EX18 -> 0 | IW18: =[5]Salidas_balance!EY18 -> 0 | IY18: =[5]Salidas_balance!FA18 -> 23743.92967 | IZ18: =[5]Salidas_balance!FB18 -> 0 | JA18: =[5]Salidas_balance!FC18 -> 0 | JB18: =[5]Salidas_balance!FD18 -> 0 | JC18: =[5]Salidas_balance!FE18 -> 0 | JD18: =[5]Salidas_balance!FF18 -> 0 | JE18: =[5]Salidas_balance!FG18 -> 0 | JF18: =[5]Salidas_balance!FH18 -> 0 | JG18: =[5]Salidas_balance!FI18 -> 0 | JH18: =[5]Salidas_balance!FJ18 -> 0 | JJ18: =[5]Salidas_balance!FL18 -> 0 | JK18: =[5]Salidas_balance!FM18 -> 0 | JL18: =[5]Salidas_balance!FN18 -> 0 | JM18: =[5]Salidas_balance!FO18 -> 0 | JN18: =[5]Salidas_balance!FP18 -> 0 | JO18: =[5]Salidas_balance!FQ18 -> 0 | JP18: =[5]Salidas_balance!FR18 -> 0 | JQ18: =[5]Salidas_balance!FS18 -> 0 | JR18: =[5]Salidas_balance!FT18 -> 0 | JS18: =[5]Salidas_balance!FU18 -> 0 | JU18: =[5]Salidas_balance!FW18 -> 0 | JV18: =[5]Salidas_balance!FX18 -> 0 | JW18: =[5]Salidas_balance!FY18 -> 0 | JX18: =[5]Salidas_balance!FZ18 -> 0 | JY18: =[5]Salidas_balance!GA18 -> 0 | JZ18: =[5]Salidas_balance!GB18 -> 0 | KA18: =[5]Salidas_balance!GC18 -> 0 | KB18: =[5]Salidas_balance!GD18 -> 0 | KC18: =[5]Salidas_balance!GE18 -> 0 | KD18: =[5]Salidas_balance!GF18 -> 0 | KF18: =[5]Salidas_balance!GH18 -> 0 | KG18: =[5]Salidas_balance!GI18 -> 0 | KH18: =[5]Salidas_balance!GJ18 -> 0 | KI18: =[5]Salidas_balance!GK18 -> 0 | KJ18: =[5]Salidas_balance!GL18 -> 0 | KK18: =[5]Salidas_balance!GM18 -> 0 | KL18: =[5]Salidas_balance!GN18 -> 0 | KM18: =[5]Salidas_balance!GO18 -> 0 | KN18: =[5]Salidas_balance!GP18 -> 0 | KO18: =[5]Salidas_balance!GQ18 -> 0 | KQ18: =[5]Salidas_balance!GS18 -> 0 | KR18: =[5]Salidas_balance!GT18 -> 0 | KS18: =[5]Salidas_balance!GU18 -> 0 | KT18: =[5]Salidas_balance!GV18 -> 0 | KU18: =[5]Salidas_balance!GW18 -> 0 | KV18: =[5]Salidas_balance!GX18 -> 0 | KW18: =[5]Salidas_balance!GY18 -> 0 | KX18: =[5]Salidas_balance!GZ18 -> 0 | KY18: =[5]Salidas_balance!HA18 -> 0 | KZ18: =[5]Salidas_balance!HB18 -> 0 | LB18: =[5]Salidas_balance!HD18 -> 0 | LC18: =[5]Salidas_balance!HE18 -> 0 | LD18: =[5]Salidas_balance!HF18 -> 0 | LE18: =[5]Salidas_balance!HG18 -> 0 | LF18: =[5]Salidas_balance!HH18 -> 0 | LG18: =[5]Salidas_balance!HI18 -> 0 | LH18: =[5]Salidas_balance!HJ18 -> 0 | LI18: =[5]Salidas_balance!HK18 -> 0 | LJ18: =[5]Salidas_balance!HL18 -> 0 | LK18: =[5]Salidas_balance!HM18 -> 0 | LM18: Domingo | LN18: 02:45:00
B19: Domingo | C19: 03:00:00 | D19: V | E19: 263179.2077 | F19: 337994.0659 | G19: 399363.2111 | H19: 164268.1149 | I19: 20684.17676 | J19: 33634.56444 | K19: 771.9911145 | L19: 8.19104941e-06 | AB19: =IF(AND($C19>INPUTS!$E$27,$C19<INPUTS!$E$26),0,INPUTS!$E$25/7/(24*(1-INPUTS!$E$26+INPUTS!$E$27))) -> 18796.35132 | AC19: ='Cálculo de Pérdidas'!S21 -> 20173.64324 | AD19: ='Cálculo de Pérdidas'!O21 -> 4850.365932 | AE19: 263179.2077 | AL19: 49995.26005 | AM19: 13752.47752 | AN19: 5.837641647e-06 | AZ19: ='Cálculo de Pérdidas'!P21 -> 11067.12058 | BA19: 337994.0659 | BL19: 8624.487161 | BM19: 27106.38556 | BP19: 23249.74583 | BV19: ='Cálculo de Pérdidas'!Q21 -> 2388.526733 | BW19: 399363.2111 | BY19: 184952.2916 | CA19: 34406.55556 | CC19: 164268.1149 | CD19: 20684.17676 | CE19: 33634.56444 | CF19: 771.9911145 | CG19: 8.19104941e-06 | CH19: 0 | CI19: 49995.26005 | CJ19: 13752.47752 | CK19: 5.837641647e-06 | CL19: 0 | CM19: 8624.487161 | CN19: 27106.38556 | CO19: 0 | CP19: 0 | CQ19: 23249.74583 | CR19: 0 | CS19: 0 | CT19: 0 | CU19: 0 | CV19: 0 | DA19: =[5]Salidas_balance!C19 -> 0.057021875 | DB19: =[5]Salidas_balance!D19 -> 0.1544620253 | DC19: =[5]Salidas_balance!E19 -> 0.3263264706 | DD19: =[5]Salidas_balance!F19 -> 0.4086 | DE19: =[5]Salidas_balance!G19 -> 0.8319428571 | DF19: =[5]Salidas_balance!H19 -> 1.78255625 | DG19: =[5]Salidas_balance!I19 -> 3.555430769 | DH19: =[5]Salidas_balance!J19 -> 7.4047 | DI19: =[5]Salidas_balance!K19 -> 13.3053 | DJ19: =[5]Salidas_balance!L19 -> 0 | DL19: =[5]Salidas_balance!N19 -> 0.1261875 | DM19: =[5]Salidas_balance!O19 -> 0.3428928571 | DN19: =[5]Salidas_balance!P19 -> 0.5405266667 | DO19: =[5]Salidas_balance!Q19 -> 0.6478 | DP19: =[5]Salidas_balance!R19 -> 1.06544 | DQ19: =[5]Salidas_balance!S19 -> 2.8878375 | DR19: =[5]Salidas_balance!T19 -> 2.370877778 | DS19: =[5]Salidas_balance!U19 -> 8.068272222 | DT19: =[5]Salidas_balance!V19 -> 28.378875 | DU19: =[5]Salidas_balance!W19 -> 0 | DW19: =[5]Salidas_balance!Y19 -> 2.114534375 | DX19: =[5]Salidas_balance!Z19 -> 2.624188235 | DY19: =[5]Salidas_balance!AA19 -> 4.464038095 | DZ19: =[5]Salidas_balance!AB19 -> 7.097946154 | EA19: =[5]Salidas_balance!AC19 -> 14.24915335 | EB19: =[5]Salidas_balance!AD19 -> 28.04109392 | EC19: =[5]Salidas_balance!AE19 -> 31.645 | ED19: =[5]Salidas_balance!AF19 -> 25.956 | EE19: =[5]Salidas_balance!AG19 -> 260.7929091 | EF19: =[5]Salidas_balance!AH19 -> 0 | EH19: =[5]Salidas_balance!AJ19 -> 10.19321818 | EI19: =[5]Salidas_balance!AK19 -> 0 | EJ19: =[5]Salidas_balance!AL19 -> 0 | EK19: =[5]Salidas_balance!AM19 -> 0 | EL19: =[5]Salidas_balance!AN19 -> 0 | EM19: =[5]Salidas_balance!AO19 -> 0 | EN19: =[5]Salidas_balance!AP19 -> 0 | EO19: =[5]Salidas_balance!AQ19 -> 0 | EP19: =[5]Salidas_balance!AR19 -> 0 | EQ19: =[5]Salidas_balance!AS19 -> 0 | ES19: =[5]Salidas_balance!AU19 -> 30.63434483 | ET19: =[5]Salidas_balance!AV19 -> 0 | EU19: =[5]Salidas_balance!AW19 -> 0 | EV19: =[5]Salidas_balance!AX19 -> 0 | EW19: =[5]Salidas_balance!AY19 -> 0 | EX19: =[5]Salidas_balance!AZ19 -> 0 | EY19: =[5]Salidas_balance!BA19 -> 0 | EZ19: =[5]Salidas_balance!BB19 -> 0 | FA19: =[5]Salidas_balance!BC19 -> 0 | FB19: =[5]Salidas_balance!BD19 -> 0 | FD19: =[5]Salidas_balance!BF19 -> 0 | FE19: =[5]Salidas_balance!BG19 -> 0 | FF19: =[5]Salidas_balance!BH19 -> 0 | FG19: =[5]Salidas_balance!BI19 -> 0 | FH19: =[5]Salidas_balance!BJ19 -> 0 | FI19: =[5]Salidas_balance!BK19 -> 0 | FJ19: =[5]Salidas_balance!BL19 -> 0 | FK19: =[5]Salidas_balance!BM19 -> 0 | FL19: =[5]Salidas_balance!BN19 -> 0 | FM19: =[5]Salidas_balance!BO19 -> 0 | FO19: =[5]Salidas_balance!BQ19 -> 4.006285714 | FP19: =[5]Salidas_balance!BR19 -> 20.00483333 | FQ19: =[5]Salidas_balance!BS19 -> 40.0335 | FR19: =[5]Salidas_balance!BT19 -> 39.585 | FS19: =[5]Salidas_balance!BU19 -> 120.243 | FT19: =[5]Salidas_balance!BV19 -> 73.03255556 | FU19: =[5]Salidas_balance!BW19 -> 188.25 | FV19: =[5]Salidas_balance!BX19 -> 352.876 | FW19: =[5]Salidas_balance!BY19 -> 1050.105714 | FX19: =[5]Salidas_balance!BZ19 -> 0 | FZ19: =[5]Salidas_balance!CB19 -> 211.0024524 | GA19: =[5]Salidas_balance!CC19 -> 0 | GB19: =[5]Salidas_balance!CD19 -> 0 | GC19: =[5]Salidas_balance!CE19 -> 0 | GD19: =[5]Salidas_balance!CF19 -> 0 | GE19: =[5]Salidas_balance!CG19 -> 0 | GF19: =[5]Salidas_balance!CH19 -> 0 | GG19: =[5]Salidas_balance!CI19 -> 0 | GH19: =[5]Salidas_balance!CJ19 -> 0 | GI19: =[5]Salidas_balance!CK19 -> 0 | GK19: =[5]Salidas_balance!CM19 -> 45.55976923 | GL19: =[5]Salidas_balance!CN19 -> 0 | GM19: =[5]Salidas_balance!CO19 -> 0 | GN19: =[5]Salidas_balance!CP19 -> 0 | GO19: =[5]Salidas_balance!CQ19 -> 0 | GP19: =[5]Salidas_balance!CR19 -> 0 | GQ19: =[5]Salidas_balance!CS19 -> 0 | GR19: =[5]Salidas_balance!CT19 -> 0 | GS19: =[5]Salidas_balance!CU19 -> 0 | GT19: =[5]Salidas_balance!CV19 -> 0 | GV19: =[5]Salidas_balance!CX19 -> 0 | GW19: =[5]Salidas_balance!CY19 -> 0 | GX19: =[5]Salidas_balance!CZ19 -> 0 | GY19: =[5]Salidas_balance!DA19 -> 0 | GZ19: =[5]Salidas_balance!DB19 -> 0 | HA19: =[5]Salidas_balance!DC19 -> 0 | HB19: =[5]Salidas_balance!DD19 -> 0 | HC19: =[5]Salidas_balance!DE19 -> 0 | HD19: =[5]Salidas_balance!DF19 -> 0 | HE19: =[5]Salidas_balance!DG19 -> 0 | HG19: =[5]Salidas_balance!DI19 -> 8853.055192 | HH19: =[5]Salidas_balance!DJ19 -> 0 | HI19: =[5]Salidas_balance!DK19 -> 0 | HJ19: =[5]Salidas_balance!DL19 -> 0 | HK19: =[5]Salidas_balance!DM19 -> 0 | HL19: =[5]Salidas_balance!DN19 -> 0 | HM19: =[5]Salidas_balance!DO19 -> 0 | HN19: =[5]Salidas_balance!DP19 -> 0 | HO19: =[5]Salidas_balance!DQ19 -> 0 | HP19: =[5]Salidas_balance!DR19 -> 0 | HR19: =[5]Salidas_balance!DT19 -> 1755.300667 | HS19: =[5]Salidas_balance!DU19 -> 0 | HT19: =[5]Salidas_balance!DV19 -> 0 | HU19: =[5]Salidas_balance!DW19 -> 0 | HV19: =[5]Salidas_balance!DX19 -> 0 | HW19: =[5]Salidas_balance!DY19 -> 0 | HX19: =[5]Salidas_balance!DZ19 -> 0 | HY19: =[5]Salidas_balance!EA19 -> 0 | HZ19: =[5]Salidas_balance!EB19 -> 0 | IA19: =[5]Salidas_balance!EC19 -> 0 | IC19: =[5]Salidas_balance!EE19 -> 0 | ID19: =[5]Salidas_balance!EF19 -> 0 | IE19: =[5]Salidas_balance!EG19 -> 0 | IF19: =[5]Salidas_balance!EH19 -> 0 | IG19: =[5]Salidas_balance!EI19 -> 0 | IH19: =[5]Salidas_balance!EJ19 -> 0 | II19: =[5]Salidas_balance!EK19 -> 0 | IJ19: =[5]Salidas_balance!EL19 -> 0 | IK19: =[5]Salidas_balance!EM19 -> 0 | IL19: =[5]Salidas_balance!EN19 -> 0 | IN19: =[5]Salidas_balance!EP19 -> 0 | IO19: =[5]Salidas_balance!EQ19 -> 0 | IP19: =[5]Salidas_balance!ER19 -> 0 | IQ19: =[5]Salidas_balance!ES19 -> 0 | IR19: =[5]Salidas_balance!ET19 -> 0 | IS19: =[5]Salidas_balance!EU19 -> 0 | IT19: =[5]Salidas_balance!EV19 -> 0 | IU19: =[5]Salidas_balance!EW19 -> 0 | IV19: =[5]Salidas_balance!EX19 -> 0 | IW19: =[5]Salidas_balance!EY19 -> 0 | IY19: =[5]Salidas_balance!FA19 -> 23146.69756 | IZ19: =[5]Salidas_balance!FB19 -> 0 | JA19: =[5]Salidas_balance!FC19 -> 0 | JB19: =[5]Salidas_balance!FD19 -> 0 | JC19: =[5]Salidas_balance!FE19 -> 0 | JD19: =[5]Salidas_balance!FF19 -> 0 | JE19: =[5]Salidas_balance!FG19 -> 0 | JF19: =[5]Salidas_balance!FH19 -> 0 | JG19: =[5]Salidas_balance!FI19 -> 0 | JH19: =[5]Salidas_balance!FJ19 -> 0 | JJ19: =[5]Salidas_balance!FL19 -> 0 | JK19: =[5]Salidas_balance!FM19 -> 0 | JL19: =[5]Salidas_balance!FN19 -> 0 | JM19: =[5]Salidas_balance!FO19 -> 0 | JN19: =[5]Salidas_balance!FP19 -> 0 | JO19: =[5]Salidas_balance!FQ19 -> 0 | JP19: =[5]Salidas_balance!FR19 -> 0 | JQ19: =[5]Salidas_balance!FS19 -> 0 | JR19: =[5]Salidas_balance!FT19 -> 0 | JS19: =[5]Salidas_balance!FU19 -> 0 | JU19: =[5]Salidas_balance!FW19 -> 0 | JV19: =[5]Salidas_balance!FX19 -> 0 | JW19: =[5]Salidas_balance!FY19 -> 0 | JX19: =[5]Salidas_balance!FZ19 -> 0 | JY19: =[5]Salidas_balance!GA19 -> 0 | JZ19: =[5]Salidas_balance!GB19 -> 0 | KA19: =[5]Salidas_balance!GC19 -> 0 | KB19: =[5]Salidas_balance!GD19 -> 0 | KC19: =[5]Salidas_balance!GE19 -> 0 | KD19: =[5]Salidas_balance!GF19 -> 0 | KF19: =[5]Salidas_balance!GH19 -> 0 | KG19: =[5]Salidas_balance!GI19 -> 0 | KH19: =[5]Salidas_balance!GJ19 -> 0 | KI19: =[5]Salidas_balance!GK19 -> 0 | KJ19: =[5]Salidas_balance!GL19 -> 0 | KK19: =[5]Salidas_balance!GM19 -> 0 | KL19: =[5]Salidas_balance!GN19 -> 0 | KM19: =[5]Salidas_balance!GO19 -> 0 | KN19: =[5]Salidas_balance!GP19 -> 0 | KO19: =[5]Salidas_balance!GQ19 -> 0 | KQ19: =[5]Salidas_balance!GS19 -> 0 | KR19: =[5]Salidas_balance!GT19 -> 0 | KS19: =[5]Salidas_balance!GU19 -> 0 | KT19: =[5]Salidas_balance!GV19 -> 0 | KU19: =[5]Salidas_balance!GW19 -> 0 | KV19: =[5]Salidas_balance!GX19 -> 0 | KW19: =[5]Salidas_balance!GY19 -> 0 | KX19: =[5]Salidas_balance!GZ19 -> 0 | KY19: =[5]Salidas_balance!HA19 -> 0 | KZ19: =[5]Salidas_balance!HB19 -> 0 | LB19: =[5]Salidas_balance!HD19 -> 0 | LC19: =[5]Salidas_balance!HE19 -> 0 | LD19: =[5]Salidas_balance!HF19 -> 0 | LE19: =[5]Salidas_balance!HG19 -> 0 | LF19: =[5]Salidas_balance!HH19 -> 0 | LG19: =[5]Salidas_balance!HI19 -> 0 | LH19: =[5]Salidas_balance!HJ19 -> 0 | LI19: =[5]Salidas_balance!HK19 -> 0 | LJ19: =[5]Salidas_balance!HL19 -> 0 | LK19: =[5]Salidas_balance!HM19 -> 0 | LM19: Domingo | LN19: 03:00:00
B20: Domingo | C20: 03:15:00 | D20: V | E20: 261647.0946 | F20: 336180.4478 | G20: 397682.7809 | H20: 163682.9142 | I20: 20538.24009 | J20: 33032.50608 | K20: 770.7566216 | L20: 8.224149365e-06 | AB20: =IF(AND($C20>INPUTS!$E$27,$C20<INPUTS!$E$26),0,INPUTS!$E$25/7/(24*(1-INPUTS!$E$26+INPUTS!$E$27))) -> 18796.35132 | AC20: ='Cálculo de Pérdidas'!S22 -> 20030.16315 | AD20: ='Cálculo de Pérdidas'!O22 -> 4796.163112 | AE20: 261647.0946 | AL20: 50003.72662 | AM20: 13577.22905 | AN20: 5.857442892e-06 | AZ20: ='Cálculo de Pérdidas'!P22 -> 10952.39755 | BA20: 336180.4478 | BL20: 8589.486132 | BM20: 27082.7584 | BP20: 23461.5018 | BV20: ='Cálculo de Pérdidas'!Q22 -> 2368.586768 | BW20: 397682.7809 | BY20: 184221.1543 | CA20: 33803.2627 | CC20: 163682.9142 | CD20: 20538.24009 | CE20: 33032.50608 | CF20: 770.7566216 | CG20: 8.224149365e-06 | CH20: 0 | CI20: 50003.72662 | CJ20: 13577.22905 | CK20: 5.857442892e-06 | CL20: 0 | CM20: 8589.486132 | CN20: 27082.7584 | CO20: 0 | CP20: 0 | CQ20: 23461.5018 | CR20: 0 | CS20: 0 | CT20: 0 | CU20: 0 | CV20: 0 | DA20: =[5]Salidas_balance!C20 -> 0.0576 | DB20: =[5]Salidas_balance!D20 -> 0.1522126582 | DC20: =[5]Salidas_balance!E20 -> 0.3264470588 | DD20: =[5]Salidas_balance!F20 -> 0.408584 | DE20: =[5]Salidas_balance!G20 -> 0.8286857143 | DF20: =[5]Salidas_balance!H20 -> 1.7805375 | DG20: =[5]Salidas_balance!I20 -> 3.536969231 | DH20: =[5]Salidas_balance!J20 -> 7.192208333 | DI20: =[5]Salidas_balance!K20 -> 13.54591818 | DJ20: =[5]Salidas_balance!L20 -> 0 | DL20: =[5]Salidas_balance!N20 -> 0.1197083333 | DM20: =[5]Salidas_balance!O20 -> 0.3407904762 | DN20: =[5]Salidas_balance!P20 -> 0.5538066667 | DO20: =[5]Salidas_balance!Q20 -> 0.6563571429 | DP20: =[5]Salidas_balance!R20 -> 1.159046667 | DQ20: =[5]Salidas_balance!S20 -> 2.77763125 | DR20: =[5]Salidas_balance!T20 -> 2.322966667 | DS20: =[5]Salidas_balance!U20 -> 7.75105 | DT20: =[5]Salidas_balance!V20 -> 28.238625 | DU20: =[5]Salidas_balance!W20 -> 0 | DW20: =[5]Salidas_balance!Y20 -> 2.097346875 | DX20: =[5]Salidas_balance!Z20 -> 2.749958824 | DY20: =[5]Salidas_balance!AA20 -> 4.3519 | DZ20: =[5]Salidas_balance!AB20 -> 7.359092308 | EA20: =[5]Salidas_balance!AC20 -> 13.87268002 | EB20: =[5]Salidas_balance!AD20 -> 26.30145646 | EC20: =[5]Salidas_balance!AE20 -> 30.46 | ED20: =[5]Salidas_balance!AF20 -> 25.28933333 | EE20: =[5]Salidas_balance!AG20 -> 262.0405455 | EF20: =[5]Salidas_balance!AH20 -> 0 | EH20: =[5]Salidas_balance!AJ20 -> 10.17691818 | EI20: =[5]Salidas_balance!AK20 -> 0 | EJ20: =[5]Salidas_balance!AL20 -> 0 | EK20: =[5]Salidas_balance!AM20 -> 0 | EL20: =[5]Salidas_balance!AN20 -> 0 | EM20: =[5]Salidas_balance!AO20 -> 0 | EN20: =[5]Salidas_balance!AP20 -> 0 | EO20: =[5]Salidas_balance!AQ20 -> 0 | EP20: =[5]Salidas_balance!AR20 -> 0 | EQ20: =[5]Salidas_balance!AS20 -> 0 | ES20: =[5]Salidas_balance!AU20 -> 30.75813793 | ET20: =[5]Salidas_balance!AV20 -> 0 | EU20: =[5]Salidas_balance!AW20 -> 0 | EV20: =[5]Salidas_balance!AX20 -> 0 | EW20: =[5]Salidas_balance!AY20 -> 0 | EX20: =[5]Salidas_balance!AZ20 -> 0 | EY20: =[5]Salidas_balance!BA20 -> 0 | EZ20: =[5]Salidas_balance!BB20 -> 0 | FA20: =[5]Salidas_balance!BC20 -> 0 | FB20: =[5]Salidas_balance!BD20 -> 0 | FD20: =[5]Salidas_balance!BF20 -> 0 | FE20: =[5]Salidas_balance!BG20 -> 0 | FF20: =[5]Salidas_balance!BH20 -> 0 | FG20: =[5]Salidas_balance!BI20 -> 0 | FH20: =[5]Salidas_balance!BJ20 -> 0 | FI20: =[5]Salidas_balance!BK20 -> 0 | FJ20: =[5]Salidas_balance!BL20 -> 0 | FK20: =[5]Salidas_balance!BM20 -> 0 | FL20: =[5]Salidas_balance!BN20 -> 0 | FM20: =[5]Salidas_balance!BO20 -> 0 | FO20: =[5]Salidas_balance!BQ20 -> 3.990787619 | FP20: =[5]Salidas_balance!BR20 -> 19.85355556 | FQ20: =[5]Salidas_balance!BS20 -> 42.079 | FR20: =[5]Salidas_balance!BT20 -> 39.73246667 | FS20: =[5]Salidas_balance!BU20 -> 119.611 | FT20: =[5]Salidas_balance!BV20 -> 70.97222222 | FU20: =[5]Salidas_balance!BW20 -> 185.903 | FV20: =[5]Salidas_balance!BX20 -> 354.595 | FW20: =[5]Salidas_balance!BY20 -> 1049.508571 | FX20: =[5]Salidas_balance!BZ20 -> 0 | FZ20: =[5]Salidas_balance!CB20 -> 208.3136381 | GA20: =[5]Salidas_balance!CC20 -> 0 | GB20: =[5]Salidas_balance!CD20 -> 0 | GC20: =[5]Salidas_balance!CE20 -> 0 | GD20: =[5]Salidas_balance!CF20 -> 0 | GE20: =[5]Salidas_balance!CG20 -> 0 | GF20: =[5]Salidas_balance!CH20 -> 0 | GG20: =[5]Salidas_balance!CI20 -> 0 | GH20: =[5]Salidas_balance!CJ20 -> 0 | GI20: =[5]Salidas_balance!CK20 -> 0 | GK20: =[5]Salidas_balance!CM20 -> 45.71430769 | GL20: =[5]Salidas_balance!CN20 -> 0 | GM20: =[5]Salidas_balance!CO20 -> 0 | GN20: =[5]Salidas_balance!CP20 -> 0 | GO20: =[5]Salidas_balance!CQ20 -> 0 | GP20: =[5]Salidas_balance!CR20 -> 0 | GQ20: =[5]Salidas_balance!CS20 -> 0 | GR20: =[5]Salidas_balance!CT20 -> 0 | GS20: =[5]Salidas_balance!CU20 -> 0 | GT20: =[5]Salidas_balance!CV20 -> 0 | GV20: =[5]Salidas_balance!CX20 -> 0 | GW20: =[5]Salidas_balance!CY20 -> 0 | GX20: =[5]Salidas_balance!CZ20 -> 0 | GY20: =[5]Salidas_balance!DA20 -> 0 | GZ20: =[5]Salidas_balance!DB20 -> 0 | HA20: =[5]Salidas_balance!DC20 -> 0 | HB20: =[5]Salidas_balance!DD20 -> 0 | HC20: =[5]Salidas_balance!DE20 -> 0 | HD20: =[5]Salidas_balance!DF20 -> 0 | HE20: =[5]Salidas_balance!DG20 -> 0 | HG20: =[5]Salidas_balance!DI20 -> 8817.126558 | HH20: =[5]Salidas_balance!DJ20 -> 0 | HI20: =[5]Salidas_balance!DK20 -> 0 | HJ20: =[5]Salidas_balance!DL20 -> 0 | HK20: =[5]Salidas_balance!DM20 -> 0 | HL20: =[5]Salidas_balance!DN20 -> 0 | HM20: =[5]Salidas_balance!DO20 -> 0 | HN20: =[5]Salidas_balance!DP20 -> 0 | HO20: =[5]Salidas_balance!DQ20 -> 0 | HP20: =[5]Salidas_balance!DR20 -> 0 | HR20: =[5]Salidas_balance!DT20 -> 1753.770667 | HS20: =[5]Salidas_balance!DU20 -> 0 | HT20: =[5]Salidas_balance!DV20 -> 0 | HU20: =[5]Salidas_balance!DW20 -> 0 | HV20: =[5]Salidas_balance!DX20 -> 0 | HW20: =[5]Salidas_balance!DY20 -> 0 | HX20: =[5]Salidas_balance!DZ20 -> 0 | HY20: =[5]Salidas_balance!EA20 -> 0 | HZ20: =[5]Salidas_balance!EB20 -> 0 | IA20: =[5]Salidas_balance!EC20 -> 0 | IC20: =[5]Salidas_balance!EE20 -> 0 | ID20: =[5]Salidas_balance!EF20 -> 0 | IE20: =[5]Salidas_balance!EG20 -> 0 | IF20: =[5]Salidas_balance!EH20 -> 0 | IG20: =[5]Salidas_balance!EI20 -> 0 | IH20: =[5]Salidas_balance!EJ20 -> 0 | II20: =[5]Salidas_balance!EK20 -> 0 | IJ20: =[5]Salidas_balance!EL20 -> 0 | IK20: =[5]Salidas_balance!EM20 -> 0 | IL20: =[5]Salidas_balance!EN20 -> 0 | IN20: =[5]Salidas_balance!EP20 -> 0 | IO20: =[5]Salidas_balance!EQ20 -> 0 | IP20: =[5]Salidas_balance!ER20 -> 0 | IQ20: =[5]Salidas_balance!ES20 -> 0 | IR20: =[5]Salidas_balance!ET20 -> 0 | IS20: =[5]Salidas_balance!EU20 -> 0 | IT20: =[5]Salidas_balance!EV20 -> 0 | IU20: =[5]Salidas_balance!EW20 -> 0 | IV20: =[5]Salidas_balance!EX20 -> 0 | IW20: =[5]Salidas_balance!EY20 -> 0 | IY20: =[5]Salidas_balance!FA20 -> 23357.51498 | IZ20: =[5]Salidas_balance!FB20 -> 0 | JA20: =[5]Salidas_balance!FC20 -> 0 | JB20: =[5]Salidas_balance!FD20 -> 0 | JC20: =[5]Salidas_balance!FE20 -> 0 | JD20: =[5]Salidas_balance!FF20 -> 0 | JE20: =[5]Salidas_balance!FG20 -> 0 | JF20: =[5]Salidas_balance!FH20 -> 0 | JG20: =[5]Salidas_balance!FI20 -> 0 | JH20: =[5]Salidas_balance!FJ20 -> 0 | JJ20: =[5]Salidas_balance!FL20 -> 0 | JK20: =[5]Salidas_balance!FM20 -> 0 | JL20: =[5]Salidas_balance!FN20 -> 0 | JM20: =[5]Salidas_balance!FO20 -> 0 | JN20: =[5]Salidas_balance!FP20 -> 0 | JO20: =[5]Salidas_balance!FQ20 -> 0 | JP20: =[5]Salidas_balance!FR20 -> 0 | JQ20: =[5]Salidas_balance!FS20 -> 0 | JR20: =[5]Salidas_balance!FT20 -> 0 | JS20: =[5]Salidas_balance!FU20 -> 0 | JU20: =[5]Salidas_balance!FW20 -> 0 | JV20: =[5]Salidas_balance!FX20 -> 0 | JW20: =[5]Salidas_balance!FY20 -> 0 | JX20: =[5]Salidas_balance!FZ20 -> 0 | JY20: =[5]Salidas_balance!GA20 -> 0 | JZ20: =[5]Salidas_balance!GB20 -> 0 | KA20: =[5]Salidas_balance!GC20 -> 0 | KB20: =[5]Salidas_balance!GD20 -> 0 | KC20: =[5]Salidas_balance!GE20 -> 0 | KD20: =[5]Salidas_balance!GF20 -> 0 | KF20: =[5]Salidas_balance!GH20 -> 0 | KG20: =[5]Salidas_balance!GI20 -> 0 | KH20: =[5]Salidas_balance!GJ20 -> 0 | KI20: =[5]Salidas_balance!GK20 -> 0 | KJ20: =[5]Salidas_balance!GL20 -> 0 | KK20: =[5]Salidas_balance!GM20 -> 0 | KL20: =[5]Salidas_balance!GN20 -> 0 | KM20: =[5]Salidas_balance!GO20 -> 0 | KN20: =[5]Salidas_balance!GP20 -> 0 | KO20: =[5]Salidas_balance!GQ20 -> 0 | KQ20: =[5]Salidas_balance!GS20 -> 0 | KR20: =[5]Salidas_balance!GT20 -> 0 | KS20: =[5]Salidas_balance!GU20 -> 0 | KT20: =[5]Salidas_balance!GV20 -> 0 | KU20: =[5]Salidas_balance!GW20 -> 0 | KV20: =[5]Salidas_balance!GX20 -> 0 | KW20: =[5]Salidas_balance!GY20 -> 0 | KX20: =[5]Salidas_balance!GZ20 -> 0 | KY20: =[5]Salidas_balance!HA20 -> 0 | KZ20: =[5]Salidas_balance!HB20 -> 0 | LB20: =[5]Salidas_balance!HD20 -> 0 | LC20: =[5]Salidas_balance!HE20 -> 0 | LD20: =[5]Salidas_balance!HF20 -> 0 | LE20: =[5]Salidas_balance!HG20 -> 0 | LF20: =[5]Salidas_balance!HH20 -> 0 | LG20: =[5]Salidas_balance!HI20 -> 0 | LH20: =[5]Salidas_balance!HJ20 -> 0 | LI20: =[5]Salidas_balance!HK20 -> 0 | LJ20: =[5]Salidas_balance!HL20 -> 0 | LK20: =[5]Salidas_balance!HM20 -> 0 | LM20: Domingo | LN20: 03:15:00
B21: Domingo | C21: 03:30:00 | D21: V | E21: 257420.0022 | F21: 331425.4192 | G21: 393049.0912 | H21: 160327.8624 | I21: 20772.41784 | J21: 32874.17686 | K21: 767.6080796 | L21: 8.165528331e-06 | M21: =IF(M$5="","",SUMPRODUCT(($DA21:$LK21)*($DA$714:$LK$714)*($DA$720:$LK$720=M$5))*AVERAGEIFS($DA$732:$LK$732,$DA$720:$LK$720,M$5)/SUMPRODUCT(($DA$679:$LK$679)*($DA$714:$LK$714)*($DA$720:$LK$720=M$5))) ->  | AB21: =IF(AND($C21>INPUTS!$E$27,$C21<INPUTS!$E$26),0,INPUTS!$E$25/7/(24*(1-INPUTS!$E$26+INPUTS!$E$27))) -> 18796.35132 | AC21: ='Cálculo de Pérdidas'!S23 -> 19217.45152 | AD21: ='Cálculo de Pérdidas'!O23 -> 4664.134174 | AE21: 257420.0022 | AH21: =IF(AH$5="","",SUMPRODUCT(($DA21:$LK21)*($DA$715:$LK$715)*($DA$720:$LK$720=AH$5))*AVERAGEIFS($DA$732:$LK$732,$DA$720:$LK$720,AH$5)/SUMPRODUCT(($DA$679:$LK$679)*($DA$715:$LK$715)*($DA$720:$LK$720=AH$5))) ->  | AL21: 49891.78186 | AM21: 13459.36259 | AN21: 5.866895055e-06 | AZ21: ='Cálculo de Pérdidas'!P23 -> 10654.27253 | BA21: 331425.4192 | BL21: 8604.215445 | BM21: 27067.29522 | BP21: 23638.12993 | BV21: ='Cálculo de Pérdidas'!Q23 -> 2314.031383 | BW21: 393049.0912 | BY21: 181100.2802 | CA21: 33641.78494 | CC21: 160327.8624 | CD21: 20772.41784 | CE21: 32874.17686 | CF21: 767.6080796 | CG21: 8.165528331e-06 | CH21: 0 | CI21: 49891.78186 | CJ21: 13459.36259 | CK21: 5.866895055e-06 | CL21: 0 | CM21: 8604.215445 | CN21: 27067.29522 | CO21: 0 | CP21: 0 | CQ21: 23638.12993 | CR21: 0 | CS21: 0 | CT21: 0 | CU21: 0 | CV21: 0 | DA21: =[5]Salidas_balance!C21 -> 0.05970625 | DB21: =[5]Salidas_balance!D21 -> 0.1601670886 | DC21: =[5]Salidas_balance!E21 -> 0.3235235294 | DD21: =[5]Salidas_balance!F21 -> 0.373732 | DE21: =[5]Salidas_balance!G21 -> 0.8211428571 | DF21: =[5]Salidas_balance!H21 -> 1.7367625 | DG21: =[5]Salidas_balance!I21 -> 3.456169231 | DH21: =[5]Salidas_balance!J21 -> 7.10335 | DI21: =[5]Salidas_balance!K21 -> 13.03791818 | DJ21: =[5]Salidas_balance!L21 -> 0 | DL21: =[5]Salidas_balance!N21 -> 0.1185770833 | DM21: =[5]Salidas_balance!O21 -> 0.3407452381 | DN21: =[5]Salidas_balance!P21 -> 0.5362066667 | DO21: =[5]Salidas_balance!Q21 -> 0.6396857143 | DP21: =[5]Salidas_balance!R21 -> 1.097213333 | DQ21: =[5]Salidas_balance!S21 -> 2.856175 | DR21: =[5]Salidas_balance!T21 -> 2.524444444 | DS21: =[5]Salidas_balance!U21 -> 8.146438889 | DT21: =[5]Salidas_balance!V21 -> 29.985 | DU21: =[5]Salidas_balance!W21 -> 0 | DW21: =[5]Salidas_balance!Y21 -> 2.109696875 | DX21: =[5]Salidas_balance!Z21 -> 2.701294118 | DY21: =[5]Salidas_balance!AA21 -> 4.337861905 | DZ21: =[5]Salidas_balance!AB21 -> 7.292676923 | EA21: =[5]Salidas_balance!AC21 -> 13.86285334 | EB21: =[5]Salidas_balance!AD21 -> 26.21361897 | EC21: =[5]Salidas_balance!AE21 -> 30.705 | ED21: =[5]Salidas_balance!AF21 -> 24.18866667 | EE21: =[5]Salidas_balance!AG21 -> 261.9181818 | EF21: =[5]Salidas_balance!AH21 -> 0 | EH21: =[5]Salidas_balance!AJ21 -> 10.13534545 | EI21: =[5]Salidas_balance!AK21 -> 0 | EJ21: =[5]Salidas_balance!AL21 -> 0 | EK21: =[5]Salidas_balance!AM21 -> 0 | EL21: =[5]Salidas_balance!AN21 -> 0 | EM21: =[5]Salidas_balance!AO21 -> 0 | EN21: =[5]Salidas_balance!AP21 -> 0 | EO21: =[5]Salidas_balance!AQ21 -> 0 | EP21: =[5]Salidas_balance!AR21 -> 0 | EQ21: =[5]Salidas_balance!AS21 -> 0 | ES21: =[5]Salidas_balance!AU21 -> 30.53889655 | ET21: =[5]Salidas_balance!AV21 -> 0 | EU21: =[5]Salidas_balance!AW21 -> 0 | EV21: =[5]Salidas_balance!AX21 -> 0 | EW21: =[5]Salidas_balance!AY21 -> 0 | EX21: =[5]Salidas_balance!AZ21 -> 0 | EY21: =[5]Salidas_balance!BA21 -> 0 | EZ21: =[5]Salidas_balance!BB21 -> 0 | FA21: =[5]Salidas_balance!BC21 -> 0 | FB21: =[5]Salidas_balance!BD21 -> 0 | FD21: =[5]Salidas_balance!BF21 -> 0 | FE21: =[5]Salidas_balance!BG21 -> 0 | FF21: =[5]Salidas_balance!BH21 -> 0 | FG21: =[5]Salidas_balance!BI21 -> 0 | FH21: =[5]Salidas_balance!BJ21 -> 0 | FI21: =[5]Salidas_balance!BK21 -> 0 | FJ21: =[5]Salidas_balance!BL21 -> 0 | FK21: =[5]Salidas_balance!BM21 -> 0 | FL21: =[5]Salidas_balance!BN21 -> 0 | FM21: =[5]Salidas_balance!BO21 -> 0 | FO21: =[5]Salidas_balance!BQ21 -> 4.064606667 | FP21: =[5]Salidas_balance!BR21 -> 19.88855556 | FQ21: =[5]Salidas_balance!BS21 -> 41.941 | FR21: =[5]Salidas_balance!BT21 -> 39.29193333 | FS21: =[5]Salidas_balance!BU21 -> 121.807 | FT21: =[5]Salidas_balance!BV21 -> 71.82388889 | FU21: =[5]Salidas_balance!BW21 -> 181.713 | FV21: =[5]Salidas_balance!BX21 -> 351.485 | FW21: =[5]Salidas_balance!BY21 -> 1048.101071 | FX21: =[5]Salidas_balance!BZ21 -> 0 | FZ21: =[5]Salidas_balance!CB21 -> 206.5052286 | GA21: =[5]Salidas_balance!CC21 -> 0 | GB21: =[5]Salidas_balance!CD21 -> 0 | GC21: =[5]Salidas_balance!CE21 -> 0 | GD21: =[5]Salidas_balance!CF21 -> 0 | GE21: =[5]Salidas_balance!CG21 -> 0 | GF21: =[5]Salidas_balance!CH21 -> 0 | GG21: =[5]Salidas_balance!CI21 -> 0 | GH21: =[5]Salidas_balance!CJ21 -> 0 | GI21: =[5]Salidas_balance!CK21 -> 0 | GK21: =[5]Salidas_balance!CM21 -> 45.78807692 | GL21: =[5]Salidas_balance!CN21 -> 0 | GM21: =[5]Salidas_balance!CO21 -> 0 | GN21: =[5]Salidas_balance!CP21 -> 0 | GO21: =[5]Salidas_balance!CQ21 -> 0 | GP21: =[5]Salidas_balance!CR21 -> 0 | GQ21: =[5]Salidas_balance!CS21 -> 0 | GR21: =[5]Salidas_balance!CT21 -> 0 | GS21: =[5]Salidas_balance!CU21 -> 0 | GT21: =[5]Salidas_balance!CV21 -> 0 | GV21: =[5]Salidas_balance!CX21 -> 0 | GW21: =[5]Salidas_balance!CY21 -> 0 | GX21: =[5]Salidas_balance!CZ21 -> 0 | GY21: =[5]Salidas_balance!DA21 -> 0 | GZ21: =[5]Salidas_balance!DB21 -> 0 | HA21: =[5]Salidas_balance!DC21 -> 0 | HB21: =[5]Salidas_balance!DD21 -> 0 | HC21: =[5]Salidas_balance!DE21 -> 0 | HD21: =[5]Salidas_balance!DF21 -> 0 | HE21: =[5]Salidas_balance!DG21 -> 0 | HG21: =[5]Salidas_balance!DI21 -> 8832.246231 | HH21: =[5]Salidas_balance!DJ21 -> 0 | HI21: =[5]Salidas_balance!DK21 -> 0 | HJ21: =[5]Salidas_balance!DL21 -> 0 | HK21: =[5]Salidas_balance!DM21 -> 0 | HL21: =[5]Salidas_balance!DN21 -> 0 | HM21: =[5]Salidas_balance!DO21 -> 0 | HN21: =[5]Salidas_balance!DP21 -> 0 | HO21: =[5]Salidas_balance!DQ21 -> 0 | HP21: =[5]Salidas_balance!DR21 -> 0 | HR21: =[5]Salidas_balance!DT21 -> 1752.769333 | HS21: =[5]Salidas_balance!DU21 -> 0 | HT21: =[5]Salidas_balance!DV21 -> 0 | HU21: =[5]Salidas_balance!DW21 -> 0 | HV21: =[5]Salidas_balance!DX21 -> 0 | HW21: =[5]Salidas_balance!DY21 -> 0 | HX21: =[5]Salidas_balance!DZ21 -> 0 | HY21: =[5]Salidas_balance!EA21 -> 0 | HZ21: =[5]Salidas_balance!EB21 -> 0 | IA21: =[5]Salidas_balance!EC21 -> 0 | IC21: =[5]Salidas_balance!EE21 -> 0 | ID21: =[5]Salidas_balance!EF21 -> 0 | IE21: =[5]Salidas_balance!EG21 -> 0 | IF21: =[5]Salidas_balance!EH21 -> 0 | IG21: =[5]Salidas_balance!EI21 -> 0 | IH21: =[5]Salidas_balance!EJ21 -> 0 | II21: =[5]Salidas_balance!EK21 -> 0 | IJ21: =[5]Salidas_balance!EL21 -> 0 | IK21: =[5]Salidas_balance!EM21 -> 0 | IL21: =[5]Salidas_balance!EN21 -> 0 | IN21: =[5]Salidas_balance!EP21 -> 0 | IO21: =[5]Salidas_balance!EQ21 -> 0 | IP21: =[5]Salidas_balance!ER21 -> 0 | IQ21: =[5]Salidas_balance!ES21 -> 0 | IR21: =[5]Salidas_balance!ET21 -> 0 | IS21: =[5]Salidas_balance!EU21 -> 0 | IT21: =[5]Salidas_balance!EV21 -> 0 | IU21: =[5]Salidas_balance!EW21 -> 0 | IV21: =[5]Salidas_balance!EX21 -> 0 | IW21: =[5]Salidas_balance!EY21 -> 0 | IY21: =[5]Salidas_balance!FA21 -> 23533.36025 | IZ21: =[5]Salidas_balance!FB21 -> 0 | JA21: =[5]Salidas_balance!FC21 -> 0 | JB21: =[5]Salidas_balance!FD21 -> 0 | JC21: =[5]Salidas_balance!FE21 -> 0 | JD21: =[5]Salidas_balance!FF21 -> 0 | JE21: =[5]Salidas_balance!FG21 -> 0 | JF21: =[5]Salidas_balance!FH21 -> 0 | JG21: =[5]Salidas_balance!FI21 -> 0 | JH21: =[5]Salidas_balance!FJ21 -> 0 | JJ21: =[5]Salidas_balance!FL21 -> 0 | JK21: =[5]Salidas_balance!FM21 -> 0 | JL21: =[5]Salidas_balance!FN21 -> 0 | JM21: =[5]Salidas_balance!FO21 -> 0 | JN21: =[5]Salidas_balance!FP21 -> 0 | JO21: =[5]Salidas_balance!FQ21 -> 0 | JP21: =[5]Salidas_balance!FR21 -> 0 | JQ21: =[5]Salidas_balance!FS21 -> 0 | JR21: =[5]Salidas_balance!FT21 -> 0 | JS21: =[5]Salidas_balance!FU21 -> 0 | JU21: =[5]Salidas_balance!FW21 -> 0 | JV21: =[5]Salidas_balance!FX21 -> 0 | JW21: =[5]Salidas_balance!FY21 -> 0 | JX21: =[5]Salidas_balance!FZ21 -> 0 | JY21: =[5]Salidas_balance!GA21 -> 0 | JZ21: =[5]Salidas_balance!GB21 -> 0 | KA21: =[5]Salidas_balance!GC21 -> 0 | KB21: =[5]Salidas_balance!GD21 -> 0 | KC21: =[5]Salidas_balance!GE21 -> 0 | KD21: =[5]Salidas_balance!GF21 -> 0 | KF21: =[5]Salidas_balance!GH21 -> 0 | KG21: =[5]Salidas_balance!GI21 -> 0 | KH21: =[5]Salidas_balance!GJ21 -> 0 | KI21: =[5]Salidas_balance!GK21 -> 0 | KJ21: =[5]Salidas_balance!GL21 -> 0 | KK21: =[5]Salidas_balance!GM21 -> 0 | KL21: =[5]Salidas_balance!GN21 -> 0 | KM21: =[5]Salidas_balance!GO21 -> 0 | KN21: =[5]Salidas_balance!GP21 -> 0 | KO21: =[5]Salidas_balance!GQ21 -> 0 | KQ21: =[5]Salidas_balance!GS21 -> 0 | KR21: =[5]Salidas_balance!GT21 -> 0 | KS21: =[5]Salidas_balance!GU21 -> 0 | KT21: =[5]Salidas_balance!GV21 -> 0 | KU21: =[5]Salidas_balance!GW21 -> 0 | KV21: =[5]Salidas_balance!GX21 -> 0 | KW21: =[5]Salidas_balance!GY21 -> 0 | KX21: =[5]Salidas_balance!GZ21 -> 0 | KY21: =[5]Salidas_balance!HA21 -> 0 | KZ21: =[5]Salidas_balance!HB21 -> 0 | LB21: =[5]Salidas_balance!HD21 -> 0 | LC21: =[5]Salidas_balance!HE21 -> 0 | LD21: =[5]Salidas_balance!HF21 -> 0 | LE21: =[5]Salidas_balance!HG21 -> 0 | LF21: =[5]Salidas_balance!HH21 -> 0 | LG21: =[5]Salidas_balance!HI21 -> 0 | LH21: =[5]Salidas_balance!HJ21 -> 0 | LI21: =[5]Salidas_balance!HK21 -> 0 | LJ21: =[5]Salidas_balance!HL21 -> 0 | LK21: =[5]Salidas_balance!HM21 -> 0 | LM21: Domingo | LN21: 03:30:00
B22: Domingo | C22: 03:45:00 | D22: V | E22: 257812.4536 | F22: 332137.8546 | G22: 393863.2706 | H22: 160549.2774 | I22: 20563.83614 | J22: 33190.03547 | K22: 765.2094363 | L22: 8.237481547e-06 | AB22: =IF(AND($C22>INPUTS!$E$27,$C22<INPUTS!$E$26),0,INPUTS!$E$25/7/(24*(1-INPUTS!$E$26+INPUTS!$E$27))) -> 18796.35132 | AC22: ='Cálculo de Pérdidas'!S24 -> 19270.56732 | AD22: ='Cálculo de Pérdidas'!O24 -> 4677.176474 | AE22: 257812.4536 | AL22: 50106.31188 | AM22: 13520.39482 | AN22: 5.848956644e-06 | AZ22: ='Cálculo de Pérdidas'!P24 -> 10698.6943 | BA22: 332137.8546 | BL22: 8645.082269 | BM22: 27163.96582 | BP22: 23592.79609 | BR22: =IF(BR$5="","",SUMPRODUCT(($DA22:$LK22)*($DA$716:$LK$716)*($DA$720:$LK$720=BR$5))*AVERAGEIFS($DA$732:$LK$732,$DA$720:$LK$720,BR$5)/SUMPRODUCT(($DA$679:$LK$679)*($DA$716:$LK$716)*($DA$720:$LK$720=BR$5))) ->  | BV22: ='Cálculo de Pérdidas'!Q24 -> 2323.571746 | BW22: 393863.2706 | BY22: 181113.1136 | CA22: 33955.24491 | CC22: =IF(CC$5="","",SUMIF($H$5:$BW$5,CC$5,$H22:$BW22)) -> 160549.2774 | CD22: 20563.83614 | CE22: 33190.03547 | CF22: 765.2094363 | CG22: 8.237481547e-06 | CH22: 0 | CI22: 50106.31188 | CJ22: 13520.39482 | CK22: 5.848956644e-06 | CL22: 0 | CM22: 8645.082269 | CN22: 27163.96582 | CO22: 0 | CP22: 0 | CQ22: =IF(CQ$5="","",SUMIF($H$5:$BW$5,CQ$5,$H22:$BW22)) -> 23592.79609 | CR22: =IF(CR$5="","",SUMIF($H$5:$BW$5,CR$5,$H22:$BW22)) -> 0 | CS22: 0 | CT22: 0 | CU22: 0 | CV22: 0 | DA22: =[5]Salidas_balance!C22 -> 0.05958125 | DB22: =[5]Salidas_balance!D22 -> 0.1596962025 | DC22: =[5]Salidas_balance!E22 -> 0.3235882353 | DD22: =[5]Salidas_balance!F22 -> 0.374952 | DE22: =[5]Salidas_balance!G22 -> 0.8580571429 | DF22: =[5]Salidas_balance!H22 -> 1.6724875 | DG22: =[5]Salidas_balance!I22 -> 3.521707692 | DH22: =[5]Salidas_balance!J22 -> 6.89935 | DI22: =[5]Salidas_balance!K22 -> 13.00933636 | DJ22: =[5]Salidas_balance!L22 -> 0 | DL22: =[5]Salidas_balance!N22 -> 0.1231958333 | DM22: =[5]Salidas_balance!O22 -> 0.3469166667 | DN22: =[5]Salidas_balance!P22 -> 0.52886 | DO22: =[5]Salidas_balance!Q22 -> 0.6280047619 | DP22: =[5]Salidas_balance!R22 -> 1.096846667 | DQ22: =[5]Salidas_balance!S22 -> 2.8175375 | DR22: =[5]Salidas_balance!T22 -> 2.410922222 | DS22: =[5]Salidas_balance!U22 -> 8.043788889 | DT22: =[5]Salidas_balance!V22 -> 30.76425 | DU22: =[5]Salidas_balance!W22 -> 0 | DW22: =[5]Salidas_balance!Y22 -> 2.10975625 | DX22: =[5]Salidas_balance!Z22 -> 2.649123529 | DY22: =[5]Salidas_balance!AA22 -> 4.403852381 | DZ22: =[5]Salidas_balance!AB22 -> 7.411484615 | EA22: =[5]Salidas_balance!AC22 -> 13.93662003 | EB22: =[5]Salidas_balance!AD22 -> 26.18373144 | EC22: =[5]Salidas_balance!AE22 -> 30.901 | ED22: =[5]Salidas_balance!AF22 -> 26.62533333 | EE22: =[5]Salidas_balance!AG22 -> 261.5138182 | EF22: =[5]Salidas_balance!AH22 -> 0 | EH22: =[5]Salidas_balance!AJ22 -> 10.10367424 | EI22: =[5]Salidas_balance!AK22 -> 0 | EJ22: =[5]Salidas_balance!AL22 -> 0 | EK22: =[5]Salidas_balance!AM22 -> 0 | EL22: =[5]Salidas_balance!AN22 -> 0 | EM22: =[5]Salidas_balance!AO22 -> 0 | EN22: =[5]Salidas_balance!AP22 -> 0 | EO22: =[5]Salidas_balance!AQ22 -> 0 | EP22: =[5]Salidas_balance!AR22 -> 0 | EQ22: =[5]Salidas_balance!AS22 -> 0 | ES22: =[5]Salidas_balance!AU22 -> 30.808 | ET22: =[5]Salidas_balance!AV22 -> 0 | EU22: =[5]Salidas_balance!AW22 -> 0 | EV22: =[5]Salidas_balance!AX22 -> 0 | EW22: =[5]Salidas_balance!AY22 -> 0 | EX22: =[5]Salidas_balance!AZ22 -> 0 | EY22: =[5]Salidas_balance!BA22 -> 0 | EZ22: =[5]Salidas_balance!BB22 -> 0 | FA22: =[5]Salidas_balance!BC22 -> 0 | FB22: =[5]Salidas_balance!BD22 -> 0 | FD22: =[5]Salidas_balance!BF22 -> 0 | FE22: =[5]Salidas_balance!BG22 -> 0 | FF22: =[5]Salidas_balance!BH22 -> 0 | FG22: =[5]Salidas_balance!BI22 -> 0 | FH22: =[5]Salidas_balance!BJ22 -> 0 | FI22: =[5]Salidas_balance!BK22 -> 0 | FJ22: =[5]Salidas_balance!BL22 -> 0 | FK22: =[5]Salidas_balance!BM22 -> 0 | FL22: =[5]Salidas_balance!BN22 -> 0 | FM22: =[5]Salidas_balance!BO22 -> 0 | FO22: =[5]Salidas_balance!BQ22 -> 4.13634 | FP22: =[5]Salidas_balance!BR22 -> 19.97605556 | FQ22: =[5]Salidas_balance!BS22 -> 41.7155 | FR22: =[5]Salidas_balance!BT22 -> 38.5966 | FS22: =[5]Salidas_balance!BU22 -> 120.261 | FT22: =[5]Salidas_balance!BV22 -> 75.90955556 | FU22: =[5]Salidas_balance!BW22 -> 187.464 | FV22: =[5]Salidas_balance!BX22 -> 354.092 | FW22: =[5]Salidas_balance!BY22 -> 1042.827857 | FX22: =[5]Salidas_balance!BZ22 -> 0 | FZ22: =[5]Salidas_balance!CB22 -> 207.4416381 | GA22: =[5]Salidas_balance!CC22 -> 0 | GB22: =[5]Salidas_balance!CD22 -> 0 | GC22: =[5]Salidas_balance!CE22 -> 0 | GD22: =[5]Salidas_balance!CF22 -> 0 | GE22: =[5]Salidas_balance!CG22 -> 0 | GF22: =[5]Salidas_balance!CH22 -> 0 | GG22: =[5]Salidas_balance!CI22 -> 0 | GH22: =[5]Salidas_balance!CJ22 -> 0 | GI22: =[5]Salidas_balance!CK22 -> 0 | GK22: =[5]Salidas_balance!CM22 -> 45.64807692 | GL22: =[5]Salidas_balance!CN22 -> 0 | GM22: =[5]Salidas_balance!CO22 -> 0 | GN22: =[5]Salidas_balance!CP22 -> 0 | GO22: =[5]Salidas_balance!CQ22 -> 0 | GP22: =[5]Salidas_balance!CR22 -> 0 | GQ22: =[5]Salidas_balance!CS22 -> 0 | GR22: =[5]Salidas_balance!CT22 -> 0 | GS22: =[5]Salidas_balance!CU22 -> 0 | GT22: =[5]Salidas_balance!CV22 -> 0 | GV22: =[5]Salidas_balance!CX22 -> 0 | GW22: =[5]Salidas_balance!CY22 -> 0 | GX22: =[5]Salidas_balance!CZ22 -> 0 | GY22: =[5]Salidas_balance!DA22 -> 0 | GZ22: =[5]Salidas_balance!DB22 -> 0 | HA22: =[5]Salidas_balance!DC22 -> 0 | HB22: =[5]Salidas_balance!DD22 -> 0 | HC22: =[5]Salidas_balance!DE22 -> 0 | HD22: =[5]Salidas_balance!DF22 -> 0 | HE22: =[5]Salidas_balance!DG22 -> 0 | HG22: =[5]Salidas_balance!DI22 -> 8874.196115 | HH22: =[5]Salidas_balance!DJ22 -> 0 | HI22: =[5]Salidas_balance!DK22 -> 0 | HJ22: =[5]Salidas_balance!DL22 -> 0 | HK22: =[5]Salidas_balance!DM22 -> 0 | HL22: =[5]Salidas_balance!DN22 -> 0 | HM22: =[5]Salidas_balance!DO22 -> 0 | HN22: =[5]Salidas_balance!DP22 -> 0 | HO22: =[5]Salidas_balance!DQ22 -> 0 | HP22: =[5]Salidas_balance!DR22 -> 0 | HR22: =[5]Salidas_balance!DT22 -> 1759.029333 | HS22: =[5]Salidas_balance!DU22 -> 0 | HT22: =[5]Salidas_balance!DV22 -> 0 | HU22: =[5]Salidas_balance!DW22 -> 0 | HV22: =[5]Salidas_balance!DX22 -> 0 | HW22: =[5]Salidas_balance!DY22 -> 0 | HX22: =[5]Salidas_balance!DZ22 -> 0 | HY22: =[5]Salidas_balance!EA22 -> 0 | HZ22: =[5]Salidas_balance!EB22 -> 0 | IA22: =[5]Salidas_balance!EC22 -> 0 | IC22: =[5]Salidas_balance!EE22 -> 0 | ID22: =[5]Salidas_balance!EF22 -> 0 | IE22: =[5]Salidas_balance!EG22 -> 0 | IF22: =[5]Salidas_balance!EH22 -> 0 | IG22: =[5]Salidas_balance!EI22 -> 0 | IH22: =[5]Salidas_balance!EJ22 -> 0 | II22: =[5]Salidas_balance!EK22 -> 0 | IJ22: =[5]Salidas_balance!EL22 -> 0 | IK22: =[5]Salidas_balance!EM22 -> 0 | IL22: =[5]Salidas_balance!EN22 -> 0 | IN22: =[5]Salidas_balance!EP22 -> 0 | IO22: =[5]Salidas_balance!EQ22 -> 0 | IP22: =[5]Salidas_balance!ER22 -> 0 | IQ22: =[5]Salidas_balance!ES22 -> 0 | IR22: =[5]Salidas_balance!ET22 -> 0 | IS22: =[5]Salidas_balance!EU22 -> 0 | IT22: =[5]Salidas_balance!EV22 -> 0 | IU22: =[5]Salidas_balance!EW22 -> 0 | IV22: =[5]Salidas_balance!EX22 -> 0 | IW22: =[5]Salidas_balance!EY22 -> 0 | IY22: =[5]Salidas_balance!FA22 -> 23488.22735 | IZ22: =[5]Salidas_balance!FB22 -> 0 | JA22: =[5]Salidas_balance!FC22 -> 0 | JB22: =[5]Salidas_balance!FD22 -> 0 | JC22: =[5]Salidas_balance!FE22 -> 0 | JD22: =[5]Salidas_balance!FF22 -> 0 | JE22: =[5]Salidas_balance!FG22 -> 0 | JF22: =[5]Salidas_balance!FH22 -> 0 | JG22: =[5]Salidas_balance!FI22 -> 0 | JH22: =[5]Salidas_balance!FJ22 -> 0 | JJ22: =[5]Salidas_balance!FL22 -> 0 | JK22: =[5]Salidas_balance!FM22 -> 0 | JL22: =[5]Salidas_balance!FN22 -> 0 | JM22: =[5]Salidas_balance!FO22 -> 0 | JN22: =[5]Salidas_balance!FP22 -> 0 | JO22: =[5]Salidas_balance!FQ22 -> 0 | JP22: =[5]Salidas_balance!FR22 -> 0 | JQ22: =[5]Salidas_balance!FS22 -> 0 | JR22: =[5]Salidas_balance!FT22 -> 0 | JS22: =[5]Salidas_balance!FU22 -> 0 | JU22: =[5]Salidas_balance!FW22 -> 0 | JV22: =[5]Salidas_balance!FX22 -> 0 | JW22: =[5]Salidas_balance!FY22 -> 0 | JX22: =[5]Salidas_balance!FZ22 -> 0 | JY22: =[5]Salidas_balance!GA22 -> 0 | JZ22: =[5]Salidas_balance!GB22 -> 0 | KA22: =[5]Salidas_balance!GC22 -> 0 | KB22: =[5]Salidas_balance!GD22 -> 0 | KC22: =[5]Salidas_balance!GE22 -> 0 | KD22: =[5]Salidas_balance!GF22 -> 0 | KF22: =[5]Salidas_balance!GH22 -> 0 | KG22: =[5]Salidas_balance!GI22 -> 0 | KH22: =[5]Salidas_balance!GJ22 -> 0 | KI22: =[5]Salidas_balance!GK22 -> 0 | KJ22: =[5]Salidas_balance!GL22 -> 0 | KK22: =[5]Salidas_balance!GM22 -> 0 | KL22: =[5]Salidas_balance!GN22 -> 0 | KM22: =[5]Salidas_balance!GO22 -> 0 | KN22: =[5]Salidas_balance!GP22 -> 0 | KO22: =[5]Salidas_balance!GQ22 -> 0 | KQ22: =[5]Salidas_balance!GS22 -> 0 | KR22: =[5]Salidas_balance!GT22 -> 0 | KS22: =[5]Salidas_balance!GU22 -> 0 | KT22: =[5]Salidas_balance!GV22 -> 0 | KU22: =[5]Salidas_balance!GW22 -> 0 | KV22: =[5]Salidas_balance!GX22 -> 0 | KW22: =[5]Salidas_balance!GY22 -> 0 | KX22: =[5]Salidas_balance!GZ22 -> 0 | KY22: =[5]Salidas_balance!HA22 -> 0 | KZ22: =[5]Salidas_balance!HB22 -> 0 | LB22: =[5]Salidas_balance!HD22 -> 0 | LC22: =[5]Salidas_balance!HE22 -> 0 | LD22: =[5]Salidas_balance!HF22 -> 0 | LE22: =[5]Salidas_balance!HG22 -> 0 | LF22: =[5]Salidas_balance!HH22 -> 0 | LG22: =[5]Salidas_balance!HI22 -> 0 | LH22: =[5]Salidas_balance!HJ22 -> 0 | LI22: =[5]Salidas_balance!HK22 -> 0 | LJ22: =[5]Salidas_balance!HL22 -> 0 | LK22: =[5]Salidas_balance!HM22 -> 0 | LM22: Domingo | LN22: 03:45:00
B23: Domingo | C23: 04:00:00 | D23: V | E23: 254355.1494 | F23: 328839.7113 | G23: 390418.2277 | H23: 157528.6124 | I23: 20414.70062 | J23: 33726.68132 | K23: 764.1456931 | L23: 8.245779586e-06 | AB23: =IF(AND($C23>INPUTS!$E$27,$C23<INPUTS!$E$26),0,INPUTS!$E$25/7/(24*(1-INPUTS!$E$26+INPUTS!$E$27))) -> 18796.35132 | AC23: ='Cálculo de Pérdidas'!S25 -> 18552.25415 | AD23: ='Cálculo de Pérdidas'!O25 -> 4572.403804 | AE23: 254355.1494 | AL23: 50588.55592 | AM23: 13402.22918 | AN23: 6.628311575e-06 | AZ23: ='Cálculo de Pérdidas'!P25 -> 10493.77684 | BA23: 328839.7113 | BL23: 8590.84727 | BM23: 27245.71889 | BP23: 23458.61408 | BV23: ='Cálculo de Pérdidas'!Q25 -> 2283.336154 | BW23: 390418.2277 | BY23: 177943.3131 | CA23: 34490.82702 | CC23: 157528.6124 | CD23: 20414.70062 | CE23: 33726.68132 | CF23: 764.1456931 | CG23: 8.245779586e-06 | CH23: 0 | CI23: 50588.55592 | CJ23: 13402.22918 | CK23: 6.628311575e-06 | CL23: 0 | CM23: 8590.84727 | CN23: 27245.71889 | CO23: 0 | CP23: 0 | CQ23: =IF(CQ$5="","",SUMIF($H$5:$BW$5,CQ$5,$H23:$BW23)) -> 23458.61408 | CR23: 0 | CS23: 0 | CT23: 0 | CU23: 0 | CV23: 0 | DA23: =[5]Salidas_balance!C23 -> 0.061278125 | DB23: =[5]Salidas_balance!D23 -> 0.1543417722 | DC23: =[5]Salidas_balance!E23 -> 0.3165882353 | DD23: =[5]Salidas_balance!F23 -> 0.375028 | DE23: =[5]Salidas_balance!G23 -> 0.8043285714 | DF23: =[5]Salidas_balance!H23 -> 1.68305625 | DG23: =[5]Salidas_balance!I23 -> 3.423023077 | DH23: =[5]Salidas_balance!J23 -> 7.071908333 | DI23: =[5]Salidas_balance!K23 -> 13.36457273 | DJ23: =[5]Salidas_balance!L23 -> 0 | DL23: =[5]Salidas_balance!N23 -> 0.115825 | DM23: =[5]Salidas_balance!O23 -> 0.3470904762 | DN23: =[5]Salidas_balance!P23 -> 0.53366 | DO23: =[5]Salidas_balance!Q23 -> 0.6411428571 | DP23: =[5]Salidas_balance!R23 -> 1.058673333 | DQ23: =[5]Salidas_balance!S23 -> 2.79164375 | DR23: =[5]Salidas_balance!T23 -> 2.584822222 | DS23: =[5]Salidas_balance!U23 -> 7.628188889 | DT23: =[5]Salidas_balance!V23 -> 28.669875 | DU23: =[5]Salidas_balance!W23 -> 0 | DW23: =[5]Salidas_balance!Y23 -> 2.095259375 | DX23: =[5]Salidas_balance!Z23 -> 3.2959 | DY23: =[5]Salidas_balance!AA23 -> 4.88867619 | DZ23: =[5]Salidas_balance!AB23 -> 7.264715385 | EA23: =[5]Salidas_balance!AC23 -> 14.36349336 | EB23: =[5]Salidas_balance!AD23 -> 24.88928746 | EC23: =[5]Salidas_balance!AE23 -> 30.792 | ED23: =[5]Salidas_balance!AF23 -> 24.68066667 | EE23: =[5]Salidas_balance!AG23 -> 260.4127273 | EF23: =[5]Salidas_balance!AH23 -> 0 | EH23: =[5]Salidas_balance!AJ23 -> 10.08962879 | EI23: =[5]Salidas_balance!AK23 -> 0 | EJ23: =[5]Salidas_balance!AL23 -> 0 | EK23: =[5]Salidas_balance!AM23 -> 0 | EL23: =[5]Salidas_balance!AN23 -> 0 | EM23: =[5]Salidas_balance!AO23 -> 0 | EN23: =[5]Salidas_balance!AP23 -> 0 | EO23: =[5]Salidas_balance!AQ23 -> 0 | EP23: =[5]Salidas_balance!AR23 -> 0 | EQ23: =[5]Salidas_balance!AS23 -> 0 | ES23: =[5]Salidas_balance!AU23 -> 30.83903448 | ET23: =[5]Salidas_balance!AV23 -> 0 | EU23: =[5]Salidas_balance!AW23 -> 0 | EV23: =[5]Salidas_balance!AX23 -> 0 | EW23: =[5]Salidas_balance!AY23 -> 0 | EX23: =[5]Salidas_balance!AZ23 -> 0 | EY23: =[5]Salidas_balance!BA23 -> 0 | EZ23: =[5]Salidas_balance!BB23 -> 0 | FA23: =[5]Salidas_balance!BC23 -> 0 | FB23: =[5]Salidas_balance!BD23 -> 0 | FD23: =[5]Salidas_balance!BF23 -> 0 | FE23: =[5]Salidas_balance!BG23 -> 0 | FF23: =[5]Salidas_balance!BH23 -> 0 | FG23: =[5]Salidas_balance!BI23 -> 0 | FH23: =[5]Salidas_balance!BJ23 -> 0 | FI23: =[5]Salidas_balance!BK23 -> 0 | FJ23: =[5]Salidas_balance!BL23 -> 0 | FK23: =[5]Salidas_balance!BM23 -> 0 | FL23: =[5]Salidas_balance!BN23 -> 0 | FM23: =[5]Salidas_balance!BO23 -> 0 | FO23: =[5]Salidas_balance!BQ23 -> 3.93036381 | FP23: =[5]Salidas_balance!BR23 -> 19.82711111 | FQ23: =[5]Salidas_balance!BS23 -> 41.9875 | FR23: =[5]Salidas_balance!BT23 -> 38.4426 | FS23: =[5]Salidas_balance!BU23 -> 121.39 | FT23: =[5]Salidas_balance!BV23 -> 85.31522222 | FU23: =[5]Salidas_balance!BW23 -> 186.774 | FV23: =[5]Salidas_balance!BX23 -> 349.93 | FW23: =[5]Salidas_balance!BY23 -> 1056.959286 | FX23: =[5]Salidas_balance!BZ23 -> 0 | FZ23: =[5]Salidas_balance!CB23 -> 205.6286381 | GA23: =[5]Salidas_balance!CC23 -> 0 | GB23: =[5]Salidas_balance!CD23 -> 0 | GC23: =[5]Salidas_balance!CE23 -> 0 | GD23: =[5]Salidas_balance!CF23 -> 0 | GE23: =[5]Salidas_balance!CG23 -> 0 | GF23: =[5]Salidas_balance!CH23 -> 0 | GG23: =[5]Salidas_balance!CI23 -> 0 | GH23: =[5]Salidas_balance!CJ23 -> 0 | GI23: =[5]Salidas_balance!CK23 -> 0 | GK23: =[5]Salidas_balance!CM23 -> 51.73053846 | GL23: =[5]Salidas_balance!CN23 -> 0 | GM23: =[5]Salidas_balance!CO23 -> 0 | GN23: =[5]Salidas_balance!CP23 -> 0 | GO23: =[5]Salidas_balance!CQ23 -> 0 | GP23: =[5]Salidas_balance!CR23 -> 0 | GQ23: =[5]Salidas_balance!CS23 -> 0 | GR23: =[5]Salidas_balance!CT23 -> 0 | GS23: =[5]Salidas_balance!CU23 -> 0 | GT23: =[5]Salidas_balance!CV23 -> 0 | GV23: =[5]Salidas_balance!CX23 -> 0 | GW23: =[5]Salidas_balance!CY23 -> 0 | GX23: =[5]Salidas_balance!CZ23 -> 0 | GY23: =[5]Salidas_balance!DA23 -> 0 | GZ23: =[5]Salidas_balance!DB23 -> 0 | HA23: =[5]Salidas_balance!DC23 -> 0 | HB23: =[5]Salidas_balance!DD23 -> 0 | HC23: =[5]Salidas_balance!DE23 -> 0 | HD23: =[5]Salidas_balance!DF23 -> 0 | HE23: =[5]Salidas_balance!DG23 -> 0 | HG23: =[5]Salidas_balance!DI23 -> 8818.523769 | HH23: =[5]Salidas_balance!DJ23 -> 0 | HI23: =[5]Salidas_balance!DK23 -> 0 | HJ23: =[5]Salidas_balance!DL23 -> 0 | HK23: =[5]Salidas_balance!DM23 -> 0 | HL23: =[5]Salidas_balance!DN23 -> 0 | HM23: =[5]Salidas_balance!DO23 -> 0 | HN23: =[5]Salidas_balance!DP23 -> 0 | HO23: =[5]Salidas_balance!DQ23 -> 0 | HP23: =[5]Salidas_balance!DR23 -> 0 | HR23: =[5]Salidas_balance!DT23 -> 1764.323333 | HS23: =[5]Salidas_balance!DU23 -> 0 | HT23: =[5]Salidas_balance!DV23 -> 0 | HU23: =[5]Salidas_balance!DW23 -> 0 | HV23: =[5]Salidas_balance!DX23 -> 0 | HW23: =[5]Salidas_balance!DY23 -> 0 | HX23: =[5]Salidas_balance!DZ23 -> 0 | HY23: =[5]Salidas_balance!EA23 -> 0 | HZ23: =[5]Salidas_balance!EB23 -> 0 | IA23: =[5]Salidas_balance!EC23 -> 0 | IC23: =[5]Salidas_balance!EE23 -> 0 | ID23: =[5]Salidas_balance!EF23 -> 0 | IE23: =[5]Salidas_balance!EG23 -> 0 | IF23: =[5]Salidas_balance!EH23 -> 0 | IG23: =[5]Salidas_balance!EI23 -> 0 | IH23: =[5]Salidas_balance!EJ23 -> 0 | II23: =[5]Salidas_balance!EK23 -> 0 | IJ23: =[5]Salidas_balance!EL23 -> 0 | IK23: =[5]Salidas_balance!EM23 -> 0 | IL23: =[5]Salidas_balance!EN23 -> 0 | IN23: =[5]Salidas_balance!EP23 -> 0 | IO23: =[5]Salidas_balance!EQ23 -> 0 | IP23: =[5]Salidas_balance!ER23 -> 0 | IQ23: =[5]Salidas_balance!ES23 -> 0 | IR23: =[5]Salidas_balance!ET23 -> 0 | IS23: =[5]Salidas_balance!EU23 -> 0 | IT23: =[5]Salidas_balance!EV23 -> 0 | IU23: =[5]Salidas_balance!EW23 -> 0 | IV23: =[5]Salidas_balance!EX23 -> 0 | IW23: =[5]Salidas_balance!EY23 -> 0 | IY23: =[5]Salidas_balance!FA23 -> 23354.64006 | IZ23: =[5]Salidas_balance!FB23 -> 0 | JA23: =[5]Salidas_balance!FC23 -> 0 | JB23: =[5]Salidas_balance!FD23 -> 0 | JC23: =[5]Salidas_balance!FE23 -> 0 | JD23: =[5]Salidas_balance!FF23 -> 0 | JE23: =[5]Salidas_balance!FG23 -> 0 | JF23: =[5]Salidas_balance!FH23 -> 0 | JG23: =[5]Salidas_balance!FI23 -> 0 | JH23: =[5]Salidas_balance!FJ23 -> 0 | JJ23: =[5]Salidas_balance!FL23 -> 0 | JK23: =[5]Salidas_balance!FM23 -> 0 | JL23: =[5]Salidas_balance!FN23 -> 0 | JM23: =[5]Salidas_balance!FO23 -> 0 | JN23: =[5]Salidas_balance!FP23 -> 0 | JO23: =[5]Salidas_balance!FQ23 -> 0 | JP23: =[5]Salidas_balance!FR23 -> 0 | JQ23: =[5]Salidas_balance!FS23 -> 0 | JR23: =[5]Salidas_balance!FT23 -> 0 | JS23: =[5]Salidas_balance!FU23 -> 0 | JU23: =[5]Salidas_balance!FW23 -> 0 | JV23: =[5]Salidas_balance!FX23 -> 0 | JW23: =[5]Salidas_balance!FY23 -> 0 | JX23: =[5]Salidas_balance!FZ23 -> 0 | JY23: =[5]Salidas_balance!GA23 -> 0 | JZ23: =[5]Salidas_balance!GB23 -> 0 | KA23: =[5]Salidas_balance!GC23 -> 0 | KB23: =[5]Salidas_balance!GD23 -> 0 | KC23: =[5]Salidas_balance!GE23 -> 0 | KD23: =[5]Salidas_balance!GF23 -> 0 | KF23: =[5]Salidas_balance!GH23 -> 0 | KG23: =[5]Salidas_balance!GI23 -> 0 | KH23: =[5]Salidas_balance!GJ23 -> 0 | KI23: =[5]Salidas_balance!GK23 -> 0 | KJ23: =[5]Salidas_balance!GL23 -> 0 | KK23: =[5]Salidas_balance!GM23 -> 0 | KL23: =[5]Salidas_balance!GN23 -> 0 | KM23: =[5]Salidas_balance!GO23 -> 0 | KN23: =[5]Salidas_balance!GP23 -> 0 | KO23: =[5]Salidas_balance!GQ23 -> 0 | KQ23: =[5]Salidas_balance!GS23 -> 0 | KR23: =[5]Salidas_balance!GT23 -> 0 | KS23: =[5]Salidas_balance!GU23 -> 0 | KT23: =[5]Salidas_balance!GV23 -> 0 | KU23: =[5]Salidas_balance!GW23 -> 0 | KV23: =[5]Salidas_balance!GX23 -> 0 | KW23: =[5]Salidas_balance!GY23 -> 0 | KX23: =[5]Salidas_balance!GZ23 -> 0 | KY23: =[5]Salidas_balance!HA23 -> 0 | KZ23: =[5]Salidas_balance!HB23 -> 0 | LB23: =[5]Salidas_balance!HD23 -> 0 | LC23: =[5]Salidas_balance!HE23 -> 0 | LD23: =[5]Salidas_balance!HF23 -> 0 | LE23: =[5]Salidas_balance!HG23 -> 0 | LF23: =[5]Salidas_balance!HH23 -> 0 | LG23: =[5]Salidas_balance!HI23 -> 0 | LH23: =[5]Salidas_balance!HJ23 -> 0 | LI23: =[5]Salidas_balance!HK23 -> 0 | LJ23: =[5]Salidas_balance!HL23 -> 0 | LK23: =[5]Salidas_balance!HM23 -> 0 | LM23: Domingo | LN23: 04:00:00
B24: Domingo | C24: 04:15:00 | D24: V | E24: 252303.6678 | F24: 325912.2548 | G24: 387383.7175 | H24: 156077.1206 | I24: 20481.45888 | J24: 33461.34086 | K24: 767.9261698 | L24: 8.291824481e-06 | AB24: =IF(AND($C24>INPUTS!$E$27,$C24<INPUTS!$E$26),0,INPUTS!$E$25/7/(24*(1-INPUTS!$E$26+INPUTS!$E$27))) -> 18796.35132 | AC24: ='Cálculo de Pérdidas'!S26 -> 18211.94282 | AD24: ='Cálculo de Pérdidas'!O26 -> 4507.527219 | AE24: 252303.6678 | AL24: 49970.90406 | AM24: 13324.2342 | AN24: 6.587881158e-06 | AZ24: ='Cálculo de Pérdidas'!P26 -> 10313.44868 | BA24: 325912.2548 | BB24: =IF(BB$5="","",SUMPRODUCT(($DA24:$LK24)*($DA$716:$LK$716)*($DA$720:$LK$720=BB$5))*AVERAGEIFS($DA$732:$LK$732,$DA$720:$LK$720,BB$5)/SUMPRODUCT(($DA$679:$LK$679)*($DA$716:$LK$716)*($DA$720:$LK$720=BB$5))) ->  | BL24: 8621.342577 | BM24: 27236.90632 | BP24: 23365.03078 | BV24: ='Cálculo de Pérdidas'!Q26 -> 2248.18302 | BW24: 387383.7175 | BY24: 176558.5794 | CA24: 34229.26703 | CC24: 156077.1206 | CD24: 20481.45888 | CE24: 33461.34086 | CF24: 767.9261698 | CG24: 8.291824481e-06 | CH24: 0 | CI24: 49970.90406 | CJ24: 13324.2342 | CK24: 6.587881158e-06 | CL24: 0 | CM24: 8621.342577 | CN24: 27236.90632 | CO24: 0 | CP24: 0 | CQ24: 23365.03078 | CR24: 0 | CS24: 0 | CT24: 0 | CU24: 0 | CV24: 0 | DA24: =[5]Salidas_balance!C24 -> 0.062784375 | DB24: =[5]Salidas_balance!D24 -> 0.1561696203 | DC24: =[5]Salidas_balance!E24 -> 0.3164235294 | DD24: =[5]Salidas_balance!F24 -> 0.377344 | DE24: =[5]Salidas_balance!G24 -> 0.7789857143 | DF24: =[5]Salidas_balance!H24 -> 1.656075 | DG24: =[5]Salidas_balance!I24 -> 3.301169231 | DH24: =[5]Salidas_balance!J24 -> 6.890725 | DI24: =[5]Salidas_balance!K24 -> 13.31801818 | DJ24: =[5]Salidas_balance!L24 -> 0 | DL24: =[5]Salidas_balance!N24 -> 0.1228375 | DM24: =[5]Salidas_balance!O24 -> 0.3472880952 | DN24: =[5]Salidas_balance!P24 -> 0.52616 | DO24: =[5]Salidas_balance!Q24 -> 0.6158142857 | DP24: =[5]Salidas_balance!R24 -> 1.045453333 | DQ24: =[5]Salidas_balance!S24 -> 2.8943375 | DR24: =[5]Salidas_balance!T24 -> 2.541433333 | DS24: =[5]Salidas_balance!U24 -> 7.719333333 | DT24: =[5]Salidas_balance!V24 -> 26.238125 | DU24: =[5]Salidas_balance!W24 -> 0 | DW24: =[5]Salidas_balance!Y24 -> 2.044209375 | DX24: =[5]Salidas_balance!Z24 -> 2.607782353 | DY24: =[5]Salidas_balance!AA24 -> 5.05762381 | DZ24: =[5]Salidas_balance!AB24 -> 7.166176923 | EA24: =[5]Salidas_balance!AC24 -> 14.8070467 | EB24: =[5]Salidas_balance!AD24 -> 25.66389994 | EC24: =[5]Salidas_balance!AE24 -> 30.786 | ED24: =[5]Salidas_balance!AF24 -> 24.73333333 | EE24: =[5]Salidas_balance!AG24 -> 254.1069091 | EF24: =[5]Salidas_balance!AH24 -> 0 | EH24: =[5]Salidas_balance!AJ24 -> 10.13954545 | EI24: =[5]Salidas_balance!AK24 -> 0 | EJ24: =[5]Salidas_balance!AL24 -> 0 | EK24: =[5]Salidas_balance!AM24 -> 0 | EL24: =[5]Salidas_balance!AN24 -> 0 | EM24: =[5]Salidas_balance!AO24 -> 0 | EN24: =[5]Salidas_balance!AP24 -> 0 | EO24: =[5]Salidas_balance!AQ24 -> 0 | EP24: =[5]Salidas_balance!AR24 -> 0 | EQ24: =[5]Salidas_balance!AS24 -> 0 | ES24: =[5]Salidas_balance!AU24 -> 31.01124138 | ET24: =[5]Salidas_balance!AV24 -> 0 | EU24: =[5]Salidas_balance!AW24 -> 0 | EV24: =[5]Salidas_balance!AX24 -> 0 | EW24: =[5]Salidas_balance!AY24 -> 0 | EX24: =[5]Salidas_balance!AZ24 -> 0 | EY24: =[5]Salidas_balance!BA24 -> 0 | EZ24: =[5]Salidas_balance!BB24 -> 0 | FA24: =[5]Salidas_balance!BC24 -> 0 | FB24: =[5]Salidas_balance!BD24 -> 0 | FD24: =[5]Salidas_balance!BF24 -> 0 | FE24: =[5]Salidas_balance!BG24 -> 0 | FF24: =[5]Salidas_balance!BH24 -> 0 | FG24: =[5]Salidas_balance!BI24 -> 0 | FH24: =[5]Salidas_balance!BJ24 -> 0 | FI24: =[5]Salidas_balance!BK24 -> 0 | FJ24: =[5]Salidas_balance!BL24 -> 0 | FK24: =[5]Salidas_balance!BM24 -> 0 | FL24: =[5]Salidas_balance!BN24 -> 0 | FM24: =[5]Salidas_balance!BO24 -> 0 | FO24: =[5]Salidas_balance!BQ24 -> 3.836568571 | FP24: =[5]Salidas_balance!BR24 -> 19.84616667 | FQ24: =[5]Salidas_balance!BS24 -> 42.7765 | FR24: =[5]Salidas_balance!BT24 -> 39.39506667 | FS24: =[5]Salidas_balance!BU24 -> 121.11 | FT24: =[5]Salidas_balance!BV24 -> 67.82066667 | FU24: =[5]Salidas_balance!BW24 -> 186.843 | FV24: =[5]Salidas_balance!BX24 -> 355.684 | FW24: =[5]Salidas_balance!BY24 -> 1044.858214 | FX24: =[5]Salidas_balance!BZ24 -> 0 | FZ24: =[5]Salidas_balance!CB24 -> 204.4319714 | GA24: =[5]Salidas_balance!CC24 -> 0 | GB24: =[5]Salidas_balance!CD24 -> 0 | GC24: =[5]Salidas_balance!CE24 -> 0 | GD24: =[5]Salidas_balance!CF24 -> 0 | GE24: =[5]Salidas_balance!CG24 -> 0 | GF24: =[5]Salidas_balance!CH24 -> 0 | GG24: =[5]Salidas_balance!CI24 -> 0 | GH24: =[5]Salidas_balance!CJ24 -> 0 | GI24: =[5]Salidas_balance!CK24 -> 0 | GK24: =[5]Salidas_balance!CM24 -> 51.415 | GL24: =[5]Salidas_balance!CN24 -> 0 | GM24: =[5]Salidas_balance!CO24 -> 0 | GN24: =[5]Salidas_balance!CP24 -> 0 | GO24: =[5]Salidas_balance!CQ24 -> 0 | GP24: =[5]Salidas_balance!CR24 -> 0 | GQ24: =[5]Salidas_balance!CS24 -> 0 | GR24: =[5]Salidas_balance!CT24 -> 0 | GS24: =[5]Salidas_balance!CU24 -> 0 | GT24: =[5]Salidas_balance!CV24 -> 0 | GV24: =[5]Salidas_balance!CX24 -> 0 | GW24: =[5]Salidas_balance!CY24 -> 0 | GX24: =[5]Salidas_balance!CZ24 -> 0 | GY24: =[5]Salidas_balance!DA24 -> 0 | GZ24: =[5]Salidas_balance!DB24 -> 0 | HA24: =[5]Salidas_balance!DC24 -> 0 | HB24: =[5]Salidas_balance!DD24 -> 0 | HC24: =[5]Salidas_balance!DE24 -> 0 | HD24: =[5]Salidas_balance!DF24 -> 0 | HE24: =[5]Salidas_balance!DG24 -> 0 | HG24: =[5]Salidas_balance!DI24 -> 8849.827269 | HH24: =[5]Salidas_balance!DJ24 -> 0 | HI24: =[5]Salidas_balance!DK24 -> 0 | HJ24: =[5]Salidas_balance!DL24 -> 0 | HK24: =[5]Salidas_balance!DM24 -> 0 | HL24: =[5]Salidas_balance!DN24 -> 0 | HM24: =[5]Salidas_balance!DO24 -> 0 | HN24: =[5]Salidas_balance!DP24 -> 0 | HO24: =[5]Salidas_balance!DQ24 -> 0 | HP24: =[5]Salidas_balance!DR24 -> 0 | HR24: =[5]Salidas_balance!DT24 -> 1763.752667 | HS24: =[5]Salidas_balance!DU24 -> 0 | HT24: =[5]Salidas_balance!DV24 -> 0 | HU24: =[5]Salidas_balance!DW24 -> 0 | HV24: =[5]Salidas_balance!DX24 -> 0 | HW24: =[5]Salidas_balance!DY24 -> 0 | HX24: =[5]Salidas_balance!DZ24 -> 0 | HY24: =[5]Salidas_balance!EA24 -> 0 | HZ24: =[5]Salidas_balance!EB24 -> 0 | IA24: =[5]Salidas_balance!EC24 -> 0 | IC24: =[5]Salidas_balance!EE24 -> 0 | ID24: =[5]Salidas_balance!EF24 -> 0 | IE24: =[5]Salidas_balance!EG24 -> 0 | IF24: =[5]Salidas_balance!EH24 -> 0 | IG24: =[5]Salidas_balance!EI24 -> 0 | IH24: =[5]Salidas_balance!EJ24 -> 0 | II24: =[5]Salidas_balance!EK24 -> 0 | IJ24: =[5]Salidas_balance!EL24 -> 0 | IK24: =[5]Salidas_balance!EM24 -> 0 | IL24: =[5]Salidas_balance!EN24 -> 0 | IN24: =[5]Salidas_balance!EP24 -> 0 | IO24: =[5]Salidas_balance!EQ24 -> 0 | IP24: =[5]Salidas_balance!ER24 -> 0 | IQ24: =[5]Salidas_balance!ES24 -> 0 | IR24: =[5]Salidas_balance!ET24 -> 0 | IS24: =[5]Salidas_balance!EU24 -> 0 | IT24: =[5]Salidas_balance!EV24 -> 0 | IU24: =[5]Salidas_balance!EW24 -> 0 | IV24: =[5]Salidas_balance!EX24 -> 0 | IW24: =[5]Salidas_balance!EY24 -> 0 | IY24: =[5]Salidas_balance!FA24 -> 23261.47154 | IZ24: =[5]Salidas_balance!FB24 -> 0 | JA24: =[5]Salidas_balance!FC24 -> 0 | JB24: =[5]Salidas_balance!FD24 -> 0 | JC24: =[5]Salidas_balance!FE24 -> 0 | JD24: =[5]Salidas_balance!FF24 -> 0 | JE24: =[5]Salidas_balance!FG24 -> 0 | JF24: =[5]Salidas_balance!FH24 -> 0 | JG24: =[5]Salidas_balance!FI24 -> 0 | JH24: =[5]Salidas_balance!FJ24 -> 0 | JJ24: =[5]Salidas_balance!FL24 -> 0 | JK24: =[5]Salidas_balance!FM24 -> 0 | JL24: =[5]Salidas_balance!FN24 -> 0 | JM24: =[5]Salidas_balance!FO24 -> 0 | JN24: =[5]Salidas_balance!FP24 -> 0 | JO24: =[5]Salidas_balance!FQ24 -> 0 | JP24: =[5]Salidas_balance!FR24 -> 0 | JQ24: =[5]Salidas_balance!FS24 -> 0 | JR24: =[5]Salidas_balance!FT24 -> 0 | JS24: =[5]Salidas_balance!FU24 -> 0 | JU24: =[5]Salidas_balance!FW24 -> 0 | JV24: =[5]Salidas_balance!FX24 -> 0 | JW24: =[5]Salidas_balance!FY24 -> 0 | JX24: =[5]Salidas_balance!FZ24 -> 0 | JY24: =[5]Salidas_balance!GA24 -> 0 | JZ24: =[5]Salidas_balance!GB24 -> 0 | KA24: =[5]Salidas_balance!GC24 -> 0 | KB24: =[5]Salidas_balance!GD24 -> 0 | KC24: =[5]Salidas_balance!GE24 -> 0 | KD24: =[5]Salidas_balance!GF24 -> 0 | KF24: =[5]Salidas_balance!GH24 -> 0 | KG24: =[5]Salidas_balance!GI24 -> 0 | KH24: =[5]Salidas_balance!GJ24 -> 0 | KI24: =[5]Salidas_balance!GK24 -> 0 | KJ24: =[5]Salidas_balance!GL24 -> 0 | KK24: =[5]Salidas_balance!GM24 -> 0 | KL24: =[5]Salidas_balance!GN24 -> 0 | KM24: =[5]Salidas_balance!GO24 -> 0 | KN24: =[5]Salidas_balance!GP24 -> 0 | KO24: =[5]Salidas_balance!GQ24 -> 0 | KQ24: =[5]Salidas_balance!GS24 -> 0 | KR24: =[5]Salidas_balance!GT24 -> 0 | KS24: =[5]Salidas_balance!GU24 -> 0 | KT24: =[5]Salidas_balance!GV24 -> 0 | KU24: =[5]Salidas_balance!GW24 -> 0 | KV24: =[5]Salidas_balance!GX24 -> 0 | KW24: =[5]Salidas_balance!GY24 -> 0 | KX24: =[5]Salidas_balance!GZ24 -> 0 | KY24: =[5]Salidas_balance!HA24 -> 0 | KZ24: =[5]Salidas_balance!HB24 -> 0 | LB24: =[5]Salidas_balance!HD24 -> 0 | LC24: =[5]Salidas_balance!HE24 -> 0 | LD24: =[5]Salidas_balance!HF24 -> 0 | LE24: =[5]Salidas_balance!HG24 -> 0 | LF24: =[5]Salidas_balance!HH24 -> 0 | LG24: =[5]Salidas_balance!HI24 -> 0 | LH24: =[5]Salidas_balance!HJ24 -> 0 | LI24: =[5]Salidas_balance!HK24 -> 0 | LJ24: =[5]Salidas_balance!HL24 -> 0 | LK24: =[5]Salidas_balance!HM24 -> 0 | LM24: Domingo | LN24: 04:15:00
B25: Domingo | C25: 04:30:00 | D25: V | E25: 248119.9438 | F25: 321705.845 | G25: 383456.1812 | H25: 152519.1614 | I25: 20395.36829 | J25: 33862.73016 | K25: 773.9211141 | L25: 8.32147614e-06 | AB25: =IF(AND($C25>INPUTS!$E$27,$C25<INPUTS!$E$26),0,INPUTS!$E$25/7/(24*(1-INPUTS!$E$26+INPUTS!$E$27))) -> 18796.35132 | AC25: ='Cálculo de Pérdidas'!S27 -> 17391.08217 | AD25: ='Cálculo de Pérdidas'!O27 -> 4381.329352 | AE25: 248119.9438 | AL25: 50049.31616 | AM25: 13479.67636 | AN25: 6.457827684e-06 | AZ25: ='Cálculo de Pérdidas'!P27 -> 10056.90868 | BA25: 321705.845 | BL25: 8664.446253 | BM25: 27426.5413 | BP25: 23456.26372 | BV25: ='Cálculo de Pérdidas'!Q27 -> 2203.084936 | BW25: 383456.1812 | BY25: 172914.5297 | CA25: 34636.65127 | CC25: 152519.1614 | CD25: 20395.36829 | CE25: 33862.73016 | CF25: 773.9211141 | CG25: 8.32147614e-06 | CH25: 0 | CI25: 50049.31616 | CJ25: 13479.67636 | CK25: 6.457827684e-06 | CL25: 0 | CM25: 8664.446253 | CN25: 27426.5413 | CO25: 0 | CP25: 0 | CQ25: 23456.26372 | CR25: 0 | CS25: 0 | CT25: 0 | CU25: 0 | CV25: 0 | DA25: =[5]Salidas_balance!C25 -> 0.059253125 | DB25: =[5]Salidas_balance!D25 -> 0.1552101266 | DC25: =[5]Salidas_balance!E25 -> 0.3200970588 | DD25: =[5]Salidas_balance!F25 -> 0.320068 | DE25: =[5]Salidas_balance!G25 -> 0.7903285714 | DF25: =[5]Salidas_balance!H25 -> 1.659875 | DG25: =[5]Salidas_balance!I25 -> 3.419953846 | DH25: =[5]Salidas_balance!J25 -> 6.900591667 | DI25: =[5]Salidas_balance!K25 -> 13.11806364 | DJ25: =[5]Salidas_balance!L25 -> 0 | DL25: =[5]Salidas_balance!N25 -> 0.11361875 | DM25: =[5]Salidas_balance!O25 -> 0.3391309524 | DN25: =[5]Salidas_balance!P25 -> 0.5233533333 | DO25: =[5]Salidas_balance!Q25 -> 0.6125 | DP25: =[5]Salidas_balance!R25 -> 1.071313333 | DQ25: =[5]Salidas_balance!S25 -> 2.86370625 | DR25: =[5]Salidas_balance!T25 -> 2.621311111 | DS25: =[5]Salidas_balance!U25 -> 7.667016667 | DT25: =[5]Salidas_balance!V25 -> 29.6355 | DU25: =[5]Salidas_balance!W25 -> 0 | DW25: =[5]Salidas_balance!Y25 -> 2.004015625 | DX25: =[5]Salidas_balance!Z25 -> 2.904876471 | DY25: =[5]Salidas_balance!AA25 -> 5.250490476 | DZ25: =[5]Salidas_balance!AB25 -> 7.107507692 | EA25: =[5]Salidas_balance!AC25 -> 14.83147335 | EB25: =[5]Salidas_balance!AD25 -> 25.56951244 | EC25: =[5]Salidas_balance!AE25 -> 30.597 | ED25: =[5]Salidas_balance!AF25 -> 25.83 | EE25: =[5]Salidas_balance!AG25 -> 255.9489091 | EF25: =[5]Salidas_balance!AH25 -> 0 | EH25: =[5]Salidas_balance!AJ25 -> 10.21870152 | EI25: =[5]Salidas_balance!AK25 -> 0 | EJ25: =[5]Salidas_balance!AL25 -> 0 | EK25: =[5]Salidas_balance!AM25 -> 0 | EL25: =[5]Salidas_balance!AN25 -> 0 | EM25: =[5]Salidas_balance!AO25 -> 0 | EN25: =[5]Salidas_balance!AP25 -> 0 | EO25: =[5]Salidas_balance!AQ25 -> 0 | EP25: =[5]Salidas_balance!AR25 -> 0 | EQ25: =[5]Salidas_balance!AS25 -> 0 | ES25: =[5]Salidas_balance!AU25 -> 31.12213793 | ET25: =[5]Salidas_balance!AV25 -> 0 | EU25: =[5]Salidas_balance!AW25 -> 0 | EV25: =[5]Salidas_balance!AX25 -> 0 | EW25: =[5]Salidas_balance!AY25 -> 0 | EX25: =[5]Salidas_balance!AZ25 -> 0 | EY25: =[5]Salidas_balance!BA25 -> 0 | EZ25: =[5]Salidas_balance!BB25 -> 0 | FA25: =[5]Salidas_balance!BC25 -> 0 | FB25: =[5]Salidas_balance!BD25 -> 0 | FD25: =[5]Salidas_balance!BF25 -> 0 | FE25: =[5]Salidas_balance!BG25 -> 0 | FF25: =[5]Salidas_balance!BH25 -> 0 | FG25: =[5]Salidas_balance!BI25 -> 0 | FH25: =[5]Salidas_balance!BJ25 -> 0 | FI25: =[5]Salidas_balance!BK25 -> 0 | FJ25: =[5]Salidas_balance!BL25 -> 0 | FK25: =[5]Salidas_balance!BM25 -> 0 | FL25: =[5]Salidas_balance!BN25 -> 0 | FM25: =[5]Salidas_balance!BO25 -> 0 | FO25: =[5]Salidas_balance!BQ25 -> 3.841654286 | FP25: =[5]Salidas_balance!BR25 -> 19.41722222 | FQ25: =[5]Salidas_balance!BS25 -> 41.113 | FR25: =[5]Salidas_balance!BT25 -> 39.1048 | FS25: =[5]Salidas_balance!BU25 -> 121.405 | FT25: =[5]Salidas_balance!BV25 -> 72.10777778 | FU25: =[5]Salidas_balance!BW25 -> 191.417 | FV25: =[5]Salidas_balance!BX25 -> 356.839 | FW25: =[5]Salidas_balance!BY25 -> 1038.120357 | FX25: =[5]Salidas_balance!BZ25 -> 0 | FZ25: =[5]Salidas_balance!CB25 -> 206.8169 | GA25: =[5]Salidas_balance!CC25 -> 0 | GB25: =[5]Salidas_balance!CD25 -> 0 | GC25: =[5]Salidas_balance!CE25 -> 0 | GD25: =[5]Salidas_balance!CF25 -> 0 | GE25: =[5]Salidas_balance!CG25 -> 0 | GF25: =[5]Salidas_balance!CH25 -> 0 | GG25: =[5]Salidas_balance!CI25 -> 0 | GH25: =[5]Salidas_balance!CJ25 -> 0 | GI25: =[5]Salidas_balance!CK25 -> 0 | GK25: =[5]Salidas_balance!CM25 -> 50.4 | GL25: =[5]Salidas_balance!CN25 -> 0 | GM25: =[5]Salidas_balance!CO25 -> 0 | GN25: =[5]Salidas_balance!CP25 -> 0 | GO25: =[5]Salidas_balance!CQ25 -> 0 | GP25: =[5]Salidas_balance!CR25 -> 0 | GQ25: =[5]Salidas_balance!CS25 -> 0 | GR25: =[5]Salidas_balance!CT25 -> 0 | GS25: =[5]Salidas_balance!CU25 -> 0 | GT25: =[5]Salidas_balance!CV25 -> 0 | GV25: =[5]Salidas_balance!CX25 -> 0 | GW25: =[5]Salidas_balance!CY25 -> 0 | GX25: =[5]Salidas_balance!CZ25 -> 0 | GY25: =[5]Salidas_balance!DA25 -> 0 | GZ25: =[5]Salidas_balance!DB25 -> 0 | HA25: =[5]Salidas_balance!DC25 -> 0 | HB25: =[5]Salidas_balance!DD25 -> 0 | HC25: =[5]Salidas_balance!DE25 -> 0 | HD25: =[5]Salidas_balance!DF25 -> 0 | HE25: =[5]Salidas_balance!DG25 -> 0 | HG25: =[5]Salidas_balance!DI25 -> 8894.073288 | HH25: =[5]Salidas_balance!DJ25 -> 0 | HI25: =[5]Salidas_balance!DK25 -> 0 | HJ25: =[5]Salidas_balance!DL25 -> 0 | HK25: =[5]Salidas_balance!DM25 -> 0 | HL25: =[5]Salidas_balance!DN25 -> 0 | HM25: =[5]Salidas_balance!DO25 -> 0 | HN25: =[5]Salidas_balance!DP25 -> 0 | HO25: =[5]Salidas_balance!DQ25 -> 0 | HP25: =[5]Salidas_balance!DR25 -> 0 | HR25: =[5]Salidas_balance!DT25 -> 1776.032667 | HS25: =[5]Salidas_balance!DU25 -> 0 | HT25: =[5]Salidas_balance!DV25 -> 0 | HU25: =[5]Salidas_balance!DW25 -> 0 | HV25: =[5]Salidas_balance!DX25 -> 0 | HW25: =[5]Salidas_balance!DY25 -> 0 | HX25: =[5]Salidas_balance!DZ25 -> 0 | HY25: =[5]Salidas_balance!EA25 -> 0 | HZ25: =[5]Salidas_balance!EB25 -> 0 | IA25: =[5]Salidas_balance!EC25 -> 0 | IC25: =[5]Salidas_balance!EE25 -> 0 | ID25: =[5]Salidas_balance!EF25 -> 0 | IE25: =[5]Salidas_balance!EG25 -> 0 | IF25: =[5]Salidas_balance!EH25 -> 0 | IG25: =[5]Salidas_balance!EI25 -> 0 | IH25: =[5]Salidas_balance!EJ25 -> 0 | II25: =[5]Salidas_balance!EK25 -> 0 | IJ25: =[5]Salidas_balance!EL25 -> 0 | IK25: =[5]Salidas_balance!EM25 -> 0 | IL25: =[5]Salidas_balance!EN25 -> 0 | IN25: =[5]Salidas_balance!EP25 -> 0 | IO25: =[5]Salidas_balance!EQ25 -> 0 | IP25: =[5]Salidas_balance!ER25 -> 0 | IQ25: =[5]Salidas_balance!ES25 -> 0 | IR25: =[5]Salidas_balance!ET25 -> 0 | IS25: =[5]Salidas_balance!EU25 -> 0 | IT25: =[5]Salidas_balance!EV25 -> 0 | IU25: =[5]Salidas_balance!EW25 -> 0 | IV25: =[5]Salidas_balance!EX25 -> 0 | IW25: =[5]Salidas_balance!EY25 -> 0 | IY25: =[5]Salidas_balance!FA25 -> 23352.30012 | IZ25: =[5]Salidas_balance!FB25 -> 0 | JA25: =[5]Salidas_balance!FC25 -> 0 | JB25: =[5]Salidas_balance!FD25 -> 0 | JC25: =[5]Salidas_balance!FE25 -> 0 | JD25: =[5]Salidas_balance!FF25 -> 0 | JE25: =[5]Salidas_balance!FG25 -> 0 | JF25: =[5]Salidas_balance!FH25 -> 0 | JG25: =[5]Salidas_balance!FI25 -> 0 | JH25: =[5]Salidas_balance!FJ25 -> 0 | JJ25: =[5]Salidas_balance!FL25 -> 0 | JK25: =[5]Salidas_balance!FM25 -> 0 | JL25: =[5]Salidas_balance!FN25 -> 0 | JM25: =[5]Salidas_balance!FO25 -> 0 | JN25: =[5]Salidas_balance!FP25 -> 0 | JO25: =[5]Salidas_balance!FQ25 -> 0 | JP25: =[5]Salidas_balance!FR25 -> 0 | JQ25: =[5]Salidas_balance!FS25 -> 0 | JR25: =[5]Salidas_balance!FT25 -> 0 | JS25: =[5]Salidas_balance!FU25 -> 0 | JU25: =[5]Salidas_balance!FW25 -> 0 | JV25: =[5]Salidas_balance!FX25 -> 0 | JW25: =[5]Salidas_balance!FY25 -> 0 | JX25: =[5]Salidas_balance!FZ25 -> 0 | JY25: =[5]Salidas_balance!GA25 -> 0 | JZ25: =[5]Salidas_balance!GB25 -> 0 | KA25: =[5]Salidas_balance!GC25 -> 0 | KB25: =[5]Salidas_balance!GD25 -> 0 | KC25: =[5]Salidas_balance!GE25 -> 0 | KD25: =[5]Salidas_balance!GF25 -> 0 | KF25: =[5]Salidas_balance!GH25 -> 0 | KG25: =[5]Salidas_balance!GI25 -> 0 | KH25: =[5]Salidas_balance!GJ25 -> 0 | KI25: =[5]Salidas_balance!GK25 -> 0 | KJ25: =[5]Salidas_balance!GL25 -> 0 | KK25: =[5]Salidas_balance!GM25 -> 0 | KL25: =[5]Salidas_balance!GN25 -> 0 | KM25: =[5]Salidas_balance!GO25 -> 0 | KN25: =[5]Salidas_balance!GP25 -> 0 | KO25: =[5]Salidas_balance!GQ25 -> 0 | KQ25: =[5]Salidas_balance!GS25 -> 0 | KR25: =[5]Salidas_balance!GT25 -> 0 | KS25: =[5]Salidas_balance!GU25 -> 0 | KT25: =[5]Salidas_balance!GV25 -> 0 | KU25: =[5]Salidas_balance!GW25 -> 0 | KV25: =[5]Salidas_balance!GX25 -> 0 | KW25: =[5]Salidas_balance!GY25 -> 0 | KX25: =[5]Salidas_balance!GZ25 -> 0 | KY25: =[5]Salidas_balance!HA25 -> 0 | KZ25: =[5]Salidas_balance!HB25 -> 0 | LB25: =[5]Salidas_balance!HD25 -> 0 | LC25: =[5]Salidas_balance!HE25 -> 0 | LD25: =[5]Salidas_balance!HF25 -> 0 | LE25: =[5]Salidas_balance!HG25 -> 0 | LF25: =[5]Salidas_balance!HH25 -> 0 | LG25: =[5]Salidas_balance!HI25 -> 0 | LH25: =[5]Salidas_balance!HJ25 -> 0 | LI25: =[5]Salidas_balance!HK25 -> 0 | LJ25: =[5]Salidas_balance!HL25 -> 0 | LK25: =[5]Salidas_balance!HM25 -> 0 | LM25: Domingo | LN25: 04:30:00
B26: Domingo | C26: 04:45:00 | D26: V | E26: 247981.8858 | F26: 321245.8506 | G26: 383328.672 | H26: 152264.3092 | I26: 20758.23709 | J26: 33685.69942 | K26: 765.9286965 | L26: 8.346646857e-06 | AB26: =IF(AND($C26>INPUTS!$E$27,$C26<INPUTS!$E$26),0,INPUTS!$E$25/7/(24*(1-INPUTS!$E$26+INPUTS!$E$27))) -> 18796.35132 | AC26: ='Cálculo de Pérdidas'!S28 -> 17333.01141 | AD26: ='Cálculo de Pérdidas'!O28 -> 4378.348683 | AE26: 247981.8858 | AL26: 49553.67938 | AM26: 13681.24666 | AN26: 6.493359535e-06 | AZ26: ='Cálculo de Pérdidas'!P28 -> 10029.03871 | BA26: 321245.8506 | BL26: 8717.365225 | BM26: 27736.88585 | BP26: 23426.94193 | BV26: ='Cálculo de Pérdidas'!Q28 -> 2201.628377 | BW26: 383328.672 | BY26: 173022.5463 | CA26: 34451.62811 | CC26: 152264.3092 | CD26: 20758.23709 | CE26: 33685.69942 | CF26: 765.9286965 | CG26: 8.346646857e-06 | CH26: 0 | CI26: 49553.67938 | CJ26: 13681.24666 | CK26: 6.493359535e-06 | CL26: 0 | CM26: 8717.365225 | CN26: 27736.88585 | CO26: 0 | CP26: 0 | CQ26: 23426.94193 | CR26: 0 | CS26: 0 | CT26: 0 | CU26: 0 | CV26: 0 | DA26: =[5]Salidas_balance!C26 -> 0.059996875 | DB26: =[5]Salidas_balance!D26 -> 0.1523708861 | DC26: =[5]Salidas_balance!E26 -> 0.3097764706 | DD26: =[5]Salidas_balance!F26 -> 0.342272 | DE26: =[5]Salidas_balance!G26 -> 0.7730428571 | DF26: =[5]Salidas_balance!H26 -> 1.65999375 | DG26: =[5]Salidas_balance!I26 -> 3.395084615 | DH26: =[5]Salidas_balance!J26 -> 6.833558333 | DI26: =[5]Salidas_balance!K26 -> 12.90833636 | DJ26: =[5]Salidas_balance!L26 -> 0 | DL26: =[5]Salidas_balance!N26 -> 0.1283520833 | DM26: =[5]Salidas_balance!O26 -> 0.3434166667 | DN26: =[5]Salidas_balance!P26 -> 0.5277666667 | DO26: =[5]Salidas_balance!Q26 -> 0.6268857143 | DP26: =[5]Salidas_balance!R26 -> 1.10784 | DQ26: =[5]Salidas_balance!S26 -> 2.98718125 | DR26: =[5]Salidas_balance!T26 -> 2.577966667 | DS26: =[5]Salidas_balance!U26 -> 7.439338889 | DT26: =[5]Salidas_balance!V26 -> 28.615 | DU26: =[5]Salidas_balance!W26 -> 0 | DW26: =[5]Salidas_balance!Y26 -> 2.005340625 | DX26: =[5]Salidas_balance!Z26 -> 2.706035294 | DY26: =[5]Salidas_balance!AA26 -> 5.246266667 | DZ26: =[5]Salidas_balance!AB26 -> 7.021230769 | EA26: =[5]Salidas_balance!AC26 -> 15.01162 | EB26: =[5]Salidas_balance!AD26 -> 25.65122504 | EC26: =[5]Salidas_balance!AE26 -> 30.788 | ED26: =[5]Salidas_balance!AF26 -> 24.50933333 | EE26: =[5]Salidas_balance!AG26 -> 260.1892727 | EF26: =[5]Salidas_balance!AH26 -> 0 | EH26: =[5]Salidas_balance!AJ26 -> 10.11317121 | EI26: =[5]Salidas_balance!AK26 -> 0 | EJ26: =[5]Salidas_balance!AL26 -> 0 | EK26: =[5]Salidas_balance!AM26 -> 0 | EL26: =[5]Salidas_balance!AN26 -> 0 | EM26: =[5]Salidas_balance!AO26 -> 0 | EN26: =[5]Salidas_balance!AP26 -> 0 | EO26: =[5]Salidas_balance!AQ26 -> 0 | EP26: =[5]Salidas_balance!AR26 -> 0 | EQ26: =[5]Salidas_balance!AS26 -> 0 | ES26: =[5]Salidas_balance!AU26 -> 31.21627586 | ET26: =[5]Salidas_balance!AV26 -> 0 | EU26: =[5]Salidas_balance!AW26 -> 0 | EV26: =[5]Salidas_balance!AX26 -> 0 | EW26: =[5]Salidas_balance!AY26 -> 0 | EX26: =[5]Salidas_balance!AZ26 -> 0 | EY26: =[5]Salidas_balance!BA26 -> 0 | EZ26: =[5]Salidas_balance!BB26 -> 0 | FA26: =[5]Salidas_balance!BC26 -> 0 | FB26: =[5]Salidas_balance!BD26 -> 0 | FD26: =[5]Salidas_balance!BF26 -> 0 | FE26: =[5]Salidas_balance!BG26 -> 0 | FF26: =[5]Salidas_balance!BH26 -> 0 | FG26: =[5]Salidas_balance!BI26 -> 0 | FH26: =[5]Salidas_balance!BJ26 -> 0 | FI26: =[5]Salidas_balance!BK26 -> 0 | FJ26: =[5]Salidas_balance!BL26 -> 0 | FK26: =[5]Salidas_balance!BM26 -> 0 | FL26: =[5]Salidas_balance!BN26 -> 0 | FM26: =[5]Salidas_balance!BO26 -> 0 | FO26: =[5]Salidas_balance!BQ26 -> 3.879492381 | FP26: =[5]Salidas_balance!BR26 -> 19.48566667 | FQ26: =[5]Salidas_balance!BS26 -> 40.1795 | FR26: =[5]Salidas_balance!BT26 -> 39.81973333 | FS26: =[5]Salidas_balance!BU26 -> 120.791 | FT26: =[5]Salidas_balance!BV26 -> 76.468 | FU26: =[5]Salidas_balance!BW26 -> 186.821 | FV26: =[5]Salidas_balance!BX26 -> 343.466 | FW26: =[5]Salidas_balance!BY26 -> 1033.118929 | FX26: =[5]Salidas_balance!BZ26 -> 0 | FZ26: =[5]Salidas_balance!CB26 -> 209.9095667 | GA26: =[5]Salidas_balance!CC26 -> 0 | GB26: =[5]Salidas_balance!CD26 -> 0 | GC26: =[5]Salidas_balance!CE26 -> 0 | GD26: =[5]Salidas_balance!CF26 -> 0 | GE26: =[5]Salidas_balance!CG26 -> 0 | GF26: =[5]Salidas_balance!CH26 -> 0 | GG26: =[5]Salidas_balance!CI26 -> 0 | GH26: =[5]Salidas_balance!CJ26 -> 0 | GI26: =[5]Salidas_balance!CK26 -> 0 | GK26: =[5]Salidas_balance!CM26 -> 50.67730769 | GL26: =[5]Salidas_balance!CN26 -> 0 | GM26: =[5]Salidas_balance!CO26 -> 0 | GN26: =[5]Salidas_balance!CP26 -> 0 | GO26: =[5]Salidas_balance!CQ26 -> 0 | GP26: =[5]Salidas_balance!CR26 -> 0 | GQ26: =[5]Salidas_balance!CS26 -> 0 | GR26: =[5]Salidas_balance!CT26 -> 0 | GS26: =[5]Salidas_balance!CU26 -> 0 | GT26: =[5]Salidas_balance!CV26 -> 0 | GV26: =[5]Salidas_balance!CX26 -> 0 | GW26: =[5]Salidas_balance!CY26 -> 0 | GX26: =[5]Salidas_balance!CZ26 -> 0 | GY26: =[5]Salidas_balance!DA26 -> 0 | GZ26: =[5]Salidas_balance!DB26 -> 0 | HA26: =[5]Salidas_balance!DC26 -> 0 | HB26: =[5]Salidas_balance!DD26 -> 0 | HC26: =[5]Salidas_balance!DE26 -> 0 | HD26: =[5]Salidas_balance!DF26 -> 0 | HE26: =[5]Salidas_balance!DG26 -> 0 | HG26: =[5]Salidas_balance!DI26 -> 8948.394731 | HH26: =[5]Salidas_balance!DJ26 -> 0 | HI26: =[5]Salidas_balance!DK26 -> 0 | HJ26: =[5]Salidas_balance!DL26 -> 0 | HK26: =[5]Salidas_balance!DM26 -> 0 | HL26: =[5]Salidas_balance!DN26 -> 0 | HM26: =[5]Salidas_balance!DO26 -> 0 | HN26: =[5]Salidas_balance!DP26 -> 0 | HO26: =[5]Salidas_balance!DQ26 -> 0 | HP26: =[5]Salidas_balance!DR26 -> 0 | HR26: =[5]Salidas_balance!DT26 -> 1796.129333 | HS26: =[5]Salidas_balance!DU26 -> 0 | HT26: =[5]Salidas_balance!DV26 -> 0 | HU26: =[5]Salidas_balance!DW26 -> 0 | HV26: =[5]Salidas_balance!DX26 -> 0 | HW26: =[5]Salidas_balance!DY26 -> 0 | HX26: =[5]Salidas_balance!DZ26 -> 0 | HY26: =[5]Salidas_balance!EA26 -> 0 | HZ26: =[5]Salidas_balance!EB26 -> 0 | IA26: =[5]Salidas_balance!EC26 -> 0 | IC26: =[5]Salidas_balance!EE26 -> 0 | ID26: =[5]Salidas_balance!EF26 -> 0 | IE26: =[5]Salidas_balance!EG26 -> 0 | IF26: =[5]Salidas_balance!EH26 -> 0 | IG26: =[5]Salidas_balance!EI26 -> 0 | IH26: =[5]Salidas_balance!EJ26 -> 0 | II26: =[5]Salidas_balance!EK26 -> 0 | IJ26: =[5]Salidas_balance!EL26 -> 0 | IK26: =[5]Salidas_balance!EM26 -> 0 | IL26: =[5]Salidas_balance!EN26 -> 0 | IN26: =[5]Salidas_balance!EP26 -> 0 | IO26: =[5]Salidas_balance!EQ26 -> 0 | IP26: =[5]Salidas_balance!ER26 -> 0 | IQ26: =[5]Salidas_balance!ES26 -> 0 | IR26: =[5]Salidas_balance!ET26 -> 0 | IS26: =[5]Salidas_balance!EU26 -> 0 | IT26: =[5]Salidas_balance!EV26 -> 0 | IU26: =[5]Salidas_balance!EW26 -> 0 | IV26: =[5]Salidas_balance!EX26 -> 0 | IW26: =[5]Salidas_balance!EY26 -> 0 | IY26: =[5]Salidas_balance!FA26 -> 23323.10829 | IZ26: =[5]Salidas_balance!FB26 -> 0 | JA26: =[5]Salidas_balance!FC26 -> 0 | JB26: =[5]Salidas_balance!FD26 -> 0 | JC26: =[5]Salidas_balance!FE26 -> 0 | JD26: =[5]Salidas_balance!FF26 -> 0 | JE26: =[5]Salidas_balance!FG26 -> 0 | JF26: =[5]Salidas_balance!FH26 -> 0 | JG26: =[5]Salidas_balance!FI26 -> 0 | JH26: =[5]Salidas_balance!FJ26 -> 0 | JJ26: =[5]Salidas_balance!FL26 -> 0 | JK26: =[5]Salidas_balance!FM26 -> 0 | JL26: =[5]Salidas_balance!FN26 -> 0 | JM26: =[5]Salidas_balance!FO26 -> 0 | JN26: =[5]Salidas_balance!FP26 -> 0 | JO26: =[5]Salidas_balance!FQ26 -> 0 | JP26: =[5]Salidas_balance!FR26 -> 0 | JQ26: =[5]Salidas_balance!FS26 -> 0 | JR26: =[5]Salidas_balance!FT26 -> 0 | JS26: =[5]Salidas_balance!FU26 -> 0 | JU26: =[5]Salidas_balance!FW26 -> 0 | JV26: =[5]Salidas_balance!FX26 -> 0 | JW26: =[5]Salidas_balance!FY26 -> 0 | JX26: =[5]Salidas_balance!FZ26 -> 0 | JY26: =[5]Salidas_balance!GA26 -> 0 | JZ26: =[5]Salidas_balance!GB26 -> 0 | KA26: =[5]Salidas_balance!GC26 -> 0 | KB26: =[5]Salidas_balance!GD26 -> 0 | KC26: =[5]Salidas_balance!GE26 -> 0 | KD26: =[5]Salidas_balance!GF26 -> 0 | KF26: =[5]Salidas_balance!GH26 -> 0 | KG26: =[5]Salidas_balance!GI26 -> 0 | KH26: =[5]Salidas_balance!GJ26 -> 0 | KI26: =[5]Salidas_balance!GK26 -> 0 | KJ26: =[5]Salidas_balance!GL26 -> 0 | KK26: =[5]Salidas_balance!GM26 -> 0 | KL26: =[5]Salidas_balance!GN26 -> 0 | KM26: =[5]Salidas_balance!GO26 -> 0 | KN26: =[5]Salidas_balance!GP26 -> 0 | KO26: =[5]Salidas_balance!GQ26 -> 0 | KQ26: =[5]Salidas_balance!GS26 -> 0 | KR26: =[5]Salidas_balance!GT26 -> 0 | KS26: =[5]Salidas_balance!GU26 -> 0 | KT26: =[5]Salidas_balance!GV26 -> 0 | KU26: =[5]Salidas_balance!GW26 -> 0 | KV26: =[5]Salidas_balance!GX26 -> 0 | KW26: =[5]Salidas_balance!GY26 -> 0 | KX26: =[5]Salidas_balance!GZ26 -> 0 | KY26: =[5]Salidas_balance!HA26 -> 0 | KZ26: =[5]Salidas_balance!HB26 -> 0 | LB26: =[5]Salidas_balance!HD26 -> 0 | LC26: =[5]Salidas_balance!HE26 -> 0 | LD26: =[5]Salidas_balance!HF26 -> 0 | LE26: =[5]Salidas_balance!HG26 -> 0 | LF26: =[5]Salidas_balance!HH26 -> 0 | LG26: =[5]Salidas_balance!HI26 -> 0 | LH26: =[5]Salidas_balance!HJ26 -> 0 | LI26: =[5]Salidas_balance!HK26 -> 0 | LJ26: =[5]Salidas_balance!HL26 -> 0 | LK26: =[5]Salidas_balance!HM26 -> 0 | LM26: Domingo | LN26: 04:45:00
B27: Domingo | C27: 05:00:00 | D27: V | E27: 248004.1864 | F27: 321656.9905 | G27: 384977.7818 | H27: 152484.5297 | I27: 20600.28759 | J27: 33595.95786 | K27: 766.5644179 | L27: 8.305322624e-06 | AB27: =IF(AND($C27>INPUTS!$E$27,$C27<INPUTS!$E$26),0,INPUTS!$E$25/7/(24*(1-INPUTS!$E$26+INPUTS!$E$27))) -> 18796.35132 | AC27: ='Cálculo de Pérdidas'!S29 -> 17383.18528 | AD27: ='Cálculo de Pérdidas'!O29 -> 4377.310234 | AE27: 248004.1864 | AL27: 49929.11387 | AM27: 13669.74326 | AN27: 6.866202492e-06 | AZ27: ='Cálculo de Pérdidas'!P29 -> 10053.94698 | BA27: 321656.9905 | BL27: 8909.766867 | BM27: 28658.65395 | BP27: 23531.86727 | BV27: ='Cálculo de Pérdidas'!Q29 -> 2220.503175 | BW27: 384977.7818 | BY27: 173084.8173 | CA27: 34362.52228 | CC27: 152484.5297 | CD27: 20600.28759 | CE27: 33595.95786 | CF27: 766.5644179 | CG27: 8.305322624e-06 | CH27: 0 | CI27: 49929.11387 | CJ27: 13669.74326 | CK27: 6.866202492e-06 | CL27: 0 | CM27: 8909.766867 | CN27: 28658.65395 | CO27: 0 | CP27: 0 | CQ27: 23531.86727 | CR27: 0 | CS27: 0 | CT27: 0 | CU27: 0 | CV27: 0 | DA27: =[5]Salidas_balance!C27 -> 0.0615 | DB27: =[5]Salidas_balance!D27 -> 0.1496493671 | DC27: =[5]Salidas_balance!E27 -> 0.3151235294 | DD27: =[5]Salidas_balance!F27 -> 0.366292 | DE27: =[5]Salidas_balance!G27 -> 0.7573 | DF27: =[5]Salidas_balance!H27 -> 1.59651875 | DG27: =[5]Salidas_balance!I27 -> 3.340469231 | DH27: =[5]Salidas_balance!J27 -> 6.694108333 | DI27: =[5]Salidas_balance!K27 -> 13.07000909 | DJ27: =[5]Salidas_balance!L27 -> 0 | DL27: =[5]Salidas_balance!N27 -> 0.1150833333 | DM27: =[5]Salidas_balance!O27 -> 0.3385857143 | DN27: =[5]Salidas_balance!P27 -> 0.5229533333 | DO27: =[5]Salidas_balance!Q27 -> 0.6554285714 | DP27: =[5]Salidas_balance!R27 -> 1.12894 | DQ27: =[5]Salidas_balance!S27 -> 2.7937 | DR27: =[5]Salidas_balance!T27 -> 2.538088889 | DS27: =[5]Salidas_balance!U27 -> 7.837188889 | DT27: =[5]Salidas_balance!V27 -> 29.830125 | DU27: =[5]Salidas_balance!W27 -> 0 | DW27: =[5]Salidas_balance!Y27 -> 2.006553125 | DX27: =[5]Salidas_balance!Z27 -> 2.589441176 | DY27: =[5]Salidas_balance!AA27 -> 5.059928571 | DZ27: =[5]Salidas_balance!AB27 -> 7.149684615 | EA27: =[5]Salidas_balance!AC27 -> 15.13393334 | EB27: =[5]Salidas_balance!AD27 -> 26.09820005 | EC27: =[5]Salidas_balance!AE27 -> 30.174 | ED27: =[5]Salidas_balance!AF27 -> 24.86466667 | EE27: =[5]Salidas_balance!AG27 -> 259.6765455 | EF27: =[5]Salidas_balance!AH27 -> 0 | EH27: =[5]Salidas_balance!AJ27 -> 10.12156515 | EI27: =[5]Salidas_balance!AK27 -> 0 | EJ27: =[5]Salidas_balance!AL27 -> 0 | EK27: =[5]Salidas_balance!AM27 -> 0 | EL27: =[5]Salidas_balance!AN27 -> 0 | EM27: =[5]Salidas_balance!AO27 -> 0 | EN27: =[5]Salidas_balance!AP27 -> 0 | EO27: =[5]Salidas_balance!AQ27 -> 0 | EP27: =[5]Salidas_balance!AR27 -> 0 | EQ27: =[5]Salidas_balance!AS27 -> 0 | ES27: =[5]Salidas_balance!AU27 -> 31.06172414 | ET27: =[5]Salidas_balance!AV27 -> 0 | EU27: =[5]Salidas_balance!AW27 -> 0 | EV27: =[5]Salidas_balance!AX27 -> 0 | EW27: =[5]Salidas_balance!AY27 -> 0 | EX27: =[5]Salidas_balance!AZ27 -> 0 | EY27: =[5]Salidas_balance!BA27 -> 0 | EZ27: =[5]Salidas_balance!BB27 -> 0 | FA27: =[5]Salidas_balance!BC27 -> 0 | FB27: =[5]Salidas_balance!BD27 -> 0 | FD27: =[5]Salidas_balance!BF27 -> 0 | FE27: =[5]Salidas_balance!BG27 -> 0 | FF27: =[5]Salidas_balance!BH27 -> 0 | FG27: =[5]Salidas_balance!BI27 -> 0 | FH27: =[5]Salidas_balance!BJ27 -> 0 | FI27: =[5]Salidas_balance!BK27 -> 0 | FJ27: =[5]Salidas_balance!BL27 -> 0 | FK27: =[5]Salidas_balance!BM27 -> 0 | FL27: =[5]Salidas_balance!BN27 -> 0 | FM27: =[5]Salidas_balance!BO27 -> 0 | FO27: =[5]Salidas_balance!BQ27 -> 3.855184762 | FP27: =[5]Salidas_balance!BR27 -> 19.50161111 | FQ27: =[5]Salidas_balance!BS27 -> 39.541 | FR27: =[5]Salidas_balance!BT27 -> 42.85073333 | FS27: =[5]Salidas_balance!BU27 -> 119.691 | FT27: =[5]Salidas_balance!BV27 -> 70.93333333 | FU27: =[5]Salidas_balance!BW27 -> 194.906 | FV27: =[5]Salidas_balance!BX27 -> 350.65 | FW27: =[5]Salidas_balance!BY27 -> 1036.955714 | FX27: =[5]Salidas_balance!BZ27 -> 0 | FZ27: =[5]Salidas_balance!CB27 -> 209.7330714 | GA27: =[5]Salidas_balance!CC27 -> 0 | GB27: =[5]Salidas_balance!CD27 -> 0 | GC27: =[5]Salidas_balance!CE27 -> 0 | GD27: =[5]Salidas_balance!CF27 -> 0 | GE27: =[5]Salidas_balance!CG27 -> 0 | GF27: =[5]Salidas_balance!CH27 -> 0 | GG27: =[5]Salidas_balance!CI27 -> 0 | GH27: =[5]Salidas_balance!CJ27 -> 0 | GI27: =[5]Salidas_balance!CK27 -> 0 | GK27: =[5]Salidas_balance!CM27 -> 53.58715385 | GL27: =[5]Salidas_balance!CN27 -> 0 | GM27: =[5]Salidas_balance!CO27 -> 0 | GN27: =[5]Salidas_balance!CP27 -> 0 | GO27: =[5]Salidas_balance!CQ27 -> 0 | GP27: =[5]Salidas_balance!CR27 -> 0 | GQ27: =[5]Salidas_balance!CS27 -> 0 | GR27: =[5]Salidas_balance!CT27 -> 0 | GS27: =[5]Salidas_balance!CU27 -> 0 | GT27: =[5]Salidas_balance!CV27 -> 0 | GV27: =[5]Salidas_balance!CX27 -> 0 | GW27: =[5]Salidas_balance!CY27 -> 0 | GX27: =[5]Salidas_balance!CZ27 -> 0 | GY27: =[5]Salidas_balance!DA27 -> 0 | GZ27: =[5]Salidas_balance!DB27 -> 0 | HA27: =[5]Salidas_balance!DC27 -> 0 | HB27: =[5]Salidas_balance!DD27 -> 0 | HC27: =[5]Salidas_balance!DE27 -> 0 | HD27: =[5]Salidas_balance!DF27 -> 0 | HE27: =[5]Salidas_balance!DG27 -> 0 | HG27: =[5]Salidas_balance!DI27 -> 9145.895442 | HH27: =[5]Salidas_balance!DJ27 -> 0 | HI27: =[5]Salidas_balance!DK27 -> 0 | HJ27: =[5]Salidas_balance!DL27 -> 0 | HK27: =[5]Salidas_balance!DM27 -> 0 | HL27: =[5]Salidas_balance!DN27 -> 0 | HM27: =[5]Salidas_balance!DO27 -> 0 | HN27: =[5]Salidas_balance!DP27 -> 0 | HO27: =[5]Salidas_balance!DQ27 -> 0 | HP27: =[5]Salidas_balance!DR27 -> 0 | HR27: =[5]Salidas_balance!DT27 -> 1855.819333 | HS27: =[5]Salidas_balance!DU27 -> 0 | HT27: =[5]Salidas_balance!DV27 -> 0 | HU27: =[5]Salidas_balance!DW27 -> 0 | HV27: =[5]Salidas_balance!DX27 -> 0 | HW27: =[5]Salidas_balance!DY27 -> 0 | HX27: =[5]Salidas_balance!DZ27 -> 0 | HY27: =[5]Salidas_balance!EA27 -> 0 | HZ27: =[5]Salidas_balance!EB27 -> 0 | IA27: =[5]Salidas_balance!EC27 -> 0 | IC27: =[5]Salidas_balance!EE27 -> 0 | ID27: =[5]Salidas_balance!EF27 -> 0 | IE27: =[5]Salidas_balance!EG27 -> 0 | IF27: =[5]Salidas_balance!EH27 -> 0 | IG27: =[5]Salidas_balance!EI27 -> 0 | IH27: =[5]Salidas_balance!EJ27 -> 0 | II27: =[5]Salidas_balance!EK27 -> 0 | IJ27: =[5]Salidas_balance!EL27 -> 0 | IK27: =[5]Salidas_balance!EM27 -> 0 | IL27: =[5]Salidas_balance!EN27 -> 0 | IN27: =[5]Salidas_balance!EP27 -> 0 | IO27: =[5]Salidas_balance!EQ27 -> 0 | IP27: =[5]Salidas_balance!ER27 -> 0 | IQ27: =[5]Salidas_balance!ES27 -> 0 | IR27: =[5]Salidas_balance!ET27 -> 0 | IS27: =[5]Salidas_balance!EU27 -> 0 | IT27: =[5]Salidas_balance!EV27 -> 0 | IU27: =[5]Salidas_balance!EW27 -> 0 | IV27: =[5]Salidas_balance!EX27 -> 0 | IW27: =[5]Salidas_balance!EY27 -> 0 | IY27: =[5]Salidas_balance!FA27 -> 23427.56858 | IZ27: =[5]Salidas_balance!FB27 -> 0 | JA27: =[5]Salidas_balance!FC27 -> 0 | JB27: =[5]Salidas_balance!FD27 -> 0 | JC27: =[5]Salidas_balance!FE27 -> 0 | JD27: =[5]Salidas_balance!FF27 -> 0 | JE27: =[5]Salidas_balance!FG27 -> 0 | JF27: =[5]Salidas_balance!FH27 -> 0 | JG27: =[5]Salidas_balance!FI27 -> 0 | JH27: =[5]Salidas_balance!FJ27 -> 0 | JJ27: =[5]Salidas_balance!FL27 -> 0 | JK27: =[5]Salidas_balance!FM27 -> 0 | JL27: =[5]Salidas_balance!FN27 -> 0 | JM27: =[5]Salidas_balance!FO27 -> 0 | JN27: =[5]Salidas_balance!FP27 -> 0 | JO27: =[5]Salidas_balance!FQ27 -> 0 | JP27: =[5]Salidas_balance!FR27 -> 0 | JQ27: =[5]Salidas_balance!FS27 -> 0 | JR27: =[5]Salidas_balance!FT27 -> 0 | JS27: =[5]Salidas_balance!FU27 -> 0 | JU27: =[5]Salidas_balance!FW27 -> 0 | JV27: =[5]Salidas_balance!FX27 -> 0 | JW27: =[5]Salidas_balance!FY27 -> 0 | JX27: =[5]Salidas_balance!FZ27 -> 0 | JY27: =[5]Salidas_balance!GA27 -> 0 | JZ27: =[5]Salidas_balance!GB27 -> 0 | KA27: =[5]Salidas_balance!GC27 -> 0 | KB27: =[5]Salidas_balance!GD27 -> 0 | KC27: =[5]Salidas_balance!GE27 -> 0 | KD27: =[5]Salidas_balance!GF27 -> 0 | KF27: =[5]Salidas_balance!GH27 -> 0 | KG27: =[5]Salidas_balance!GI27 -> 0 | KH27: =[5]Salidas_balance!GJ27 -> 0 | KI27: =[5]Salidas_balance!GK27 -> 0 | KJ27: =[5]Salidas_balance!GL27 -> 0 | KK27: =[5]Salidas_balance!GM27 -> 0 | KL27: =[5]Salidas_balance!GN27 -> 0 | KM27: =[5]Salidas_balance!GO27 -> 0 | KN27: =[5]Salidas_balance!GP27 -> 0 | KO27: =[5]Salidas_balance!GQ27 -> 0 | KQ27: =[5]Salidas_balance!GS27 -> 0 | KR27: =[5]Salidas_balance!GT27 -> 0 | KS27: =[5]Salidas_balance!GU27 -> 0 | KT27: =[5]Salidas_balance!GV27 -> 0 | KU27: =[5]Salidas_balance!GW27 -> 0 | KV27: =[5]Salidas_balance!GX27 -> 0 | KW27: =[5]Salidas_balance!GY27 -> 0 | KX27: =[5]Salidas_balance!GZ27 -> 0 | KY27: =[5]Salidas_balance!HA27 -> 0 | KZ27: =[5]Salidas_balance!HB27 -> 0 | LB27: =[5]Salidas_balance!HD27 -> 0 | LC27: =[5]Salidas_balance!HE27 -> 0 | LD27: =[5]Salidas_balance!HF27 -> 0 | LE27: =[5]Salidas_balance!HG27 -> 0 | LF27: =[5]Salidas_balance!HH27 -> 0 | LG27: =[5]Salidas_balance!HI27 -> 0 | LH27: =[5]Salidas_balance!HJ27 -> 0 | LI27: =[5]Salidas_balance!HK27 -> 0 | LJ27: =[5]Salidas_balance!HL27 -> 0 | LK27: =[5]Salidas_balance!HM27 -> 0 | LM27: Domingo | LN27: 05:00:00
B28: Domingo | C28: 05:15:00 | D28: V | E28: 249839.0399 | F28: 323428.715 | G28: 386956.7711 | H28: 153678.0608 | I28: 21008.29943 | J28: 33483.91223 | K28: 780.3670304 | L28: 8.267391367e-06 | AB28: =IF(AND($C28>INPUTS!$E$27,$C28<INPUTS!$E$26),0,INPUTS!$E$25/7/(24*(1-INPUTS!$E$26+INPUTS!$E$27))) -> 18796.35132 | AC28: ='Cálculo de Pérdidas'!S30 -> 17656.37456 | AD28: ='Cálculo de Pérdidas'!O30 -> 4435.674489 | AE28: 249839.0399 | AL28: 49680.92293 | AM28: 13747.13612 | AN28: 6.952030886e-06 | AZ28: ='Cálculo de Pérdidas'!P30 -> 10161.616 | BA28: 323428.715 | BL28: 8963.343281 | BM28: 28809.34272 | BP28: 23512.11144 | BV28: ='Cálculo de Pérdidas'!Q30 -> 2243.258712 | BW28: 386956.7711 | BY28: 174686.3603 | CA28: 34264.27926 | CC28: 153678.0608 | CD28: 21008.29943 | CE28: 33483.91223 | CF28: 780.3670304 | CG28: 8.267391367e-06 | CH28: 0 | CI28: 49680.92293 | CJ28: 13747.13612 | CK28: 6.952030886e-06 | CL28: 0 | CM28: 8963.343281 | CN28: 28809.34272 | CO28: 0 | CP28: 0 | CQ28: 23512.11144 | CR28: 0 | CS28: 0 | CT28: 0 | CU28: 0 | CV28: 0 | DA28: =[5]Salidas_balance!C28 -> 0.058428125 | DB28: =[5]Salidas_balance!D28 -> 0.1483113924 | DC28: =[5]Salidas_balance!E28 -> 0.3247647059 | DD28: =[5]Salidas_balance!F28 -> 0.369644 | DE28: =[5]Salidas_balance!G28 -> 0.7637285714 | DF28: =[5]Salidas_balance!H28 -> 1.6278125 | DG28: =[5]Salidas_balance!I28 -> 3.156923077 | DH28: =[5]Salidas_balance!J28 -> 7.165575 | DI28: =[5]Salidas_balance!K28 -> 13.33501818 | DJ28: =[5]Salidas_balance!L28 -> 0 | DL28: =[5]Salidas_balance!N28 -> 0.1373395833 | DM28: =[5]Salidas_balance!O28 -> 0.3330595238 | DN28: =[5]Salidas_balance!P28 -> 0.53278 | DO28: =[5]Salidas_balance!Q28 -> 0.6549619048 | DP28: =[5]Salidas_balance!R28 -> 1.15388 | DQ28: =[5]Salidas_balance!S28 -> 2.77714375 | DR28: =[5]Salidas_balance!T28 -> 2.413433333 | DS28: =[5]Salidas_balance!U28 -> 8.498494444 | DT28: =[5]Salidas_balance!V28 -> 29.031125 | DU28: =[5]Salidas_balance!W28 -> 0 | DW28: =[5]Salidas_balance!Y28 -> 2.067384375 | DX28: =[5]Salidas_balance!Z28 -> 2.647217647 | DY28: =[5]Salidas_balance!AA28 -> 5.221219048 | DZ28: =[5]Salidas_balance!AB28 -> 7.182453846 | EA28: =[5]Salidas_balance!AC28 -> 14.80147997 | EB28: =[5]Salidas_balance!AD28 -> 25.59100649 | EC28: =[5]Salidas_balance!AE28 -> 29.066 | ED28: =[5]Salidas_balance!AF28 -> 24.61666667 | EE28: =[5]Salidas_balance!AG28 -> 261.0965455 | EF28: =[5]Salidas_balance!AH28 -> 0 | EH28: =[5]Salidas_balance!AJ28 -> 10.30381212 | EI28: =[5]Salidas_balance!AK28 -> 0 | EJ28: =[5]Salidas_balance!AL28 -> 0 | EK28: =[5]Salidas_balance!AM28 -> 0 | EL28: =[5]Salidas_balance!AN28 -> 0 | EM28: =[5]Salidas_balance!AO28 -> 0 | EN28: =[5]Salidas_balance!AP28 -> 0 | EO28: =[5]Salidas_balance!AQ28 -> 0 | EP28: =[5]Salidas_balance!AR28 -> 0 | EQ28: =[5]Salidas_balance!AS28 -> 0 | ES28: =[5]Salidas_balance!AU28 -> 30.91986207 | ET28: =[5]Salidas_balance!AV28 -> 0 | EU28: =[5]Salidas_balance!AW28 -> 0 | EV28: =[5]Salidas_balance!AX28 -> 0 | EW28: =[5]Salidas_balance!AY28 -> 0 | EX28: =[5]Salidas_balance!AZ28 -> 0 | EY28: =[5]Salidas_balance!BA28 -> 0 | EZ28: =[5]Salidas_balance!BB28 -> 0 | FA28: =[5]Salidas_balance!BC28 -> 0 | FB28: =[5]Salidas_balance!BD28 -> 0 | FD28: =[5]Salidas_balance!BF28 -> 0 | FE28: =[5]Salidas_balance!BG28 -> 0 | FF28: =[5]Salidas_balance!BH28 -> 0 | FG28: =[5]Salidas_balance!BI28 -> 0 | FH28: =[5]Salidas_balance!BJ28 -> 0 | FI28: =[5]Salidas_balance!BK28 -> 0 | FJ28: =[5]Salidas_balance!BL28 -> 0 | FK28: =[5]Salidas_balance!BM28 -> 0 | FL28: =[5]Salidas_balance!BN28 -> 0 | FM28: =[5]Salidas_balance!BO28 -> 0 | FO28: =[5]Salidas_balance!BQ28 -> 3.854905714 | FP28: =[5]Salidas_balance!BR28 -> 19.6525 | FQ28: =[5]Salidas_balance!BS28 -> 41.503 | FR28: =[5]Salidas_balance!BT28 -> 43.15873333 | FS28: =[5]Salidas_balance!BU28 -> 118.773 | FT28: =[5]Salidas_balance!BV28 -> 71.33933333 | FU28: =[5]Salidas_balance!BW28 -> 191.765 | FV28: =[5]Salidas_balance!BX28 -> 337.048 | FW28: =[5]Salidas_balance!BY28 -> 1043.278571 | FX28: =[5]Salidas_balance!BZ28 -> 0 | FZ28: =[5]Salidas_balance!CB28 -> 210.9205 | GA28: =[5]Salidas_balance!CC28 -> 0 | GB28: =[5]Salidas_balance!CD28 -> 0 | GC28: =[5]Salidas_balance!CE28 -> 0 | GD28: =[5]Salidas_balance!CF28 -> 0 | GE28: =[5]Salidas_balance!CG28 -> 0 | GF28: =[5]Salidas_balance!CH28 -> 0 | GG28: =[5]Salidas_balance!CI28 -> 0 | GH28: =[5]Salidas_balance!CJ28 -> 0 | GI28: =[5]Salidas_balance!CK28 -> 0 | GK28: =[5]Salidas_balance!CM28 -> 54.257 | GL28: =[5]Salidas_balance!CN28 -> 0 | GM28: =[5]Salidas_balance!CO28 -> 0 | GN28: =[5]Salidas_balance!CP28 -> 0 | GO28: =[5]Salidas_balance!CQ28 -> 0 | GP28: =[5]Salidas_balance!CR28 -> 0 | GQ28: =[5]Salidas_balance!CS28 -> 0 | GR28: =[5]Salidas_balance!CT28 -> 0 | GS28: =[5]Salidas_balance!CU28 -> 0 | GT28: =[5]Salidas_balance!CV28 -> 0 | GV28: =[5]Salidas_balance!CX28 -> 0 | GW28: =[5]Salidas_balance!CY28 -> 0 | GX28: =[5]Salidas_balance!CZ28 -> 0 | GY28: =[5]Salidas_balance!DA28 -> 0 | GZ28: =[5]Salidas_balance!DB28 -> 0 | HA28: =[5]Salidas_balance!DC28 -> 0 | HB28: =[5]Salidas_balance!DD28 -> 0 | HC28: =[5]Salidas_balance!DE28 -> 0 | HD28: =[5]Salidas_balance!DF28 -> 0 | HE28: =[5]Salidas_balance!DG28 -> 0 | HG28: =[5]Salidas_balance!DI28 -> 9200.89175 | HH28: =[5]Salidas_balance!DJ28 -> 0 | HI28: =[5]Salidas_balance!DK28 -> 0 | HJ28: =[5]Salidas_balance!DL28 -> 0 | HK28: =[5]Salidas_balance!DM28 -> 0 | HL28: =[5]Salidas_balance!DN28 -> 0 | HM28: =[5]Salidas_balance!DO28 -> 0 | HN28: =[5]Salidas_balance!DP28 -> 0 | HO28: =[5]Salidas_balance!DQ28 -> 0 | HP28: =[5]Salidas_balance!DR28 -> 0 | HR28: =[5]Salidas_balance!DT28 -> 1865.577333 | HS28: =[5]Salidas_balance!DU28 -> 0 | HT28: =[5]Salidas_balance!DV28 -> 0 | HU28: =[5]Salidas_balance!DW28 -> 0 | HV28: =[5]Salidas_balance!DX28 -> 0 | HW28: =[5]Salidas_balance!DY28 -> 0 | HX28: =[5]Salidas_balance!DZ28 -> 0 | HY28: =[5]Salidas_balance!EA28 -> 0 | HZ28: =[5]Salidas_balance!EB28 -> 0 | IA28: =[5]Salidas_balance!EC28 -> 0 | IC28: =[5]Salidas_balance!EE28 -> 0 | ID28: =[5]Salidas_balance!EF28 -> 0 | IE28: =[5]Salidas_balance!EG28 -> 0 | IF28: =[5]Salidas_balance!EH28 -> 0 | IG28: =[5]Salidas_balance!EI28 -> 0 | IH28: =[5]Salidas_balance!EJ28 -> 0 | II28: =[5]Salidas_balance!EK28 -> 0 | IJ28: =[5]Salidas_balance!EL28 -> 0 | IK28: =[5]Salidas_balance!EM28 -> 0 | IL28: =[5]Salidas_balance!EN28 -> 0 | IN28: =[5]Salidas_balance!EP28 -> 0 | IO28: =[5]Salidas_balance!EQ28 -> 0 | IP28: =[5]Salidas_balance!ER28 -> 0 | IQ28: =[5]Salidas_balance!ES28 -> 0 | IR28: =[5]Salidas_balance!ET28 -> 0 | IS28: =[5]Salidas_balance!EU28 -> 0 | IT28: =[5]Salidas_balance!EV28 -> 0 | IU28: =[5]Salidas_balance!EW28 -> 0 | IV28: =[5]Salidas_balance!EX28 -> 0 | IW28: =[5]Salidas_balance!EY28 -> 0 | IY28: =[5]Salidas_balance!FA28 -> 23407.90031 | IZ28: =[5]Salidas_balance!FB28 -> 0 | JA28: =[5]Salidas_balance!FC28 -> 0 | JB28: =[5]Salidas_balance!FD28 -> 0 | JC28: =[5]Salidas_balance!FE28 -> 0 | JD28: =[5]Salidas_balance!FF28 -> 0 | JE28: =[5]Salidas_balance!FG28 -> 0 | JF28: =[5]Salidas_balance!FH28 -> 0 | JG28: =[5]Salidas_balance!FI28 -> 0 | JH28: =[5]Salidas_balance!FJ28 -> 0 | JJ28: =[5]Salidas_balance!FL28 -> 0 | JK28: =[5]Salidas_balance!FM28 -> 0 | JL28: =[5]Salidas_balance!FN28 -> 0 | JM28: =[5]Salidas_balance!FO28 -> 0 | JN28: =[5]Salidas_balance!FP28 -> 0 | JO28: =[5]Salidas_balance!FQ28 -> 0 | JP28: =[5]Salidas_balance!FR28 -> 0 | JQ28: =[5]Salidas_balance!FS28 -> 0 | JR28: =[5]Salidas_balance!FT28 -> 0 | JS28: =[5]Salidas_balance!FU28 -> 0 | JU28: =[5]Salidas_balance!FW28 -> 0 | JV28: =[5]Salidas_balance!FX28 -> 0 | JW28: =[5]Salidas_balance!FY28 -> 0 | JX28: =[5]Salidas_balance!FZ28 -> 0 | JY28: =[5]Salidas_balance!GA28 -> 0 | JZ28: =[5]Salidas_balance!GB28 -> 0 | KA28: =[5]Salidas_balance!GC28 -> 0 | KB28: =[5]Salidas_balance!GD28 -> 0 | KC28: =[5]Salidas_balance!GE28 -> 0 | KD28: =[5]Salidas_balance!GF28 -> 0 | KF28: =[5]Salidas_balance!GH28 -> 0 | KG28: =[5]Salidas_balance!GI28 -> 0 | KH28: =[5]Salidas_balance!GJ28 -> 0 | KI28: =[5]Salidas_balance!GK28 -> 0 | KJ28: =[5]Salidas_balance!GL28 -> 0 | KK28: =[5]Salidas_balance!GM28 -> 0 | KL28: =[5]Salidas_balance!GN28 -> 0 | KM28: =[5]Salidas_balance!GO28 -> 0 | KN28: =[5]Salidas_balance!GP28 -> 0 | KO28: =[5]Salidas_balance!GQ28 -> 0 | KQ28: =[5]Salidas_balance!GS28 -> 0 | KR28: =[5]Salidas_balance!GT28 -> 0 | KS28: =[5]Salidas_balance!GU28 -> 0 | KT28: =[5]Salidas_balance!GV28 -> 0 | KU28: =[5]Salidas_balance!GW28 -> 0 | KV28: =[5]Salidas_balance!GX28 -> 0 | KW28: =[5]Salidas_balance!GY28 -> 0 | KX28: =[5]Salidas_balance!GZ28 -> 0 | KY28: =[5]Salidas_balance!HA28 -> 0 | KZ28: =[5]Salidas_balance!HB28 -> 0 | LB28: =[5]Salidas_balance!HD28 -> 0 | LC28: =[5]Salidas_balance!HE28 -> 0 | LD28: =[5]Salidas_balance!HF28 -> 0 | LE28: =[5]Salidas_balance!HG28 -> 0 | LF28: =[5]Salidas_balance!HH28 -> 0 | LG28: =[5]Salidas_balance!HI28 -> 0 | LH28: =[5]Salidas_balance!HJ28 -> 0 | LI28: =[5]Salidas_balance!HK28 -> 0 | LJ28: =[5]Salidas_balance!HL28 -> 0 | LK28: =[5]Salidas_balance!HM28 -> 0 | LM28: Domingo | LN28: 05:15:00
B29: Domingo | C29: 05:30:00 | D29: V | E29: 251530.4755 | F29: 325761.9575 | G29: 388863.5421 | H29: 155046.9142 | I29: 20963.21194 | J29: 33463.15424 | K29: 801.1388246 | L29: 8.446960926e-06 | AB29: =IF(AND($C29>INPUTS!$E$27,$C29<INPUTS!$E$26),0,INPUTS!$E$25/7/(24*(1-INPUTS!$E$26+INPUTS!$E$27))) -> 18796.35132 | AC29: ='Cálculo de Pérdidas'!S31 -> 17972.31591 | AD29: ='Cálculo de Pérdidas'!O31 -> 4487.389076 | AE29: 251530.4755 | AL29: 50112.49477 | AM29: 13814.75712 | AN29: 6.925054277e-06 | AZ29: ='Cálculo de Pérdidas'!P31 -> 10304.23012 | BA29: 325761.9575 | BL29: 8852.482585 | BM29: 28953.5765 | BP29: 23030.23317 | BV29: ='Cálculo de Pérdidas'!Q31 -> 2265.292302 | BW29: 388863.5421 | BY29: 176010.1261 | CA29: 34264.29307 | CC29: 155046.9142 | CD29: 20963.21194 | CE29: 33463.15424 | CF29: 801.1388246 | CG29: 8.446960926e-06 | CH29: 0 | CI29: 50112.49477 | CJ29: 13814.75712 | CK29: 6.925054277e-06 | CL29: 0 | CM29: 8852.482585 | CN29: 28953.5765 | CO29: 0 | CP29: 0 | CQ29: 23030.23317 | CR29: 0 | CS29: 0 | CT29: 0 | CU29: 0 | CV29: 0 | DA29: =[5]Salidas_balance!C29 -> 0.06488125 | DB29: =[5]Salidas_balance!D29 -> 0.1441797468 | DC29: =[5]Salidas_balance!E29 -> 0.3233029412 | DD29: =[5]Salidas_balance!F29 -> 0.3465 | DE29: =[5]Salidas_balance!G29 -> 0.8917285714 | DF29: =[5]Salidas_balance!H29 -> 1.62504375 | DG29: =[5]Salidas_balance!I29 -> 3.043507692 | DH29: =[5]Salidas_balance!J29 -> 6.762433333 | DI29: =[5]Salidas_balance!K29 -> 13.05632727 | DJ29: =[5]Salidas_balance!L29 -> 0 | DL29: =[5]Salidas_balance!N29 -> 0.1284375 | DM29: =[5]Salidas_balance!O29 -> 0.3283428571 | DN29: =[5]Salidas_balance!P29 -> 0.5353466667 | DO29: =[5]Salidas_balance!Q29 -> 0.6237380952 | DP29: =[5]Salidas_balance!R29 -> 1.10462 | DQ29: =[5]Salidas_balance!S29 -> 2.93488125 | DR29: =[5]Salidas_balance!T29 -> 2.5988 | DS29: =[5]Salidas_balance!U29 -> 8.217444444 | DT29: =[5]Salidas_balance!V29 -> 28.880375 | DU29: =[5]Salidas_balance!W29 -> 0 | DW29: =[5]Salidas_balance!Y29 -> 2.089221875 | DX29: =[5]Salidas_balance!Z29 -> 2.550764706 | DY29: =[5]Salidas_balance!AA29 -> 5.318057143 | DZ29: =[5]Salidas_balance!AB29 -> 7.073292308 | EA29: =[5]Salidas_balance!AC29 -> 14.90502665 | EB29: =[5]Salidas_balance!AD29 -> 25.76489397 | EC29: =[5]Salidas_balance!AE29 -> 28.493 | ED29: =[5]Salidas_balance!AF29 -> 24.90733333 | EE29: =[5]Salidas_balance!AG29 -> 260.4556364 | EF29: =[5]Salidas_balance!AH29 -> 0 | EH29: =[5]Salidas_balance!AJ29 -> 10.57807879 | EI29: =[5]Salidas_balance!AK29 -> 0 | EJ29: =[5]Salidas_balance!AL29 -> 0 | EK29: =[5]Salidas_balance!AM29 -> 0 | EL29: =[5]Salidas_balance!AN29 -> 0 | EM29: =[5]Salidas_balance!AO29 -> 0 | EN29: =[5]Salidas_balance!AP29 -> 0 | EO29: =[5]Salidas_balance!AQ29 -> 0 | EP29: =[5]Salidas_balance!AR29 -> 0 | EQ29: =[5]Salidas_balance!AS29 -> 0 | ES29: =[5]Salidas_balance!AU29 -> 31.59144828 | ET29: =[5]Salidas_balance!AV29 -> 0 | EU29: =[5]Salidas_balance!AW29 -> 0 | EV29: =[5]Salidas_balance!AX29 -> 0 | EW29: =[5]Salidas_balance!AY29 -> 0 | EX29: =[5]Salidas_balance!AZ29 -> 0 | EY29: =[5]Salidas_balance!BA29 -> 0 | EZ29: =[5]Salidas_balance!BB29 -> 0 | FA29: =[5]Salidas_balance!BC29 -> 0 | FB29: =[5]Salidas_balance!BD29 -> 0 | FD29: =[5]Salidas_balance!BF29 -> 0 | FE29: =[5]Salidas_balance!BG29 -> 0 | FF29: =[5]Salidas_balance!BH29 -> 0 | FG29: =[5]Salidas_balance!BI29 -> 0 | FH29: =[5]Salidas_balance!BJ29 -> 0 | FI29: =[5]Salidas_balance!BK29 -> 0 | FJ29: =[5]Salidas_balance!BL29 -> 0 | FK29: =[5]Salidas_balance!BM29 -> 0 | FL29: =[5]Salidas_balance!BN29 -> 0 | FM29: =[5]Salidas_balance!BO29 -> 0 | FO29: =[5]Salidas_balance!BQ29 -> 3.924469524 | FP29: =[5]Salidas_balance!BR29 -> 19.71433333 | FQ29: =[5]Salidas_balance!BS29 -> 41.1535 | FR29: =[5]Salidas_balance!BT29 -> 43.54046667 | FS29: =[5]Salidas_balance!BU29 -> 122.006 | FT29: =[5]Salidas_balance!BV29 -> 76.37077778 | FU29: =[5]Salidas_balance!BW29 -> 200.255 | FV29: =[5]Salidas_balance!BX29 -> 328.939 | FW29: =[5]Salidas_balance!BY29 -> 1043.061786 | FX29: =[5]Salidas_balance!BZ29 -> 0 | FZ29: =[5]Salidas_balance!CB29 -> 211.958 | GA29: =[5]Salidas_balance!CC29 -> 0 | GB29: =[5]Salidas_balance!CD29 -> 0 | GC29: =[5]Salidas_balance!CE29 -> 0 | GD29: =[5]Salidas_balance!CF29 -> 0 | GE29: =[5]Salidas_balance!CG29 -> 0 | GF29: =[5]Salidas_balance!CH29 -> 0 | GG29: =[5]Salidas_balance!CI29 -> 0 | GH29: =[5]Salidas_balance!CJ29 -> 0 | GI29: =[5]Salidas_balance!CK29 -> 0 | GK29: =[5]Salidas_balance!CM29 -> 54.04646154 | GL29: =[5]Salidas_balance!CN29 -> 0 | GM29: =[5]Salidas_balance!CO29 -> 0 | GN29: =[5]Salidas_balance!CP29 -> 0 | GO29: =[5]Salidas_balance!CQ29 -> 0 | GP29: =[5]Salidas_balance!CR29 -> 0 | GQ29: =[5]Salidas_balance!CS29 -> 0 | GR29: =[5]Salidas_balance!CT29 -> 0 | GS29: =[5]Salidas_balance!CU29 -> 0 | GT29: =[5]Salidas_balance!CV29 -> 0 | GV29: =[5]Salidas_balance!CX29 -> 0 | GW29: =[5]Salidas_balance!CY29 -> 0 | GX29: =[5]Salidas_balance!CZ29 -> 0 | GY29: =[5]Salidas_balance!DA29 -> 0 | GZ29: =[5]Salidas_balance!DB29 -> 0 | HA29: =[5]Salidas_balance!DC29 -> 0 | HB29: =[5]Salidas_balance!DD29 -> 0 | HC29: =[5]Salidas_balance!DE29 -> 0 | HD29: =[5]Salidas_balance!DF29 -> 0 | HE29: =[5]Salidas_balance!DG29 -> 0 | HG29: =[5]Salidas_balance!DI29 -> 9087.093 | HH29: =[5]Salidas_balance!DJ29 -> 0 | HI29: =[5]Salidas_balance!DK29 -> 0 | HJ29: =[5]Salidas_balance!DL29 -> 0 | HK29: =[5]Salidas_balance!DM29 -> 0 | HL29: =[5]Salidas_balance!DN29 -> 0 | HM29: =[5]Salidas_balance!DO29 -> 0 | HN29: =[5]Salidas_balance!DP29 -> 0 | HO29: =[5]Salidas_balance!DQ29 -> 0 | HP29: =[5]Salidas_balance!DR29 -> 0 | HR29: =[5]Salidas_balance!DT29 -> 1874.917333 | HS29: =[5]Salidas_balance!DU29 -> 0 | HT29: =[5]Salidas_balance!DV29 -> 0 | HU29: =[5]Salidas_balance!DW29 -> 0 | HV29: =[5]Salidas_balance!DX29 -> 0 | HW29: =[5]Salidas_balance!DY29 -> 0 | HX29: =[5]Salidas_balance!DZ29 -> 0 | HY29: =[5]Salidas_balance!EA29 -> 0 | HZ29: =[5]Salidas_balance!EB29 -> 0 | IA29: =[5]Salidas_balance!EC29 -> 0 | IC29: =[5]Salidas_balance!EE29 -> 0 | ID29: =[5]Salidas_balance!EF29 -> 0 | IE29: =[5]Salidas_balance!EG29 -> 0 | IF29: =[5]Salidas_balance!EH29 -> 0 | IG29: =[5]Salidas_balance!EI29 -> 0 | IH29: =[5]Salidas_balance!EJ29 -> 0 | II29: =[5]Salidas_balance!EK29 -> 0 | IJ29: =[5]Salidas_balance!EL29 -> 0 | IK29: =[5]Salidas_balance!EM29 -> 0 | IL29: =[5]Salidas_balance!EN29 -> 0 | IN29: =[5]Salidas_balance!EP29 -> 0 | IO29: =[5]Salidas_balance!EQ29 -> 0 | IP29: =[5]Salidas_balance!ER29 -> 0 | IQ29: =[5]Salidas_balance!ES29 -> 0 | IR29: =[5]Salidas_balance!ET29 -> 0 | IS29: =[5]Salidas_balance!EU29 -> 0 | IT29: =[5]Salidas_balance!EV29 -> 0 | IU29: =[5]Salidas_balance!EW29 -> 0 | IV29: =[5]Salidas_balance!EX29 -> 0 | IW29: =[5]Salidas_balance!EY29 -> 0 | IY29: =[5]Salidas_balance!FA29 -> 22928.15783 | IZ29: =[5]Salidas_balance!FB29 -> 0 | JA29: =[5]Salidas_balance!FC29 -> 0 | JB29: =[5]Salidas_balance!FD29 -> 0 | JC29: =[5]Salidas_balance!FE29 -> 0 | JD29: =[5]Salidas_balance!FF29 -> 0 | JE29: =[5]Salidas_balance!FG29 -> 0 | JF29: =[5]Salidas_balance!FH29 -> 0 | JG29: =[5]Salidas_balance!FI29 -> 0 | JH29: =[5]Salidas_balance!FJ29 -> 0 | JJ29: =[5]Salidas_balance!FL29 -> 0 | JK29: =[5]Salidas_balance!FM29 -> 0 | JL29: =[5]Salidas_balance!FN29 -> 0 | JM29: =[5]Salidas_balance!FO29 -> 0 | JN29: =[5]Salidas_balance!FP29 -> 0 | JO29: =[5]Salidas_balance!FQ29 -> 0 | JP29: =[5]Salidas_balance!FR29 -> 0 | JQ29: =[5]Salidas_balance!FS29 -> 0 | JR29: =[5]Salidas_balance!FT29 -> 0 | JS29: =[5]Salidas_balance!FU29 -> 0 | JU29: =[5]Salidas_balance!FW29 -> 0 | JV29: =[5]Salidas_balance!FX29 -> 0 | JW29: =[5]Salidas_balance!FY29 -> 0 | JX29: =[5]Salidas_balance!FZ29 -> 0 | JY29: =[5]Salidas_balance!GA29 -> 0 | JZ29: =[5]Salidas_balance!GB29 -> 0 | KA29: =[5]Salidas_balance!GC29 -> 0 | KB29: =[5]Salidas_balance!GD29 -> 0 | KC29: =[5]Salidas_balance!GE29 -> 0 | KD29: =[5]Salidas_balance!GF29 -> 0 | KF29: =[5]Salidas_balance!GH29 -> 0 | KG29: =[5]Salidas_balance!GI29 -> 0 | KH29: =[5]Salidas_balance!GJ29 -> 0 | KI29: =[5]Salidas_balance!GK29 -> 0 | KJ29: =[5]Salidas_balance!GL29 -> 0 | KK29: =[5]Salidas_balance!GM29 -> 0 | KL29: =[5]Salidas_balance!GN29 -> 0 | KM29: =[5]Salidas_balance!GO29 -> 0 | KN29: =[5]Salidas_balance!GP29 -> 0 | KO29: =[5]Salidas_balance!GQ29 -> 0 | KQ29: =[5]Salidas_balance!GS29 -> 0 | KR29: =[5]Salidas_balance!GT29 -> 0 | KS29: =[5]Salidas_balance!GU29 -> 0 | KT29: =[5]Salidas_balance!GV29 -> 0 | KU29: =[5]Salidas_balance!GW29 -> 0 | KV29: =[5]Salidas_balance!GX29 -> 0 | KW29: =[5]Salidas_balance!GY29 -> 0 | KX29: =[5]Salidas_balance!GZ29 -> 0 | KY29: =[5]Salidas_balance!HA29 -> 0 | KZ29: =[5]Salidas_balance!HB29 -> 0 | LB29: =[5]Salidas_balance!HD29 -> 0 | LC29: =[5]Salidas_balance!HE29 -> 0 | LD29: =[5]Salidas_balance!HF29 -> 0 | LE29: =[5]Salidas_balance!HG29 -> 0 | LF29: =[5]Salidas_balance!HH29 -> 0 | LG29: =[5]Salidas_balance!HI29 -> 0 | LH29: =[5]Salidas_balance!HJ29 -> 0 | LI29: =[5]Salidas_balance!HK29 -> 0 | LJ29: =[5]Salidas_balance!HL29 -> 0 | LK29: =[5]Salidas_balance!HM29 -> 0 | LM29: Domingo | LN29: 05:30:00
B30: Domingo | C30: 05:45:00 | D30: V | E30: 249386.8554 | F30: 325855.9699 | G30: 389150.5857 | H30: 153227.8373 | I30: 21047.48298 | J30: 33560.96084 | K30: 778.5475362 | L30: 8.535934342e-06 | AB30: =IF(AND($C30>INPUTS!$E$27,$C30<INPUTS!$E$26),0,INPUTS!$E$25/7/(24*(1-INPUTS!$E$26+INPUTS!$E$27))) -> 18796.35132 | AC30: ='Cálculo de Pérdidas'!S32 -> 17553.07197 | AD30: ='Cálculo de Pérdidas'!O32 -> 4422.60341 | AE30: 249386.8554 | AL30: 51932.00327 | AM30: 14227.11529 | AN30: 7.041653943e-06 | AZ30: ='Cálculo de Pérdidas'!P32 -> 10309.99596 | BA30: 325855.9699 | BL30: 8913.1144 | BM30: 29105.42862 | BP30: 23007.4543 | BV30: ='Cálculo de Pérdidas'!Q32 -> 2268.618436 | BW30: 389150.5857 | BY30: 174275.3203 | CA30: 34339.50838 | CC30: 153227.8373 | CD30: 21047.48298 | CE30: 33560.96084 | CF30: 778.5475362 | CG30: 8.535934342e-06 | CH30: 0 | CI30: 51932.00327 | CJ30: 14227.11529 | CK30: 7.041653943e-06 | CL30: 0 | CM30: 8913.1144 | CN30: 29105.42862 | CO30: 0 | CP30: 0 | CQ30: 23007.4543 | CR30: 0 | CS30: 0 | CT30: 0 | CU30: 0 | CV30: 0 | DA30: =[5]Salidas_balance!C30 -> 0.0637375 | DB30: =[5]Salidas_balance!D30 -> 0.1471455696 | DC30: =[5]Salidas_balance!E30 -> 0.3136764706 | DD30: =[5]Salidas_balance!F30 -> 0.380436 | DE30: =[5]Salidas_balance!G30 -> 0.8179428571 | DF30: =[5]Salidas_balance!H30 -> 1.56923125 | DG30: =[5]Salidas_balance!I30 -> 2.997815385 | DH30: =[5]Salidas_balance!J30 -> 6.443925 | DI30: =[5]Salidas_balance!K30 -> 12.9276 | DJ30: =[5]Salidas_balance!L30 -> 0 | DL30: =[5]Salidas_balance!N30 -> 0.1353354167 | DM30: =[5]Salidas_balance!O30 -> 0.3271333333 | DN30: =[5]Salidas_balance!P30 -> 0.5224333333 | DO30: =[5]Salidas_balance!Q30 -> 0.6414714286 | DP30: =[5]Salidas_balance!R30 -> 1.101313333 | DQ30: =[5]Salidas_balance!S30 -> 2.87325 | DR30: =[5]Salidas_balance!T30 -> 2.764622222 | DS30: =[5]Salidas_balance!U30 -> 8.069855556 | DT30: =[5]Salidas_balance!V30 -> 28.512875 | DU30: =[5]Salidas_balance!W30 -> 0 | DW30: =[5]Salidas_balance!Y30 -> 2.08849375 | DX30: =[5]Salidas_balance!Z30 -> 2.632264706 | DY30: =[5]Salidas_balance!AA30 -> 5.329747619 | DZ30: =[5]Salidas_balance!AB30 -> 7.085853846 | EA30: =[5]Salidas_balance!AC30 -> 15.35470663 | EB30: =[5]Salidas_balance!AD30 -> 25.71635645 | EC30: =[5]Salidas_balance!AE30 -> 28.262 | ED30: =[5]Salidas_balance!AF30 -> 23.45533333 | EE30: =[5]Salidas_balance!AG30 -> 260.8309091 | EF30: =[5]Salidas_balance!AH30 -> 0 | EH30: =[5]Salidas_balance!AJ30 -> 10.27978788 | EI30: =[5]Salidas_balance!AK30 -> 0 | EJ30: =[5]Salidas_balance!AL30 -> 0 | EK30: =[5]Salidas_balance!AM30 -> 0 | EL30: =[5]Salidas_balance!AN30 -> 0 | EM30: =[5]Salidas_balance!AO30 -> 0 | EN30: =[5]Salidas_balance!AP30 -> 0 | EO30: =[5]Salidas_balance!AQ30 -> 0 | EP30: =[5]Salidas_balance!AR30 -> 0 | EQ30: =[5]Salidas_balance!AS30 -> 0 | ES30: =[5]Salidas_balance!AU30 -> 31.9242069 | ET30: =[5]Salidas_balance!AV30 -> 0 | EU30: =[5]Salidas_balance!AW30 -> 0 | EV30: =[5]Salidas_balance!AX30 -> 0 | EW30: =[5]Salidas_balance!AY30 -> 0 | EX30: =[5]Salidas_balance!AZ30 -> 0 | EY30: =[5]Salidas_balance!BA30 -> 0 | EZ30: =[5]Salidas_balance!BB30 -> 0 | FA30: =[5]Salidas_balance!BC30 -> 0 | FB30: =[5]Salidas_balance!BD30 -> 0 | FD30: =[5]Salidas_balance!BF30 -> 0 | FE30: =[5]Salidas_balance!BG30 -> 0 | FF30: =[5]Salidas_balance!BH30 -> 0 | FG30: =[5]Salidas_balance!BI30 -> 0 | FH30: =[5]Salidas_balance!BJ30 -> 0 | FI30: =[5]Salidas_balance!BK30 -> 0 | FJ30: =[5]Salidas_balance!BL30 -> 0 | FK30: =[5]Salidas_balance!BM30 -> 0 | FL30: =[5]Salidas_balance!BN30 -> 0 | FM30: =[5]Salidas_balance!BO30 -> 0 | FO30: =[5]Salidas_balance!BQ30 -> 3.944174286 | FP30: =[5]Salidas_balance!BR30 -> 19.65172222 | FQ30: =[5]Salidas_balance!BS30 -> 42.823 | FR30: =[5]Salidas_balance!BT30 -> 45.80053333 | FS30: =[5]Salidas_balance!BU30 -> 124.924 | FT30: =[5]Salidas_balance!BV30 -> 82.39233333 | FU30: =[5]Salidas_balance!BW30 -> 221.516 | FV30: =[5]Salidas_balance!BX30 -> 343.763 | FW30: =[5]Salidas_balance!BY30 -> 1044.021786 | FX30: =[5]Salidas_balance!BZ30 -> 0 | FZ30: =[5]Salidas_balance!CB30 -> 218.2847571 | GA30: =[5]Salidas_balance!CC30 -> 0 | GB30: =[5]Salidas_balance!CD30 -> 0 | GC30: =[5]Salidas_balance!CE30 -> 0 | GD30: =[5]Salidas_balance!CF30 -> 0 | GE30: =[5]Salidas_balance!CG30 -> 0 | GF30: =[5]Salidas_balance!CH30 -> 0 | GG30: =[5]Salidas_balance!CI30 -> 0 | GH30: =[5]Salidas_balance!CJ30 -> 0 | GI30: =[5]Salidas_balance!CK30 -> 0 | GK30: =[5]Salidas_balance!CM30 -> 54.95646154 | GL30: =[5]Salidas_balance!CN30 -> 0 | GM30: =[5]Salidas_balance!CO30 -> 0 | GN30: =[5]Salidas_balance!CP30 -> 0 | GO30: =[5]Salidas_balance!CQ30 -> 0 | GP30: =[5]Salidas_balance!CR30 -> 0 | GQ30: =[5]Salidas_balance!CS30 -> 0 | GR30: =[5]Salidas_balance!CT30 -> 0 | GS30: =[5]Salidas_balance!CU30 -> 0 | GT30: =[5]Salidas_balance!CV30 -> 0 | GV30: =[5]Salidas_balance!CX30 -> 0 | GW30: =[5]Salidas_balance!CY30 -> 0 | GX30: =[5]Salidas_balance!CZ30 -> 0 | GY30: =[5]Salidas_balance!DA30 -> 0 | GZ30: =[5]Salidas_balance!DB30 -> 0 | HA30: =[5]Salidas_balance!DC30 -> 0 | HB30: =[5]Salidas_balance!DD30 -> 0 | HC30: =[5]Salidas_balance!DE30 -> 0 | HD30: =[5]Salidas_balance!DF30 -> 0 | HE30: =[5]Salidas_balance!DG30 -> 0 | HG30: =[5]Salidas_balance!DI30 -> 9149.331692 | HH30: =[5]Salidas_balance!DJ30 -> 0 | HI30: =[5]Salidas_balance!DK30 -> 0 | HJ30: =[5]Salidas_balance!DL30 -> 0 | HK30: =[5]Salidas_balance!DM30 -> 0 | HL30: =[5]Salidas_balance!DN30 -> 0 | HM30: =[5]Salidas_balance!DO30 -> 0 | HN30: =[5]Salidas_balance!DP30 -> 0 | HO30: =[5]Salidas_balance!DQ30 -> 0 | HP30: =[5]Salidas_balance!DR30 -> 0 | HR30: =[5]Salidas_balance!DT30 -> 1884.750667 | HS30: =[5]Salidas_balance!DU30 -> 0 | HT30: =[5]Salidas_balance!DV30 -> 0 | HU30: =[5]Salidas_balance!DW30 -> 0 | HV30: =[5]Salidas_balance!DX30 -> 0 | HW30: =[5]Salidas_balance!DY30 -> 0 | HX30: =[5]Salidas_balance!DZ30 -> 0 | HY30: =[5]Salidas_balance!EA30 -> 0 | HZ30: =[5]Salidas_balance!EB30 -> 0 | IA30: =[5]Salidas_balance!EC30 -> 0 | IC30: =[5]Salidas_balance!EE30 -> 0 | ID30: =[5]Salidas_balance!EF30 -> 0 | IE30: =[5]Salidas_balance!EG30 -> 0 | IF30: =[5]Salidas_balance!EH30 -> 0 | IG30: =[5]Salidas_balance!EI30 -> 0 | IH30: =[5]Salidas_balance!EJ30 -> 0 | II30: =[5]Salidas_balance!EK30 -> 0 | IJ30: =[5]Salidas_balance!EL30 -> 0 | IK30: =[5]Salidas_balance!EM30 -> 0 | IL30: =[5]Salidas_balance!EN30 -> 0 | IN30: =[5]Salidas_balance!EP30 -> 0 | IO30: =[5]Salidas_balance!EQ30 -> 0 | IP30: =[5]Salidas_balance!ER30 -> 0 | IQ30: =[5]Salidas_balance!ES30 -> 0 | IR30: =[5]Salidas_balance!ET30 -> 0 | IS30: =[5]Salidas_balance!EU30 -> 0 | IT30: =[5]Salidas_balance!EV30 -> 0 | IU30: =[5]Salidas_balance!EW30 -> 0 | IV30: =[5]Salidas_balance!EX30 -> 0 | IW30: =[5]Salidas_balance!EY30 -> 0 | IY30: =[5]Salidas_balance!FA30 -> 22905.47992 | IZ30: =[5]Salidas_balance!FB30 -> 0 | JA30: =[5]Salidas_balance!FC30 -> 0 | JB30: =[5]Salidas_balance!FD30 -> 0 | JC30: =[5]Salidas_balance!FE30 -> 0 | JD30: =[5]Salidas_balance!FF30 -> 0 | JE30: =[5]Salidas_balance!FG30 -> 0 | JF30: =[5]Salidas_balance!FH30 -> 0 | JG30: =[5]Salidas_balance!FI30 -> 0 | JH30: =[5]Salidas_balance!FJ30 -> 0 | JJ30: =[5]Salidas_balance!FL30 -> 0 | JK30: =[5]Salidas_balance!FM30 -> 0 | JL30: =[5]Salidas_balance!FN30 -> 0 | JM30: =[5]Salidas_balance!FO30 -> 0 | JN30: =[5]Salidas_balance!FP30 -> 0 | JO30: =[5]Salidas_balance!FQ30 -> 0 | JP30: =[5]Salidas_balance!FR30 -> 0 | JQ30: =[5]Salidas_balance!FS30 -> 0 | JR30: =[5]Salidas_balance!FT30 -> 0 | JS30: =[5]Salidas_balance!FU30 -> 0 | JU30: =[5]Salidas_balance!FW30 -> 0 | JV30: =[5]Salidas_balance!FX30 -> 0 | JW30: =[5]Salidas_balance!FY30 -> 0 | JX30: =[5]Salidas_balance!FZ30 -> 0 | JY30: =[5]Salidas_balance!GA30 -> 0 | JZ30: =[5]Salidas_balance!GB30 -> 0 | KA30: =[5]Salidas_balance!GC30 -> 0 | KB30: =[5]Salidas_balance!GD30 -> 0 | KC30: =[5]Salidas_balance!GE30 -> 0 | KD30: =[5]Salidas_balance!GF30 -> 0 | KF30: =[5]Salidas_balance!GH30 -> 0 | KG30: =[5]Salidas_balance!GI30 -> 0 | KH30: =[5]Salidas_balance!GJ30 -> 0 | KI30: =[5]Salidas_balance!GK30 -> 0 | KJ30: =[5]Salidas_balance!GL30 -> 0 | KK30: =[5]Salidas_balance!GM30 -> 0 | KL30: =[5]Salidas_balance!GN30 -> 0 | KM30: =[5]Salidas_balance!GO30 -> 0 | KN30: =[5]Salidas_balance!GP30 -> 0 | KO30: =[5]Salidas_balance!GQ30 -> 0 | KQ30: =[5]Salidas_balance!GS30 -> 0 | KR30: =[5]Salidas_balance!GT30 -> 0 | KS30: =[5]Salidas_balance!GU30 -> 0 | KT30: =[5]Salidas_balance!GV30 -> 0 | KU30: =[5]Salidas_balance!GW30 -> 0 | KV30: =[5]Salidas_balance!GX30 -> 0 | KW30: =[5]Salidas_balance!GY30 -> 0 | KX30: =[5]Salidas_balance!GZ30 -> 0 | KY30: =[5]Salidas_balance!HA30 -> 0 | KZ30: =[5]Salidas_balance!HB30 -> 0 | LB30: =[5]Salidas_balance!HD30 -> 0 | LC30: =[5]Salidas_balance!HE30 -> 0 | LD30: =[5]Salidas_balance!HF30 -> 0 | LE30: =[5]Salidas_balance!HG30 -> 0 | LF30: =[5]Salidas_balance!HH30 -> 0 | LG30: =[5]Salidas_balance!HI30 -> 0 | LH30: =[5]Salidas_balance!HJ30 -> 0 | LI30: =[5]Salidas_balance!HK30 -> 0 | LJ30: =[5]Salidas_balance!HL30 -> 0 | LK30: =[5]Salidas_balance!HM30 -> 0 | LM30: Domingo | LN30: 05:45:00
B31: Domingo | C31: 06:00:00 | D31: V | E31: 246029.3355 | F31: 323313.7896 | G31: 386319.6005 | H31: 148470.3137 | I31: 21168.11285 | J31: 35998.26307 | K31: 778.8264962 | L31: 8.501672662e-06 | AB31: =IF(AND($C31>INPUTS!$E$27,$C31<INPUTS!$E$26),0,INPUTS!$E$25/7/(24*(1-INPUTS!$E$26+INPUTS!$E$27))) -> 18796.35132 | AC31: ='Cálculo de Pérdidas'!S33 -> 16479.99372 | AD31: ='Cálculo de Pérdidas'!O33 -> 4337.47432 | AE31: 246029.3355 | AL31: 52847.79029 | AM31: 14282.04821 | AN31: 7.02419849e-06 | AZ31: ='Cálculo de Pérdidas'!P33 -> 10154.61556 | BA31: 323313.7896 | BL31: 8972.063634 | BM31: 29910.71842 | BP31: 21887.10927 | BV31: ='Cálculo de Pérdidas'!Q33 -> 2235.919648 | BW31: 386319.6005 | BY31: 169638.4265 | CA31: 36777.08957 | CC31: 148470.3137 | CD31: 21168.11285 | CE31: 35998.26307 | CF31: 778.8264962 | CG31: 8.501672662e-06 | CH31: 0 | CI31: 52847.79029 | CJ31: 14282.04821 | CK31: 7.02419849e-06 | CL31: 0 | CM31: 8972.063634 | CN31: 29910.71842 | CO31: 0 | CP31: 0 | CQ31: 21887.10927 | CR31: 0 | CS31: 0 | CT31: 0 | CU31: 0 | CV31: 0 | DA31: =[5]Salidas_balance!C31 -> 0.0596125 | DB31: =[5]Salidas_balance!D31 -> 0.1440708861 | DC31: =[5]Salidas_balance!E31 -> 0.3297882353 | DD31: =[5]Salidas_balance!F31 -> 0.372564 | DE31: =[5]Salidas_balance!G31 -> 0.7560571429 | DF31: =[5]Salidas_balance!H31 -> 1.38255 | DG31: =[5]Salidas_balance!I31 -> 3.063646154 | DH31: =[5]Salidas_balance!J31 -> 6.439091667 | DI31: =[5]Salidas_balance!K31 -> 13.39212727 | DJ31: =[5]Salidas_balance!L31 -> 0 | DL31: =[5]Salidas_balance!N31 -> 0.1328854167 | DM31: =[5]Salidas_balance!O31 -> 0.3231214286 | DN31: =[5]Salidas_balance!P31 -> 0.63948 | DO31: =[5]Salidas_balance!Q31 -> 0.5835857143 | DP31: =[5]Salidas_balance!R31 -> 1.087513333 | DQ31: =[5]Salidas_balance!S31 -> 2.89656875 | DR31: =[5]Salidas_balance!T31 -> 2.669755556 | DS31: =[5]Salidas_balance!U31 -> 8.414111111 | DT31: =[5]Salidas_balance!V31 -> 27.31725 | DU31: =[5]Salidas_balance!W31 -> 0 | DW31: =[5]Salidas_balance!Y31 -> 2.01246875 | DX31: =[5]Salidas_balance!Z31 -> 2.570558824 | DY31: =[5]Salidas_balance!AA31 -> 5.410733333 | DZ31: =[5]Salidas_balance!AB31 -> 7.099015385 | EA31: =[5]Salidas_balance!AC31 -> 19.98764667 | EB31: =[5]Salidas_balance!AD31 -> 25.83103805 | EC31: =[5]Salidas_balance!AE31 -> 27.435 | ED31: =[5]Salidas_balance!AF31 -> 35.40733333 | EE31: =[5]Salidas_balance!AG31 -> 262.7496364 | EF31: =[5]Salidas_balance!AH31 -> 0 | EH31: =[5]Salidas_balance!AJ31 -> 10.28347121 | EI31: =[5]Salidas_balance!AK31 -> 0 | EJ31: =[5]Salidas_balance!AL31 -> 0 | EK31: =[5]Salidas_balance!AM31 -> 0 | EL31: =[5]Salidas_balance!AN31 -> 0 | EM31: =[5]Salidas_balance!AO31 -> 0 | EN31: =[5]Salidas_balance!AP31 -> 0 | EO31: =[5]Salidas_balance!AQ31 -> 0 | EP31: =[5]Salidas_balance!AR31 -> 0 | EQ31: =[5]Salidas_balance!AS31 -> 0 | ES31: =[5]Salidas_balance!AU31 -> 31.79606897 | ET31: =[5]Salidas_balance!AV31 -> 0 | EU31: =[5]Salidas_balance!AW31 -> 0 | EV31: =[5]Salidas_balance!AX31 -> 0 | EW31: =[5]Salidas_balance!AY31 -> 0 | EX31: =[5]Salidas_balance!AZ31 -> 0 | EY31: =[5]Salidas_balance!BA31 -> 0 | EZ31: =[5]Salidas_balance!BB31 -> 0 | FA31: =[5]Salidas_balance!BC31 -> 0 | FB31: =[5]Salidas_balance!BD31 -> 0 | FD31: =[5]Salidas_balance!BF31 -> 0 | FE31: =[5]Salidas_balance!BG31 -> 0 | FF31: =[5]Salidas_balance!BH31 -> 0 | FG31: =[5]Salidas_balance!BI31 -> 0 | FH31: =[5]Salidas_balance!BJ31 -> 0 | FI31: =[5]Salidas_balance!BK31 -> 0 | FJ31: =[5]Salidas_balance!BL31 -> 0 | FK31: =[5]Salidas_balance!BM31 -> 0 | FL31: =[5]Salidas_balance!BN31 -> 0 | FM31: =[5]Salidas_balance!BO31 -> 0 | FO31: =[5]Salidas_balance!BQ31 -> 3.913807619 | FP31: =[5]Salidas_balance!BR31 -> 18.85216667 | FQ31: =[5]Salidas_balance!BS31 -> 46.0945 | FR31: =[5]Salidas_balance!BT31 -> 50.2642 | FS31: =[5]Salidas_balance!BU31 -> 126.891 | FT31: =[5]Salidas_balance!BV31 -> 76.26111111 | FU31: =[5]Salidas_balance!BW31 -> 223.709 | FV31: =[5]Salidas_balance!BX31 -> 362.26 | FW31: =[5]Salidas_balance!BY31 -> 1041.707143 | FX31: =[5]Salidas_balance!BZ31 -> 0 | FZ31: =[5]Salidas_balance!CB31 -> 219.1275857 | GA31: =[5]Salidas_balance!CC31 -> 0 | GB31: =[5]Salidas_balance!CD31 -> 0 | GC31: =[5]Salidas_balance!CE31 -> 0 | GD31: =[5]Salidas_balance!CF31 -> 0 | GE31: =[5]Salidas_balance!CG31 -> 0 | GF31: =[5]Salidas_balance!CH31 -> 0 | GG31: =[5]Salidas_balance!CI31 -> 0 | GH31: =[5]Salidas_balance!CJ31 -> 0 | GI31: =[5]Salidas_balance!CK31 -> 0 | GK31: =[5]Salidas_balance!CM31 -> 54.82023077 | GL31: =[5]Salidas_balance!CN31 -> 0 | GM31: =[5]Salidas_balance!CO31 -> 0 | GN31: =[5]Salidas_balance!CP31 -> 0 | GO31: =[5]Salidas_balance!CQ31 -> 0 | GP31: =[5]Salidas_balance!CR31 -> 0 | GQ31: =[5]Salidas_balance!CS31 -> 0 | GR31: =[5]Salidas_balance!CT31 -> 0 | GS31: =[5]Salidas_balance!CU31 -> 0 | GT31: =[5]Salidas_balance!CV31 -> 0 | GV31: =[5]Salidas_balance!CX31 -> 0 | GW31: =[5]Salidas_balance!CY31 -> 0 | GX31: =[5]Salidas_balance!CZ31 -> 0 | GY31: =[5]Salidas_balance!DA31 -> 0 | GZ31: =[5]Salidas_balance!DB31 -> 0 | HA31: =[5]Salidas_balance!DC31 -> 0 | HB31: =[5]Salidas_balance!DD31 -> 0 | HC31: =[5]Salidas_balance!DE31 -> 0 | HD31: =[5]Salidas_balance!DF31 -> 0 | HE31: =[5]Salidas_balance!DG31 -> 0 | HG31: =[5]Salidas_balance!DI31 -> 9209.843212 | HH31: =[5]Salidas_balance!DJ31 -> 0 | HI31: =[5]Salidas_balance!DK31 -> 0 | HJ31: =[5]Salidas_balance!DL31 -> 0 | HK31: =[5]Salidas_balance!DM31 -> 0 | HL31: =[5]Salidas_balance!DN31 -> 0 | HM31: =[5]Salidas_balance!DO31 -> 0 | HN31: =[5]Salidas_balance!DP31 -> 0 | HO31: =[5]Salidas_balance!DQ31 -> 0 | HP31: =[5]Salidas_balance!DR31 -> 0 | HR31: =[5]Salidas_balance!DT31 -> 1936.898 | HS31: =[5]Salidas_balance!DU31 -> 0 | HT31: =[5]Salidas_balance!DV31 -> 0 | HU31: =[5]Salidas_balance!DW31 -> 0 | HV31: =[5]Salidas_balance!DX31 -> 0 | HW31: =[5]Salidas_balance!DY31 -> 0 | HX31: =[5]Salidas_balance!DZ31 -> 0 | HY31: =[5]Salidas_balance!EA31 -> 0 | HZ31: =[5]Salidas_balance!EB31 -> 0 | IA31: =[5]Salidas_balance!EC31 -> 0 | IC31: =[5]Salidas_balance!EE31 -> 0 | ID31: =[5]Salidas_balance!EF31 -> 0 | IE31: =[5]Salidas_balance!EG31 -> 0 | IF31: =[5]Salidas_balance!EH31 -> 0 | IG31: =[5]Salidas_balance!EI31 -> 0 | IH31: =[5]Salidas_balance!EJ31 -> 0 | II31: =[5]Salidas_balance!EK31 -> 0 | IJ31: =[5]Salidas_balance!EL31 -> 0 | IK31: =[5]Salidas_balance!EM31 -> 0 | IL31: =[5]Salidas_balance!EN31 -> 0 | IN31: =[5]Salidas_balance!EP31 -> 0 | IO31: =[5]Salidas_balance!EQ31 -> 0 | IP31: =[5]Salidas_balance!ER31 -> 0 | IQ31: =[5]Salidas_balance!ES31 -> 0 | IR31: =[5]Salidas_balance!ET31 -> 0 | IS31: =[5]Salidas_balance!EU31 -> 0 | IT31: =[5]Salidas_balance!EV31 -> 0 | IU31: =[5]Salidas_balance!EW31 -> 0 | IV31: =[5]Salidas_balance!EX31 -> 0 | IW31: =[5]Salidas_balance!EY31 -> 0 | IY31: =[5]Salidas_balance!FA31 -> 21790.10052 | IZ31: =[5]Salidas_balance!FB31 -> 0 | JA31: =[5]Salidas_balance!FC31 -> 0 | JB31: =[5]Salidas_balance!FD31 -> 0 | JC31: =[5]Salidas_balance!FE31 -> 0 | JD31: =[5]Salidas_balance!FF31 -> 0 | JE31: =[5]Salidas_balance!FG31 -> 0 | JF31: =[5]Salidas_balance!FH31 -> 0 | JG31: =[5]Salidas_balance!FI31 -> 0 | JH31: =[5]Salidas_balance!FJ31 -> 0 | JJ31: =[5]Salidas_balance!FL31 -> 0 | JK31: =[5]Salidas_balance!FM31 -> 0 | JL31: =[5]Salidas_balance!FN31 -> 0 | JM31: =[5]Salidas_balance!FO31 -> 0 | JN31: =[5]Salidas_balance!FP31 -> 0 | JO31: =[5]Salidas_balance!FQ31 -> 0 | JP31: =[5]Salidas_balance!FR31 -> 0 | JQ31: =[5]Salidas_balance!FS31 -> 0 | JR31: =[5]Salidas_balance!FT31 -> 0 | JS31: =[5]Salidas_balance!FU31 -> 0 | JU31: =[5]Salidas_balance!FW31 -> 0 | JV31: =[5]Salidas_balance!FX31 -> 0 | JW31: =[5]Salidas_balance!FY31 -> 0 | JX31: =[5]Salidas_balance!FZ31 -> 0 | JY31: =[5]Salidas_balance!GA31 -> 0 | JZ31: =[5]Salidas_balance!GB31 -> 0 | KA31: =[5]Salidas_balance!GC31 -> 0 | KB31: =[5]Salidas_balance!GD31 -> 0 | KC31: =[5]Salidas_balance!GE31 -> 0 | KD31: =[5]Salidas_balance!GF31 -> 0 | KF31: =[5]Salidas_balance!GH31 -> 0 | KG31: =[5]Salidas_balance!GI31 -> 0 | KH31: =[5]Salidas_balance!GJ31 -> 0 | KI31: =[5]Salidas_balance!GK31 -> 0 | KJ31: =[5]Salidas_balance!GL31 -> 0 | KK31: =[5]Salidas_balance!GM31 -> 0 | KL31: =[5]Salidas_balance!GN31 -> 0 | KM31: =[5]Salidas_balance!GO31 -> 0 | KN31: =[5]Salidas_balance!GP31 -> 0 | KO31: =[5]Salidas_balance!GQ31 -> 0 | KQ31: =[5]Salidas_balance!GS31 -> 0 | KR31: =[5]Salidas_balance!GT31 -> 0 | KS31: =[5]Salidas_balance!GU31 -> 0 | KT31: =[5]Salidas_balance!GV31 -> 0 | KU31: =[5]Salidas_balance!GW31 -> 0 | KV31: =[5]Salidas_balance!GX31 -> 0 | KW31: =[5]Salidas_balance!GY31 -> 0 | KX31: =[5]Salidas_balance!GZ31 -> 0 | KY31: =[5]Salidas_balance!HA31 -> 0 | KZ31: =[5]Salidas_balance!HB31 -> 0 | LB31: =[5]Salidas_balance!HD31 -> 0 | LC31: =[5]Salidas_balance!HE31 -> 0 | LD31: =[5]Salidas_balance!HF31 -> 0 | LE31: =[5]Salidas_balance!HG31 -> 0 | LF31: =[5]Salidas_balance!HH31 -> 0 | LG31: =[5]Salidas_balance!HI31 -> 0 | LH31: =[5]Salidas_balance!HJ31 -> 0 | LI31: =[5]Salidas_balance!HK31 -> 0 | LJ31: =[5]Salidas_balance!HL31 -> 0 | LK31: =[5]Salidas_balance!HM31 -> 0 | LM31: Domingo | LN31: 06:00:00
B32: Domingo | C32: 06:15:00 | D32: V | E32: 223938.2418 | F32: 301479.1433 | G32: 363656.9751 | H32: 146321.8116 | I32: 20937.39445 | J32: 36334.29682 | K32: 766.7825598 | L32: 7.522356564e-06 | AB32: =IF(AND($C32>INPUTS!$E$27,$C32<INPUTS!$E$26),0,INPUTS!$E$25/7/(24*(1-INPUTS!$E$26+INPUTS!$E$27))) -> 0 | AC32: ='Cálculo de Pérdidas'!S34 -> 16006.4834 | AD32: ='Cálculo de Pérdidas'!O34 -> 3571.473024 | AE32: 223938.2418 | AL32: 54458.04609 | AM32: 14216.98743 | AN32: 6.65680605e-06 | AZ32: ='Cálculo de Pérdidas'!P34 -> 8865.867966 | BA32: 301479.1433 | BL32: 8784.701867 | BM32: 30471.53145 | BP32: 20938.97648 | BV32: ='Cálculo de Pérdidas'!Q34 -> 1982.621945 | BW32: 363656.9751 | BY32: 167259.206 | CA32: 37101.07938 | CC32: =IF(CC$5="","",SUMIF($H$5:$BW$5,CC$5,$H32:$BW32)) -> 146321.8116 | CD32: 20937.39445 | CE32: 36334.29682 | CF32: 766.7825598 | CG32: 7.522356564e-06 | CH32: 0 | CI32: 54458.04609 | CJ32: 14216.98743 | CK32: 6.65680605e-06 | CL32: 0 | CM32: 8784.701867 | CN32: 30471.53145 | CO32: 0 | CP32: 0 | CQ32: 20938.97648 | CR32: =IF(CR$5="","",SUMIF($H$5:$BW$5,CR$5,$H32:$BW32)) -> 0 | CS32: 0 | CT32: 0 | CU32: 0 | CV32: 0 | DA32: =[5]Salidas_balance!C32 -> 0.06265 | DB32: =[5]Salidas_balance!D32 -> 0.1403924051 | DC32: =[5]Salidas_balance!E32 -> 0.3228117647 | DD32: =[5]Salidas_balance!F32 -> 0.382424 | DE32: =[5]Salidas_balance!G32 -> 0.7015428571 | DF32: =[5]Salidas_balance!H32 -> 1.36750625 | DG32: =[5]Salidas_balance!I32 -> 3.012169231 | DH32: =[5]Salidas_balance!J32 -> 6.762316667 | DI32: =[5]Salidas_balance!K32 -> 12.88248182 | DJ32: =[5]Salidas_balance!L32 -> 0 | DL32: =[5]Salidas_balance!N32 -> 0.1502833333 | DM32: =[5]Salidas_balance!O32 -> 0.3226571429 | DN32: =[5]Salidas_balance!P32 -> 0.5640533333 | DO32: =[5]Salidas_balance!Q32 -> 0.569152381 | DP32: =[5]Salidas_balance!R32 -> 1.1152 | DQ32: =[5]Salidas_balance!S32 -> 2.85603125 | DR32: =[5]Salidas_balance!T32 -> 2.771411111 | DS32: =[5]Salidas_balance!U32 -> 7.942633333 | DT32: =[5]Salidas_balance!V32 -> 29.7675 | DU32: =[5]Salidas_balance!W32 -> 0 | DW32: =[5]Salidas_balance!Y32 -> 1.97295625 | DX32: =[5]Salidas_balance!Z32 -> 2.764694118 | DY32: =[5]Salidas_balance!AA32 -> 5.445761905 | DZ32: =[5]Salidas_balance!AB32 -> 7.131946154 | EA32: =[5]Salidas_balance!AC32 -> 20.41542665 | EB32: =[5]Salidas_balance!AD32 -> 26.17805052 | EC32: =[5]Salidas_balance!AE32 -> 25.631 | ED32: =[5]Salidas_balance!AF32 -> 37.25333333 | EE32: =[5]Salidas_balance!AG32 -> 265.8089091 | EF32: =[5]Salidas_balance!AH32 -> 0 | EH32: =[5]Salidas_balance!AJ32 -> 10.12444545 | EI32: =[5]Salidas_balance!AK32 -> 0 | EJ32: =[5]Salidas_balance!AL32 -> 0 | EK32: =[5]Salidas_balance!AM32 -> 0 | EL32: =[5]Salidas_balance!AN32 -> 0 | EM32: =[5]Salidas_balance!AO32 -> 0 | EN32: =[5]Salidas_balance!AP32 -> 0 | EO32: =[5]Salidas_balance!AQ32 -> 0 | EP32: =[5]Salidas_balance!AR32 -> 0 | EQ32: =[5]Salidas_balance!AS32 -> 0 | ES32: =[5]Salidas_balance!AU32 -> 28.13344828 | ET32: =[5]Salidas_balance!AV32 -> 0 | EU32: =[5]Salidas_balance!AW32 -> 0 | EV32: =[5]Salidas_balance!AX32 -> 0 | EW32: =[5]Salidas_balance!AY32 -> 0 | EX32: =[5]Salidas_balance!AZ32 -> 0 | EY32: =[5]Salidas_balance!BA32 -> 0 | EZ32: =[5]Salidas_balance!BB32 -> 0 | FA32: =[5]Salidas_balance!BC32 -> 0 | FB32: =[5]Salidas_balance!BD32 -> 0 | FD32: =[5]Salidas_balance!BF32 -> 0 | FE32: =[5]Salidas_balance!BG32 -> 0 | FF32: =[5]Salidas_balance!BH32 -> 0 | FG32: =[5]Salidas_balance!BI32 -> 0 | FH32: =[5]Salidas_balance!BJ32 -> 0 | FI32: =[5]Salidas_balance!BK32 -> 0 | FJ32: =[5]Salidas_balance!BL32 -> 0 | FK32: =[5]Salidas_balance!BM32 -> 0 | FL32: =[5]Salidas_balance!BN32 -> 0 | FM32: =[5]Salidas_balance!BO32 -> 0 | FO32: =[5]Salidas_balance!BQ32 -> 3.779633333 | FP32: =[5]Salidas_balance!BR32 -> 19.43316667 | FQ32: =[5]Salidas_balance!BS32 -> 47.9325 | FR32: =[5]Salidas_balance!BT32 -> 51.7006 | FS32: =[5]Salidas_balance!BU32 -> 127.727 | FT32: =[5]Salidas_balance!BV32 -> 79.30688889 | FU32: =[5]Salidas_balance!BW32 -> 244.409 | FV32: =[5]Salidas_balance!BX32 -> 378.882 | FW32: =[5]Salidas_balance!BY32 -> 1042.476786 | FX32: =[5]Salidas_balance!BZ32 -> 0 | FZ32: =[5]Salidas_balance!CB32 -> 218.1293667 | GA32: =[5]Salidas_balance!CC32 -> 0 | GB32: =[5]Salidas_balance!CD32 -> 0 | GC32: =[5]Salidas_balance!CE32 -> 0 | GD32: =[5]Salidas_balance!CF32 -> 0 | GE32: =[5]Salidas_balance!CG32 -> 0 | GF32: =[5]Salidas_balance!CH32 -> 0 | GG32: =[5]Salidas_balance!CI32 -> 0 | GH32: =[5]Salidas_balance!CJ32 -> 0 | GI32: =[5]Salidas_balance!CK32 -> 0 | GK32: =[5]Salidas_balance!CM32 -> 51.95292308 | GL32: =[5]Salidas_balance!CN32 -> 0 | GM32: =[5]Salidas_balance!CO32 -> 0 | GN32: =[5]Salidas_balance!CP32 -> 0 | GO32: =[5]Salidas_balance!CQ32 -> 0 | GP32: =[5]Salidas_balance!CR32 -> 0 | GQ32: =[5]Salidas_balance!CS32 -> 0 | GR32: =[5]Salidas_balance!CT32 -> 0 | GS32: =[5]Salidas_balance!CU32 -> 0 | GT32: =[5]Salidas_balance!CV32 -> 0 | GV32: =[5]Salidas_balance!CX32 -> 0 | GW32: =[5]Salidas_balance!CY32 -> 0 | GX32: =[5]Salidas_balance!CZ32 -> 0 | GY32: =[5]Salidas_balance!DA32 -> 0 | GZ32: =[5]Salidas_balance!DB32 -> 0 | HA32: =[5]Salidas_balance!DC32 -> 0 | HB32: =[5]Salidas_balance!DD32 -> 0 | HC32: =[5]Salidas_balance!DE32 -> 0 | HD32: =[5]Salidas_balance!DF32 -> 0 | HE32: =[5]Salidas_balance!DG32 -> 0 | HG32: =[5]Salidas_balance!DI32 -> 9017.515942 | HH32: =[5]Salidas_balance!DJ32 -> 0 | HI32: =[5]Salidas_balance!DK32 -> 0 | HJ32: =[5]Salidas_balance!DL32 -> 0 | HK32: =[5]Salidas_balance!DM32 -> 0 | HL32: =[5]Salidas_balance!DN32 -> 0 | HM32: =[5]Salidas_balance!DO32 -> 0 | HN32: =[5]Salidas_balance!DP32 -> 0 | HO32: =[5]Salidas_balance!DQ32 -> 0 | HP32: =[5]Salidas_balance!DR32 -> 0 | HR32: =[5]Salidas_balance!DT32 -> 1973.214 | HS32: =[5]Salidas_balance!DU32 -> 0 | HT32: =[5]Salidas_balance!DV32 -> 0 | HU32: =[5]Salidas_balance!DW32 -> 0 | HV32: =[5]Salidas_balance!DX32 -> 0 | HW32: =[5]Salidas_balance!DY32 -> 0 | HX32: =[5]Salidas_balance!DZ32 -> 0 | HY32: =[5]Salidas_balance!EA32 -> 0 | HZ32: =[5]Salidas_balance!EB32 -> 0 | IA32: =[5]Salidas_balance!EC32 -> 0 | IC32: =[5]Salidas_balance!EE32 -> 0 | ID32: =[5]Salidas_balance!EF32 -> 0 | IE32: =[5]Salidas_balance!EG32 -> 0 | IF32: =[5]Salidas_balance!EH32 -> 0 | IG32: =[5]Salidas_balance!EI32 -> 0 | IH32: =[5]Salidas_balance!EJ32 -> 0 | II32: =[5]Salidas_balance!EK32 -> 0 | IJ32: =[5]Salidas_balance!EL32 -> 0 | IK32: =[5]Salidas_balance!EM32 -> 0 | IL32: =[5]Salidas_balance!EN32 -> 0 | IN32: =[5]Salidas_balance!EP32 -> 0 | IO32: =[5]Salidas_balance!EQ32 -> 0 | IP32: =[5]Salidas_balance!ER32 -> 0 | IQ32: =[5]Salidas_balance!ES32 -> 0 | IR32: =[5]Salidas_balance!ET32 -> 0 | IS32: =[5]Salidas_balance!EU32 -> 0 | IT32: =[5]Salidas_balance!EV32 -> 0 | IU32: =[5]Salidas_balance!EW32 -> 0 | IV32: =[5]Salidas_balance!EX32 -> 0 | IW32: =[5]Salidas_balance!EY32 -> 0 | IY32: =[5]Salidas_balance!FA32 -> 20846.17008 | IZ32: =[5]Salidas_balance!FB32 -> 0 | JA32: =[5]Salidas_balance!FC32 -> 0 | JB32: =[5]Salidas_balance!FD32 -> 0 | JC32: =[5]Salidas_balance!FE32 -> 0 | JD32: =[5]Salidas_balance!FF32 -> 0 | JE32: =[5]Salidas_balance!FG32 -> 0 | JF32: =[5]Salidas_balance!FH32 -> 0 | JG32: =[5]Salidas_balance!FI32 -> 0 | JH32: =[5]Salidas_balance!FJ32 -> 0 | JJ32: =[5]Salidas_balance!FL32 -> 0 | JK32: =[5]Salidas_balance!FM32 -> 0 | JL32: =[5]Salidas_balance!FN32 -> 0 | JM32: =[5]Salidas_balance!FO32 -> 0 | JN32: =[5]Salidas_balance!FP32 -> 0 | JO32: =[5]Salidas_balance!FQ32 -> 0 | JP32: =[5]Salidas_balance!FR32 -> 0 | JQ32: =[5]Salidas_balance!FS32 -> 0 | JR32: =[5]Salidas_balance!FT32 -> 0 | JS32: =[5]Salidas_balance!FU32 -> 0 | JU32: =[5]Salidas_balance!FW32 -> 0 | JV32: =[5]Salidas_balance!FX32 -> 0 | JW32: =[5]Salidas_balance!FY32 -> 0 | JX32: =[5]Salidas_balance!FZ32 -> 0 | JY32: =[5]Salidas_balance!GA32 -> 0 | JZ32: =[5]Salidas_balance!GB32 -> 0 | KA32: =[5]Salidas_balance!GC32 -> 0 | KB32: =[5]Salidas_balance!GD32 -> 0 | KC32: =[5]Salidas_balance!GE32 -> 0 | KD32: =[5]Salidas_balance!GF32 -> 0 | KF32: =[5]Salidas_balance!GH32 -> 0 | KG32: =[5]Salidas_balance!GI32 -> 0 | KH32: =[5]Salidas_balance!GJ32 -> 0 | KI32: =[5]Salidas_balance!GK32 -> 0 | KJ32: =[5]Salidas_balance!GL32 -> 0 | KK32: =[5]Salidas_balance!GM32 -> 0 | KL32: =[5]Salidas_balance!GN32 -> 0 | KM32: =[5]Salidas_balance!GO32 -> 0 | KN32: =[5]Salidas_balance!GP32 -> 0 | KO32: =[5]Salidas_balance!GQ32 -> 0 | KQ32: =[5]Salidas_balance!GS32 -> 0 | KR32: =[5]Salidas_balance!GT32 -> 0 | KS32: =[5]Salidas_balance!GU32 -> 0 | KT32: =[5]Salidas_balance!GV32 -> 0 | KU32: =[5]Salidas_balance!GW32 -> 0 | KV32: =[5]Salidas_balance!GX32 -> 0 | KW32: =[5]Salidas_balance!GY32 -> 0 | KX32: =[5]Salidas_balance!GZ32 -> 0 | KY32: =[5]Salidas_balance!HA32 -> 0 | KZ32: =[5]Salidas_balance!HB32 -> 0 | LB32: =[5]Salidas_balance!HD32 -> 0 | LC32: =[5]Salidas_balance!HE32 -> 0 | LD32: =[5]Salidas_balance!HF32 -> 0 | LE32: =[5]Salidas_balance!HG32 -> 0 | LF32: =[5]Salidas_balance!HH32 -> 0 | LG32: =[5]Salidas_balance!HI32 -> 0 | LH32: =[5]Salidas_balance!HJ32 -> 0 | LI32: =[5]Salidas_balance!HK32 -> 0 | LJ32: =[5]Salidas_balance!HL32 -> 0 | LK32: =[5]Salidas_balance!HM32 -> 0 | LM32: Domingo | LN32: 06:15:00
B33: Domingo | C33: 06:30:00 | D33: V | E33: 225269.8762 | F33: 303506.7948 | G33: 365824.7788 | H33: 147319.6846 | I33: 20446.49536 | J33: 36913.30371 | K33: 755.7028773 | L33: 6.630796836e-06 | AB33: =IF(AND($C33>INPUTS!$E$27,$C33<INPUTS!$E$26),0,INPUTS!$E$25/7/(24*(1-INPUTS!$E$26+INPUTS!$E$27))) -> 0 | AC33: ='Cálculo de Pérdidas'!S35 -> 16225.54714 | AD33: ='Cálculo de Pérdidas'!O35 -> 3609.142541 | AE33: 225269.8762 | AL33: 55583.37618 | AM33: 13671.46672 | AN33: 6.269405383e-06 | AZ33: ='Cálculo de Pérdidas'!P35 -> 8982.075671 | BA33: 303506.7948 | BL33: 8500.994304 | BM33: 30927.97319 | BP33: 20882.81655 | BV33: ='Cálculo de Pérdidas'!Q35 -> 2006.20001 | BW33: 365824.7788 | BY33: 167766.1799 | CA33: 37669.00659 | CC33: 147319.6846 | CD33: 20446.49536 | CE33: 36913.30371 | CF33: 755.7028773 | CG33: 6.630796836e-06 | CH33: 0 | CI33: 55583.37618 | CJ33: 13671.46672 | CK33: 6.269405383e-06 | CL33: 0 | CM33: 8500.994304 | CN33: 30927.97319 | CO33: 0 | CP33: 0 | CQ33: 20882.81655 | CR33: 0 | CS33: 0 | CT33: 0 | CU33: 0 | CV33: 0 | DA33: =[5]Salidas_balance!C33 -> 0.059971875 | DB33: =[5]Salidas_balance!D33 -> 0.1480329114 | DC33: =[5]Salidas_balance!E33 -> 0.3164382353 | DD33: =[5]Salidas_balance!F33 -> 0.414456 | DE33: =[5]Salidas_balance!G33 -> 0.6655 | DF33: =[5]Salidas_balance!H33 -> 1.35155625 | DG33: =[5]Salidas_balance!I33 -> 2.904130769 | DH33: =[5]Salidas_balance!J33 -> 7.151766667 | DI33: =[5]Salidas_balance!K33 -> 13.16948182 | DJ33: =[5]Salidas_balance!L33 -> 0 | DL33: =[5]Salidas_balance!N33 -> 0.15863125 | DM33: =[5]Salidas_balance!O33 -> 0.2986857143 | DN33: =[5]Salidas_balance!P33 -> 0.5455333333 | DO33: =[5]Salidas_balance!Q33 -> 0.5562666667 | DP33: =[5]Salidas_balance!R33 -> 1.041793333 | DQ33: =[5]Salidas_balance!S33 -> 2.74589375 | DR33: =[5]Salidas_balance!T33 -> 2.812677778 | DS33: =[5]Salidas_balance!U33 -> 7.935555556 | DT33: =[5]Salidas_balance!V33 -> 27.585625 | DU33: =[5]Salidas_balance!W33 -> 0 | DW33: =[5]Salidas_balance!Y33 -> 1.998278125 | DX33: =[5]Salidas_balance!Z33 -> 2.693323529 | DY33: =[5]Salidas_balance!AA33 -> 5.621485714 | DZ33: =[5]Salidas_balance!AB33 -> 7.047984615 | EA33: =[5]Salidas_balance!AC33 -> 20.80119999 | EB33: =[5]Salidas_balance!AD33 -> 27.56026299 | EC33: =[5]Salidas_balance!AE33 -> 26.765 | ED33: =[5]Salidas_balance!AF33 -> 35.558 | EE33: =[5]Salidas_balance!AG33 -> 267.0298182 | EF33: =[5]Salidas_balance!AH33 -> 0 | EH33: =[5]Salidas_balance!AJ33 -> 9.978151515 | EI33: =[5]Salidas_balance!AK33 -> 0 | EJ33: =[5]Salidas_balance!AL33 -> 0 | EK33: =[5]Salidas_balance!AM33 -> 0 | EL33: =[5]Salidas_balance!AN33 -> 0 | EM33: =[5]Salidas_balance!AO33 -> 0 | EN33: =[5]Salidas_balance!AP33 -> 0 | EO33: =[5]Salidas_balance!AQ33 -> 0 | EP33: =[5]Salidas_balance!AR33 -> 0 | EQ33: =[5]Salidas_balance!AS33 -> 0 | ES33: =[5]Salidas_balance!AU33 -> 24.79903448 | ET33: =[5]Salidas_balance!AV33 -> 0 | EU33: =[5]Salidas_balance!AW33 -> 0 | EV33: =[5]Salidas_balance!AX33 -> 0 | EW33: =[5]Salidas_balance!AY33 -> 0 | EX33: =[5]Salidas_balance!AZ33 -> 0 | EY33: =[5]Salidas_balance!BA33 -> 0 | EZ33: =[5]Salidas_balance!BB33 -> 0 | FA33: =[5]Salidas_balance!BC33 -> 0 | FB33: =[5]Salidas_balance!BD33 -> 0 | FD33: =[5]Salidas_balance!BF33 -> 0 | FE33: =[5]Salidas_balance!BG33 -> 0 | FF33: =[5]Salidas_balance!BH33 -> 0 | FG33: =[5]Salidas_balance!BI33 -> 0 | FH33: =[5]Salidas_balance!BJ33 -> 0 | FI33: =[5]Salidas_balance!BK33 -> 0 | FJ33: =[5]Salidas_balance!BL33 -> 0 | FK33: =[5]Salidas_balance!BM33 -> 0 | FL33: =[5]Salidas_balance!BN33 -> 0 | FM33: =[5]Salidas_balance!BO33 -> 0 | FO33: =[5]Salidas_balance!BQ33 -> 3.807574286 | FP33: =[5]Salidas_balance!BR33 -> 19.34838889 | FQ33: =[5]Salidas_balance!BS33 -> 48.887 | FR33: =[5]Salidas_balance!BT33 -> 51.56713333 | FS33: =[5]Salidas_balance!BU33 -> 128.646 | FT33: =[5]Salidas_balance!BV33 -> 87.66022222 | FU33: =[5]Salidas_balance!BW33 -> 254.256 | FV33: =[5]Salidas_balance!BX33 -> 342.444 | FW33: =[5]Salidas_balance!BY33 -> 1137.696429 | FX33: =[5]Salidas_balance!BZ33 -> 0 | FZ33: =[5]Salidas_balance!CB33 -> 209.7595143 | GA33: =[5]Salidas_balance!CC33 -> 0 | GB33: =[5]Salidas_balance!CD33 -> 0 | GC33: =[5]Salidas_balance!CE33 -> 0 | GD33: =[5]Salidas_balance!CF33 -> 0 | GE33: =[5]Salidas_balance!CG33 -> 0 | GF33: =[5]Salidas_balance!CH33 -> 0 | GG33: =[5]Salidas_balance!CI33 -> 0 | GH33: =[5]Salidas_balance!CJ33 -> 0 | GI33: =[5]Salidas_balance!CK33 -> 0 | GK33: =[5]Salidas_balance!CM33 -> 48.92946154 | GL33: =[5]Salidas_balance!CN33 -> 0 | GM33: =[5]Salidas_balance!CO33 -> 0 | GN33: =[5]Salidas_balance!CP33 -> 0 | GO33: =[5]Salidas_balance!CQ33 -> 0 | GP33: =[5]Salidas_balance!CR33 -> 0 | GQ33: =[5]Salidas_balance!CS33 -> 0 | GR33: =[5]Salidas_balance!CT33 -> 0 | GS33: =[5]Salidas_balance!CU33 -> 0 | GT33: =[5]Salidas_balance!CV33 -> 0 | GV33: =[5]Salidas_balance!CX33 -> 0 | GW33: =[5]Salidas_balance!CY33 -> 0 | GX33: =[5]Salidas_balance!CZ33 -> 0 | GY33: =[5]Salidas_balance!DA33 -> 0 | GZ33: =[5]Salidas_balance!DB33 -> 0 | HA33: =[5]Salidas_balance!DC33 -> 0 | HB33: =[5]Salidas_balance!DD33 -> 0 | HC33: =[5]Salidas_balance!DE33 -> 0 | HD33: =[5]Salidas_balance!DF33 -> 0 | HE33: =[5]Salidas_balance!DG33 -> 0 | HG33: =[5]Salidas_balance!DI33 -> 8726.2895 | HH33: =[5]Salidas_balance!DJ33 -> 0 | HI33: =[5]Salidas_balance!DK33 -> 0 | HJ33: =[5]Salidas_balance!DL33 -> 0 | HK33: =[5]Salidas_balance!DM33 -> 0 | HL33: =[5]Salidas_balance!DN33 -> 0 | HM33: =[5]Salidas_balance!DO33 -> 0 | HN33: =[5]Salidas_balance!DP33 -> 0 | HO33: =[5]Salidas_balance!DQ33 -> 0 | HP33: =[5]Salidas_balance!DR33 -> 0 | HR33: =[5]Salidas_balance!DT33 -> 2002.771333 | HS33: =[5]Salidas_balance!DU33 -> 0 | HT33: =[5]Salidas_balance!DV33 -> 0 | HU33: =[5]Salidas_balance!DW33 -> 0 | HV33: =[5]Salidas_balance!DX33 -> 0 | HW33: =[5]Salidas_balance!DY33 -> 0 | HX33: =[5]Salidas_balance!DZ33 -> 0 | HY33: =[5]Salidas_balance!EA33 -> 0 | HZ33: =[5]Salidas_balance!EB33 -> 0 | IA33: =[5]Salidas_balance!EC33 -> 0 | IC33: =[5]Salidas_balance!EE33 -> 0 | ID33: =[5]Salidas_balance!EF33 -> 0 | IE33: =[5]Salidas_balance!EG33 -> 0 | IF33: =[5]Salidas_balance!EH33 -> 0 | IG33: =[5]Salidas_balance!EI33 -> 0 | IH33: =[5]Salidas_balance!EJ33 -> 0 | II33: =[5]Salidas_balance!EK33 -> 0 | IJ33: =[5]Salidas_balance!EL33 -> 0 | IK33: =[5]Salidas_balance!EM33 -> 0 | IL33: =[5]Salidas_balance!EN33 -> 0 | IN33: =[5]Salidas_balance!EP33 -> 0 | IO33: =[5]Salidas_balance!EQ33 -> 0 | IP33: =[5]Salidas_balance!ER33 -> 0 | IQ33: =[5]Salidas_balance!ES33 -> 0 | IR33: =[5]Salidas_balance!ET33 -> 0 | IS33: =[5]Salidas_balance!EU33 -> 0 | IT33: =[5]Salidas_balance!EV33 -> 0 | IU33: =[5]Salidas_balance!EW33 -> 0 | IV33: =[5]Salidas_balance!EX33 -> 0 | IW33: =[5]Salidas_balance!EY33 -> 0 | IY33: =[5]Salidas_balance!FA33 -> 20790.25906 | IZ33: =[5]Salidas_balance!FB33 -> 0 | JA33: =[5]Salidas_balance!FC33 -> 0 | JB33: =[5]Salidas_balance!FD33 -> 0 | JC33: =[5]Salidas_balance!FE33 -> 0 | JD33: =[5]Salidas_balance!FF33 -> 0 | JE33: =[5]Salidas_balance!FG33 -> 0 | JF33: =[5]Salidas_balance!FH33 -> 0 | JG33: =[5]Salidas_balance!FI33 -> 0 | JH33: =[5]Salidas_balance!FJ33 -> 0 | JJ33: =[5]Salidas_balance!FL33 -> 0 | JK33: =[5]Salidas_balance!FM33 -> 0 | JL33: =[5]Salidas_balance!FN33 -> 0 | JM33: =[5]Salidas_balance!FO33 -> 0 | JN33: =[5]Salidas_balance!FP33 -> 0 | JO33: =[5]Salidas_balance!FQ33 -> 0 | JP33: =[5]Salidas_balance!FR33 -> 0 | JQ33: =[5]Salidas_balance!FS33 -> 0 | JR33: =[5]Salidas_balance!FT33 -> 0 | JS33: =[5]Salidas_balance!FU33 -> 0 | JU33: =[5]Salidas_balance!FW33 -> 0 | JV33: =[5]Salidas_balance!FX33 -> 0 | JW33: =[5]Salidas_balance!FY33 -> 0 | JX33: =[5]Salidas_balance!FZ33 -> 0 | JY33: =[5]Salidas_balance!GA33 -> 0 | JZ33: =[5]Salidas_balance!GB33 -> 0 | KA33: =[5]Salidas_balance!GC33 -> 0 | KB33: =[5]Salidas_balance!GD33 -> 0 | KC33: =[5]Salidas_balance!GE33 -> 0 | KD33: =[5]Salidas_balance!GF33 -> 0 | KF33: =[5]Salidas_balance!GH33 -> 0 | KG33: =[5]Salidas_balance!GI33 -> 0 | KH33: =[5]Salidas_balance!GJ33 -> 0 | KI33: =[5]Salidas_balance!GK33 -> 0 | KJ33: =[5]Salidas_balance!GL33 -> 0 | KK33: =[5]Salidas_balance!GM33 -> 0 | KL33: =[5]Salidas_balance!GN33 -> 0 | KM33: =[5]Salidas_balance!GO33 -> 0 | KN33: =[5]Salidas_balance!GP33 -> 0 | KO33: =[5]Salidas_balance!GQ33 -> 0 | KQ33: =[5]Salidas_balance!GS33 -> 0 | KR33: =[5]Salidas_balance!GT33 -> 0 | KS33: =[5]Salidas_balance!GU33 -> 0 | KT33: =[5]Salidas_balance!GV33 -> 0 | KU33: =[5]Salidas_balance!GW33 -> 0 | KV33: =[5]Salidas_balance!GX33 -> 0 | KW33: =[5]Salidas_balance!GY33 -> 0 | KX33: =[5]Salidas_balance!GZ33 -> 0 | KY33: =[5]Salidas_balance!HA33 -> 0 | KZ33: =[5]Salidas_balance!HB33 -> 0 | LB33: =[5]Salidas_balance!HD33 -> 0 | LC33: =[5]Salidas_balance!HE33 -> 0 | LD33: =[5]Salidas_balance!HF33 -> 0 | LE33: =[5]Salidas_balance!HG33 -> 0 | LF33: =[5]Salidas_balance!HH33 -> 0 | LG33: =[5]Salidas_balance!HI33 -> 0 | LH33: =[5]Salidas_balance!HJ33 -> 0 | LI33: =[5]Salidas_balance!HK33 -> 0 | LJ33: =[5]Salidas_balance!HL33 -> 0 | LK33: =[5]Salidas_balance!HM33 -> 0 | LM33: Domingo | LN33: 06:30:00
B34: Domingo | C34: 06:45:00 | D34: V | E34: 223306.6798 | F34: 301447.3545 | G34: 363778.1902 | H34: 144144.2666 | I34: 20340.31431 | J34: 38980.65785 | K34: 741.7105811 | L34: 5.948532087e-06 | U34: =IF(U$5="","",SUMPRODUCT(($DA34:$LK34)*($DA$714:$LK$714)*($DA$720:$LK$720=U$5))*AVERAGEIFS($DA$732:$LK$732,$DA$720:$LK$720,U$5)/SUMPRODUCT(($DA$679:$LK$679)*($DA$714:$LK$714)*($DA$720:$LK$720=U$5))) ->  | AB34: =IF(AND($C34>INPUTS!$E$27,$C34<INPUTS!$E$26),0,INPUTS!$E$25/7/(24*(1-INPUTS!$E$26+INPUTS!$E$27))) -> 0 | AC34: ='Cálculo de Pérdidas'!S36 -> 15533.61493 | AD34: ='Cálculo de Pérdidas'!O36 -> 3566.115523 | AE34: 223306.6798 | AL34: 55470.17649 | AM34: 13806.44645 | AN34: 5.839711464e-06 | AQ34: =IF(AQ$5="","",SUMPRODUCT(($DA34:$LK34)*($DA$715:$LK$715)*($DA$720:$LK$720=AQ$5))*AVERAGEIFS($DA$732:$LK$732,$DA$720:$LK$720,AQ$5)/SUMPRODUCT(($DA$679:$LK$679)*($DA$715:$LK$715)*($DA$720:$LK$720=AQ$5))) ->  | AZ34: ='Cálculo de Pérdidas'!P36 -> 8864.051782 | BA34: 301447.3545 | BL34: 8424.370729 | BM34: 30935.0356 | BP34: 20987.49271 | BV34: ='Cálculo de Pérdidas'!Q36 -> 1983.9367 | BW34: 363778.1902 | BY34: 164484.5809 | CA34: 39722.36844 | CC34: 144144.2666 | CD34: 20340.31431 | CE34: 38980.65785 | CF34: 741.7105811 | CG34: 5.948532087e-06 | CH34: 0 | CI34: 55470.17649 | CJ34: 13806.44645 | CK34: 5.839711464e-06 | CL34: 0 | CM34: 8424.370729 | CN34: 30935.0356 | CO34: 0 | CP34: 0 | CQ34: 20987.49271 | CR34: 0 | CS34: 0 | CT34: 0 | CU34: 0 | CV34: 0 | DA34: =[5]Salidas_balance!C34 -> 0.05705625 | DB34: =[5]Salidas_balance!D34 -> 0.1523101266 | DC34: =[5]Salidas_balance!E34 -> 0.3196323529 | DD34: =[5]Salidas_balance!F34 -> 0.34072 | DE34: =[5]Salidas_balance!G34 -> 0.7196428571 | DF34: =[5]Salidas_balance!H34 -> 1.3638 | DG34: =[5]Salidas_balance!I34 -> 2.928307692 | DH34: =[5]Salidas_balance!J34 -> 7.025008333 | DI34: =[5]Salidas_balance!K34 -> 13.04088182 | DJ34: =[5]Salidas_balance!L34 -> 0 | DL34: =[5]Salidas_balance!N34 -> 0.1652416667 | DM34: =[5]Salidas_balance!O34 -> 0.2897690476 | DN34: =[5]Salidas_balance!P34 -> 0.4903066667 | DO34: =[5]Salidas_balance!Q34 -> 0.5840904762 | DP34: =[5]Salidas_balance!R34 -> 1.091826667 | DQ34: =[5]Salidas_balance!S34 -> 2.685875 | DR34: =[5]Salidas_balance!T34 -> 2.7965 | DS34: =[5]Salidas_balance!U34 -> 7.780666667 | DT34: =[5]Salidas_balance!V34 -> 27.246875 | DU34: =[5]Salidas_balance!W34 -> 0 | DW34: =[5]Salidas_balance!Y34 -> 2.004390625 | DX34: =[5]Salidas_balance!Z34 -> 2.590947059 | DY34: =[5]Salidas_balance!AA34 -> 5.924928571 | DZ34: =[5]Salidas_balance!AB34 -> 7.946415385 | EA34: =[5]Salidas_balance!AC34 -> 20.20044667 | EB34: =[5]Salidas_balance!AD34 -> 34.01985647 | EC34: =[5]Salidas_balance!AE34 -> 25.729 | ED34: =[5]Salidas_balance!AF34 -> 36.47133333 | EE34: =[5]Salidas_balance!AG34 -> 269.8630909 | EF34: =[5]Salidas_balance!AH34 -> 0 | EH34: =[5]Salidas_balance!AJ34 -> 9.7934 | EI34: =[5]Salidas_balance!AK34 -> 0 | EJ34: =[5]Salidas_balance!AL34 -> 0 | EK34: =[5]Salidas_balance!AM34 -> 0 | EL34: =[5]Salidas_balance!AN34 -> 0 | EM34: =[5]Salidas_balance!AO34 -> 0 | EN34: =[5]Salidas_balance!AP34 -> 0 | EO34: =[5]Salidas_balance!AQ34 -> 0 | EP34: =[5]Salidas_balance!AR34 -> 0 | EQ34: =[5]Salidas_balance!AS34 -> 0 | ES34: =[5]Salidas_balance!AU34 -> 22.24737931 | ET34: =[5]Salidas_balance!AV34 -> 0 | EU34: =[5]Salidas_balance!AW34 -> 0 | EV34: =[5]Salidas_balance!AX34 -> 0 | EW34: =[5]Salidas_balance!AY34 -> 0 | EX34: =[5]Salidas_balance!AZ34 -> 0 | EY34: =[5]Salidas_balance!BA34 -> 0 | EZ34: =[5]Salidas_balance!BB34 -> 0 | FA34: =[5]Salidas_balance!BC34 -> 0 | FB34: =[5]Salidas_balance!BD34 -> 0 | FD34: =[5]Salidas_balance!BF34 -> 0 | FE34: =[5]Salidas_balance!BG34 -> 0 | FF34: =[5]Salidas_balance!BH34 -> 0 | FG34: =[5]Salidas_balance!BI34 -> 0 | FH34: =[5]Salidas_balance!BJ34 -> 0 | FI34: =[5]Salidas_balance!BK34 -> 0 | FJ34: =[5]Salidas_balance!BL34 -> 0 | FK34: =[5]Salidas_balance!BM34 -> 0 | FL34: =[5]Salidas_balance!BN34 -> 0 | FM34: =[5]Salidas_balance!BO34 -> 0 | FO34: =[5]Salidas_balance!BQ34 -> 3.69268 | FP34: =[5]Salidas_balance!BR34 -> 18.97077778 | FQ34: =[5]Salidas_balance!BS34 -> 50.417 | FR34: =[5]Salidas_balance!BT34 -> 50.45786667 | FS34: =[5]Salidas_balance!BU34 -> 127.87 | FT34: =[5]Salidas_balance!BV34 -> 95.10822222 | FU34: =[5]Salidas_balance!BW34 -> 247.998 | FV34: =[5]Salidas_balance!BX34 -> 365.873 | FW34: =[5]Salidas_balance!BY34 -> 1079.897143 | FX34: =[5]Salidas_balance!BZ34 -> 0 | FZ34: =[5]Salidas_balance!CB34 -> 211.8304905 | GA34: =[5]Salidas_balance!CC34 -> 0 | GB34: =[5]Salidas_balance!CD34 -> 0 | GC34: =[5]Salidas_balance!CE34 -> 0 | GD34: =[5]Salidas_balance!CF34 -> 0 | GE34: =[5]Salidas_balance!CG34 -> 0 | GF34: =[5]Salidas_balance!CH34 -> 0 | GG34: =[5]Salidas_balance!CI34 -> 0 | GH34: =[5]Salidas_balance!CJ34 -> 0 | GI34: =[5]Salidas_balance!CK34 -> 0 | GK34: =[5]Salidas_balance!CM34 -> 45.57592308 | GL34: =[5]Salidas_balance!CN34 -> 0 | GM34: =[5]Salidas_balance!CO34 -> 0 | GN34: =[5]Salidas_balance!CP34 -> 0 | GO34: =[5]Salidas_balance!CQ34 -> 0 | GP34: =[5]Salidas_balance!CR34 -> 0 | GQ34: =[5]Salidas_balance!CS34 -> 0 | GR34: =[5]Salidas_balance!CT34 -> 0 | GS34: =[5]Salidas_balance!CU34 -> 0 | GT34: =[5]Salidas_balance!CV34 -> 0 | GV34: =[5]Salidas_balance!CX34 -> 0 | GW34: =[5]Salidas_balance!CY34 -> 0 | GX34: =[5]Salidas_balance!CZ34 -> 0 | GY34: =[5]Salidas_balance!DA34 -> 0 | GZ34: =[5]Salidas_balance!DB34 -> 0 | HA34: =[5]Salidas_balance!DC34 -> 0 | HB34: =[5]Salidas_balance!DD34 -> 0 | HC34: =[5]Salidas_balance!DE34 -> 0 | HD34: =[5]Salidas_balance!DF34 -> 0 | HE34: =[5]Salidas_balance!DG34 -> 0 | HG34: =[5]Salidas_balance!DI34 -> 8647.635231 | HH34: =[5]Salidas_balance!DJ34 -> 0 | HI34: =[5]Salidas_balance!DK34 -> 0 | HJ34: =[5]Salidas_balance!DL34 -> 0 | HK34: =[5]Salidas_balance!DM34 -> 0 | HL34: =[5]Salidas_balance!DN34 -> 0 | HM34: =[5]Salidas_balance!DO34 -> 0 | HN34: =[5]Salidas_balance!DP34 -> 0 | HO34: =[5]Salidas_balance!DQ34 -> 0 | HP34: =[5]Salidas_balance!DR34 -> 0 | HR34: =[5]Salidas_balance!DT34 -> 2003.228667 | HS34: =[5]Salidas_balance!DU34 -> 0 | HT34: =[5]Salidas_balance!DV34 -> 0 | HU34: =[5]Salidas_balance!DW34 -> 0 | HV34: =[5]Salidas_balance!DX34 -> 0 | HW34: =[5]Salidas_balance!DY34 -> 0 | HX34: =[5]Salidas_balance!DZ34 -> 0 | HY34: =[5]Salidas_balance!EA34 -> 0 | HZ34: =[5]Salidas_balance!EB34 -> 0 | IA34: =[5]Salidas_balance!EC34 -> 0 | IC34: =[5]Salidas_balance!EE34 -> 0 | ID34: =[5]Salidas_balance!EF34 -> 0 | IE34: =[5]Salidas_balance!EG34 -> 0 | IF34: =[5]Salidas_balance!EH34 -> 0 | IG34: =[5]Salidas_balance!EI34 -> 0 | IH34: =[5]Salidas_balance!EJ34 -> 0 | II34: =[5]Salidas_balance!EK34 -> 0 | IJ34: =[5]Salidas_balance!EL34 -> 0 | IK34: =[5]Salidas_balance!EM34 -> 0 | IL34: =[5]Salidas_balance!EN34 -> 0 | IN34: =[5]Salidas_balance!EP34 -> 0 | IO34: =[5]Salidas_balance!EQ34 -> 0 | IP34: =[5]Salidas_balance!ER34 -> 0 | IQ34: =[5]Salidas_balance!ES34 -> 0 | IR34: =[5]Salidas_balance!ET34 -> 0 | IS34: =[5]Salidas_balance!EU34 -> 0 | IT34: =[5]Salidas_balance!EV34 -> 0 | IU34: =[5]Salidas_balance!EW34 -> 0 | IV34: =[5]Salidas_balance!EX34 -> 0 | IW34: =[5]Salidas_balance!EY34 -> 0 | IY34: =[5]Salidas_balance!FA34 -> 20894.47127 | IZ34: =[5]Salidas_balance!FB34 -> 0 | JA34: =[5]Salidas_balance!FC34 -> 0 | JB34: =[5]Salidas_balance!FD34 -> 0 | JC34: =[5]Salidas_balance!FE34 -> 0 | JD34: =[5]Salidas_balance!FF34 -> 0 | JE34: =[5]Salidas_balance!FG34 -> 0 | JF34: =[5]Salidas_balance!FH34 -> 0 | JG34: =[5]Salidas_balance!FI34 -> 0 | JH34: =[5]Salidas_balance!FJ34 -> 0 | JJ34: =[5]Salidas_balance!FL34 -> 0 | JK34: =[5]Salidas_balance!FM34 -> 0 | JL34: =[5]Salidas_balance!FN34 -> 0 | JM34: =[5]Salidas_balance!FO34 -> 0 | JN34: =[5]Salidas_balance!FP34 -> 0 | JO34: =[5]Salidas_balance!FQ34 -> 0 | JP34: =[5]Salidas_balance!FR34 -> 0 | JQ34: =[5]Salidas_balance!FS34 -> 0 | JR34: =[5]Salidas_balance!FT34 -> 0 | JS34: =[5]Salidas_balance!FU34 -> 0 | JU34: =[5]Salidas_balance!FW34 -> 0 | JV34: =[5]Salidas_balance!FX34 -> 0 | JW34: =[5]Salidas_balance!FY34 -> 0 | JX34: =[5]Salidas_balance!FZ34 -> 0 | JY34: =[5]Salidas_balance!GA34 -> 0 | JZ34: =[5]Salidas_balance!GB34 -> 0 | KA34: =[5]Salidas_balance!GC34 -> 0 | KB34: =[5]Salidas_balance!GD34 -> 0 | KC34: =[5]Salidas_balance!GE34 -> 0 | KD34: =[5]Salidas_balance!GF34 -> 0 | KF34: =[5]Salidas_balance!GH34 -> 0 | KG34: =[5]Salidas_balance!GI34 -> 0 | KH34: =[5]Salidas_balance!GJ34 -> 0 | KI34: =[5]Salidas_balance!GK34 -> 0 | KJ34: =[5]Salidas_balance!GL34 -> 0 | KK34: =[5]Salidas_balance!GM34 -> 0 | KL34: =[5]Salidas_balance!GN34 -> 0 | KM34: =[5]Salidas_balance!GO34 -> 0 | KN34: =[5]Salidas_balance!GP34 -> 0 | KO34: =[5]Salidas_balance!GQ34 -> 0 | KQ34: =[5]Salidas_balance!GS34 -> 0 | KR34: =[5]Salidas_balance!GT34 -> 0 | KS34: =[5]Salidas_balance!GU34 -> 0 | KT34: =[5]Salidas_balance!GV34 -> 0 | KU34: =[5]Salidas_balance!GW34 -> 0 | KV34: =[5]Salidas_balance!GX34 -> 0 | KW34: =[5]Salidas_balance!GY34 -> 0 | KX34: =[5]Salidas_balance!GZ34 -> 0 | KY34: =[5]Salidas_balance!HA34 -> 0 | KZ34: =[5]Salidas_balance!HB34 -> 0 | LB34: =[5]Salidas_balance!HD34 -> 0 | LC34: =[5]Salidas_balance!HE34 -> 0 | LD34: =[5]Salidas_balance!HF34 -> 0 | LE34: =[5]Salidas_balance!HG34 -> 0 | LF34: =[5]Salidas_balance!HH34 -> 0 | LG34: =[5]Salidas_balance!HI34 -> 0 | LH34: =[5]Salidas_balance!HJ34 -> 0 | LI34: =[5]Salidas_balance!HK34 -> 0 | LJ34: =[5]Salidas_balance!HL34 -> 0 | LK34: =[5]Salidas_balance!HM34 -> 0 | LM34: Domingo | LN34: 06:45:00
B35: Domingo | C35: 07:00:00 | D35: V | E35: 239278.0186 | F35: 321117.3433 | G35: 383545.4341 | H35: 153616.9689 | I35: 20539.25406 | J35: 42692.57129 | K35: 738.1437711 | L35: 6.380085424e-06 | AB35: =IF(AND($C35>INPUTS!$E$27,$C35<INPUTS!$E$26),0,INPUTS!$E$25/7/(24*(1-INPUTS!$E$26+INPUTS!$E$27))) -> 0 | AC35: ='Cálculo de Pérdidas'!S37 -> 17642.33941 | AD35: ='Cálculo de Pérdidas'!O37 -> 4048.741176 | AE35: 239278.0186 | AL35: 58139.1996 | AM35: 13678.86584 | AN35: 5.570497322e-06 | AZ35: ='Cálculo de Pérdidas'!P37 -> 10021.25925 | BA35: 321117.3433 | BL35: 8414.448198 | BM35: 30661.52677 | BP35: 21148.01099 | BV35: ='Cálculo de Pérdidas'!Q37 -> 2204.10477 | BW35: 383545.4341 | BY35: 174156.223 | CA35: 43430.71506 | CC35: 153616.9689 | CD35: 20539.25406 | CE35: 42692.57129 | CF35: 738.1437711 | CG35: 6.380085424e-06 | CH35: 0 | CI35: 58139.1996 | CJ35: 13678.86584 | CK35: 5.570497322e-06 | CL35: 0 | CM35: 8414.448198 | CN35: 30661.52677 | CO35: 0 | CP35: 0 | CQ35: 21148.01099 | CR35: 0 | CS35: 0 | CT35: 0 | CU35: 0 | CV35: 0 | DA35: =[5]Salidas_balance!C35 -> 0.0618625 | DB35: =[5]Salidas_balance!D35 -> 0.1442772152 | DC35: =[5]Salidas_balance!E35 -> 0.3440470588 | DD35: =[5]Salidas_balance!F35 -> 0.407972 | DE35: =[5]Salidas_balance!G35 -> 0.8214428571 | DF35: =[5]Salidas_balance!H35 -> 1.368275 | DG35: =[5]Salidas_balance!I35 -> 2.709707692 | DH35: =[5]Salidas_balance!J35 -> 6.94825 | DI35: =[5]Salidas_balance!K35 -> 13.75860909 | DJ35: =[5]Salidas_balance!L35 -> 0 | DL35: =[5]Salidas_balance!N35 -> 0.174775 | DM35: =[5]Salidas_balance!O35 -> 0.2947166667 | DN35: =[5]Salidas_balance!P35 -> 0.4831066667 | DO35: =[5]Salidas_balance!Q35 -> 0.5728761905 | DP35: =[5]Salidas_balance!R35 -> 1.253006667 | DQ35: =[5]Salidas_balance!S35 -> 2.73960625 | DR35: =[5]Salidas_balance!T35 -> 2.511644444 | DS35: =[5]Salidas_balance!U35 -> 7.715788889 | DT35: =[5]Salidas_balance!V35 -> 24.97375 | DU35: =[5]Salidas_balance!W35 -> 0 | DW35: =[5]Salidas_balance!Y35 -> 2.197575 | DX35: =[5]Salidas_balance!Z35 -> 2.691917647 | DY35: =[5]Salidas_balance!AA35 -> 6.101247619 | DZ35: =[5]Salidas_balance!AB35 -> 9.216038462 | EA35: =[5]Salidas_balance!AC35 -> 20.81410661 | EB35: =[5]Salidas_balance!AD35 -> 41.96901251 | EC35: =[5]Salidas_balance!AE35 -> 28.11 | ED35: =[5]Salidas_balance!AF35 -> 35.35733333 | EE35: =[5]Salidas_balance!AG35 -> 276.6187273 | EF35: =[5]Salidas_balance!AH35 -> 0 | EH35: =[5]Salidas_balance!AJ35 -> 9.746304545 | EI35: =[5]Salidas_balance!AK35 -> 0 | EJ35: =[5]Salidas_balance!AL35 -> 0 | EK35: =[5]Salidas_balance!AM35 -> 0 | EL35: =[5]Salidas_balance!AN35 -> 0 | EM35: =[5]Salidas_balance!AO35 -> 0 | EN35: =[5]Salidas_balance!AP35 -> 0 | EO35: =[5]Salidas_balance!AQ35 -> 0 | EP35: =[5]Salidas_balance!AR35 -> 0 | EQ35: =[5]Salidas_balance!AS35 -> 0 | ES35: =[5]Salidas_balance!AU35 -> 23.86137931 | ET35: =[5]Salidas_balance!AV35 -> 0 | EU35: =[5]Salidas_balance!AW35 -> 0 | EV35: =[5]Salidas_balance!AX35 -> 0 | EW35: =[5]Salidas_balance!AY35 -> 0 | EX35: =[5]Salidas_balance!AZ35 -> 0 | EY35: =[5]Salidas_balance!BA35 -> 0 | EZ35: =[5]Salidas_balance!BB35 -> 0 | FA35: =[5]Salidas_balance!BC35 -> 0 | FB35: =[5]Salidas_balance!BD35 -> 0 | FD35: =[5]Salidas_balance!BF35 -> 0 | FE35: =[5]Salidas_balance!BG35 -> 0 | FF35: =[5]Salidas_balance!BH35 -> 0 | FG35: =[5]Salidas_balance!BI35 -> 0 | FH35: =[5]Salidas_balance!BJ35 -> 0 | FI35: =[5]Salidas_balance!BK35 -> 0 | FJ35: =[5]Salidas_balance!BL35 -> 0 | FK35: =[5]Salidas_balance!BM35 -> 0 | FL35: =[5]Salidas_balance!BN35 -> 0 | FM35: =[5]Salidas_balance!BO35 -> 0 | FO35: =[5]Salidas_balance!BQ35 -> 3.483652381 | FP35: =[5]Salidas_balance!BR35 -> 19.10805556 | FQ35: =[5]Salidas_balance!BS35 -> 55.156 | FR35: =[5]Salidas_balance!BT35 -> 52.42393333 | FS35: =[5]Salidas_balance!BU35 -> 129.653 | FT35: =[5]Salidas_balance!BV35 -> 93.38855556 | FU35: =[5]Salidas_balance!BW35 -> 250.942 | FV35: =[5]Salidas_balance!BX35 -> 392.331 | FW35: =[5]Salidas_balance!BY35 -> 1165.051786 | FX35: =[5]Salidas_balance!BZ35 -> 0 | FZ35: =[5]Salidas_balance!CB35 -> 209.8730381 | GA35: =[5]Salidas_balance!CC35 -> 0 | GB35: =[5]Salidas_balance!CD35 -> 0 | GC35: =[5]Salidas_balance!CE35 -> 0 | GD35: =[5]Salidas_balance!CF35 -> 0 | GE35: =[5]Salidas_balance!CG35 -> 0 | GF35: =[5]Salidas_balance!CH35 -> 0 | GG35: =[5]Salidas_balance!CI35 -> 0 | GH35: =[5]Salidas_balance!CJ35 -> 0 | GI35: =[5]Salidas_balance!CK35 -> 0 | GK35: =[5]Salidas_balance!CM35 -> 43.47484615 | GL35: =[5]Salidas_balance!CN35 -> 0 | GM35: =[5]Salidas_balance!CO35 -> 0 | GN35: =[5]Salidas_balance!CP35 -> 0 | GO35: =[5]Salidas_balance!CQ35 -> 0 | GP35: =[5]Salidas_balance!CR35 -> 0 | GQ35: =[5]Salidas_balance!CS35 -> 0 | GR35: =[5]Salidas_balance!CT35 -> 0 | GS35: =[5]Salidas_balance!CU35 -> 0 | GT35: =[5]Salidas_balance!CV35 -> 0 | GV35: =[5]Salidas_balance!CX35 -> 0 | GW35: =[5]Salidas_balance!CY35 -> 0 | GX35: =[5]Salidas_balance!CZ35 -> 0 | GY35: =[5]Salidas_balance!DA35 -> 0 | GZ35: =[5]Salidas_balance!DB35 -> 0 | HA35: =[5]Salidas_balance!DC35 -> 0 | HB35: =[5]Salidas_balance!DD35 -> 0 | HC35: =[5]Salidas_balance!DE35 -> 0 | HD35: =[5]Salidas_balance!DF35 -> 0 | HE35: =[5]Salidas_balance!DG35 -> 0 | HG35: =[5]Salidas_balance!DI35 -> 8637.449731 | HH35: =[5]Salidas_balance!DJ35 -> 0 | HI35: =[5]Salidas_balance!DK35 -> 0 | HJ35: =[5]Salidas_balance!DL35 -> 0 | HK35: =[5]Salidas_balance!DM35 -> 0 | HL35: =[5]Salidas_balance!DN35 -> 0 | HM35: =[5]Salidas_balance!DO35 -> 0 | HN35: =[5]Salidas_balance!DP35 -> 0 | HO35: =[5]Salidas_balance!DQ35 -> 0 | HP35: =[5]Salidas_balance!DR35 -> 0 | HR35: =[5]Salidas_balance!DT35 -> 1985.517333 | HS35: =[5]Salidas_balance!DU35 -> 0 | HT35: =[5]Salidas_balance!DV35 -> 0 | HU35: =[5]Salidas_balance!DW35 -> 0 | HV35: =[5]Salidas_balance!DX35 -> 0 | HW35: =[5]Salidas_balance!DY35 -> 0 | HX35: =[5]Salidas_balance!DZ35 -> 0 | HY35: =[5]Salidas_balance!EA35 -> 0 | HZ35: =[5]Salidas_balance!EB35 -> 0 | IA35: =[5]Salidas_balance!EC35 -> 0 | IC35: =[5]Salidas_balance!EE35 -> 0 | ID35: =[5]Salidas_balance!EF35 -> 0 | IE35: =[5]Salidas_balance!EG35 -> 0 | IF35: =[5]Salidas_balance!EH35 -> 0 | IG35: =[5]Salidas_balance!EI35 -> 0 | IH35: =[5]Salidas_balance!EJ35 -> 0 | II35: =[5]Salidas_balance!EK35 -> 0 | IJ35: =[5]Salidas_balance!EL35 -> 0 | IK35: =[5]Salidas_balance!EM35 -> 0 | IL35: =[5]Salidas_balance!EN35 -> 0 | IN35: =[5]Salidas_balance!EP35 -> 0 | IO35: =[5]Salidas_balance!EQ35 -> 0 | IP35: =[5]Salidas_balance!ER35 -> 0 | IQ35: =[5]Salidas_balance!ES35 -> 0 | IR35: =[5]Salidas_balance!ET35 -> 0 | IS35: =[5]Salidas_balance!EU35 -> 0 | IT35: =[5]Salidas_balance!EV35 -> 0 | IU35: =[5]Salidas_balance!EW35 -> 0 | IV35: =[5]Salidas_balance!EX35 -> 0 | IW35: =[5]Salidas_balance!EY35 -> 0 | IY35: =[5]Salidas_balance!FA35 -> 21054.2781 | IZ35: =[5]Salidas_balance!FB35 -> 0 | JA35: =[5]Salidas_balance!FC35 -> 0 | JB35: =[5]Salidas_balance!FD35 -> 0 | JC35: =[5]Salidas_balance!FE35 -> 0 | JD35: =[5]Salidas_balance!FF35 -> 0 | JE35: =[5]Salidas_balance!FG35 -> 0 | JF35: =[5]Salidas_balance!FH35 -> 0 | JG35: =[5]Salidas_balance!FI35 -> 0 | JH35: =[5]Salidas_balance!FJ35 -> 0 | JJ35: =[5]Salidas_balance!FL35 -> 0 | JK35: =[5]Salidas_balance!FM35 -> 0 | JL35: =[5]Salidas_balance!FN35 -> 0 | JM35: =[5]Salidas_balance!FO35 -> 0 | JN35: =[5]Salidas_balance!FP35 -> 0 | JO35: =[5]Salidas_balance!FQ35 -> 0 | JP35: =[5]Salidas_balance!FR35 -> 0 | JQ35: =[5]Salidas_balance!FS35 -> 0 | JR35: =[5]Salidas_balance!FT35 -> 0 | JS35: =[5]Salidas_balance!FU35 -> 0 | JU35: =[5]Salidas_balance!FW35 -> 0 | JV35: =[5]Salidas_balance!FX35 -> 0 | JW35: =[5]Salidas_balance!FY35 -> 0 | JX35: =[5]Salidas_balance!FZ35 -> 0 | JY35: =[5]Salidas_balance!GA35 -> 0 | JZ35: =[5]Salidas_balance!GB35 -> 0 | KA35: =[5]Salidas_balance!GC35 -> 0 | KB35: =[5]Salidas_balance!GD35 -> 0 | KC35: =[5]Salidas_balance!GE35 -> 0 | KD35: =[5]Salidas_balance!GF35 -> 0 | KF35: =[5]Salidas_balance!GH35 -> 0 | KG35: =[5]Salidas_balance!GI35 -> 0 | KH35: =[5]Salidas_balance!GJ35 -> 0 | KI35: =[5]Salidas_balance!GK35 -> 0 | KJ35: =[5]Salidas_balance!GL35 -> 0 | KK35: =[5]Salidas_balance!GM35 -> 0 | KL35: =[5]Salidas_balance!GN35 -> 0 | KM35: =[5]Salidas_balance!GO35 -> 0 | KN35: =[5]Salidas_balance!GP35 -> 0 | KO35: =[5]Salidas_balance!GQ35 -> 0 | KQ35: =[5]Salidas_balance!GS35 -> 0 | KR35: =[5]Salidas_balance!GT35 -> 0 | KS35: =[5]Salidas_balance!GU35 -> 0 | KT35: =[5]Salidas_balance!GV35 -> 0 | KU35: =[5]Salidas_balance!GW35 -> 0 | KV35: =[5]Salidas_balance!GX35 -> 0 | KW35: =[5]Salidas_balance!GY35 -> 0 | KX35: =[5]Salidas_balance!GZ35 -> 0 | KY35: =[5]Salidas_balance!HA35 -> 0 | KZ35: =[5]Salidas_balance!HB35 -> 0 | LB35: =[5]Salidas_balance!HD35 -> 0 | LC35: =[5]Salidas_balance!HE35 -> 0 | LD35: =[5]Salidas_balance!HF35 -> 0 | LE35: =[5]Salidas_balance!HG35 -> 0 | LF35: =[5]Salidas_balance!HH35 -> 0 | LG35: =[5]Salidas_balance!HI35 -> 0 | LH35: =[5]Salidas_balance!HJ35 -> 0 | LI35: =[5]Salidas_balance!HK35 -> 0 | LJ35: =[5]Salidas_balance!HL35 -> 0 | LK35: =[5]Salidas_balance!HM35 -> 0 | LM35: Domingo | LN35: 07:00:00
B36: Domingo | C36: 07:15:00 | D36: V | E36: 237707.4905 | F36: 319924.3865 | G36: 382552.0176 | H36: 149609.7513 | I36: 21553.23646 | J36: 45037.22491 | K36: 748.3428533 | L36: 7.012451301e-06 | AB36: =IF(AND($C36>INPUTS!$E$27,$C36<INPUTS!$E$26),0,INPUTS!$E$25/7/(24*(1-INPUTS!$E$26+INPUTS!$E$27))) -> 0 | AC36: ='Cálculo de Pérdidas'!S38 -> 16733.91628 | AD36: ='Cálculo de Pérdidas'!O38 -> 4025.018668 | AE36: 237707.4905 | AL36: 58371.64334 | AM36: 13896.07611 | AN36: 5.214212898e-06 | AZ36: ='Cálculo de Pérdidas'!P38 -> 9949.176474 | BA36: 319924.3865 | BL36: 8394.152109 | BM36: 30321.89277 | BP36: 21718.81945 | BV36: ='Cálculo de Pérdidas'!Q38 -> 2192.766808 | BW36: 382552.0176 | BY36: 171162.9878 | CA36: 45785.56776 | CC36: 149609.7513 | CD36: 21553.23646 | CE36: 45037.22491 | CF36: 748.3428533 | CG36: 7.012451301e-06 | CH36: 0 | CI36: 58371.64334 | CJ36: 13896.07611 | CK36: 5.214212898e-06 | CL36: 0 | CM36: 8394.152109 | CN36: 30321.89277 | CO36: 0 | CP36: 0 | CQ36: 21718.81945 | CR36: 0 | CS36: 0 | CT36: 0 | CU36: 0 | CV36: 0 | DA36: =[5]Salidas_balance!C36 -> 0.06114375 | DB36: =[5]Salidas_balance!D36 -> 0.1349329114 | DC36: =[5]Salidas_balance!E36 -> 0.3469323529 | DD36: =[5]Salidas_balance!F36 -> 0.391312 | DE36: =[5]Salidas_balance!G36 -> 0.7619714286 | DF36: =[5]Salidas_balance!H36 -> 1.380925 | DG36: =[5]Salidas_balance!I36 -> 2.703753846 | DH36: =[5]Salidas_balance!J36 -> 6.815283333 | DI36: =[5]Salidas_balance!K36 -> 14.09109091 | DJ36: =[5]Salidas_balance!L36 -> 0 | DL36: =[5]Salidas_balance!N36 -> 0.2135229167 | DM36: =[5]Salidas_balance!O36 -> 0.2955571429 | DN36: =[5]Salidas_balance!P36 -> 0.501 | DO36: =[5]Salidas_balance!Q36 -> 0.5923857143 | DP36: =[5]Salidas_balance!R36 -> 1.363086667 | DQ36: =[5]Salidas_balance!S36 -> 2.8344125 | DR36: =[5]Salidas_balance!T36 -> 2.470566667 | DS36: =[5]Salidas_balance!U36 -> 8.049994444 | DT36: =[5]Salidas_balance!V36 -> 26.9365 | DU36: =[5]Salidas_balance!W36 -> 0 | DW36: =[5]Salidas_balance!Y36 -> 2.232496875 | DX36: =[5]Salidas_balance!Z36 -> 2.414723529 | DY36: =[5]Salidas_balance!AA36 -> 5.995952381 | DZ36: =[5]Salidas_balance!AB36 -> 11.14324615 | EA36: =[5]Salidas_balance!AC36 -> 21.19315997 | EB36: =[5]Salidas_balance!AD36 -> 46.15508745 | EC36: =[5]Salidas_balance!AE36 -> 27.913 | ED36: =[5]Salidas_balance!AF36 -> 36.25133333 | EE36: =[5]Salidas_balance!AG36 -> 300.8516364 | EF36: =[5]Salidas_balance!AH36 -> 0 | EH36: =[5]Salidas_balance!AJ36 -> 9.880971212 | EI36: =[5]Salidas_balance!AK36 -> 0 | EJ36: =[5]Salidas_balance!AL36 -> 0 | EK36: =[5]Salidas_balance!AM36 -> 0 | EL36: =[5]Salidas_balance!AN36 -> 0 | EM36: =[5]Salidas_balance!AO36 -> 0 | EN36: =[5]Salidas_balance!AP36 -> 0 | EO36: =[5]Salidas_balance!AQ36 -> 0 | EP36: =[5]Salidas_balance!AR36 -> 0 | EQ36: =[5]Salidas_balance!AS36 -> 0 | ES36: =[5]Salidas_balance!AU36 -> 26.22641379 | ET36: =[5]Salidas_balance!AV36 -> 0 | EU36: =[5]Salidas_balance!AW36 -> 0 | EV36: =[5]Salidas_balance!AX36 -> 0 | EW36: =[5]Salidas_balance!AY36 -> 0 | EX36: =[5]Salidas_balance!AZ36 -> 0 | EY36: =[5]Salidas_balance!BA36 -> 0 | EZ36: =[5]Salidas_balance!BB36 -> 0 | FA36: =[5]Salidas_balance!BC36 -> 0 | FB36: =[5]Salidas_balance!BD36 -> 0 | FD36: =[5]Salidas_balance!BF36 -> 0 | FE36: =[5]Salidas_balance!BG36 -> 0 | FF36: =[5]Salidas_balance!BH36 -> 0 | FG36: =[5]Salidas_balance!BI36 -> 0 | FH36: =[5]Salidas_balance!BJ36 -> 0 | FI36: =[5]Salidas_balance!BK36 -> 0 | FJ36: =[5]Salidas_balance!BL36 -> 0 | FK36: =[5]Salidas_balance!BM36 -> 0 | FL36: =[5]Salidas_balance!BN36 -> 0 | FM36: =[5]Salidas_balance!BO36 -> 0 | FO36: =[5]Salidas_balance!BQ36 -> 3.415429524 | FP36: =[5]Salidas_balance!BR36 -> 19.38766667 | FQ36: =[5]Salidas_balance!BS36 -> 55.0245 | FR36: =[5]Salidas_balance!BT36 -> 53.70493333 | FS36: =[5]Salidas_balance!BU36 -> 130.193 | FT36: =[5]Salidas_balance!BV36 -> 97.66011111 | FU36: =[5]Salidas_balance!BW36 -> 246.78 | FV36: =[5]Salidas_balance!BX36 -> 402.219 | FW36: =[5]Salidas_balance!BY36 -> 1150.936786 | FX36: =[5]Salidas_balance!BZ36 -> 0 | FZ36: =[5]Salidas_balance!CB36 -> 213.2056667 | GA36: =[5]Salidas_balance!CC36 -> 0 | GB36: =[5]Salidas_balance!CD36 -> 0 | GC36: =[5]Salidas_balance!CE36 -> 0 | GD36: =[5]Salidas_balance!CF36 -> 0 | GE36: =[5]Salidas_balance!CG36 -> 0 | GF36: =[5]Salidas_balance!CH36 -> 0 | GG36: =[5]Salidas_balance!CI36 -> 0 | GH36: =[5]Salidas_balance!CJ36 -> 0 | GI36: =[5]Salidas_balance!CK36 -> 0 | GK36: =[5]Salidas_balance!CM36 -> 40.69423077 | GL36: =[5]Salidas_balance!CN36 -> 0 | GM36: =[5]Salidas_balance!CO36 -> 0 | GN36: =[5]Salidas_balance!CP36 -> 0 | GO36: =[5]Salidas_balance!CQ36 -> 0 | GP36: =[5]Salidas_balance!CR36 -> 0 | GQ36: =[5]Salidas_balance!CS36 -> 0 | GR36: =[5]Salidas_balance!CT36 -> 0 | GS36: =[5]Salidas_balance!CU36 -> 0 | GT36: =[5]Salidas_balance!CV36 -> 0 | GV36: =[5]Salidas_balance!CX36 -> 0 | GW36: =[5]Salidas_balance!CY36 -> 0 | GX36: =[5]Salidas_balance!CZ36 -> 0 | GY36: =[5]Salidas_balance!DA36 -> 0 | GZ36: =[5]Salidas_balance!DB36 -> 0 | HA36: =[5]Salidas_balance!DC36 -> 0 | HB36: =[5]Salidas_balance!DD36 -> 0 | HC36: =[5]Salidas_balance!DE36 -> 0 | HD36: =[5]Salidas_balance!DF36 -> 0 | HE36: =[5]Salidas_balance!DG36 -> 0 | HG36: =[5]Salidas_balance!DI36 -> 8616.61575 | HH36: =[5]Salidas_balance!DJ36 -> 0 | HI36: =[5]Salidas_balance!DK36 -> 0 | HJ36: =[5]Salidas_balance!DL36 -> 0 | HK36: =[5]Salidas_balance!DM36 -> 0 | HL36: =[5]Salidas_balance!DN36 -> 0 | HM36: =[5]Salidas_balance!DO36 -> 0 | HN36: =[5]Salidas_balance!DP36 -> 0 | HO36: =[5]Salidas_balance!DQ36 -> 0 | HP36: =[5]Salidas_balance!DR36 -> 0 | HR36: =[5]Salidas_balance!DT36 -> 1963.524 | HS36: =[5]Salidas_balance!DU36 -> 0 | HT36: =[5]Salidas_balance!DV36 -> 0 | HU36: =[5]Salidas_balance!DW36 -> 0 | HV36: =[5]Salidas_balance!DX36 -> 0 | HW36: =[5]Salidas_balance!DY36 -> 0 | HX36: =[5]Salidas_balance!DZ36 -> 0 | HY36: =[5]Salidas_balance!EA36 -> 0 | HZ36: =[5]Salidas_balance!EB36 -> 0 | IA36: =[5]Salidas_balance!EC36 -> 0 | IC36: =[5]Salidas_balance!EE36 -> 0 | ID36: =[5]Salidas_balance!EF36 -> 0 | IE36: =[5]Salidas_balance!EG36 -> 0 | IF36: =[5]Salidas_balance!EH36 -> 0 | IG36: =[5]Salidas_balance!EI36 -> 0 | IH36: =[5]Salidas_balance!EJ36 -> 0 | II36: =[5]Salidas_balance!EK36 -> 0 | IJ36: =[5]Salidas_balance!EL36 -> 0 | IK36: =[5]Salidas_balance!EM36 -> 0 | IL36: =[5]Salidas_balance!EN36 -> 0 | IN36: =[5]Salidas_balance!EP36 -> 0 | IO36: =[5]Salidas_balance!EQ36 -> 0 | IP36: =[5]Salidas_balance!ER36 -> 0 | IQ36: =[5]Salidas_balance!ES36 -> 0 | IR36: =[5]Salidas_balance!ET36 -> 0 | IS36: =[5]Salidas_balance!EU36 -> 0 | IT36: =[5]Salidas_balance!EV36 -> 0 | IU36: =[5]Salidas_balance!EW36 -> 0 | IV36: =[5]Salidas_balance!EX36 -> 0 | IW36: =[5]Salidas_balance!EY36 -> 0 | IY36: =[5]Salidas_balance!FA36 -> 21622.5566 | IZ36: =[5]Salidas_balance!FB36 -> 0 | JA36: =[5]Salidas_balance!FC36 -> 0 | JB36: =[5]Salidas_balance!FD36 -> 0 | JC36: =[5]Salidas_balance!FE36 -> 0 | JD36: =[5]Salidas_balance!FF36 -> 0 | JE36: =[5]Salidas_balance!FG36 -> 0 | JF36: =[5]Salidas_balance!FH36 -> 0 | JG36: =[5]Salidas_balance!FI36 -> 0 | JH36: =[5]Salidas_balance!FJ36 -> 0 | JJ36: =[5]Salidas_balance!FL36 -> 0 | JK36: =[5]Salidas_balance!FM36 -> 0 | JL36: =[5]Salidas_balance!FN36 -> 0 | JM36: =[5]Salidas_balance!FO36 -> 0 | JN36: =[5]Salidas_balance!FP36 -> 0 | JO36: =[5]Salidas_balance!FQ36 -> 0 | JP36: =[5]Salidas_balance!FR36 -> 0 | JQ36: =[5]Salidas_balance!FS36 -> 0 | JR36: =[5]Salidas_balance!FT36 -> 0 | JS36: =[5]Salidas_balance!FU36 -> 0 | JU36: =[5]Salidas_balance!FW36 -> 0 | JV36: =[5]Salidas_balance!FX36 -> 0 | JW36: =[5]Salidas_balance!FY36 -> 0 | JX36: =[5]Salidas_balance!FZ36 -> 0 | JY36: =[5]Salidas_balance!GA36 -> 0 | JZ36: =[5]Salidas_balance!GB36 -> 0 | KA36: =[5]Salidas_balance!GC36 -> 0 | KB36: =[5]Salidas_balance!GD36 -> 0 | KC36: =[5]Salidas_balance!GE36 -> 0 | KD36: =[5]Salidas_balance!GF36 -> 0 | KF36: =[5]Salidas_balance!GH36 -> 0 | KG36: =[5]Salidas_balance!GI36 -> 0 | KH36: =[5]Salidas_balance!GJ36 -> 0 | KI36: =[5]Salidas_balance!GK36 -> 0 | KJ36: =[5]Salidas_balance!GL36 -> 0 | KK36: =[5]Salidas_balance!GM36 -> 0 | KL36: =[5]Salidas_balance!GN36 -> 0 | KM36: =[5]Salidas_balance!GO36 -> 0 | KN36: =[5]Salidas_balance!GP36 -> 0 | KO36: =[5]Salidas_balance!GQ36 -> 0 | KQ36: =[5]Salidas_balance!GS36 -> 0 | KR36: =[5]Salidas_balance!GT36 -> 0 | KS36: =[5]Salidas_balance!GU36 -> 0 | KT36: =[5]Salidas_balance!GV36 -> 0 | KU36: =[5]Salidas_balance!GW36 -> 0 | KV36: =[5]Salidas_balance!GX36 -> 0 | KW36: =[5]Salidas_balance!GY36 -> 0 | KX36: =[5]Salidas_balance!GZ36 -> 0 | KY36: =[5]Salidas_balance!HA36 -> 0 | KZ36: =[5]Salidas_balance!HB36 -> 0 | LB36: =[5]Salidas_balance!HD36 -> 0 | LC36: =[5]Salidas_balance!HE36 -> 0 | LD36: =[5]Salidas_balance!HF36 -> 0 | LE36: =[5]Salidas_balance!HG36 -> 0 | LF36: =[5]Salidas_balance!HH36 -> 0 | LG36: =[5]Salidas_balance!HI36 -> 0 | LH36: =[5]Salidas_balance!HJ36 -> 0 | LI36: =[5]Salidas_balance!HK36 -> 0 | LJ36: =[5]Salidas_balance!HL36 -> 0 | LK36: =[5]Salidas_balance!HM36 -> 0 | LM36: Domingo | LN36: 07:15:00
B37: Domingo | C37: 07:30:00 | D37: V | E37: 238179.5774 | F37: 320022.5966 | G37: 382767.2291 | H37: 148594.5243 | I37: 23124.33631 | J37: 45144.55991 | K37: 758.5327554 | L37: 7.149534901e-06 | AB37: =IF(AND($C37>INPUTS!$E$27,$C37<INPUTS!$E$26),0,INPUTS!$E$25/7/(24*(1-INPUTS!$E$26+INPUTS!$E$27))) -> 0 | AC37: ='Cálculo de Pérdidas'!S39 -> 16507.57967 | AD37: ='Cálculo de Pérdidas'!O39 -> 4050.044372 | AE37: 238179.5774 | AL37: 57738.96007 | AM37: 14148.95768 | AN37: 5.016752397e-06 | AZ37: ='Cálculo de Pérdidas'!P39 -> 9955.10145 | BA37: 320022.5966 | BL37: 8560.02786 | BM37: 29864.33918 | BP37: 22125.04489 | BV37: ='Cálculo de Pérdidas'!Q39 -> 2195.220586 | BW37: 382767.2291 | BY37: 171718.8607 | CA37: 45903.09266 | CC37: 148594.5243 | CD37: 23124.33631 | CE37: 45144.55991 | CF37: 758.5327554 | CG37: 7.149534901e-06 | CH37: 0 | CI37: 57738.96007 | CJ37: 14148.95768 | CK37: 5.016752397e-06 | CL37: 0 | CM37: 8560.02786 | CN37: 29864.33918 | CO37: 0 | CP37: 0 | CQ37: 22125.04489 | CR37: 0 | CS37: 0 | CT37: 0 | CU37: 0 | CV37: 0 | DA37: =[5]Salidas_balance!C37 -> 0.060975 | DB37: =[5]Salidas_balance!D37 -> 0.1367898734 | DC37: =[5]Salidas_balance!E37 -> 0.3492205882 | DD37: =[5]Salidas_balance!F37 -> 0.399136 | DE37: =[5]Salidas_balance!G37 -> 0.6904428571 | DF37: =[5]Salidas_balance!H37 -> 1.346125 | DG37: =[5]Salidas_balance!I37 -> 2.952446154 | DH37: =[5]Salidas_balance!J37 -> 6.64945 | DI37: =[5]Salidas_balance!K37 -> 14.61986364 | DJ37: =[5]Salidas_balance!L37 -> 0 | DL37: =[5]Salidas_balance!N37 -> 0.2660395833 | DM37: =[5]Salidas_balance!O37 -> 0.2929690476 | DN37: =[5]Salidas_balance!P37 -> 0.54672 | DO37: =[5]Salidas_balance!Q37 -> 0.6380666667 | DP37: =[5]Salidas_balance!R37 -> 1.490293333 | DQ37: =[5]Salidas_balance!S37 -> 2.7640375 | DR37: =[5]Salidas_balance!T37 -> 2.782622222 | DS37: =[5]Salidas_balance!U37 -> 8.667066667 | DT37: =[5]Salidas_balance!V37 -> 27.37725 | DU37: =[5]Salidas_balance!W37 -> 0 | DW37: =[5]Salidas_balance!Y37 -> 2.294040625 | DX37: =[5]Salidas_balance!Z37 -> 2.429058824 | DY37: =[5]Salidas_balance!AA37 -> 6.338895238 | DZ37: =[5]Salidas_balance!AB37 -> 10.62195385 | EA37: =[5]Salidas_balance!AC37 -> 21.83047994 | EB37: =[5]Salidas_balance!AD37 -> 45.35152543 | EC37: =[5]Salidas_balance!AE37 -> 27.752 | ED37: =[5]Salidas_balance!AF37 -> 36.80333333 | EE37: =[5]Salidas_balance!AG37 -> 300.3323636 | EF37: =[5]Salidas_balance!AH37 -> 0 | EH37: =[5]Salidas_balance!AJ37 -> 10.01551667 | EI37: =[5]Salidas_balance!AK37 -> 0 | EJ37: =[5]Salidas_balance!AL37 -> 0 | EK37: =[5]Salidas_balance!AM37 -> 0 | EL37: =[5]Salidas_balance!AN37 -> 0 | EM37: =[5]Salidas_balance!AO37 -> 0 | EN37: =[5]Salidas_balance!AP37 -> 0 | EO37: =[5]Salidas_balance!AQ37 -> 0 | EP37: =[5]Salidas_balance!AR37 -> 0 | EQ37: =[5]Salidas_balance!AS37 -> 0 | ES37: =[5]Salidas_balance!AU37 -> 26.73910345 | ET37: =[5]Salidas_balance!AV37 -> 0 | EU37: =[5]Salidas_balance!AW37 -> 0 | EV37: =[5]Salidas_balance!AX37 -> 0 | EW37: =[5]Salidas_balance!AY37 -> 0 | EX37: =[5]Salidas_balance!AZ37 -> 0 | EY37: =[5]Salidas_balance!BA37 -> 0 | EZ37: =[5]Salidas_balance!BB37 -> 0 | FA37: =[5]Salidas_balance!BC37 -> 0 | FB37: =[5]Salidas_balance!BD37 -> 0 | FD37: =[5]Salidas_balance!BF37 -> 0 | FE37: =[5]Salidas_balance!BG37 -> 0 | FF37: =[5]Salidas_balance!BH37 -> 0 | FG37: =[5]Salidas_balance!BI37 -> 0 | FH37: =[5]Salidas_balance!BJ37 -> 0 | FI37: =[5]Salidas_balance!BK37 -> 0 | FJ37: =[5]Salidas_balance!BL37 -> 0 | FK37: =[5]Salidas_balance!BM37 -> 0 | FL37: =[5]Salidas_balance!BN37 -> 0 | FM37: =[5]Salidas_balance!BO37 -> 0 | FO37: =[5]Salidas_balance!BQ37 -> 3.416160952 | FP37: =[5]Salidas_balance!BR37 -> 19.34372222 | FQ37: =[5]Salidas_balance!BS37 -> 55.651 | FR37: =[5]Salidas_balance!BT37 -> 53.79966667 | FS37: =[5]Salidas_balance!BU37 -> 132.523 | FT37: =[5]Salidas_balance!BV37 -> 83.811 | FU37: =[5]Salidas_balance!BW37 -> 246.949 | FV37: =[5]Salidas_balance!BX37 -> 379.187 | FW37: =[5]Salidas_balance!BY37 -> 1178.235 | FX37: =[5]Salidas_balance!BZ37 -> 0 | FZ37: =[5]Salidas_balance!CB37 -> 217.0855952 | GA37: =[5]Salidas_balance!CC37 -> 0 | GB37: =[5]Salidas_balance!CD37 -> 0 | GC37: =[5]Salidas_balance!CE37 -> 0 | GD37: =[5]Salidas_balance!CF37 -> 0 | GE37: =[5]Salidas_balance!CG37 -> 0 | GF37: =[5]Salidas_balance!CH37 -> 0 | GG37: =[5]Salidas_balance!CI37 -> 0 | GH37: =[5]Salidas_balance!CJ37 -> 0 | GI37: =[5]Salidas_balance!CK37 -> 0 | GK37: =[5]Salidas_balance!CM37 -> 39.15315385 | GL37: =[5]Salidas_balance!CN37 -> 0 | GM37: =[5]Salidas_balance!CO37 -> 0 | GN37: =[5]Salidas_balance!CP37 -> 0 | GO37: =[5]Salidas_balance!CQ37 -> 0 | GP37: =[5]Salidas_balance!CR37 -> 0 | GQ37: =[5]Salidas_balance!CS37 -> 0 | GR37: =[5]Salidas_balance!CT37 -> 0 | GS37: =[5]Salidas_balance!CU37 -> 0 | GT37: =[5]Salidas_balance!CV37 -> 0 | GV37: =[5]Salidas_balance!CX37 -> 0 | GW37: =[5]Salidas_balance!CY37 -> 0 | GX37: =[5]Salidas_balance!CZ37 -> 0 | GY37: =[5]Salidas_balance!DA37 -> 0 | GZ37: =[5]Salidas_balance!DB37 -> 0 | HA37: =[5]Salidas_balance!DC37 -> 0 | HB37: =[5]Salidas_balance!DD37 -> 0 | HC37: =[5]Salidas_balance!DE37 -> 0 | HD37: =[5]Salidas_balance!DF37 -> 0 | HE37: =[5]Salidas_balance!DG37 -> 0 | HG37: =[5]Salidas_balance!DI37 -> 8786.887577 | HH37: =[5]Salidas_balance!DJ37 -> 0 | HI37: =[5]Salidas_balance!DK37 -> 0 | HJ37: =[5]Salidas_balance!DL37 -> 0 | HK37: =[5]Salidas_balance!DM37 -> 0 | HL37: =[5]Salidas_balance!DN37 -> 0 | HM37: =[5]Salidas_balance!DO37 -> 0 | HN37: =[5]Salidas_balance!DP37 -> 0 | HO37: =[5]Salidas_balance!DQ37 -> 0 | HP37: =[5]Salidas_balance!DR37 -> 0 | HR37: =[5]Salidas_balance!DT37 -> 1933.894667 | HS37: =[5]Salidas_balance!DU37 -> 0 | HT37: =[5]Salidas_balance!DV37 -> 0 | HU37: =[5]Salidas_balance!DW37 -> 0 | HV37: =[5]Salidas_balance!DX37 -> 0 | HW37: =[5]Salidas_balance!DY37 -> 0 | HX37: =[5]Salidas_balance!DZ37 -> 0 | HY37: =[5]Salidas_balance!EA37 -> 0 | HZ37: =[5]Salidas_balance!EB37 -> 0 | IA37: =[5]Salidas_balance!EC37 -> 0 | IC37: =[5]Salidas_balance!EE37 -> 0 | ID37: =[5]Salidas_balance!EF37 -> 0 | IE37: =[5]Salidas_balance!EG37 -> 0 | IF37: =[5]Salidas_balance!EH37 -> 0 | IG37: =[5]Salidas_balance!EI37 -> 0 | IH37: =[5]Salidas_balance!EJ37 -> 0 | II37: =[5]Salidas_balance!EK37 -> 0 | IJ37: =[5]Salidas_balance!EL37 -> 0 | IK37: =[5]Salidas_balance!EM37 -> 0 | IL37: =[5]Salidas_balance!EN37 -> 0 | IN37: =[5]Salidas_balance!EP37 -> 0 | IO37: =[5]Salidas_balance!EQ37 -> 0 | IP37: =[5]Salidas_balance!ER37 -> 0 | IQ37: =[5]Salidas_balance!ES37 -> 0 | IR37: =[5]Salidas_balance!ET37 -> 0 | IS37: =[5]Salidas_balance!EU37 -> 0 | IT37: =[5]Salidas_balance!EV37 -> 0 | IU37: =[5]Salidas_balance!EW37 -> 0 | IV37: =[5]Salidas_balance!EX37 -> 0 | IW37: =[5]Salidas_balance!EY37 -> 0 | IY37: =[5]Salidas_balance!FA37 -> 22026.98156 | IZ37: =[5]Salidas_balance!FB37 -> 0 | JA37: =[5]Salidas_balance!FC37 -> 0 | JB37: =[5]Salidas_balance!FD37 -> 0 | JC37: =[5]Salidas_balance!FE37 -> 0 | JD37: =[5]Salidas_balance!FF37 -> 0 | JE37: =[5]Salidas_balance!FG37 -> 0 | JF37: =[5]Salidas_balance!FH37 -> 0 | JG37: =[5]Salidas_balance!FI37 -> 0 | JH37: =[5]Salidas_balance!FJ37 -> 0 | JJ37: =[5]Salidas_balance!FL37 -> 0 | JK37: =[5]Salidas_balance!FM37 -> 0 | JL37: =[5]Salidas_balance!FN37 -> 0 | JM37: =[5]Salidas_balance!FO37 -> 0 | JN37: =[5]Salidas_balance!FP37 -> 0 | JO37: =[5]Salidas_balance!FQ37 -> 0 | JP37: =[5]Salidas_balance!FR37 -> 0 | JQ37: =[5]Salidas_balance!FS37 -> 0 | JR37: =[5]Salidas_balance!FT37 -> 0 | JS37: =[5]Salidas_balance!FU37 -> 0 | JU37: =[5]Salidas_balance!FW37 -> 0 | JV37: =[5]Salidas_balance!FX37 -> 0 | JW37: =[5]Salidas_balance!FY37 -> 0 | JX37: =[5]Salidas_balance!FZ37 -> 0 | JY37: =[5]Salidas_balance!GA37 -> 0 | JZ37: =[5]Salidas_balance!GB37 -> 0 | KA37: =[5]Salidas_balance!GC37 -> 0 | KB37: =[5]Salidas_balance!GD37 -> 0 | KC37: =[5]Salidas_balance!GE37 -> 0 | KD37: =[5]Salidas_balance!GF37 -> 0 | KF37: =[5]Salidas_balance!GH37 -> 0 | KG37: =[5]Salidas_balance!GI37 -> 0 | KH37: =[5]Salidas_balance!GJ37 -> 0 | KI37: =[5]Salidas_balance!GK37 -> 0 | KJ37: =[5]Salidas_balance!GL37 -> 0 | KK37: =[5]Salidas_balance!GM37 -> 0 | KL37: =[5]Salidas_balance!GN37 -> 0 | KM37: =[5]Salidas_balance!GO37 -> 0 | KN37: =[5]Salidas_balance!GP37 -> 0 | KO37: =[5]Salidas_balance!GQ37 -> 0 | KQ37: =[5]Salidas_balance!GS37 -> 0 | KR37: =[5]Salidas_balance!GT37 -> 0 | KS37: =[5]Salidas_balance!GU37 -> 0 | KT37: =[5]Salidas_balance!GV37 -> 0 | KU37: =[5]Salidas_balance!GW37 -> 0 | KV37: =[5]Salidas_balance!GX37 -> 0 | KW37: =[5]Salidas_balance!GY37 -> 0 | KX37: =[5]Salidas_balance!GZ37 -> 0 | KY37: =[5]Salidas_balance!HA37 -> 0 | KZ37: =[5]Salidas_balance!HB37 -> 0 | LB37: =[5]Salidas_balance!HD37 -> 0 | LC37: =[5]Salidas_balance!HE37 -> 0 | LD37: =[5]Salidas_balance!HF37 -> 0 | LE37: =[5]Salidas_balance!HG37 -> 0 | LF37: =[5]Salidas_balance!HH37 -> 0 | LG37: =[5]Salidas_balance!HI37 -> 0 | LH37: =[5]Salidas_balance!HJ37 -> 0 | LI37: =[5]Salidas_balance!HK37 -> 0 | LJ37: =[5]Salidas_balance!HL37 -> 0 | LK37: =[5]Salidas_balance!HM37 -> 0 | LM37: Domingo | LN37: 07:30:00
